Workbook

Sheet CAPA
B12: PROPOSTA DE PREÇOS
B13: Desconto ofertado: | D13: 0
B14: BDI serviços da licitante: | D14: 0.2339
B15: BDI materiais da licitante: | D15: 0.15
B16: Observações:
B17: 1. Preencher apenas a coluna em amarelo com os dados da proposta de preços da licitante.
B18: 2. O desconto linear será aplicado automáticamento na PO Total.
B19: 3. Após definidos os valores na PO Total, a licitante deverá elaborar o restante do orçamento em conformidade com os preços ofertados após o desconto.
B20: 4. A licitante deverá apresentar o Orçamento Completo: PO Total, PO módulo mínimo, cronograma físico financeiro, BDI, Encargos Sociais, bem como todas as composições de custo ajustadas ao desconto ofertado.

Sheet PO TOTAL Prop
B1: EXECUÇÃO DE SERVIÇOS DE IMPLANTAÇÃO DE PAVIMENTAÇÃO EM BLOCO DE CONCRETO INTERTRAVADO, EM VIAS DE MUNICÍPIOS DIVERSOS INSERIDOS NA ÁREA DE ATUAÇÃO DA CODEVASF, NO ESTADO MARANHÃO | P1: MARANHÃO
O2: SICRO: | P2: Maranhão - Abril/2025
O3: SINAPI: | P3: 05/2025
O4: Data base do orçamento: | P4: 2025-07-01
B5: =B1 -> EXECUÇÃO DE SERVIÇOS DE IMPLANTAÇÃO DE PAVIMENTAÇÃO EM BLOCO DE CONCRETO INTERTRAVADO, EM VIAS DE MUNICÍPIOS DIVERSOS INSERIDOS NA ÁREA DE ATUAÇÃO DA CODEVASF, NO ESTADO MARANHÃO | O5: QTD | P5: 6
O6: R$/m² | P6: =P50/I10 -> 237.9187457
A7: SOMA (MODULO MINIMO)
B8: ITEM | C8: ORIGEM COMPOSIÇÃO | D8: CÓDIGO COMPOSIÇÃO | E8: DISCRIMINAÇÃO DOS SERVIÇOS | I8: BDI % = | J8: =TRUNC(CAPA!D14,4) -> 0.2339 | K8: BDI DIFERENCIADO% = | M8: =TRUNC(CAPA!D15,4) -> 0.15 | N8: PROPOSTA DA EMPRESA LICITANTE
I9: Total de m² | J9: Encargos Sociais: | K9: Horista % | L9: Mensalista % | M9: PREÇO UNITÁRIO COM BDI | N9: DESCONTO | O9: PREÇO UNITÁRIO COM BDI APÓS O DESCONTO | P9: PREÇO TOTAL COM BDI APÓS O DESCONTO
I10: 56000 | K10: 112.68 | L10: 69.9
I11: UND | J11: QTDE. | K11: BDI | L11: PREÇO UNITÁRIO
E12: MOBILIZAÇÃO/DESMOBILIZAÇÃO
A13: =VLOOKUP(P13,'[204]PO TOTAL'!#REF!,2,0) ->  | B13: 1 | C13: Codevasf | D13: Mob | E13: Mobilização / Desmobilização | I13: kmxfrente | J13: =$P$5*'MODULO MINIMO Prop'!J12 -> 0 | K13: =$J$8 -> 0.2339 | L13: 130.3839117 | M13: =TRUNC(L13+(L13*K13),2) -> 160.88 | N13: =CAPA!$D$13 -> 0 | O13: =(M13-(M13*N13)) -> 160.88 | P13: =TRUNC(O13*J13,2) -> 0
A14: =VLOOKUP(P14,'[204]PO TOTAL'!#REF!,2,0) ->  | B14: 1 | C14: Codevasf | D14: Mob | E14: Mobilização / Desmobilização | I14: kmxfrente | J14: =$P$5*'MODULO MINIMO Prop'!J13 -> 0 | K14: =$J$8 -> 0.2339 | L14: 130.3839117 | M14: =TRUNC(L14+(L14*K14),2) -> 160.88 | N14: =CAPA!$D$13 -> 0 | O14: =(M14-(M14*N14)) -> 160.88 | P14: 0
E15: INSTALAÇÃO DE CANTEIRO
A16: =VLOOKUP(#REF!,'[204]PO TOTAL'!#REF!,2,0) ->  | B16: 2 | C16: Codevasf | D16: Canteiro | E16: Canteiro de Obras e Almoxarifado | I16: frente | J16: =$P$5*'MODULO MINIMO Prop'!J15 -> 6 | K16: =$J$8 -> 0.2339 | L16: 20786.16 | M16: =TRUNC(L16+(L16*K16),2) -> 25648.04 | N16: =CAPA!$D$13 -> 0 | O16: =(M16-(M16*N16)) -> 25648.04 | P16: =TRUNC(O16*J16,2) -> 153888.24
A17: =VLOOKUP(P16,'[204]PO TOTAL'!#REF!,2,0) ->  | B17: 3 | C17: SINAPI | D17: 103689 | E17: Fornecimento e instalação de placa de obra com chapa galvanizada e estrutura de madeira. af_03/2022_ps | I17: m² | J17: =$P$5*'MODULO MINIMO Prop'!J16 -> 48 | K17: 0.2339 | L17: 468.31 | M17: 577.84 | N17: =CAPA!$D$13 -> 0 | O17: 577.84 | P17: =TRUNC(O17*J17,2) -> 27736.32
E18: ADMINISTRAÇÃO LOCAL DA OBRA
B19: 5 | C19: Codevasf | D19: Adm Local | E19: Administração Local da Obra | I19: und | J19: =$P$5*'MODULO MINIMO Prop'!J18 -> 6 | K19: =$J$8 -> 0.2339 | L19: 187031.4177 | M19: =TRUNC(L19+(L19*K19),2) -> 230778.06 | N19: =CAPA!$D$13 -> 0 | O19: =(M19-(M19*N19)) -> 230778.06 | P19: =TRUNC(O19*J19,2) -> 1384668.36
A20: =VLOOKUP(P20,'[204]PO TOTAL'!#REF!,2,0) ->  | E20: TERRAPLANAGEM
A21: =VLOOKUP(P21,'[204]PO TOTAL'!#REF!,2,0) ->  | B21: 7 | C21: SICRO | D21: 5502114 | E21: Escavação, carga e transporte de material de 1ª categoria - DMT de 1.000 a 1.200 m - caminho de serviço em leito natural - com escavadeira e caminhão basculante de 14 m³ | I21: m³ | J21: =$P$5*'MODULO MINIMO Prop'!J20 -> 21000 | K21: =$J$8 -> 0.2339 | L21: 8.22 | M21: =TRUNC(L21+(L21*K21),2) -> 10.14 | N21: =CAPA!$D$13 -> 0 | O21: =(M21-(M21*N21)) -> 10.14 | P21: =TRUNC(O21*J21,2) -> 212940
A22: =VLOOKUP(P22,'[204]PO TOTAL'!#REF!,2,0) ->  | B22: 8 | C22: SICRO | D22: 4413942 | E22: Espalhamento de material em bota-fora | I22: m³ | J22: =$P$5*'MODULO MINIMO Prop'!J21 -> 8400 | K22: 0.2339 | L22: 2.01 | M22: 2.48 | N22: =CAPA!$D$13 -> 0 | O22: 2.48 | P22: =TRUNC(O22*J22,2) -> 20832
A23: =VLOOKUP(P23,'[204]PO TOTAL'!#REF!,2,0) ->  | E23: PAVIMENTAÇÃO
A24: =VLOOKUP(P24,'[204]PO TOTAL'!#REF!,2,0) ->  | B24: 9 | C24: SINAPI | D24: 711 | E24: Bloquete/piso intertravado de concreto - modelo sextavado / hexagonal, *25 x 25* cm, e = 6 cm, resistencia de 35 mpa, cor natural | I24: m² | J24: =$P$5*'MODULO MINIMO Prop'!J23 -> 84319.2 | K24: =M8 -> 0.15 | L24: 65 | M24: 74.75 | N24: =CAPA!$D$13 -> 0 | O24: 74.75 | P24: =TRUNC(O24*J24,2) -> 6302860.2
A25: =VLOOKUP(P25,'[204]PO TOTAL'!#REF!,2,0) ->  | B25: 10 | C25: Codevasf | D25: CPU-05 | E25: Execução de pavimento em piso intertravado, com bloco sextavado de 25 x 25 cm, espessura 6 cm. af_10/2022. Areia e pó de pedra comerciais | I25: m² | J25: =$P$5*'MODULO MINIMO Prop'!J24 -> 84000 | K25: =$J$8 -> 0.2339 | L25: 13.14 | M25: 16.21 | N25: =CAPA!$D$13 -> 0 | O25: 16.21 | P25: 1361640
A26: =VLOOKUP(P26,'[204]PO TOTAL'!#REF!,2,0) ->  | B26: 11 | C26: SICRO | D26: 5915014 | E26: Transporte com caminhão carroceria com capacidade de 11 t e com guindauto de 45 t.m - rodovia pavimentada | I26: tkm | J26: =$P$5*'MODULO MINIMO Prop'!J25 -> 554400 | K26: 0.2339 | L26: 1.25 | M26: 1.54 | N26: =CAPA!$D$13 -> 0 | O26: 1.54 | P26: 853776
A27: =VLOOKUP(P27,'[204]PO TOTAL'!#REF!,2,0) ->  | B27: 12 | C27: SICRO | D27: 5914389 | E27: Transporte com caminhão basculante de 10 m³ - rodovia pavimentada (areia) | I27: tkm | J27: =$P$5*'MODULO MINIMO Prop'!J26 -> 0 | K27: 0.2339 | L27: 0.78 | M27: 0.96 | N27: =CAPA!$D$13 -> 0 | O27: 0.96 | P27: 0
A28: =VLOOKUP(P28,'[204]PO TOTAL'!#REF!,2,0) ->  | B28: 13 | C28: SICRO | D28: 5914389 | E28: Transporte com caminhão basculante de 10 m³ - rodovia pavimentada (pó de pedra) | I28: tkm | J28: =$P$5*'MODULO MINIMO Prop'!J27 -> 0 | K28: 0.2339 | L28: 0.78 | M28: 0.96 | N28: =CAPA!$D$13 -> 0 | O28: 0.96 | P28: 0
A29: =VLOOKUP(P29,'[204]PO TOTAL'!#REF!,2,0) ->  | B29: 14 | C29: SICRO | D29: 4011219 | E29: Base de solo estabilizado granulometricamente sem mistura com material de jazida | I29: m³ | J29: =$P$5*'MODULO MINIMO Prop'!J28 -> 12600 | K29: 0.2339 | L29: 14.79 | M29: 18.24 | N29: =CAPA!$D$13 -> 0 | O29: 18.24 | P29: 229824
A30: =VLOOKUP(P30,'[204]PO TOTAL'!#REF!,2,0) ->  | B30: 15 | C30: SICRO | D30: 4011209 | E30: Regularização do subleito | I30: m² | J30: =$P$5*'MODULO MINIMO Prop'!J29 -> 84000 | K30: 0.2339 | L30: 1.57 | M30: 1.93 | N30: =CAPA!$D$13 -> 0 | O30: 1.93 | P30: 162120
A31: =VLOOKUP(P31,'[204]PO TOTAL'!#REF!,2,0) ->  | E31: SINALIZAÇÃO
B32: 16 | C32: SICRO | D32: 5213440 | E32: Fornecimento e implantação de placa de regulamentação em aço D = 0,60 m - película retrorrefletiva tipo I + SI | I32: und | J32: =$P$5*'MODULO MINIMO Prop'!J31 -> 36 | K32: =$J$8 -> 0.2339 | L32: 282.19 | M32: =TRUNC(L32+(L32*K32),2) -> 348.19 | N32: =CAPA!$D$13 -> 0 | O32: =(M32-(M32*N32)) -> 348.19 | P32: =TRUNC(O32*J32,2) -> 12534.84
A33: =VLOOKUP(P33,'[204]PO TOTAL'!#REF!,2,0) ->  | B33: 22 | C33: SICRO | D33: 5213464 | E33: Placa de advertência em aço, lado de 0,60 m - película retrorrefletiva tipo I + SI - fornecimento e implantação | I33: und | J33: =$P$5*'MODULO MINIMO Prop'!J32 -> 36 | K33: 0.2339 | L33: 282.23 | M33: 348.24 | N33: =CAPA!$D$13 -> 0 | O33: 348.24 | P33: =TRUNC(O33*J33,2) -> 12536.64
A34: =VLOOKUP(P34,'[204]PO TOTAL'!#REF!,2,0) ->  | B34: 17 | C34: SICRO | D34: 5213863 | E34: Suporte metálico galvanizado para placa de advertência ou regulamentação - lado ou diâmetro de 0,60 m - fornecimento e implantação | I34: und | J34: =$P$5*'MODULO MINIMO Prop'!J33 -> 72 | K34: 0.2339 | L34: 460.16 | M34: 567.79 | N34: =CAPA!$D$13 -> 0 | O34: 567.79 | P34: =TRUNC(O34*J34,2) -> 40880.88
A35: =VLOOKUP(P35,'[204]PO TOTAL'!#REF!,2,0) ->  | B35: 18 | C35: SICRO | D35: 5213400 | E35: Pintura de faixa com tinta acrílica - espessura de 0,4 mm | I35: m² | J35: =$P$5*'MODULO MINIMO Prop'!J34 -> 3600 | K35: 0.2339 | L35: 21.22 | M35: 26.18 | N35: =CAPA!$D$13 -> 0 | O35: 26.18 | P35: =TRUNC(O35*J35,2) -> 94248
A36: =VLOOKUP(P36,'[204]PO TOTAL'!#REF!,2,0) ->  | E36: DRENAGEM
A37: =VLOOKUP(P37,'[204]PO TOTAL'!#REF!,2,0) ->  | B37: 19 | C37: SICRO | D37: 2003377 | E37: Meio-fio de concreto - MFC 05 - areia e brita comerciais - fôrma de madeira | I37: m | J37: =$P$5*'MODULO MINIMO Prop'!J36 -> 24000 | K37: =$J$8 -> 0.2339 | L37: 60.45 | M37: =TRUNC(L37+(L37*K37),2) -> 74.58 | N37: =CAPA!$D$13 -> 0 | O37: =(M37-(M37*N37)) -> 74.58 | P37: =TRUNC(O37*J37,2) -> 1789920
A38: =VLOOKUP(P38,'[204]PO TOTAL'!#REF!,2,0) ->  | B38: 19 | C38: SICRO | D38: 4915724 | E38: Caiação mecanizada com fixador de cal | I38: m² | J38: =$P$5*'MODULO MINIMO Prop'!J37 -> 2880 | K38: 0.2339 | L38: 1.95 | M38: 2.4 | N38: =CAPA!$D$13 -> 0 | O38: 2.4 | P38: =TRUNC(O38*J38,2) -> 6912
A39: =VLOOKUP(P39,'[204]PO TOTAL'!#REF!,2,0) ->  | E39: SERVIÇOS COMPLEMENTARES
A40: =VLOOKUP(P40,'[204]PO TOTAL'!#REF!,2,0) ->  | B40: 20 | C40: Codevasf | D40: CPU-02 | E40: Conserto de quebra no ramal na rua sem pavimento com fornecimento de material hidráulico | I40: m | J40: =$P$5*'MODULO MINIMO Prop'!J39 -> 1200 | K40: =$J$8 -> 0.2339 | L40: 18.13355 | M40: =TRUNC(L40+(L40*K40),2) -> 22.37 | N40: =CAPA!$D$13 -> 0 | O40: =(M40-(M40*N40)) -> 22.37 | P40: =TRUNC(O40*J40,2) -> 26844
A41: =VLOOKUP(P41,'[204]PO TOTAL'!#REF!,2,0) ->  | E41: PROJETO EXECUTIVO
A42: =VLOOKUP(P42,'[204]PO TOTAL'!#REF!,2,0) ->  | B42: 21 | C42: Codevasf | D42: Composição Própria | E42: Projeto Executivo | I42: m² | J42: =$P$5*'MODULO MINIMO Prop'!J41 -> 84000 | K42: =$J$8 -> 0.2339 | L42: 3.114467 | M42: =TRUNC(L42+(L42*K42),2) -> 3.84 | N42: =CAPA!$D$13 -> 0 | O42: =(M42-(M42*N42)) -> 3.84 | P42: =TRUNC(O42*J42,2) -> 322560
A43: =VLOOKUP(P43,'[204]PO TOTAL'!#REF!,2,0) ->  | E43: MOMENTO DE TRANSPORTE
A44: =VLOOKUP(P44,'[204]PO TOTAL'!#REF!,2,0) ->  | B44: 22 | C44: SICRO | D44: 5914359 | E44: Transporte com caminhão basculante de 10 m³ - rodovia em leito natural | I44: tkm | J44: =$P$5*'MODULO MINIMO Prop'!J43 -> 0 | K44: =$J$8 -> 0.2339 | L44: 1.21 | M44: 1.49 | N44: =CAPA!$D$13 -> 0 | O44: 1.49 | P44: =TRUNC(O44*J44,2) -> 0
A45: =VLOOKUP(P45,'[204]PO TOTAL'!#REF!,2,0) ->  | B45: 23 | C45: SICRO | D45: 5914374 | E45: Transporte com caminhão basculante de 10 m³ - rodovia em revestimento primário | I45: tkm | J45: =$P$5*'MODULO MINIMO Prop'!J44 -> 259939.26 | K45: 0.2339 | L45: 0.96 | M45: 1.18 | N45: =CAPA!$D$13 -> 0 | O45: 1.18 | P45: 306728.32
A46: =VLOOKUP(P46,'[204]PO TOTAL'!#REF!,2,0) ->  | B46: 24 | C46: SICRO | D46: 5914389 | E46: Transporte com caminhão basculante de 10 m³ - rodovia pavimentada | I46: tkm | J46: =$P$5*'MODULO MINIMO Prop'!J45 -> 0 | K46: 0.2339 | L46: 0.78 | M46: 0.96 | N46: =CAPA!$D$13 -> 0 | O46: 0.96 | P46: 0
A47: =VLOOKUP(P47,'[204]PO TOTAL'!#REF!,2,0) ->  | B47: 25 | C47: SICRO | D47: 5914449 | E47: Transporte com caminhão carroceria de 15 t - rodovia em leito natural | I47: tkm | J47: =$P$5*'MODULO MINIMO Prop'!J46 -> 0 | K47: 0.2339 | L47: 1.07 | M47: 1.32 | N47: =CAPA!$D$13 -> 0 | O47: 1.32 | P47: 0
A48: =VLOOKUP(P48,'[204]PO TOTAL'!#REF!,2,0) ->  | B48: 26 | C48: SICRO | D48: 5914464 | E48: Transporte com caminhão carroceria de 15 t - rodovia em revestimento primário | I48: tkm | J48: =$P$5*'MODULO MINIMO Prop'!J47 -> 0 | K48: 0.2339 | L48: 0.86 | M48: 1.06 | N48: =CAPA!$D$13 -> 0 | O48: 1.06 | P48: 0
A49: =VLOOKUP(P49,'[204]PO TOTAL'!#REF!,2,0) ->  | B49: 27 | C49: SICRO | D49: 5914479 | E49: Transporte com caminhão carroceria de 15 t - rodovia pavimentada | I49: tkm | J49: =$P$5*'MODULO MINIMO Prop'!J48 -> 0 | K49: 0.2339 | L49: 0.69 | M49: 0.85 | N49: =CAPA!$D$13 -> 0 | O49: 0.85 | P49: 0 | R49: =P52*P5 -> 13323449.76
B50: VALOR TOTAL DO SRP | P50: =SUM(P12:P49)-R52 -> 13323449.76
R51: 0.04000000283
B52: VALOR DO MÓDULO MÍNIMO | P52: ='MODULO MINIMO Prop'!P49 -> 2220574.96 | R52: 0.04000000283

Sheet PO TOTAL (hidden)
B1: EXECUÇÃO DE SERVIÇOS DE IMPLANTAÇÃO DE PAVIMENTAÇÃO EM BLOCO DE CONCRETO INTERTRAVADO, EM VIAS DE MUNICÍPIOS DIVERSOS INSERIDOS NA ÁREA DE ATUAÇÃO DA CODEVASF, NO ESTADO MARANHÃO | N1: xxxxxxx
M2: SICRO: | N2: ='SINTÉTICO SICRO'!B2 -> Maranhão - ABRIL/2025
M3: SINAPI: | N3: =RIGHT('INSUMOS SINAPI'!A3,7) -> 05/2025
M4: Data base orçamento: | N4: 2025-07-01
B5: =B1 -> EXECUÇÃO DE SERVIÇOS DE IMPLANTAÇÃO DE PAVIMENTAÇÃO EM BLOCO DE CONCRETO INTERTRAVADO, EM VIAS DE MUNICÍPIOS DIVERSOS INSERIDOS NA ÁREA DE ATUAÇÃO DA CODEVASF, NO ESTADO MARANHÃO
B6: SOMA (MODULO MINIMO) | M6: QT | N6: 4
B7: ITEM | C7: ORIGEM COMPOSIÇÃO | D7: CÓDIGO COMPOSIÇÃO | E7: DISCRIMINAÇÃO DOS SERVIÇOS | I7: BDI % = | J7: =BDI!C17 -> 0.2339 | K7: BDI DIFERENCIADO% = | L7: =BDI!C72 -> 0.15 | M7: R$/m² = | N7: =N49/I9 -> 158.6124971
I8: Total de m² | J8: Encargos Sociais: | K8: Horista (%) | L8: Mensalista (%) | M8: PREÇO UNITÁRIO COM BDI | N8: PREÇO TOTAL COM BDI
I9: =N6*'MODULO MINIMO Prop'!I9 -> 56000 | K9: ='ENC. SOCIAIS'!$E$51 -> 112.73 | L9: ='ENC. SOCIAIS'!$F$51 -> 70.19
I10: UND | J10: QTDE. | K10: BDI | L10: PREÇO UNITÁRIO | AB10: TOTAL
E11: MOBILIZAÇÃO/DESMOBILIZAÇÃO
B12: 1 | C12: Codevasf | D12: Mob | E12: Mobilização / Desmobilização | I12: kmxfrente | J12: =$N$6*'MODULO MINIMO Prop'!J12 -> 0 | K12: =$J$7 -> 0.2339 | L12: =Mob!B63 -> 130.3839117 | M12: =TRUNC(Mob!B65,2) -> 160.88 | N12: =TRUNC(M12*J12,2) -> 0 | O12: =N12/$N$49 -> 0 | AA12: 57163.47
B13: 1 | C13: Codevasf | D13: Mob | E13: Mobilização / Desmobilização | I13: kmxfrente | J13: =$N$6*'MODULO MINIMO Prop'!J13 -> 0 | K13: =$J$7 -> 0.2339 | L13: =Mob!B63 -> 130.3839117 | M13: =TRUNC(Mob!B65,2) -> 160.88 | N13: =TRUNC(M13*J13,2) -> 0 | O13: =N13/$N$49 -> 0 | AA13: 57163.47
E14: INSTALAÇÃO DE CANTEIRO
B15: 2 | C15: Codevasf | D15: Canteiro | E15: Canteiro de Obras e Almoxarifado | I15: frente | J15: =$N$6*'MODULO MINIMO Prop'!J15 -> 4 | K15: =$J$7 -> 0.2339 | L15: =' Canteiro'!F11 -> 20786.16 | M15: =TRUNC(' Canteiro'!F13,2) -> 25648.04 | N15: =TRUNC(M15*J15,2) -> 102592.16 | AA15: 190291.53
B16: 3 | C16: SINAPI | D16: 103689 | E16: Fornecimento e instalação de placa de obra com chapa galvanizada e estrutura de madeira. af_03/2022_ps | I16: m² | J16: =$N$6*'MODULO MINIMO Prop'!J16 -> 32 | K16: =$J$7 -> 0.2339 | L16: =VLOOKUP(D16,'COMP Sint. Sinapi'!B11:E9733,4,FALSE) -> 468.31 | M16: =TRUNC(L16*(1+$J$7),2) -> 577.84 | N16: =TRUNC(M16*J16,2) -> 18490.88
E17: ADMINISTRAÇÃO LOCAL DA OBRA
B18: 5 | C18: Codevasf | D18: Adm Local | E18: Administração Local da Obra | I18: und | J18: =$N$6*'MODULO MINIMO Prop'!J18 -> 4 | K18: =$J$7 -> 0.2339 | L18: ='Adm Local '!H250 -> 187031.4177 | M18: =TRUNC('Adm Local '!I252,2) -> 230778.06 | N18: =TRUNC(M18*J18,2) -> 923112.24 | O18: =N18/N49 -> 0.1039271649
E19: TERRAPLANAGEM
B20: 7 | C20: SICRO | D20: 5502114 | E20: =VLOOKUP(D20,'SINTÉTICO SICRO'!$A$4:$D$1048576,2,0) -> Escavação, carga e transporte de material de 1ª categoria - DMT de 1.000 a 1.200 m - caminho de serviço em leito natural - com escavadeira e caminhão basculante de 14 m³ | I20: m³ | J20: =$N$6*'MODULO MINIMO Prop'!J20 -> 14000 | K20: =$J$7 -> 0.2339 | L20: =ROUND(IF(C20="CODEVASF",VLOOKUP(D20,'CPU CODEVASF'!E:I,5,FALSE),VLOOKUP(D20,'SINTÉTICO SICRO'!A:D,4,FALSE)),6) -> 8.22 | M20: =TRUNC(ROUND(IF(C20="CODEVASF",VLOOKUP(D20,'CPU CODEVASF'!E:H,4,FALSE),VLOOKUP(D20,'SINTÉTICO SICRO'!A:D,4,FALSE)*(1+$J$7)),6),2) -> 10.14 | N20: =TRUNC(M20*J20,2) -> 141960 | AB20: 366912
B21: 8 | C21: SICRO | D21: 4413942 | E21: =VLOOKUP(D21,'SINTÉTICO SICRO'!$A$4:$D$1048576,2,0) -> Espalhamento de material em bota-fora | I21: m³ | J21: =$N$6*'MODULO MINIMO Prop'!J21 -> 5600 | K21: =$J$7 -> 0.2339 | L21: =ROUND(IF(C21="CODEVASF",VLOOKUP(D21,'CPU CODEVASF'!E:I,5,FALSE),VLOOKUP(D21,'SINTÉTICO SICRO'!A:D,4,FALSE)),6) -> 2.01 | M21: =TRUNC(ROUND(IF(C21="CODEVASF",VLOOKUP(D21,'CPU CODEVASF'!E:H,4,FALSE),VLOOKUP(D21,'SINTÉTICO SICRO'!A:D,4,FALSE)*(1+$J$7)),6),2) -> 2.48 | N21: =TRUNC(M21*J21,2) -> 13888 | AB21: 84084 | AG21: 1
E22: PAVIMENTAÇÃO
B23: 9 | C23: SINAPI | D23: 711 | E23: Bloquete/piso intertravado de concreto - modelo sextavado / hexagonal, *25 x 25* cm, e = 6 cm, resistencia de 35 mpa, cor natural | I23: m² | J23: =$N$6*'MODULO MINIMO Prop'!J23 -> 56212.8 | K23: =L7 -> 0.15 | L23: =ROUND(VLOOKUP(D23,'INSUMOS SINAPI'!A:E,5,0),6) -> 65 | M23: =TRUNC(ROUND(VLOOKUP(D23,'INSUMOS SINAPI'!A:E,5,0)*(1+$L$7),6),2) -> 74.75 | N23: =TRUNC(M23*J23,2) -> 4201906.8
B24: 10 | C24: Codevasf | D24: CPU-05 | E24: Execução de pavimento em piso intertravado, com bloco sextavado de 25 x 25 cm, espessura 6 cm. af_10/2022. Areia e pó de pedra comerciais | I24: m² | J24: =$N$6*'MODULO MINIMO Prop'!J24 -> 56000 | K24: =$J$7 -> 0.2339 | L24: ='CPU CODEVASF'!H46 -> 13.14 | M24: =TRUNC('CPU CODEVASF'!H48,2) -> 16.21 | N24: 907760 | AB24: 13037300.31
B25: 11 | C25: SICRO | D25: 5915014 | E25: =VLOOKUP(D25,'SINTÉTICO SICRO'!$A$4:$D$1048576,2,0) -> Transporte com caminhão carroceria com capacidade de 11,5 t e com guindauto com capacidade de elevação de 11,9 t - rodovia pavimentada | I25: tkm | J25: =$N$6*'MODULO MINIMO Prop'!J25 -> 369600 | K25: 0.2339 | L25: =ROUND(IF(C25="CODEVASF",VLOOKUP(D25,'CPU CODEVASF'!E:I,5,FALSE),VLOOKUP(D25,'SINTÉTICO SICRO'!A:D,4,FALSE)),6) -> 1.25 | M25: =TRUNC(L25+(L25*J7),2) -> 1.54 | N25: 569184 | P25: 5914014
B26: 12 | C26: SICRO | D26: 5914389 | E26: Transporte com caminhão basculante de 10 m³ - rodovia pavimentada (areia) | I26: tkm | J26: =$N$6*'MODULO MINIMO Prop'!J26 -> 0 | K26: 0.2339 | L26: =ROUND(IF(C26="CODEVASF",VLOOKUP(D26,'CPU CODEVASF'!E:I,5,FALSE),VLOOKUP(D26,'SINTÉTICO SICRO'!A:D,4,FALSE)),6) -> 0.78 | M26: =TRUNC(L26+(L26*J7),2) -> 0.96 | N26: 0
B27: 13 | C27: SICRO | D27: ='SINTÉTICO SICRO'!A4317 -> 3713702 | E27: Transporte com caminhão basculante de 10 m³ - rodovia pavimentada (pó de pedra) | I27: tkm | J27: =$N$6*'MODULO MINIMO Prop'!J27 -> 0 | K27: 0.2339 | L27: =ROUND(IF(C27="CODEVASF",VLOOKUP(D27,'CPU CODEVASF'!E:I,5,FALSE),VLOOKUP(D27,'SINTÉTICO SICRO'!A:D,4,FALSE)),6) -> 349980.06 | M27: =TRUNC(L27+(L27*J7),2) -> 431840.39 | N27: 0
B28: 14 | C28: SICRO | D28: 4011219 | E28: =VLOOKUP(D28,'SINTÉTICO SICRO'!$A$4:$D$1048576,2,0) -> Base de solo estabilizado granulometricamente sem mistura com material de jazida - 100% Proctor modificado | I28: m³ | J28: =$N$6*'MODULO MINIMO Prop'!J28 -> 8400 | K28: 0.2339 | L28: =ROUND(IF(C28="CODEVASF",VLOOKUP(D28,'CPU CODEVASF'!E:I,5,FALSE),VLOOKUP(D28,'SINTÉTICO SICRO'!A:D,4,FALSE)),6) -> 14.79 | M28: =TRUNC(ROUND(IF(C28="CODEVASF",VLOOKUP(D28,'CPU CODEVASF'!E:H,4,FALSE),VLOOKUP(D28,'SINTÉTICO SICRO'!A:D,4,FALSE)*(1+$J$7)),6),2) -> 18.24 | N28: 153216 | AB28: 15919722
B29: 15 | C29: SICRO | D29: 4011209 | E29: =VLOOKUP(D29,'SINTÉTICO SICRO'!$A$4:$D$1048576,2,0) -> Regularização do subleito - 100% Proctor intermediário | I29: m² | J29: =$N$6*'MODULO MINIMO Prop'!J29 -> 56000 | K29: 0.2339 | L29: =ROUND(IF(C29="CODEVASF",VLOOKUP(D29,'CPU CODEVASF'!E:I,5,FALSE),VLOOKUP(D29,'SINTÉTICO SICRO'!A:D,4,FALSE)),6) -> 1.57 | M29: =TRUNC(ROUND(IF(C29="CODEVASF",VLOOKUP(D29,'CPU CODEVASF'!E:H,4,FALSE),VLOOKUP(D29,'SINTÉTICO SICRO'!A:D,4,FALSE)*(1+$J$7)),6),2) -> 1.93 | N29: 108080 | AB29: 540540
E30: SINALIZAÇÃO
B31: 16 | C31: SICRO | D31: 5213440 | E31: Fornecimento e implantação de placa de regulamentação em aço D = 0,60 m - película retrorrefletiva tipo I + SI | I31: und | J31: =$N$6*'MODULO MINIMO Prop'!J31 -> 24 | K31: =$J$7 -> 0.2339 | L31: =ROUND(IF(C31="CODEVASF",VLOOKUP(D31,'CPU CODEVASF'!E:I,5,FALSE),VLOOKUP(D31,'SINTÉTICO SICRO'!A:D,4,FALSE)),6) -> 282.19 | M31: =TRUNC(ROUND(IF(C31="CODEVASF",VLOOKUP(D31,'CPU CODEVASF'!E:H,4,FALSE),VLOOKUP(D31,'SINTÉTICO SICRO'!A:D,4,FALSE)*(1+$J$7)),6),2) -> 348.19 | N31: =TRUNC(M31*J31,2) -> 8356.56 | AB31: 9985.95
B32: 22 | C32: SICRO | D32: 5213464 | E32: =VLOOKUP(D32,'SINTÉTICO SICRO'!$A$4:$D$1048576,2,0) -> Placa de advertência em aço, lado de 0,60 m - película retrorrefletiva tipo I + SI - fornecimento e implantação | I32: und | J32: =$N$6*'MODULO MINIMO Prop'!J32 -> 24 | K32: =$J$7 -> 0.2339 | L32: =ROUND(IF(C32="CODEVASF",VLOOKUP(D32,'CPU CODEVASF'!E:I,5,FALSE),VLOOKUP(D32,'SINTÉTICO SICRO'!A:D,4,FALSE)),6) -> 282.23 | M32: =TRUNC(ROUND(IF(C32="CODEVASF",VLOOKUP(D32,'CPU CODEVASF'!E:H,4,FALSE),VLOOKUP(D32,'SINTÉTICO SICRO'!A:D,4,FALSE)*(1+$J$7)),6),2) -> 348.24 | N32: =TRUNC(M32*J32,2) -> 8357.76
B33: 17 | C33: SICRO | D33: 5213863 | E33: Suporte metálico galvanizado para placa de advertência ou regulamentação - lado ou diâmetro de 0,60 m - fornecimento e implantação | I33: und | J33: =$N$6*'MODULO MINIMO Prop'!J33 -> 48 | K33: =$J$7 -> 0.2339 | L33: =ROUND(IF(C33="CODEVASF",VLOOKUP(D33,'CPU CODEVASF'!E:I,5,FALSE),VLOOKUP(D33,'SINTÉTICO SICRO'!A:D,4,FALSE)),6) -> 460.16 | M33: =TRUNC(ROUND(IF(C33="CODEVASF",VLOOKUP(D33,'CPU CODEVASF'!E:H,4,FALSE),VLOOKUP(D33,'SINTÉTICO SICRO'!A:D,4,FALSE)*(1+$J$7)),6),2) -> 567.79 | N33: =TRUNC(M33*J33,2) -> 27253.92 | AB33: 13086.06
B34: 18 | C34: SICRO | D34: 5213400 | E34: Pintura de faixa com tinta acrílica - espessura de 0,4 mm | I34: m² | J34: =$N$6*'MODULO MINIMO Prop'!J34 -> 2400 | K34: =$J$7 -> 0.2339 | L34: =ROUND(IF(C34="CODEVASF",VLOOKUP(D34,'CPU CODEVASF'!E:I,5,FALSE),VLOOKUP(D34,'SINTÉTICO SICRO'!A:D,4,FALSE)),6) -> 21.22 | M34: =TRUNC(ROUND(IF(C34="CODEVASF",VLOOKUP(D34,'CPU CODEVASF'!E:H,4,FALSE),VLOOKUP(D34,'SINTÉTICO SICRO'!A:D,4,FALSE)*(1+$J$7)),6),2) -> 26.18 | N34: =TRUNC(M34*J34,2) -> 62832
E35: DRENAGEM
B36: 19 | C36: SICRO | D36: 2003377 | E36: =VLOOKUP(D36,'SINTÉTICO SICRO'!$A$4:$D$1048576,2,0) -> Meio-fio de concreto - MFC 05 - areia e brita comerciais - fôrma de madeira | I36: m | J36: =$N$6*'MODULO MINIMO Prop'!J36 -> 16000 | K36: =$J$7 -> 0.2339 | L36: =ROUND(IF(C36="CODEVASF",VLOOKUP(D36,'CPU CODEVASF'!E:I,5,FALSE),VLOOKUP(D36,'SINTÉTICO SICRO'!A:D,4,FALSE)),6) -> 60.45 | M36: =TRUNC(ROUND(IF(C36="CODEVASF",VLOOKUP(D36,'CPU CODEVASF'!E:H,4,FALSE),VLOOKUP(D36,'SINTÉTICO SICRO'!A:D,4,FALSE)*(1+$J$7)),6),2) -> 74.58 | N36: =TRUNC(M36*J36,2) -> 1193280 | AB36: 4514640
B37: 19 | C37: SICRO | D37: 4915724 | E37: =VLOOKUP(D37,'SINTÉTICO SICRO'!$A$4:$D$1048576,2,0) -> Caiação mecanizada com fixador de cal | I37: m² | J37: =$N$6*'MODULO MINIMO Prop'!J37 -> 1920 | K37: =$J$7 -> 0.2339 | L37: =ROUND(IF(C37="CODEVASF",VLOOKUP(D37,'CPU CODEVASF'!E:I,5,FALSE),VLOOKUP(D37,'SINTÉTICO SICRO'!A:D,4,FALSE)),6) -> 1.95 | M37: =TRUNC(ROUND(IF(C37="CODEVASF",VLOOKUP(D37,'CPU CODEVASF'!E:H,4,FALSE),VLOOKUP(D37,'SINTÉTICO SICRO'!A:D,4,FALSE)*(1+$J$7)),6),2) -> 2.4 | N37: =TRUNC(M37*J37,2) -> 4608
E38: SERVIÇOS COMPLEMENTARES
B39: 20 | C39: Codevasf | D39: CPU-02 | E39: Conserto de quebra no ramal na rua sem pavimento com fornecimento de material hidráulico | I39: m | J39: =$N$6*'MODULO MINIMO Prop'!J39 -> 800 | K39: =$J$7 -> 0.2339 | L39: =ROUND(IF(C39="CODEVASF",VLOOKUP(D39,'CPU CODEVASF'!E:I,5,FALSE),VLOOKUP(D39,'SINTÉTICO SICRO'!A:D,4,FALSE)),6) -> 18.13355 | M39: =TRUNC(ROUND(IF(C39="CODEVASF",VLOOKUP(D39,'CPU CODEVASF'!E:H,4,FALSE),VLOOKUP(D39,'SINTÉTICO SICRO'!A:D,4,FALSE)*(1+$J$7)),6),2) -> 22.37 | N39: =TRUNC(M39*J39,2) -> 17896 | AB39: 139854
E40: PROJETO EXECUTIVO
B41: 21 | C41: Codevasf | D41: Composição Própria | E41: Projeto Executivo | I41: m² | J41: =$N$6*'MODULO MINIMO Prop'!J41 -> 56000 | K41: =$J$7 -> 0.2339 | L41: =ROUND(('Projeto Executivo'!G28)/(1+$J$7),6) -> 3.114467 | M41: =TRUNC('Projeto Executivo'!G28,2) -> 3.84 | N41: =ROUND(ROUND(J41,2)*ROUND(M41,6),2) -> 215040 | O41: =N41/N49 -> 0.02420994606 | AB41: 763671.38
E42: MOMENTO DE TRANSPORTE
B43: 22 | C43: SICRO | D43: 5914359 | E43: =VLOOKUP(D43,'SINTÉTICO SICRO'!$A$4:$D$1048576,2,0) -> Transporte com caminhão basculante de 10 m³ - rodovia em leito natural | I43: tkm | J43: =$N$6*'MODULO MINIMO Prop'!J43 -> 0 | K43: =$J$7 -> 0.2339 | L43: =ROUND(IF(C43="CODEVASF",VLOOKUP(D43,'CPU CODEVASF'!E:I,5,FALSE),VLOOKUP(D43,'SINTÉTICO SICRO'!A:D,4,FALSE)),6) -> 1.21 | M43: =TRUNC(ROUND(IF(C43="CODEVASF",VLOOKUP(D43,'CPU CODEVASF'!E:H,4,FALSE),VLOOKUP(D43,'SINTÉTICO SICRO'!A:D,4,FALSE)*(1+$J$7)),6),2) -> 1.49 | N43: =TRUNC(M43*J43,2) -> 0
B44: 23 | C44: SICRO | D44: 5914374 | E44: =VLOOKUP(D44,'SINTÉTICO SICRO'!$A$4:$D$1048576,2,0) -> Transporte com caminhão basculante de 10 m³ - rodovia em revestimento primário | I44: tkm | J44: =$N$6*'MODULO MINIMO Prop'!J44 -> 173292.84 | K44: 0.2339 | L44: =ROUND(IF(C44="CODEVASF",VLOOKUP(D44,'CPU CODEVASF'!E:I,5,FALSE),VLOOKUP(D44,'SINTÉTICO SICRO'!A:D,4,FALSE)),6) -> 0.96 | M44: =TRUNC(ROUND(IF(C44="CODEVASF",VLOOKUP(D44,'CPU CODEVASF'!E:H,4,FALSE),VLOOKUP(D44,'SINTÉTICO SICRO'!A:D,4,FALSE)*(1+$J$7)),6),2) -> 1.18 | N44: =TRUNC(M44*J44,2) -> 204485.55
B45: 24 | C45: SICRO | D45: 5914389 | E45: =VLOOKUP(D45,'SINTÉTICO SICRO'!$A$4:$D$1048576,2,0) -> Transporte com caminhão basculante de 10 m³ - rodovia pavimentada | I45: tkm | J45: =$N$6*'MODULO MINIMO Prop'!J45 -> 0 | K45: 0.2339 | L45: =ROUND(IF(C45="CODEVASF",VLOOKUP(D45,'CPU CODEVASF'!E:I,5,FALSE),VLOOKUP(D45,'SINTÉTICO SICRO'!A:D,4,FALSE)),6) -> 0.78 | M45: =TRUNC(ROUND(IF(C45="CODEVASF",VLOOKUP(D45,'CPU CODEVASF'!E:H,4,FALSE),VLOOKUP(D45,'SINTÉTICO SICRO'!A:D,4,FALSE)*(1+$J$7)),6),2) -> 0.96 | N45: 0
B46: 25 | C46: SICRO | D46: 5914449 | E46: =VLOOKUP(D46,'SINTÉTICO SICRO'!$A$4:$D$1048576,2,0) -> Transporte com caminhão carroceria de 15 t - rodovia em leito natural | I46: tkm | J46: =$N$6*'MODULO MINIMO Prop'!J46 -> 0 | K46: 0.2339 | L46: =ROUND(IF(C46="CODEVASF",VLOOKUP(D46,'CPU CODEVASF'!E:I,5,FALSE),VLOOKUP(D46,'SINTÉTICO SICRO'!A:D,4,FALSE)),6) -> 1.07 | M46: =TRUNC(ROUND(IF(C46="CODEVASF",VLOOKUP(D46,'CPU CODEVASF'!E:H,4,FALSE),VLOOKUP(D46,'SINTÉTICO SICRO'!A:D,4,FALSE)*(1+$J$7)),6),2) -> 1.32 | N46: 0
B47: 26 | C47: SICRO | D47: 5914464 | E47: =VLOOKUP(D47,'SINTÉTICO SICRO'!$A$4:$D$1048576,2,0) -> Transporte com caminhão carroceria de 15 t - rodovia em revestimento primário | I47: tkm | J47: =$N$6*'MODULO MINIMO Prop'!J47 -> 0 | K47: 0.2339 | L47: =ROUND(IF(C47="CODEVASF",VLOOKUP(D47,'CPU CODEVASF'!E:I,5,FALSE),VLOOKUP(D47,'SINTÉTICO SICRO'!A:D,4,FALSE)),6) -> 0.86 | M47: =TRUNC(ROUND(IF(C47="CODEVASF",VLOOKUP(D47,'CPU CODEVASF'!E:H,4,FALSE),VLOOKUP(D47,'SINTÉTICO SICRO'!A:D,4,FALSE)*(1+$J$7)),6),2) -> 1.06 | N47: 0
B48: 27 | C48: SICRO | D48: 5914479 | E48: =VLOOKUP(D48,'SINTÉTICO SICRO'!$A$4:$D$1048576,2,0) -> Transporte com caminhão carroceria de 15 t - rodovia pavimentada | I48: tkm | J48: =$N$6*'MODULO MINIMO Prop'!J48 -> 0 | K48: 0.2339 | L48: =ROUND(IF(C48="CODEVASF",VLOOKUP(D48,'CPU CODEVASF'!E:I,5,FALSE),VLOOKUP(D48,'SINTÉTICO SICRO'!A:D,4,FALSE)),6) -> 0.69 | M48: =TRUNC(ROUND(IF(C48="CODEVASF",VLOOKUP(D48,'CPU CODEVASF'!E:H,4,FALSE),VLOOKUP(D48,'SINTÉTICO SICRO'!A:D,4,FALSE)*(1+$J$7)),6),2) -> 0.85 | N48: 0
B49: VALOR TOTAL DO SRP | N49: =SUM(N11:N48)-0.03 -> 8882299.84 | P49: 0.06 | S49: =N49-'MODULO MINIMO Prop'!P49*'PO TOTAL'!N6 -> 0 | AB49: =SUM(AB19:AB41) -> 35389795.7
S50: 0.03

Sheet MODULO MINIMO Prop
B1: EXECUÇÃO DE SERVIÇOS DE IMPLANTAÇÃO DE PAVIMENTAÇÃO EM BLOCO DE CONCRETO INTERTRAVADO, EM VIAS DE MUNICÍPIOS DIVERSOS INSERIDOS NA ÁREA DE ATUAÇÃO DA CODEVASF, NO ESTADO MARANHÃO | P1: xxxxxxx
O2: SICRO: | P2: ='SINTÉTICO SICRO'!B2 -> Maranhão - ABRIL/2025
O3: SINAPI: | P3: =RIGHT('INSUMOS SINAPI'!A3,7) -> 05/2025
O4: Data base orçamento: | P4: 2025-07-01
B5: =B1 -> EXECUÇÃO DE SERVIÇOS DE IMPLANTAÇÃO DE PAVIMENTAÇÃO EM BLOCO DE CONCRETO INTERTRAVADO, EM VIAS DE MUNICÍPIOS DIVERSOS INSERIDOS NA ÁREA DE ATUAÇÃO DA CODEVASF, NO ESTADO MARANHÃO
N6: PROPOSTA EMPRESA LICITANTE
B7: ITEM | C7: ORIGEM COMPOSIÇÃO | D7: CÓDIGO COMPOSIÇÃO | E7: DISCRIMINAÇÃO DOS SERVIÇOS | I7: BDI % = | J7: =CAPA!D14 -> 0.2339 | K7: BDI DIFERENCIADO% = | L7: =CAPA!D15 -> 0.15 | O7: R$/m² = | P7: =P49/I9 -> 158.6124971
I8: Total de m² | J8: Encargos Sociais: | K8: Horista (%) | L8: Mensalista (%) | M8: PREÇO UNITÁRIO COM BDI | N8: DESCONTO | O8: PREÇO UNITÁRIO COM BDI APÓS O DESCONTO | P8: PREÇO TOTAL COM BDI APÓS O DESCONTO
I9: ='MC MODULO'!G1*'MC MODULO'!C1*'MC MODULO'!C2 -> 14000 | K9: ='ENC. SOCIAIS'!$E$51 -> 112.73 | L9: ='ENC. SOCIAIS'!$F$51 -> 70.19
I10: UND | J10: QTDE. | K10: BDI | L10: PREÇO UNITÁRIO | AD10: TOTAL
E11: MOBILIZAÇÃO/DESMOBILIZAÇÃO
B12: 1 | C12: Codevasf | D12: Mob | E12: Mobilização / Desmobilização | I12: kmxfrente | J12: =Mob!$H$6 -> 0 | K12: =$J$7 -> 0.2339 | L12: =Mob!B63 -> 130.3839117 | M12: =TRUNC(L12+(L12*K12),2) -> 160.88 | N12: =CAPA!$D$13 -> 0 | O12: =(M12-(M12*N12)) -> 160.88 | P12: =TRUNC(O12*J12,2) -> 0 | AC12: 57163.47
B13: 1 | C13: Codevasf | D13: Mob | E13: Mobilização / Desmobilização | I13: kmxfrente | J13: =Mob!$H$6 -> 0 | K13: =$J$7 -> 0.2339 | L13: =Mob!B63 -> 130.3839117 | M13: =TRUNC(L13+(L13*K13),2) -> 160.88 | N13: =CAPA!$D$13 -> 0 | O13: =(M13-(M13*N13)) -> 160.88 | P13: =TRUNC(O13*J13,2) -> 0 | AC13: 57163.47
E14: INSTALAÇÃO DE CANTEIRO
B15: 2 | C15: Codevasf | D15: Canteiro | E15: Canteiro de Obras e Almoxarifado | I15: frente | J15: =TRUNC('MC MODULO'!G1,2) -> 1 | K15: =$J$7 -> 0.2339 | L15: =' Canteiro'!F11 -> 20786.16 | M15: 25648.04 | N15: =CAPA!$D$13 -> 0 | O15: 25648.04 | P15: =TRUNC(O15*J15,2) -> 25648.04 | AC15: 190291.53
B16: 3 | C16: SINAPI | D16: 103689 | E16: Fornecimento e instalação de placa de obra com chapa galvanizada e estrutura de madeira. af_03/2022_ps | I16: m² | J16: =TRUNC('MC MODULO'!H25,2) -> 8 | K16: =$J$7 -> 0.2339 | L16: =VLOOKUP(D16,'COMP Sint. Sinapi'!B11:E9733,4,FALSE) -> 468.31 | M16: 577.84 | N16: =CAPA!$D$13 -> 0 | O16: 577.84 | P16: =TRUNC(O16*J16,2) -> 4622.72
E17: ADMINISTRAÇÃO LOCAL DA OBRA
B18: 5 | C18: Codevasf | D18: Adm Local | E18: Administração Local da Obra | I18: und | J18: 1 | K18: =$J$7 -> 0.2339 | L18: ='Adm Local '!H250 -> 187031.4177 | M18: 230778.06 | N18: =CAPA!$D$13 -> 0 | O18: 230778.06 | P18: =TRUNC(O18*J18,2) -> 230778.06
E19: TERRAPLANAGEM
B20: 7 | C20: SICRO | D20: 5502114 | E20: =VLOOKUP(D20,'SINTÉTICO SICRO'!$A$4:$D$1048576,2,0) -> Escavação, carga e transporte de material de 1ª categoria - DMT de 1.000 a 1.200 m - caminho de serviço em leito natural - com escavadeira e caminhão basculante de 14 m³ | I20: m³ | J20: =TRUNC('MC MODULO'!H37,2) -> 3500 | K20: =$J$7 -> 0.2339 | L20: =ROUND(IF(C20="CODEVASF",VLOOKUP(D20,'CPU CODEVASF'!E:I,5,FALSE),VLOOKUP(D20,'SINTÉTICO SICRO'!A:D,4,FALSE)),6) -> 8.22 | M20: 10.14 | N20: =CAPA!$D$13 -> 0 | O20: 10.14 | P20: =TRUNC(O20*J20,2) -> 35490 | AD20: 366912
B21: 8 | C21: SICRO | D21: 4413942 | E21: =VLOOKUP(D21,'SINTÉTICO SICRO'!$A$4:$D$1048576,2,0) -> Espalhamento de material em bota-fora | I21: m³ | J21: =TRUNC('MC MODULO'!H44,2) -> 1400 | K21: =$J$7 -> 0.2339 | L21: =ROUND(IF(C21="CODEVASF",VLOOKUP(D21,'CPU CODEVASF'!E:I,5,FALSE),VLOOKUP(D21,'SINTÉTICO SICRO'!A:D,4,FALSE)),6) -> 2.01 | M21: 2.48 | N21: =CAPA!$D$13 -> 0 | O21: 2.48 | P21: =TRUNC(O21*J21,2) -> 3472 | AD21: 84084 | AI21: 1
E22: PAVIMENTAÇÃO
B23: 9 | C23: SINAPI | D23: 711 | E23: Bloquete/piso intertravado de concreto - modelo sextavado / hexagonal, *25 x 25* cm, e = 6 cm, resistencia de 35 mpa, cor natural | I23: m² | J23: =TRUNC(J24*'CPU CODEVASF'!F39,2) -> 14053.2 | K23: =L7 -> 0.15 | L23: =ROUND(VLOOKUP(D23,'INSUMOS SINAPI'!A:E,5,0),6) -> 65 | M23: 74.75 | N23: =CAPA!$D$13 -> 0 | O23: 74.75 | P23: =TRUNC(O23*J23,2) -> 1050476.7
B24: 10 | C24: Codevasf | D24: CPU-05 | E24: Execução de pavimento em piso intertravado, com bloco sextavado de 25 x 25 cm, espessura 6 cm. af_10/2022. Areia e pó de pedra comerciais | I24: m² | J24: =TRUNC('MC MODULO'!H51,2) -> 14000 | K24: =$J$7 -> 0.2339 | L24: ='CPU CODEVASF'!H46 -> 13.14 | M24: 16.21 | N24: =CAPA!$D$13 -> 0 | O24: 16.21 | P24: 226940 | AD24: 13037300.31
B25: 11 | C25: SICRO | D25: 5915014 | E25: =VLOOKUP(D25,'SINTÉTICO SICRO'!$A$4:$B$6492,2,FALSE) -> Transporte com caminhão carroceria com capacidade de 11,5 t e com guindauto com capacidade de elevação de 11,9 t - rodovia pavimentada | I25: tkm | J25: =TRUNC('MC MODULO'!H56,2) -> 92400 | K25: 0.2339 | L25: =ROUND(IF(C25="CODEVASF",VLOOKUP(D25,'CPU CODEVASF'!E:I,5,FALSE),VLOOKUP(D25,'SINTÉTICO SICRO'!A:D,4,FALSE)),6) -> 1.25 | M25: 1.54 | N25: =CAPA!$D$13 -> 0 | O25: 1.54 | P25: 142296
B26: 12 | C26: SICRO | D26: 5914389 | E26: Transporte com caminhão basculante de 10 m³ - rodovia pavimentada (areia)' | I26: tkm | J26: =TRUNC('MC MODULO'!H62,2) -> 0 | K26: 0.2339 | L26: =ROUND(IF(C26="CODEVASF",VLOOKUP(D26,'CPU CODEVASF'!E:I,5,FALSE),VLOOKUP(D26,'SINTÉTICO SICRO'!A:D,4,FALSE)),6) -> 0.78 | M26: 0.96 | N26: =CAPA!$D$13 -> 0 | O26: 0.96 | P26: 0
B27: 13 | C27: SICRO | D27: 5914389 | E27: Transporte com caminhão basculante de 10 m³ - rodovia pavimentada (pó de pedra) | I27: tkm | J27: =TRUNC('MC MODULO'!H67,2) -> 0 | K27: 0.2339 | L27: =ROUND(IF(C27="CODEVASF",VLOOKUP(D27,'CPU CODEVASF'!E:I,5,FALSE),VLOOKUP(D27,'SINTÉTICO SICRO'!A:D,4,FALSE)),6) -> 0.78 | M27: 0.96 | N27: =CAPA!$D$13 -> 0 | O27: 0.96 | P27: 0
B28: 14 | C28: SICRO | D28: 4011219 | E28: =VLOOKUP(D28,'SINTÉTICO SICRO'!$A$4:$B$6492,2,FALSE) -> Base de solo estabilizado granulometricamente sem mistura com material de jazida - 100% Proctor modificado | I28: m³ | J28: =TRUNC('MC MODULO'!H72,2) -> 2100 | K28: 0.2339 | L28: =ROUND(IF(C28="CODEVASF",VLOOKUP(D28,'CPU CODEVASF'!E:I,5,FALSE),VLOOKUP(D28,'SINTÉTICO SICRO'!A:D,4,FALSE)),6) -> 14.79 | M28: 18.24 | N28: =CAPA!$D$13 -> 0 | O28: 18.24 | P28: 38304 | AD28: 15919722
B29: 15 | C29: SICRO | D29: 4011209 | E29: =VLOOKUP(D29,'SINTÉTICO SICRO'!$A$4:$B$6492,2,FALSE) -> Regularização do subleito - 100% Proctor intermediário | I29: m² | J29: =TRUNC('MC MODULO'!H77,2) -> 14000 | K29: 0.2339 | L29: =ROUND(IF(C29="CODEVASF",VLOOKUP(D29,'CPU CODEVASF'!E:I,5,FALSE),VLOOKUP(D29,'SINTÉTICO SICRO'!A:D,4,FALSE)),6) -> 1.57 | M29: 1.93 | N29: =CAPA!$D$13 -> 0 | O29: 1.93 | P29: 27020 | AD29: 540540
E30: SINALIZAÇÃO
B31: 16 | C31: SICRO | D31: 5213440 | E31: =VLOOKUP(D31,'SINTÉTICO SICRO'!$A$4:$B$6492,2,FALSE) -> Placa de regulamentação em aço D = 0,60 m - película retrorrefletiva tipo I + SI - fornecimento e implantação | I31: und | J31: =TRUNC('MC MODULO'!H84,2) -> 6 | K31: =$J$7 -> 0.2339 | L31: =ROUND(IF(C31="CODEVASF",VLOOKUP(D31,'CPU CODEVASF'!E:I,5,FALSE),VLOOKUP(D31,'SINTÉTICO SICRO'!A:D,4,FALSE)),6) -> 282.19 | M31: 348.19 | N31: =CAPA!$D$13 -> 0 | O31: 348.19 | P31: =TRUNC(O31*J31,2) -> 2089.14 | AD31: 9985.95
B32: 22 | C32: SICRO | D32: 5213464 | E32: =VLOOKUP(D32,'SINTÉTICO SICRO'!$A$4:$B$6492,2,FALSE) -> Placa de advertência em aço, lado de 0,60 m - película retrorrefletiva tipo I + SI - fornecimento e implantação | I32: und | J32: =TRUNC('MC MODULO'!H89,2) -> 6 | K32: =$J$7 -> 0.2339 | L32: =ROUND(IF(C32="CODEVASF",VLOOKUP(D32,'CPU CODEVASF'!E:I,5,FALSE),VLOOKUP(D32,'SINTÉTICO SICRO'!A:D,4,FALSE)),6) -> 282.23 | M32: 348.24 | N32: =CAPA!$D$13 -> 0 | O32: 348.24 | P32: =TRUNC(O32*J32,2) -> 2089.44
B33: 17 | C33: SICRO | D33: 5213863 | E33: =VLOOKUP(D33,'SINTÉTICO SICRO'!$A$4:$B$6492,2,FALSE) -> Suporte metálico galvanizado para placa de advertência ou regulamentação - lado ou diâmetro de 0,60 m - fornecimento e implantação | I33: und | J33: =TRUNC('MC MODULO'!H95,2) -> 12 | K33: =$J$7 -> 0.2339 | L33: =ROUND(IF(C33="CODEVASF",VLOOKUP(D33,'CPU CODEVASF'!E:I,5,FALSE),VLOOKUP(D33,'SINTÉTICO SICRO'!A:D,4,FALSE)),6) -> 460.16 | M33: 567.79 | N33: =CAPA!$D$13 -> 0 | O33: 567.79 | P33: =TRUNC(O33*J33,2) -> 6813.48 | AD33: 13086.06
B34: 18 | C34: SICRO | D34: 5213400 | E34: =VLOOKUP(D34,'SINTÉTICO SICRO'!$A$4:$B$6492,2,FALSE) -> Pintura de faixa com tinta acrílica - espessura de 0,4 mm | I34: m² | J34: =TRUNC('MC MODULO'!H100+'MC MODULO'!H105,2) -> 600 | K34: =$J$7 -> 0.2339 | L34: =ROUND(IF(C34="CODEVASF",VLOOKUP(D34,'CPU CODEVASF'!E:I,5,FALSE),VLOOKUP(D34,'SINTÉTICO SICRO'!A:D,4,FALSE)),6) -> 21.22 | M34: 26.18 | N34: =CAPA!$D$13 -> 0 | O34: 26.18 | P34: =TRUNC(O34*J34,2) -> 15708
E35: DRENAGEM
B36: 19 | C36: SICRO | D36: 2003377 | E36: =VLOOKUP(D36,'SINTÉTICO SICRO'!$A$4:$B$6492,2,FALSE) -> Meio-fio de concreto - MFC 05 - areia e brita comerciais - fôrma de madeira | I36: m | J36: =TRUNC('MC MODULO'!H112,2) -> 4000 | K36: =$J$7 -> 0.2339 | L36: =ROUND(IF(C36="CODEVASF",VLOOKUP(D36,'CPU CODEVASF'!E:I,5,FALSE),VLOOKUP(D36,'SINTÉTICO SICRO'!A:D,4,FALSE)),6) -> 60.45 | M36: 74.58 | N36: =CAPA!$D$13 -> 0 | O36: 74.58 | P36: =TRUNC(O36*J36,2) -> 298320 | AD36: 4514640
B37: 19 | C37: SICRO | D37: 4915724 | E37: =VLOOKUP(D37,'SINTÉTICO SICRO'!$A$4:$B$6492,2,FALSE) -> Caiação mecanizada com fixador de cal | I37: m² | J37: =TRUNC('MC MODULO'!H117,2) -> 480 | K37: =$J$7 -> 0.2339 | L37: =ROUND(IF(C37="CODEVASF",VLOOKUP(D37,'CPU CODEVASF'!E:I,5,FALSE),VLOOKUP(D37,'SINTÉTICO SICRO'!A:D,4,FALSE)),6) -> 1.95 | M37: 2.4 | N37: =CAPA!$D$13 -> 0 | O37: 2.4 | P37: =TRUNC(O37*J37,2) -> 1152 | AA37: 4514640
E38: SERVIÇOS COMPLEMENTARES
B39: 20 | C39: Codevasf | D39: CPU-02 | E39: Conserto de quebra no ramal na rua sem pavimento com fornecimento de material hidráulico | I39: m | J39: =TRUNC('MC MODULO'!H124,2) -> 200 | K39: =$J$7 -> 0.2339 | L39: =ROUND(IF(C39="CODEVASF",VLOOKUP(D39,'CPU CODEVASF'!E:I,5,FALSE),VLOOKUP(D39,'SINTÉTICO SICRO'!A:D,4,FALSE)),6) -> 18.13355 | M39: 22.37 | N39: =CAPA!$D$13 -> 0 | O39: 22.37 | P39: =TRUNC(O39*J39,2) -> 4474 | AD39: 139854
E40: PROJETO EXECUTIVO
B41: 21 | C41: Codevasf | D41: Composição Própria | E41: Projeto Executivo | I41: m² | J41: =TRUNC('MC MODULO'!H131,2) -> 14000 | K41: =$J$7 -> 0.2339 | L41: =ROUND(('Projeto Executivo'!G28)/(1+$J$7),6) -> 3.114467 | M41: 3.84 | N41: =CAPA!$D$13 -> 0 | O41: 3.84 | P41: =ROUND(ROUND(J41,2)*ROUND(O41,6),2) -> 53760 | AD41: 763671.38
E42: MOMENTO DE TRANSPORTE
B43: 22 | C43: SICRO | D43: 5914359 | E43: =VLOOKUP(D43,'SINTÉTICO SICRO'!$A$4:$B$6492,2,FALSE) -> Transporte com caminhão basculante de 10 m³ - rodovia em leito natural | I43: tkm | J43: =TRUNC(SUMIF('MOMENTO DE TRANSPORTE PRINC '!A:A,'MODULO MINIMO Prop'!D43,'MOMENTO DE TRANSPORTE PRINC '!K:K)+SUMIF('MOMENTO DE TRANSPORTE AUX '!A:A,'MODULO MINIMO Prop'!D43,'MOMENTO DE TRANSPORTE AUX '!K:K),2) -> 0 | K43: =$J$7 -> 0.2339 | L43: =ROUND(IF(C43="CODEVASF",VLOOKUP(D43,'CPU CODEVASF'!E:I,5,FALSE),VLOOKUP(D43,'SINTÉTICO SICRO'!A:D,4,FALSE)),6) -> 1.21 | M43: 1.49 | N43: =CAPA!$D$13 -> 0 | O43: 1.49 | P43: =TRUNC(O43*J43,2) -> 0
B44: 23 | C44: SICRO | D44: 5914374 | E44: =VLOOKUP(D44,'SINTÉTICO SICRO'!$A$4:$B$6492,2,FALSE) -> Transporte com caminhão basculante de 10 m³ - rodovia em revestimento primário | I44: tkm | J44: =TRUNC(SUMIF('MOMENTO DE TRANSPORTE PRINC '!A:A,'MODULO MINIMO Prop'!D44,'MOMENTO DE TRANSPORTE PRINC '!K:K)+SUMIF('MOMENTO DE TRANSPORTE AUX '!A:A,'MODULO MINIMO Prop'!D44,'MOMENTO DE TRANSPORTE AUX '!K:K),2) -> 43323.21 | K44: 0.2339 | L44: =ROUND(IF(C44="CODEVASF",VLOOKUP(D44,'CPU CODEVASF'!E:I,5,FALSE),VLOOKUP(D44,'SINTÉTICO SICRO'!A:D,4,FALSE)),6) -> 0.96 | M44: 1.18 | N44: =CAPA!$D$13 -> 0 | O44: 1.18 | P44: =TRUNC(O44*J44,2) -> 51121.38
B45: 24 | C45: SICRO | D45: 5914389 | E45: =VLOOKUP(D45,'SINTÉTICO SICRO'!$A$4:$B$6492,2,FALSE) -> Transporte com caminhão basculante de 10 m³ - rodovia pavimentada | I45: tkm | J45: =TRUNC(SUMIF('MOMENTO DE TRANSPORTE PRINC '!A:A,'MODULO MINIMO Prop'!D45,'MOMENTO DE TRANSPORTE PRINC '!K:K)+SUMIF('MOMENTO DE TRANSPORTE AUX '!A:A,'MODULO MINIMO Prop'!D45,'MOMENTO DE TRANSPORTE AUX '!K:K),2) -> 0 | K45: 0.2339 | L45: =ROUND(IF(C45="CODEVASF",VLOOKUP(D45,'CPU CODEVASF'!E:I,5,FALSE),VLOOKUP(D45,'SINTÉTICO SICRO'!A:D,4,FALSE)),6) -> 0.78 | M45: 0.96 | N45: =CAPA!$D$13 -> 0 | O45: 0.96 | P45: 0
B46: 25 | C46: SICRO | D46: 5914449 | E46: =VLOOKUP(D46,'SINTÉTICO SICRO'!$A$4:$B$6492,2,FALSE) -> Transporte com caminhão carroceria de 15 t - rodovia em leito natural | I46: tkm | J46: =TRUNC(SUMIF('MOMENTO DE TRANSPORTE PRINC '!A:A,'MODULO MINIMO Prop'!D46,'MOMENTO DE TRANSPORTE PRINC '!K:K)+SUMIF('MOMENTO DE TRANSPORTE AUX '!A:A,'MODULO MINIMO Prop'!D46,'MOMENTO DE TRANSPORTE AUX '!K:K),2) -> 0 | K46: 0.2339 | L46: =ROUND(IF(C46="CODEVASF",VLOOKUP(D46,'CPU CODEVASF'!E:I,5,FALSE),VLOOKUP(D46,'SINTÉTICO SICRO'!A:D,4,FALSE)),6) -> 1.07 | M46: 1.32 | N46: =CAPA!$D$13 -> 0 | O46: 1.32 | P46: 0
B47: 26 | C47: SICRO | D47: 5914464 | E47: =VLOOKUP(D47,'SINTÉTICO SICRO'!$A$4:$B$6492,2,FALSE) -> Transporte com caminhão carroceria de 15 t - rodovia em revestimento primário | I47: tkm | J47: =TRUNC(SUMIF('MOMENTO DE TRANSPORTE PRINC '!A:A,'MODULO MINIMO Prop'!D47,'MOMENTO DE TRANSPORTE PRINC '!K:K)+SUMIF('MOMENTO DE TRANSPORTE AUX '!A:A,'MODULO MINIMO Prop'!D47,'MOMENTO DE TRANSPORTE AUX '!K:K),2) -> 0 | K47: 0.2339 | L47: =ROUND(IF(C47="CODEVASF",VLOOKUP(D47,'CPU CODEVASF'!E:I,5,FALSE),VLOOKUP(D47,'SINTÉTICO SICRO'!A:D,4,FALSE)),6) -> 0.86 | M47: 1.06 | N47: =CAPA!$D$13 -> 0 | O47: 1.06 | P47: 0
B48: 27 | C48: SICRO | D48: 5914479 | E48: =VLOOKUP(D48,'SINTÉTICO SICRO'!$A$4:$B$6492,2,FALSE) -> Transporte com caminhão carroceria de 15 t - rodovia pavimentada | I48: tkm | J48: =TRUNC(SUMIF('MOMENTO DE TRANSPORTE PRINC '!A:A,'MODULO MINIMO Prop'!D48,'MOMENTO DE TRANSPORTE PRINC '!K:K)+SUMIF('MOMENTO DE TRANSPORTE AUX '!A:A,'MODULO MINIMO Prop'!D48,'MOMENTO DE TRANSPORTE AUX '!K:K),2) -> 0 | K48: 0.2339 | L48: =ROUND(IF(C48="CODEVASF",VLOOKUP(D48,'CPU CODEVASF'!E:I,5,FALSE),VLOOKUP(D48,'SINTÉTICO SICRO'!A:D,4,FALSE)),6) -> 0.69 | M48: 0.85 | N48: =CAPA!$D$13 -> 0 | O48: 0.85 | P48: 0
B49: VALOR TOTAL DO MODULO | P49: =SUM(P11:P48) -> 2220574.96 | AD49: =SUM(AD19:AD41) -> 35389795.7

Sheet CRONOGRAMA TOTAL
A2: ='MODULO MINIMO Prop'!B1 -> EXECUÇÃO DE SERVIÇOS DE IMPLANTAÇÃO DE PAVIMENTAÇÃO EM BLOCO DE CONCRETO INTERTRAVADO, EM VIAS DE MUNICÍPIOS DIVERSOS INSERIDOS NA ÁREA DE ATUAÇÃO DA CODEVASF, NO ESTADO MARANHÃO
A3: Cronograma Físico e Financeiro
A4: Item | B4: Descrição | C4: Total Por Etapa | D4: 30 DIAS | E4: 60 DIAS | F4: 90 DIAS | G4: 120 DIAS | H4: 150 DIAS | I4: 180 DIAS | J4: 210 DIAS | K4: 240 DIAS | L4: 270 DIAS | M4: 300 DIAS | N4: 330 DIAS | O4: 360 DIAS
B5: ='MODULO MINIMO Prop'!E11 -> MOBILIZAÇÃO/DESMOBILIZAÇÃO | C5: =SUM(D5:O5) -> 1 | D5: 0.5 | O5: 0.5
C6: =SUM('MODULO MINIMO Prop'!P12:P13) -> 0 | D6: =$C$6*D5 -> 0 | O6: =$C$6*O5 -> 0 | P6: =SUM(D6:O6) -> 0 | Q6: =IF(P6=C6,"OK","") -> OK
B7: ='MODULO MINIMO Prop'!E14 -> INSTALAÇÃO DE CANTEIRO | C7: =SUM(D7:O7) -> 1 | D7: 0.1 | E7: 0.5 | F7: 0.4
C8: =SUM('MODULO MINIMO Prop'!P15:P16) -> 30270.76 | D8: =$C$8*D7 -> 3027.076 | E8: =$C$8*E7 -> 15135.38 | F8: 12108.304 | G8: 0 | H8: 0 | I8: 0 | J8: 0 | K8: 0 | L8: 0 | M8: 0 | N8: 0 | O8: 0 | P8: =SUM(D8:O8) -> 30270.76 | Q8: =IF(P8=C8,"OK","") -> OK
B9: ='MODULO MINIMO Prop'!E17 -> ADMINISTRAÇÃO LOCAL DA OBRA | C9: =SUM(D9:O9) -> 1 | D9: =(D6+D8+D12+D14+D16+D18+D20+D22+D24)/($O$31-$C$10) -> 0.001521298983 | E9: =(E6+E8+E12+E14+E16+E18+E20+E22+E24)/($O$31-$C$10) -> 0.007606494914 | F9: 0.01354959494 | G9: 0.007464399005 | H9: 0.02097331542 | I9: 0.1466455313 | J9: 0.1269568038 | K9: 0.1269568038 | L9: 0.1269568038 | M9: 0.1269568038 | N9: 0.2033329405 | O9: 0.09107920964
C10: =SUM('MODULO MINIMO Prop'!P18) -> 230778.06 | D10: =$C$10*D9 -> 351.0824279 | E10: =$C$10*E9 -> 1755.41214 | F10: =$C$10*F9 -> 3126.949233 | G10: 1722.619521 | H10: 4840.181044 | I10: 33842.57123 | J10: 29298.84489 | K10: 29298.84489 | L10: 29298.84489 | M10: 29298.84489 | N10: 46924.78154 | O10: 21019.08331 | P10: =SUM(D10:O10) -> 230778.06 | Q10: =IF(P10=C10,"OK","") -> OK
B11: ='MODULO MINIMO Prop'!E19 -> TERRAPLANAGEM | C11: =SUM(D11:O11) -> 1 | F11: =1/4 -> 0.25 | G11: =1/4 -> 0.25 | H11: =1/4 -> 0.25 | I11: =1/4 -> 0.25
C12: =SUM('MODULO MINIMO Prop'!P20:P21) -> 38962 | D12: =$C$14*D11 -> 0 | E12: =$C$12*E11 -> 0 | F12: 9740.5 | G12: 9740.5 | H12: 9740.5 | I12: 9740.5 | J12: 0 | K12: 0 | L12: 0 | M12: 0 | N12: 0 | O12: 0 | P12: =SUM(D12:O12) -> 38962 | Q12: =IF(P12=C12,"OK","") -> OK
B13: ='MODULO MINIMO Prop'!E22 -> PAVIMENTAÇÃO | C13: =SUM(D13:O13) -> 1 | I13: =1/6 -> 0.1666666667 | J13: =1/6 -> 0.1666666667 | K13: 0.1666666667 | L13: 0.1666666667 | M13: 0.1666666667 | N13: 0.1666666667
C14: =SUM('MODULO MINIMO Prop'!P23:P29) -> 1485036.7 | D14: =$C$14*D13 -> 0 | E14: =$C$14*E13 -> 0 | F14: 0 | G14: 0 | H14: 0 | I14: 247506.1167 | J14: 247506.1167 | K14: 247506.1167 | L14: 247506.1167 | M14: 247506.1167 | N14: 247506.1167 | O14: 0 | P14: =SUM(D14:O14) -> 1485036.7 | Q14: =IF(P14=C14,"OK","") -> OK
B15: ='MODULO MINIMO Prop'!E30 -> SINALIZAÇÃO | C15: =SUM(D15:O15) -> 1 | O15: 1
C16: =SUM('MODULO MINIMO Prop'!P31:P34) -> 26700.06 | D16: =$C$16*D15 -> 0 | E16: =$C$16*E15 -> 0 | F16: 0 | G16: 0 | H16: 0 | I16: 0 | J16: 0 | K16: 0 | L16: 0 | M16: 0 | N16: 0 | O16: 26700.06 | P16: =SUM(D16:O16) -> 26700.06 | Q16: =IF(P16=C16,"OK","") -> OK
B17: ='MODULO MINIMO Prop'!E35 -> DRENAGEM | C17: =SUM(D17:O17) -> 1 | N17: 0.5 | O17: 0.5
C18: =SUM('MODULO MINIMO Prop'!P36:P37) -> 299472 | D18: =$C$18*D17 -> 0 | E18: =$C$18*E17 -> 0 | F18: 0 | G18: 0 | H18: 0 | I18: 0 | J18: 0 | K18: 0 | L18: 0 | M18: 0 | N18: 149736 | O18: 149736 | P18: =SUM(D18:O18) -> 299472 | Q18: =IF(P18=C18,"OK","") -> OK
B19: ='MODULO MINIMO Prop'!E38 -> SERVIÇOS COMPLEMENTARES | C19: =SUM(D19:O19) -> 1 | N19: 0.5 | O19: 0.5
C20: =SUM('MODULO MINIMO Prop'!P39) -> 4474 | D20: =$C$20*D19 -> 0 | E20: =$C$20*E19 -> 0 | F20: 0 | G20: 0 | H20: 0 | I20: 0 | J20: 0 | K20: 0 | L20: 0 | M20: 0 | N20: 2237 | O20: 2237 | P20: =SUM(D20:O20) -> 4474 | Q20: =IF(P20=C20,"OK","") -> OK
B21: ='MODULO MINIMO Prop'!E40 -> PROJETO EXECUTIVO | C21: =SUM(D21:O21) -> 1 | H21: 0.5 | I21: 0.5
C22: =SUM('MODULO MINIMO Prop'!P41) -> 53760 | D22: =$C$22*D21 -> 0 | E22: =$C$22*E21 -> 0 | F22: 0 | G22: 0 | H22: 26880 | I22: 26880 | J22: 0 | K22: 0 | L22: 0 | M22: 0 | N22: 0 | O22: 0 | P22: =SUM(D22:O22) -> 53760 | Q22: =IF(P22=C22,"OK","") -> OK
B23: ='MODULO MINIMO Prop'!E42 -> MOMENTO DE TRANSPORTE | C23: =SUM(D23:O23) -> 1 | F23: 0.1 | G23: 0.1 | H23: 0.1 | I23: 0.15 | J23: 0.1 | K23: 0.1 | L23: 0.1 | M23: 0.1 | N23: 0.1 | O23: 0.05
C24: =SUM('MODULO MINIMO Prop'!P43:P48) -> 51121.38 | D24: =$C$24*D23 -> 0 | E24: =$C$24*E23 -> 0 | F24: 5112.138 | G24: 5112.138 | H24: 5112.138 | I24: 7668.207 | J24: 5112.138 | K24: 5112.138 | L24: 5112.138 | M24: 5112.138 | N24: 5112.138 | O24: 2556.069 | P24: =SUM(D24:O24) -> 51121.38 | Q24: =IF(P24=C24,"OK","") -> OK
A26: Porcentagem | D26: =SUM(D6+D8+D10+D12+D14+D16+D18+D20+D22+D24)/$O$31 -> 0.001521298983 | E26: =SUM(E6+E8+E10+E12+E14+E16+E18+E20+E22+E24)/$O$31 -> 0.007606494914 | F26: 0.01354959494 | G26: 0.007464399005 | H26: 0.02097331542 | I26: 0.1466455313 | J26: 0.1269568038 | K26: 0.1269568038 | L26: 0.1269568038 | M26: 0.1269568038 | N26: 0.2033329405 | O26: 0.09107920964
A27: Custo | D27: =$O$31*D26 -> 3378.158428 | E27: =$O$31*E26 -> 16890.79214 | F27: =$O$31*F26 -> 30087.89123 | G27: 16575.25752 | H27: 46572.81904 | I27: 325637.3949 | J27: 281917.0996 | K27: 281917.0996 | L27: 281917.0996 | M27: 281917.0996 | N27: 451516.0362 | O27: 202248.2123
A28: Porcentagem Acumulado | D28: =D26 -> 0.001521298983 | E28: =D28+E26 -> 0.009127793897 | F28: 0.02267738883 | G28: 0.03014178784 | H28: 0.05111510326 | I28: 0.1977606346 | J28: 0.3247174384 | K28: 0.4516742422 | L28: 0.578631046 | M28: 0.7055878499 | N28: 0.9089207904 | O28: =N28+O26 -> 1
A29: Custo Acumulado | D29: =D27 -> 3378.158428 | E29: =D29+E27 -> 20268.95057 | F29: 50356.8418 | G29: 66932.09932 | H29: 113504.9184 | I29: 439142.3133 | J29: 721059.4128 | K29: 1002976.512 | L29: 1284893.612 | M29: 1566810.711 | N29: 2018326.748 | O29: 2220574.96
D31: Total Geral | N31: R$ | O31: =C6+C8+C10+C12+C14+C16+C18+C20+C22+C24 -> 2220574.96
O34: =O29-O31 -> 0
O36: ='MODULO MINIMO Prop'!P49 -> 2220574.96

Sheet Mob
A4: ='MODULO MINIMO Prop'!B1 -> EXECUÇÃO DE SERVIÇOS DE IMPLANTAÇÃO DE PAVIMENTAÇÃO EM BLOCO DE CONCRETO INTERTRAVADO, EM VIAS DE MUNICÍPIOS DIVERSOS INSERIDOS NA ÁREA DE ATUAÇÃO DA CODEVASF, NO ESTADO MARANHÃO
A5: MOBILIZAÇÃO/DESMOBILIZAÇÃO (MOB) | F5: Frentes de serviços | H5: ='MC MODULO'!G1 -> 1
F6: Distância da Capital ao Canteiro: | H6: 0 | I6: Fica a cargo de cada SR colocar a distancia adequada de acordo com o historico de mobilização
F8: Velocidade média de transporte (pavim.): | H8: 60
A10: Transporte dos equipamentos
A11: CODIGO | B11: EQUIPAMENTO | C11: VEÍCULO TRANSPORTADOR | D11: QTDE | E11: K | F11: FU | G11: CUSTO DO TRANSPORTE
G12: (R$/h) | H12: (R$)/km
A13: E9524 | B13: =VLOOKUP(A13,Equipamentos!$A:$K,2,FALSE) -> Motoniveladora - 93 kW | C13: =IFERROR(INDEX('Tabelas 2 e 3 mob'!A:K,MATCH(A13,'Tabelas 2 e 3 mob'!A:A,0),9),"ERRO") -> E9665 | D13: 1 | E13: 2 | F13: 1 | G13: =IF(C13="Veículo(s) da própria frota.",0,INDEX(Equipamentos!B:K,MATCH(C13,Equipamentos!A:A,0),9)) -> 412.7818 | H13: =((D13*E13*F13)/$H$8)*G13 -> 13.75939333
A14: E9526 | B14: =VLOOKUP(A14,Equipamentos!$A:$K,2,FALSE) -> Retroescavadeira de pneus - capacidade da caçamba da pá-carregadeira de 0,76 m³ e da retroescavadeira de 0,29 m³ - 58 kW | C14: =IFERROR(INDEX('Tabelas 2 e 3 mob'!A:K,MATCH(A14,'Tabelas 2 e 3 mob'!A:A,0),9),"ERRO") -> E9665 | D14: 1 | E14: 2 | F14: 1 | G14: =IF(C14="Veículo(s) da própria frota.",0,INDEX(Equipamentos!B:K,MATCH(C14,Equipamentos!A:A,0),9)) -> 412.7818 | H14: =((D14*E14*F14)/$H$8)*G14 -> 13.75939333
A15: E9577 | B15: =VLOOKUP(A15,Equipamentos!$A:$K,2,FALSE) -> Trator agrícola sobre pneus - 77 kW | C15: =IFERROR(INDEX('Tabelas 2 e 3 mob'!A:K,MATCH(A15,'Tabelas 2 e 3 mob'!A:A,0),9),"ERRO") -> E9665 | D15: 1 | E15: 2 | F15: 0.5 | G15: =IF(C15="Veículo(s) da própria frota.",0,INDEX(Equipamentos!B:K,MATCH(C15,Equipamentos!A:A,0),9)) -> 412.7818 | H15: 6.879696667
A16: E9518 | B16: =VLOOKUP(A16,Equipamentos!$A:$K,2,FALSE) -> Grade de 24 discos rebocável de D = 60 cm (24") | C16: =IFERROR(INDEX('Tabelas 2 e 3 mob'!A:K,MATCH(A16,'Tabelas 2 e 3 mob'!A:A,0),9),"ERRO") -> Veículo(s) da própria frota. | D16: 1 | E16: 2 | F16: 0 | G16: =IF(C16="Veículo(s) da própria frota.",0,INDEX(Equipamentos!B:K,MATCH(C16,Equipamentos!A:A,0),9)) -> 0 | H16: 0
A17: E9615 | B17: =VLOOKUP(A17,Equipamentos!$A:$K,2,FALSE) -> Usina misturadora de solos com capacidade de 300 t/h - 44 kW | C17: =IFERROR(INDEX('Tabelas 2 e 3 mob'!A:K,MATCH(A17,'Tabelas 2 e 3 mob'!A:A,0),9),"ERRO") -> E9018 | D17: 0 | E17: 2 | F17: 2 | G17: =IF(C17="Veículo(s) da própria frota.",0,INDEX(Equipamentos!B:K,MATCH(C17,Equipamentos!A:A,0),9)) -> 541.9736 | H17: 0
A18: E9689 | B18: =VLOOKUP(A18,Equipamentos!$A:$K,2,FALSE) -> Usina de asfalto a quente gravimétrica com capacidade de 100/140 t/h - 260 kW | C18: =IFERROR(INDEX('Tabelas 2 e 3 mob'!A:K,MATCH(A18,'Tabelas 2 e 3 mob'!A:A,0),9),"ERRO") -> E9666 | D18: 0 | E18: 2 | F18: 3 | G18: =IF(C18="Veículo(s) da própria frota.",0,INDEX(Equipamentos!B:K,MATCH(C18,Equipamentos!A:A,0),9)) -> 455.859 | H18: 0
A19: E9530 | B19: =VLOOKUP(A19,Equipamentos!$A:$K,2,FALSE) -> Rolo compactador liso vibratório autopropelido por pneus de 11 t - 97 kW | C19: =IFERROR(INDEX('Tabelas 2 e 3 mob'!A:K,MATCH(A19,'Tabelas 2 e 3 mob'!A:A,0),9),"ERRO") -> E9666 | D19: 1 | E19: 2 | F19: 0.5 | G19: =IF(C19="Veículo(s) da própria frota.",0,INDEX(Equipamentos!B:K,MATCH(C19,Equipamentos!A:A,0),9)) -> 455.859 | H19: 7.59765
A20: E9558 | B20: =VLOOKUP(A20,Equipamentos!$A:$K,2,FALSE) -> Tanque de estocagem de asfalto com capacidade de 30.000 l | C20: =IFERROR(INDEX('Tabelas 2 e 3 mob'!A:K,MATCH(A20,'Tabelas 2 e 3 mob'!A:A,0),9),"ERRO") -> E9665 | D20: 0 | E20: 2 | F20: 1 | G20: =IF(C20="Veículo(s) da própria frota.",0,INDEX(Equipamentos!B:K,MATCH(C20,Equipamentos!A:A,0),9)) -> 412.7818 | H20: 0
A21: E9758 | B21: =VLOOKUP(A21,Equipamentos!$A:$K,2,FALSE) -> Vibroacabadora de asfalto sobre pneus - 97 kW | C21: =IFERROR(INDEX('Tabelas 2 e 3 mob'!A:K,MATCH(A21,'Tabelas 2 e 3 mob'!A:A,0),9),"ERRO") -> E9018 | D21: 0 | E21: 2 | F21: 0.5 | G21: =IF(C21="Veículo(s) da própria frota.",0,INDEX(Equipamentos!B:K,MATCH(C21,Equipamentos!A:A,0),9)) -> 541.9736 | H21: 0
A22: E9685 | B22: =VLOOKUP(A22,Equipamentos!$A:$K,2,FALSE) -> Rolo compactador pé de carneiro vibratório autopropelido por pneus de 11,6 t - 82 kW | C22: =IFERROR(INDEX('Tabelas 2 e 3 mob'!A:K,MATCH(A22,'Tabelas 2 e 3 mob'!A:A,0),9),"ERRO") -> E9666 | D22: 1 | E22: 2 | F22: 0.5 | G22: =IF(C22="Veículo(s) da própria frota.",0,INDEX(Equipamentos!B:K,MATCH(C22,Equipamentos!A:A,0),9)) -> 455.859 | H22: 7.59765
A23: E9605 | B23: =VLOOKUP(A23,Equipamentos!$A:$K,2,FALSE) -> Caminhão tanque com capacidade de 6.000 l - 136 kW | C23: =IFERROR(INDEX('Tabelas 2 e 3 mob'!A:K,MATCH(A23,'Tabelas 2 e 3 mob'!A:A,0),9),"ERRO") -> E9605 | D23: 1 | E23: 1 | F23: 1 | G23: =IF(C23="Veículo(s) da própria frota.",0,INDEX(Equipamentos!B:K,MATCH(C23,Equipamentos!A:A,0),9)) -> 250.8124 | H23: 4.180206667
A24: E9579 | B24: =VLOOKUP(A24,Equipamentos!$A:$K,2,FALSE) -> Caminhão basculante com capacidade de 10 m³ - 210 kW | C24: =IFERROR(INDEX('Tabelas 2 e 3 mob'!A:K,MATCH(A24,'Tabelas 2 e 3 mob'!A:A,0),9),"ERRO") -> E9579 | D24: 3 | E24: 1 | F24: 1 | G24: =IF(C24="Veículo(s) da própria frota.",0,INDEX(Equipamentos!B:K,MATCH(C24,Equipamentos!A:A,0),9)) -> 292.3428 | H24: 14.61714
A25: E9509 | B25: =VLOOKUP(A25,Equipamentos!$A:$K,2,FALSE) -> Caminhão tanque distribuidor de asfalto com capacidade de 6.000 l - 7 kW/136 kW | C25: =IFERROR(INDEX('Tabelas 2 e 3 mob'!A:K,MATCH(A25,'Tabelas 2 e 3 mob'!A:A,0),9),"ERRO") -> E9509 | D25: 0 | E25: 1 | F25: 1 | G25: =IF(C25="Veículo(s) da própria frota.",0,INDEX(Equipamentos!B:K,MATCH(C25,Equipamentos!A:A,0),9)) -> 265.145 | H25: 0
A26: E9762 | B26: =VLOOKUP(A26,Equipamentos!$A:$K,2,FALSE) -> Rolo compactador de pneus autopropelido de 27 t - 85 kW | C26: =IFERROR(INDEX('Tabelas 2 e 3 mob'!A:K,MATCH(A26,'Tabelas 2 e 3 mob'!A:A,0),9),"ERRO") -> E9666 | D26: 1 | E26: 2 | F26: 0.5 | G26: =IF(C26="Veículo(s) da própria frota.",0,INDEX(Equipamentos!B:K,MATCH(C26,Equipamentos!A:A,0),9)) -> 455.859 | H26: 7.59765
A27: E9681 | B27: =VLOOKUP(A27,Equipamentos!$A:$K,2,FALSE) -> Rolo compactador liso tandem vibratório autopropelido de 10,4 t - 82 kW | C27: =IFERROR(INDEX('Tabelas 2 e 3 mob'!A:K,MATCH(A27,'Tabelas 2 e 3 mob'!A:A,0),9),"ERRO") -> E9666 | D27: 0 | E27: 2 | F27: 0.5 | G27: =IF(C27="Veículo(s) da própria frota.",0,INDEX(Equipamentos!B:K,MATCH(C27,Equipamentos!A:A,0),9)) -> 455.859 | H27: 0
A28: E9545 | B28: =VLOOKUP(A28,Equipamentos!$A:$K,2,FALSE) -> Vibroacabadora de asfalto sobre esteiras - 97 kW | C28: =IFERROR(INDEX('Tabelas 2 e 3 mob'!A:K,MATCH(A28,'Tabelas 2 e 3 mob'!A:A,0),9),"ERRO") -> E9018 | D28: 0 | E28: 2 | F28: 0.5 | G28: =IF(C28="Veículo(s) da própria frota.",0,INDEX(Equipamentos!B:K,MATCH(C28,Equipamentos!A:A,0),9)) -> 541.9736 | H28: 0
A29: E9571 | B29: =VLOOKUP(A29,Equipamentos!$A:$K,2,FALSE) -> Caminhão tanque com capacidade de 10.000 l - 188 kW | C29: =IFERROR(INDEX('Tabelas 2 e 3 mob'!A:K,MATCH(A29,'Tabelas 2 e 3 mob'!A:A,0),9),"ERRO") -> E9571 | D29: 0 | E29: 1 | F29: 1 | G29: =IF(C29="Veículo(s) da própria frota.",0,INDEX(Equipamentos!B:K,MATCH(C29,Equipamentos!A:A,0),9)) -> 330.4524 | H29: 0
A30: E9514 | B30: =VLOOKUP(A30,Equipamentos!$A:$K,2,FALSE) -> Distribuidor de agregados sobre pneus autopropelido - 130 kW | C30: =IFERROR(INDEX('Tabelas 2 e 3 mob'!A:K,MATCH(A30,'Tabelas 2 e 3 mob'!A:A,0),9),"ERRO") -> E9665 | D30: 0 | E30: 2 | F30: 0.5 | G30: =IF(C30="Veículo(s) da própria frota.",0,INDEX(Equipamentos!B:K,MATCH(C30,Equipamentos!A:A,0),9)) -> 412.7818 | H30: 0
A31: E9511 | B31: =VLOOKUP(A31,Equipamentos!$A:$K,2,FALSE) -> Carregadeira de pneus com capacidade de 3,40 m³ - 195 kW | C31: =IFERROR(INDEX('Tabelas 2 e 3 mob'!A:K,MATCH(A31,'Tabelas 2 e 3 mob'!A:A,0),9),"ERRO") -> E9665 | D31: 1 | E31: 2 | F31: 1 | G31: =IF(C31="Veículo(s) da própria frota.",0,INDEX(Equipamentos!B:K,MATCH(C31,Equipamentos!A:A,0),9)) -> 412.7818 | H31: 13.75939333
A32: E9779 | B32: =VLOOKUP(A32,Equipamentos!$A:$K,2,FALSE) -> Grupo gerador - 113 kVA | C32: =IFERROR(INDEX('Tabelas 2 e 3 mob'!A:K,MATCH(A32,'Tabelas 2 e 3 mob'!A:A,0),9),"ERRO") -> Veículo(s) da própria frota. | D32: 1 | E32: 2 | F32: 0 | G32: =IF(C32="Veículo(s) da própria frota.",0,INDEX(Equipamentos!B:K,MATCH(C32,Equipamentos!A:A,0),9)) -> 0 | H32: 0
A33: E9559 | B33: =VLOOKUP(A33,Equipamentos!$A:$K,2,FALSE) -> Aquecedor de fluido térmico - 12 kW | C33: =IFERROR(INDEX('Tabelas 2 e 3 mob'!A:K,MATCH(A33,'Tabelas 2 e 3 mob'!A:A,0),9),"ERRO") -> Veículo(s) da própria frota. | D33: 0 | E33: 2 | F33: 0 | G33: =IF(C33="Veículo(s) da própria frota.",0,INDEX(Equipamentos!B:K,MATCH(C33,Equipamentos!A:A,0),9)) -> 0 | H33: 0
A34: E9584 | B34: =VLOOKUP(A34,Equipamentos!$A:$K,2,FALSE) -> Carregadeira de pneus com capacidade de 1,72 m³ - 113 kW | C34: =IFERROR(INDEX('Tabelas 2 e 3 mob'!A:K,MATCH(A34,'Tabelas 2 e 3 mob'!A:A,0),9),"ERRO") -> E9665 | D34: 0 | E34: 2 | F34: 1 | G34: =IF(C34="Veículo(s) da própria frota.",0,INDEX(Equipamentos!B:K,MATCH(C34,Equipamentos!A:A,0),9)) -> 412.7818 | H34: 0
A35: E9021 | B35: =VLOOKUP(A35,Equipamentos!$A:$K,2,FALSE) -> Grupo gerador - 456 kVA | C35: =IFERROR(INDEX('Tabelas 2 e 3 mob'!A:K,MATCH(A35,'Tabelas 2 e 3 mob'!A:A,0),9),"ERRO") -> E9508 | D35: 0 | E35: 2 | F35: 1 | G35: =IF(C35="Veículo(s) da própria frota.",0,INDEX(Equipamentos!B:K,MATCH(C35,Equipamentos!A:A,0),9)) -> 183.1405 | H35: 0
A36: E9687 | B36: =VLOOKUP(A36,Equipamentos!$A:$K,2,FALSE) -> Caminhão carroceria com capacidade de 5 t - 120 kW | C36: =IFERROR(INDEX('Tabelas 2 e 3 mob'!A:K,MATCH(A36,'Tabelas 2 e 3 mob'!A:A,0),9),"ERRO") -> E9687 | D36: 0 | E36: 1 | F36: 1 | G36: =IF(C36="Veículo(s) da própria frota.",0,INDEX(Equipamentos!B:K,MATCH(C36,Equipamentos!A:A,0),9)) -> 154.4616 | H36: 0
A37: E9667 | B37: =VLOOKUP(A37,Equipamentos!$A:$K,2,FALSE) -> Caminhão basculante com capacidade de 14 m³ - 210 kW | C37: =IFERROR(INDEX('Tabelas 2 e 3 mob'!A:K,MATCH(A37,'Tabelas 2 e 3 mob'!A:A,0),9),"ERRO") -> E9667 | D37: 1 | E37: 1 | F37: 1 | G37: =IF(C37="Veículo(s) da própria frota.",0,INDEX(Equipamentos!B:K,MATCH(C37,Equipamentos!A:A,0),9)) -> 311.681 | H37: 5.194683333
A38: E9644 | B38: =VLOOKUP(A38,Equipamentos!$A:$K,2,FALSE) -> Caminhão demarcador de faixas com sistema de pintura a frio - 28 kW/129 kW | C38: =IFERROR(INDEX('Tabelas 2 e 3 mob'!A:K,MATCH(A38,'Tabelas 2 e 3 mob'!A:A,0),9),"ERRO") -> E9644 | D38: 1 | E38: 1 | F38: 1 | G38: =IF(C38="Veículo(s) da própria frota.",0,INDEX(Equipamentos!B:K,MATCH(C38,Equipamentos!A:A,0),9)) -> 402.9388 | H38: 6.715646667
A39: E9592 | B39: =VLOOKUP(A39,Equipamentos!$A:$K,2,FALSE) -> Caminhão carroceria com capacidade de 15 t - 188 kW | C39: =IFERROR(INDEX('Tabelas 2 e 3 mob'!A:K,MATCH(A39,'Tabelas 2 e 3 mob'!A:A,0),9),"ERRO") -> E9592 | D39: 1 | E39: 1 | F39: 1 | G39: =IF(C39="Veículo(s) da própria frota.",0,INDEX(Equipamentos!B:K,MATCH(C39,Equipamentos!A:A,0),9)) -> 269.8329 | H39: 4.497215
A40: E9540 | B40: =VLOOKUP(A40,Equipamentos!$A:$K,2,FALSE) -> Trator sobre esteiras com lâmina - 127 kW | C40: =IFERROR(INDEX('Tabelas 2 e 3 mob'!A:K,MATCH(A40,'Tabelas 2 e 3 mob'!A:A,0),9),"ERRO") -> E9018 | D40: 1 | E40: 2 | F40: 0.5 | G40: =IF(C40="Veículo(s) da própria frota.",0,INDEX(Equipamentos!B:K,MATCH(C40,Equipamentos!A:A,0),9)) -> 541.9736 | H40: 9.032893333
A41: E9515 | B41: =VLOOKUP(A41,Equipamentos!$A:$K,2,FALSE) -> Escavadeira hidráulica sobre esteiras com caçamba com capacidade de 1,56 m³ - 118 kW | C41: =IFERROR(INDEX('Tabelas 2 e 3 mob'!A:K,MATCH(A41,'Tabelas 2 e 3 mob'!A:A,0),9),"ERRO") -> E9666 | D41: 1 | E41: 2 | F41: 1 | G41: =IF(C41="Veículo(s) da própria frota.",0,INDEX(Equipamentos!B:K,MATCH(C41,Equipamentos!A:A,0),9)) -> 455.859 | H41: 15.1953
A42: E9506 | B42: =VLOOKUP(A42,Equipamentos!$A:$K,2,FALSE) -> Caminhão basculante com capacidade de 6 m³ - 136 kW | C42: =IFERROR(INDEX('Tabelas 2 e 3 mob'!A:K,MATCH(A42,'Tabelas 2 e 3 mob'!A:A,0),9),"ERRO") -> E9506 | D42: 0 | E42: 1 | F42: 1 | G42: =IF(C42="Veículo(s) da própria frota.",0,INDEX(Equipamentos!B:K,MATCH(C42,Equipamentos!A:A,0),9)) -> 185.2131 | H42: 0
A43: E9256 | B43: =VLOOKUP(A43,Equipamentos!$A:$K,2,FALSE) -> Equipamento para pintura com cal rebocável com dois bicos aplicadores e capacidade de 2.200 l | C43: =IFERROR(INDEX('Tabelas 2 e 3 mob'!A:K,MATCH(A43,'Tabelas 2 e 3 mob'!A:A,0),9),"ERRO") -> Veículo(s) da própria frota. | D43: 1 | E43: 2 | F43: 0 | G43: =IF(C43="Veículo(s) da própria frota.",0,INDEX(Equipamentos!B:K,MATCH(C43,Equipamentos!A:A,0),9)) -> 0 | H43: 0
A44: E9156 | B44: =VLOOKUP(A44,Equipamentos!$A:$K,2,FALSE) -> Soprador de ar costal - 2,6 kW | C44: =IFERROR(INDEX('Tabelas 2 e 3 mob'!A:K,MATCH(A44,'Tabelas 2 e 3 mob'!A:A,0),9),"ERRO") -> Veículo(s) da própria frota. | D44: 1 | E44: 2 | F44: 0 | G44: =IF(C44="Veículo(s) da própria frota.",0,INDEX(Equipamentos!B:K,MATCH(C44,Equipamentos!A:A,0),9)) -> 0 | H44: 0
A45: E9146 | B45: =VLOOKUP(A45,Equipamentos!$A:$K,2,FALSE) -> Caminhão silo com capacidade de 30 m³ - 368 kW | C45: =IFERROR(INDEX('Tabelas 2 e 3 mob'!A:K,MATCH(A45,'Tabelas 2 e 3 mob'!A:A,0),9),"ERRO") -> E9146 | D45: 0 | E45: 1 | F45: 1 | G45: =IF(C45="Veículo(s) da própria frota.",0,INDEX(Equipamentos!B:K,MATCH(C45,Equipamentos!A:A,0),9)) -> 608.0866 | H45: 0
A46: E9010 | B46: =VLOOKUP(A46,Equipamentos!$A:$K,2,FALSE) -> Balança plataforma digital à bateria, com mesa de 75 x 75 cm e capacidade de 500 kg | C46: =IFERROR(INDEX('Tabelas 2 e 3 mob'!A:K,MATCH(A46,'Tabelas 2 e 3 mob'!A:A,0),9),"ERRO") -> Veículo(s) da própria frota. | D46: 1 | E46: 2 | F46: 0 | G46: =IF(C46="Veículo(s) da própria frota.",0,INDEX(Equipamentos!B:K,MATCH(C46,Equipamentos!A:A,0),9)) -> 0 | H46: 0
A47: E9519 | B47: =VLOOKUP(A47,Equipamentos!$A:$K,2,FALSE) -> Betoneira com motor a gasolina com capacidade de 600 l - 10 kW | C47: =IFERROR(INDEX('Tabelas 2 e 3 mob'!A:K,MATCH(A47,'Tabelas 2 e 3 mob'!A:A,0),9),"ERRO") -> Veículo(s) da própria frota. | D47: 1 | E47: 2 | F47: 0 | G47: =IF(C47="Veículo(s) da própria frota.",0,INDEX(Equipamentos!B:K,MATCH(C47,Equipamentos!A:A,0),9)) -> 0 | H47: 0
A48: E9071 | B48: =VLOOKUP(A48,Equipamentos!$A:$K,2,FALSE) -> Transportador manual carrinho de mão com capacidade de 80 l | C48: =IFERROR(INDEX('Tabelas 2 e 3 mob'!A:K,MATCH(A48,'Tabelas 2 e 3 mob'!A:A,0),9),"ERRO") -> Veículo(s) da própria frota. | D48: 1 | E48: 2 | F48: 0 | G48: =IF(C48="Veículo(s) da própria frota.",0,INDEX(Equipamentos!B:K,MATCH(C48,Equipamentos!A:A,0),9)) -> 0 | H48: 0
A49: E9064 | B49: =VLOOKUP(A49,Equipamentos!$A:$K,2,FALSE) -> Transportador manual gerica com capacidade de 180 l | C49: =IFERROR(INDEX('Tabelas 2 e 3 mob'!A:K,MATCH(A49,'Tabelas 2 e 3 mob'!A:A,0),9),"ERRO") -> Veículo(s) da própria frota. | D49: 1 | E49: 2 | F49: 0 | G49: =IF(C49="Veículo(s) da própria frota.",0,INDEX(Equipamentos!B:K,MATCH(C49,Equipamentos!A:A,0),9)) -> 0 | H49: 0
A50: E9066 | B50: =VLOOKUP(A50,Equipamentos!$A:$K,2,FALSE) -> Grupo gerador - 14 kVA | C50: =IFERROR(INDEX('Tabelas 2 e 3 mob'!A:K,MATCH(A50,'Tabelas 2 e 3 mob'!A:A,0),9),"ERRO") -> Veículo(s) da própria frota. | D50: 1 | E50: 2 | F50: 0 | G50: =IF(C50="Veículo(s) da própria frota.",0,INDEX(Equipamentos!B:K,MATCH(C50,Equipamentos!A:A,0),9)) -> 0 | H50: 0
A51: E9535 | B51: =VLOOKUP(A51,Equipamentos!$A:$K,2,FALSE) -> Serra circular com bancada - D = 30 cm - 4 kW | C51: =IFERROR(INDEX('Tabelas 2 e 3 mob'!A:K,MATCH(A51,'Tabelas 2 e 3 mob'!A:A,0),9),"ERRO") -> Veículo(s) da própria frota. | D51: 1 | E51: 2 | F51: 0 | G51: =IF(C51="Veículo(s) da própria frota.",0,INDEX(Equipamentos!B:K,MATCH(C51,Equipamentos!A:A,0),9)) -> 0 | H51: 0
A52: E9507 | B52: =VLOOKUP(A52,Equipamentos!$A:$K,2,FALSE) -> Plotadora de recorte com computador e programa computacional | C52: =IFERROR(INDEX('Tabelas 2 e 3 mob'!A:K,MATCH(A52,'Tabelas 2 e 3 mob'!A:A,0),9),"ERRO") -> Veículo(s) da própria frota. | D52: 1 | E52: 2 | F52: 0 | G52: =IF(C52="Veículo(s) da própria frota.",0,INDEX(Equipamentos!B:K,MATCH(C52,Equipamentos!A:A,0),9)) -> 0 | H52: 0
A53: E9568 | B53: =VLOOKUP(A53,Equipamentos!$A:$K,2,FALSE) -> Furadeira de impacto de 12,5 mm - 0,80 kW | C53: =IFERROR(INDEX('Tabelas 2 e 3 mob'!A:K,MATCH(A53,'Tabelas 2 e 3 mob'!A:A,0),9),"ERRO") -> Veículo(s) da própria frota. | D53: 1 | E53: 2 | F53: 0 | G53: =IF(C53="Veículo(s) da própria frota.",0,INDEX(Equipamentos!B:K,MATCH(C53,Equipamentos!A:A,0),9)) -> 0 | H53: 0
A54: E9753 | B54: =VLOOKUP(A54,Equipamentos!$A:$K,2,FALSE) -> Grupo gerador - 23 kVA | C54: =IFERROR(INDEX('Tabelas 2 e 3 mob'!A:K,MATCH(A54,'Tabelas 2 e 3 mob'!A:A,0),9),"ERRO") -> Veículo(s) da própria frota. | D54: 1 | E54: 2 | F54: 0 | G54: =IF(C54="Veículo(s) da própria frota.",0,INDEX(Equipamentos!B:K,MATCH(C54,Equipamentos!A:A,0),9)) -> 0 | H54: 0
A55: E9623 | B55: =VLOOKUP(A55,Equipamentos!$A:$K,2,FALSE) -> Máquina de bancada guilhotina - 4,00 kW | C55: =IFERROR(INDEX('Tabelas 2 e 3 mob'!A:K,MATCH(A55,'Tabelas 2 e 3 mob'!A:A,0),9),"ERRO") -> Veículo(s) da própria frota. | D55: 1 | E55: 2 | F55: 0 | G55: =IF(C55="Veículo(s) da própria frota.",0,INDEX(Equipamentos!B:K,MATCH(C55,Equipamentos!A:A,0),9)) -> 0 | H55: 0
A56: E9622 | B56: =VLOOKUP(A56,Equipamentos!$A:$K,2,FALSE) -> Máquina de bancada universal para corte de chapa - 1,50 kW | C56: =IFERROR(INDEX('Tabelas 2 e 3 mob'!A:K,MATCH(A56,'Tabelas 2 e 3 mob'!A:A,0),9),"ERRO") -> Veículo(s) da própria frota. | D56: 1 | E56: 2 | F56: 0 | G56: =IF(C56="Veículo(s) da própria frota.",0,INDEX(Equipamentos!B:K,MATCH(C56,Equipamentos!A:A,0),9)) -> 0 | H56: 0
A57: E9678 | B57: =VLOOKUP(A57,Equipamentos!$A:$K,2,FALSE) -> Fresadora a frio - 455 kW | C57: =IFERROR(INDEX('Tabelas 2 e 3 mob'!A:K,MATCH(A57,'Tabelas 2 e 3 mob'!A:A,0),9),"ERRO") -> E9666 | D57: 0 | E57: 2 | F57: 1 | G57: =IF(C57="Veículo(s) da própria frota.",0,INDEX(Equipamentos!B:K,MATCH(C57,Equipamentos!A:A,0),9)) -> 455.859 | H57: 0
G58: TOTAL | H58: =SUM(H13:H57) -> 130.3839117
A61: CUSTO TOTAL MOBILIZAÇÃO E DESMOBILIZAÇÃO
A62: DESCRIÇÃO | B62: VALOR
A63: Custo Mobilização (km) | B63: =H58 -> 130.3839117
A64: BDI (%) | B64: =CAPA!D14 -> 0.2339
A65: Custo Mobilização (R$/km) com BDI | B65: =B63+(B63*B64) -> 160.8807086
A66: Total de Frentes | B66: ='MC MODULO'!G1 -> 1
A67: Custo Mobilização (frentes x distancia) | B67: =B65*H6*B66 -> 0
A68: Desconto aplicado | B68: =CAPA!D13 -> 0
A69: Custo Mobilização (frentes x distancia) com desconto | B69: =B67-(B68*B67) -> 0

Sheet Canteiro
A4: CANTEIRO DE OBRAS PARA CONSTRUÇAO RODOVIÁRIA
A5: Descrição dos serviços | B5: Tipo de container | C5: Unidade | D5: Quantidade | E5: Preço unitário (R$) | F5: Total (R$)
A6: Escritório e seção técnica
A7: =VLOOKUP(B7,'INSUMOS SINAPI'!$A$8:$E$4879,2,FALSE) -> LOCACAO DE CONTAINER 2,30 X 6,00 M, ALT. 2,50 M, PARA ESCRITORIO, SEM DIVISORIAS INTERNAS E SEM SANITARIO (NAO INCLUI MOBILIZACAO/DESMOBILIZACAO) | B7: 10776 | C7: und | D7: 1 | E7: =VLOOKUP(B7,'INSUMOS SINAPI'!$A$8:$E$4879,5,FALSE) -> 706.05 | F7: =TRUNC(D7*E7,2) -> 706.05
A8: Banheiro e vestiário
A9: =VLOOKUP(B9,'INSUMOS SINAPI'!$A$8:$E$4879,2,FALSE) -> LOCACAO DE CONTAINER 2,30 X 4,30 M, ALT. 2,50 M, PARA SANITARIO, COM 3 BACIAS, 4 CHUVEIROS, 1 LAVATORIO E 1 MICTORIO (NAO INCLUI MOBILIZACAO/DESMOBILIZACAO) | B9: 10777 | C9: und | D9: 1 | E9: =VLOOKUP(B9,'INSUMOS SINAPI'!$A$8:$E$4879,5,FALSE) -> 1026.13 | F9: =TRUNC(D9*E9,2) -> 1026.13
D10: TOTAL DO CANTEIRO | F10: =SUM(F7:F9) -> 1732.18
D11: DURAÇÃO (MESES) | E11: 12 | F11: =F10*E11 -> 20786.16
D12: BDI | F12: =BDI!C17 -> 0.2339
D13: TOTAL DO CANTEIRO (com BDI) | F13: =F11+(F11*F12) -> 25648.04282
D14: DESCONTO | F14: =CAPA!D13*F13 -> 0
D15: TOTAL DO CANTEIRO APÓS O DESCONTO (com BDI) | F15: =(F13-F14) -> 25648.04282

Sheet MOMENTO DE TRANSPORTE PRINC
B5: ='MODULO MINIMO Prop'!B1 -> EXECUÇÃO DE SERVIÇOS DE IMPLANTAÇÃO DE PAVIMENTAÇÃO EM BLOCO DE CONCRETO INTERTRAVADO, EM VIAS DE MUNICÍPIOS DIVERSOS INSERIDOS NA ÁREA DE ATUAÇÃO DA CODEVASF, NO ESTADO MARANHÃO
B6: DATA BASE: | C6: ='MODULO MINIMO Prop'!P2 -> Maranhão - ABRIL/2025
C8: RESUMO DO TRANSPORTE PRINCIPAL
B9: CODIGO | C9: DESCRIÇÃO | D9: TKM
B10: 5914359 | C10: =VLOOKUP(B10,'SINTÉTICO SICRO'!$A:$D,2,0) -> Transporte com caminhão basculante de 10 m³ - rodovia em leito natural | D10: =ROUND(SUMIF('MOMENTO DE TRANSPORTE PRINC '!A:A,B10,'MOMENTO DE TRANSPORTE PRINC '!K:K),2) -> 0 | E10: =D10+'MOMENTO DE TRANSPORTE AUX '!D10 -> 0
B11: 5914374 | C11: =VLOOKUP(B11,'SINTÉTICO SICRO'!$A:$D,2,0) -> Transporte com caminhão basculante de 10 m³ - rodovia em revestimento primário | D11: =ROUND(SUMIF('MOMENTO DE TRANSPORTE PRINC '!A:A,B11,'MOMENTO DE TRANSPORTE PRINC '!K:K),2) -> 43323.21 | E11: =D11+'MOMENTO DE TRANSPORTE AUX '!D11 -> 43323.21
B12: 5914389 | C12: =VLOOKUP(B12,'SINTÉTICO SICRO'!$A:$D,2,0) -> Transporte com caminhão basculante de 10 m³ - rodovia pavimentada | D12: =ROUND(SUMIF('MOMENTO DE TRANSPORTE PRINC '!A:A,B12,'MOMENTO DE TRANSPORTE PRINC '!K:K),2) -> 0 | E12: =D12+'MOMENTO DE TRANSPORTE AUX '!D12 -> 0
B14: TIPO (P, RP ou LN) | C14: DMT ESTIMADA (DISTRIBUIÇÃO DO ITEM NA PISTA
B15: P | C15: 1
B17: SISTEMA DE CUSTOS REFERENCIAIS DE OBRAS - SICRO
B18: Custo Unitário de Referência | D18: =$C$6 -> Maranhão - ABRIL/2025 | I18: Quantitativo | K18: un
B19: 4011219 | C19: Base estabilizada granulometricamente sem mistura de solos com material de jazida | I19: =(SUMIF('MODULO MINIMO Prop'!D:D,B19,'MODULO MINIMO Prop'!J:J))*0 -> 0
B20: D - ATIVIDADES AUXILIARES | D20: Quantidade | E20: Unidade
B21: 4016096 | C21: Escavação e carga de material de jazida com escavadeira hidráulica de 1,56 m³ | D21: 1.10027 | E21: m³
B23: F - MOMENTO DE TRANSPORTE | D23: Quantidade | E23: Unidade | F23: CÓDIGO TRANSPORTE
F24: LN | G24: RP | H24: P | I24: TIPO (P, RP ou LN) | J24: DMT ESTIMADA (km) | K24: QUANTITATIVO TOTAL DE TRANSPORTE (tkm)
A25: =IF(I25="P",H25,IF(I25="RP",G25,IF(I25="LN",F25,""))) -> 5914389 | B25: 4016096 | C25: Escavação e carga de material de jazida com escavadeira hidráulica de 1,56 m³ - Caminhão basculante 10 m³ | D25: 2.06301 | E25: tkm | F25: 5914359 | G25: 5914374 | H25: 5914389 | I25: =$B$15 -> P | J25: 10 | K25: =IF(ISBLANK(J25),"",J25*D25)*I19 -> 0
B27: Obs. | D27: ='SINTÉTICO SICRO'!A4317 -> 3713702
E28: =VLOOKUP(D28,'SINTÉTICO SICRO'!$A$4:$D$1048576,2,0) -> 
B29: SISTEMA DE CUSTOS REFERENCIAIS DE OBRAS - SICRO
B30: Custo Unitário de Referência | D30: =$C$6 -> Maranhão - ABRIL/2025 | I30: Quantitativo | K30: m
B31: 2003377 | C31: Meio-fio de concreto - MFC 05 - areia e brita comerciais - fôrma de madeira | I31: =(SUMIF('MODULO MINIMO Prop'!D:D,B31,'MODULO MINIMO Prop'!J:J))*0.8 -> 3200
B32: D - ATIVIDADES AUXILIARES | D32: Quantidade | E32: Unidade
B33: 1107892 | C33: Concreto fck = 20 MPa - confecção em betoneira e lançamento manual - areia e brita comerciais | D33: 0.0334 | E33: m³
B34: 2003842 | C34: Enchimento de junta de concreto com argamassa asfáltica de densidade 1.700 kg/m³ - espessura de 1 cm | D34: 0.0473 | E34: kg
B35: 4805750 | C35: Escavação manual em material de 1ª categoria na profundidade de até 1 m | D35: 0.018 | E35: m³
B36: 3103302 | C36: Fôrmas de tábuas de pinho para dispositivos de drenagem - utilização de 3 vezes - confecção, instalação e retirada | D36: 0.5029 | E36: m²
B38: F - MOMENTO DE TRANSPORTE | D38: Quantidade | E38: Unidade | F38: CÓDIGO TRANSPORTE
F39: LN | G39: RP | H39: P | I39: TIPO (P, RP ou LN) | J39: DMT ESTIMADA (km) | K39: QUANTITATIVO TOTAL DE TRANSPORTE (tkm)
B42: TIPO (P, RP ou LN) | C42: DMT ESTIMADA (DISTRIBUIÇÃO DO ITEM NA PISTA
B43: LN | C43: 1
B45: SISTEMA DE CUSTOS REFERENCIAIS DE OBRAS - SICRO
B46: Custo Unitário de Referência | D46: =$C$6 -> Maranhão - ABRIL/2025 | I46: Quantitativo | K46: un
B47: 4011219 | C47: Base estabilizada granulometricamente sem mistura de solos com material de jazida | I47: =(SUMIF('MODULO MINIMO Prop'!D:D,B47,'MODULO MINIMO Prop'!J:J))*0 -> 0
B48: D - ATIVIDADES AUXILIARES | D48: Quantidade | E48: Unidade
B49: 4016096 | C49: Escavação e carga de material de jazida com escavadeira hidráulica de 1,56 m³ | D49: 1.10027 | E49: m³
B51: F - MOMENTO DE TRANSPORTE | D51: Quantidade | E51: Unidade | F51: CÓDIGO TRANSPORTE
F52: LN | G52: RP | H52: P | I52: TIPO (P, RP ou LN) | J52: DMT ESTIMADA (km) | K52: QUANTITATIVO TOTAL DE TRANSPORTE (tkm)
A53: =IF(I53="P",H53,IF(I53="RP",G53,IF(I53="LN",F53,""))) -> 5914359 | B53: 4016096 | C53: Escavação e carga de material de jazida com escavadeira hidráulica de 1,56 m³ - Caminhão basculante 10 m³ | D53: 2.06301 | E53: tkm | F53: 5914359 | G53: 5914374 | H53: 5914389 | I53: =$B$43 -> LN | J53: 10 | K53: =IF(ISBLANK(J53),"",J53*D53)*I47 -> 0
B55: Obs.
B57: SISTEMA DE CUSTOS REFERENCIAIS DE OBRAS - SICRO
B58: Custo Unitário de Referência | D58: =$C$6 -> Maranhão - ABRIL/2025 | I58: Quantitativo | K58: m
B59: 2003377 | C59: Meio-fio de concreto - MFC 05 - areia e brita comerciais - fôrma de madeira | I59: =(SUMIF('MODULO MINIMO Prop'!D:D,B59,'MODULO MINIMO Prop'!J:J))*0.1 -> 400
B60: D - ATIVIDADES AUXILIARES | D60: Quantidade | E60: Unidade
B61: 1107892 | C61: Concreto fck = 20 MPa - confecção em betoneira e lançamento manual - areia e brita comerciais | D61: 0.0334 | E61: m³
B62: 2003842 | C62: Enchimento de junta de concreto com argamassa asfáltica de densidade 1.700 kg/m³ - espessura de 1 cm | D62: 0.0473 | E62: kg
B63: 4805750 | C63: Escavação manual em material de 1ª categoria na profundidade de até 1 m | D63: 0.018 | E63: m³
B64: 3103302 | C64: Fôrmas de tábuas de pinho para dispositivos de drenagem - utilização de 3 vezes - confecção, instalação e retirada | D64: 0.5029 | E64: m²
B66: F - MOMENTO DE TRANSPORTE | D66: Quantidade | E66: Unidade | F66: CÓDIGO TRANSPORTE
F67: LN | G67: RP | H67: P | I67: TIPO (P, RP ou LN) | J67: DMT ESTIMADA (km) | K67: QUANTITATIVO TOTAL DE TRANSPORTE (tkm)
B70: TIPO (P, RP ou LN) | C70: DMT ESTIMADA (DISTRIBUIÇÃO DO ITEM NA PISTA
B71: RP | C71: 1
B73: SISTEMA DE CUSTOS REFERENCIAIS DE OBRAS - SICRO
B74: Custo Unitário de Referência | D74: =$C$6 -> Maranhão - ABRIL/2025 | I74: Quantitativo | K74: un
B75: 4011219 | C75: Base estabilizada granulometricamente sem mistura de solos com material de jazida | I75: =(SUMIF('MODULO MINIMO Prop'!D:D,B75,'MODULO MINIMO Prop'!J:J)) -> 2100
B76: D - ATIVIDADES AUXILIARES | D76: Quantidade | E76: Unidade
B77: 4016096 | C77: Escavação e carga de material de jazida com escavadeira hidráulica de 1,56 m³ | D77: 1.10027 | E77: m³
B79: F - MOMENTO DE TRANSPORTE | D79: Quantidade | E79: Unidade | F79: CÓDIGO TRANSPORTE
F80: LN | G80: RP | H80: P | I80: TIPO (P, RP ou LN) | J80: DMT ESTIMADA (km) | K80: QUANTITATIVO TOTAL DE TRANSPORTE (tkm)
A81: =IF(I81="P",H81,IF(I81="RP",G81,IF(I81="LN",F81,""))) -> 5914374 | B81: 4016096 | C81: Escavação e carga de material de jazida com escavadeira hidráulica de 1,56 m³ - Caminhão basculante 10 m³ | D81: 2.06301 | E81: tkm | F81: 5914359 | G81: 5914374 | H81: 5914389 | I81: =$B$71 -> RP | J81: 10 | K81: =IF(ISBLANK(J81),"",J81*D81)*I75 -> 43323.21
B83: Obs.
B85: SISTEMA DE CUSTOS REFERENCIAIS DE OBRAS - SICRO
B86: Custo Unitário de Referência | D86: =$C$6 -> Maranhão - ABRIL/2025 | I86: Quantitativo | K86: m
B87: 2003377 | C87: Meio-fio de concreto - MFC 05 - areia e brita comerciais - fôrma de madeira | I87: =(SUMIF('MODULO MINIMO Prop'!D:D,B87,'MODULO MINIMO Prop'!J:J))*0.1 -> 400
B88: D - ATIVIDADES AUXILIARES | D88: Quantidade | E88: Unidade
B89: 1107892 | C89: Concreto fck = 20 MPa - confecção em betoneira e lançamento manual - areia e brita comerciais | D89: 0.0334 | E89: m³
B90: 2003842 | C90: Enchimento de junta de concreto com argamassa asfáltica de densidade 1.700 kg/m³ - espessura de 1 cm | D90: 0.0473 | E90: kg
B91: 4805750 | C91: Escavação manual em material de 1ª categoria na profundidade de até 1 m | D91: 0.018 | E91: m³
B92: 3103302 | C92: Fôrmas de tábuas de pinho para dispositivos de drenagem - utilização de 3 vezes - confecção, instalação e retirada | D92: 0.5029 | E92: m²
B94: F - MOMENTO DE TRANSPORTE | D94: Quantidade | E94: Unidade | F94: CÓDIGO TRANSPORTE
F95: LN | G95: RP | H95: P | I95: TIPO (P, RP ou LN) | J95: DMT ESTIMADA (km) | K95: QUANTITATIVO TOTAL DE TRANSPORTE (tkm)

Sheet MOMENTO DE TRANSPORTE AUX
B5: ='MODULO MINIMO Prop'!B1 -> EXECUÇÃO DE SERVIÇOS DE IMPLANTAÇÃO DE PAVIMENTAÇÃO EM BLOCO DE CONCRETO INTERTRAVADO, EM VIAS DE MUNICÍPIOS DIVERSOS INSERIDOS NA ÁREA DE ATUAÇÃO DA CODEVASF, NO ESTADO MARANHÃO
B6: DATA BASE: | C6: ='MODULO MINIMO Prop'!P2 -> Maranhão - ABRIL/2025
C8: RESUMO DO TRANSPORTE AUXILIAR
B9: CODIGO | C9: DESCRIÇÃO | D9: TKM
B10: 5914359 | C10: =VLOOKUP(B10,'SINTÉTICO SICRO'!$A:$D,2,0) -> Transporte com caminhão basculante de 10 m³ - rodovia em leito natural | D10: =ROUND(SUMIF($A:$A,B10,$K:$K),2) -> 0
B11: 5914374 | C11: =VLOOKUP(B11,'SINTÉTICO SICRO'!$A:$D,2,0) -> Transporte com caminhão basculante de 10 m³ - rodovia em revestimento primário | D11: 0
B12: 5914389 | C12: =VLOOKUP(B12,'SINTÉTICO SICRO'!$A:$D,2,0) -> Transporte com caminhão basculante de 10 m³ - rodovia pavimentada | D12: 0
B13: 5914449 | C13: =VLOOKUP(B13,'SINTÉTICO SICRO'!$A:$D,2,0) -> Transporte com caminhão carroceria de 15 t - rodovia em leito natural | D13: 0
B14: 5914464 | C14: =VLOOKUP(B14,'SINTÉTICO SICRO'!$A:$D,2,0) -> Transporte com caminhão carroceria de 15 t - rodovia em revestimento primário | D14: 0
B15: 5914479 | C15: =VLOOKUP(B15,'SINTÉTICO SICRO'!$A:$D,2,0) -> Transporte com caminhão carroceria de 15 t - rodovia pavimentada | D15: 0
B17: TIPO (P, RP ou LN) | C17: DMT ATÉ 50 KM NÃO DEVE SER PAGA | D17: DMT ACIMA DE 50 KM
B18: P | C18: 0 | D18: 0
B20: SISTEMA DE CUSTOS REFERENCIAIS DE OBRAS - SICRO | I20: Quantitivo
B21: Custo Unitário de Referência | E21: =$C$6 -> Maranhão - ABRIL/2025 | I21: (Coeficiente na composição principal) x (quantidade da principal no orçamento) | K21: m³
B22: 1107892 | C22: Concreto fck = 20 MPa - confecção em betoneira e lançamento manual - areia e brita comerciais | I22: =('MOMENTO DE TRANSPORTE PRINC '!$D$33*VLOOKUP(C31,'MODULO MINIMO Prop'!D:T,7,FALSE))*0.8 -> 106.88
B23: F - MOMENTO DE TRANSPORTE | D23: Quantidade | E23: Unidade | F23: DMT
F24: LN | G24: RP | H24: P | I24: TIPO (P, RP ou LN) | J24: DMT ESTIMADA (km) | K24: QUANTITATIVO TOTAL DE TRANSPORTE DE MATERIAL (tkm)
A25: =IF(I25="P",H25,IF(I25="RP",G25,IF(I25="LN",F25,""))) -> 5914479 | B25: M0030 | C25: Aditivo plastificante e retardador de pega para concreto e argamassa - Caminhão carroceria 15 t | D25: 0.00085 | E25: tkm | F25: 5914449 | G25: 5914464 | H25: 5914479 | I25: =$B$18 -> P | J25: =$D$18 -> 0 | K25: =IF(ISBLANK(J25),"",J25*(D25*$I$22)) -> 0
A26: =IF(I26="P",H26,IF(I26="RP",G26,IF(I26="LN",F26,""))) -> 5914389 | B26: M0082 | C26: Areia média lavada - Caminhão basculante 10 m³ | D26: 0.95001 | E26: tkm | F26: 5914359 | G26: 5914374 | H26: 5914389 | I26: =$B$18 -> P | J26: =$D$18 -> 0 | K26: =IF(ISBLANK(J26),"",J26*(D26*$I$22)) -> 0
A27: 5914389 | B27: M0191 | C27: Brita 1 - Caminhão basculante 10 m³ | D27: 0.55131 | E27: tkm | F27: 5914359 | G27: 5914374 | H27: 5914389 | I27: P | J27: 0 | K27: =IF(ISBLANK(J27),"",J27*(D27*$I$22)) -> 0
A28: 5914389 | B28: M0192 | C28: Brita 2 - Caminhão basculante 10 m³ | D28: 0.55131 | E28: tkm | F28: 5914359 | G28: 5914374 | H28: 5914389 | I28: P | J28: 0 | K28: =IF(ISBLANK(J28),"",J28*(D28*$I$22)) -> 0
A29: 5914479 | B29: M0424 | C29: Cimento Portland CP II - 32 - saco - Caminhão carroceria 15 t | D29: 0.28215 | E29: tkm | F29: 5914449 | G29: 5914464 | H29: 5914479 | I29: P | J29: 0 | K29: =IF(ISBLANK(J29),"",J29*(D29*$I$22)) -> 0
B31: PRINCIPAL: | C31: 2003377
B33: SISTEMA DE CUSTOS REFERENCIAIS DE OBRAS - SICRO | I33: Quantitivo
B34: Custo Unitário de Referência | E34: =$C$6 -> Maranhão - ABRIL/2025 | H34: m² | I34: (Coeficiente na composição principal) x (quantidade da principal no orçamento) | K34: kg
B35: 2003842 | C35: Enchimento de junta de concreto com argamassa asfáltica de densidade 1.700 kg/m³ - espessura de 1 cm | I35: =('MOMENTO DE TRANSPORTE PRINC '!$D$34*VLOOKUP(C40,'MODULO MINIMO Prop'!D:T,7,FALSE))*0.8 -> 151.36
B36: F - MOMENTO DE TRANSPORTE | D36: Quantidade | E36: Unidade | F36: DMT
F37: LN | G37: RP | H37: P | I37: TIPO (P, RP ou LN) | J37: DMT ESTIMADA (km) | K37: QUANTITATIVO TOTAL DE TRANSPORTE DE MATERIAL (tkm)
A38: =IF(I38="P",H38,IF(I38="RP",G38,IF(I38="LN",F38,""))) -> 5914479 | B38: M2158 | C38: Argamassa asfáltica - Caminhão carroceria com capacidade de 15 t - 188 Kw | D38: 0.001 | E38: tkm | F38: 5914449 | G38: 5914464 | H38: 5914479 | I38: =$B$18 -> P | J38: =$D$18 -> 0 | K38: =IF(ISBLANK(J38),"",J38*(D38*$I$35)) -> 0
B40: PRINCIPAL: | C40: 2003377
B42: SISTEMA DE CUSTOS REFERENCIAIS DE OBRAS - SICRO | I42: Quantitivo
B43: Custo Unitário de Referência | E43: =$C$6 -> Maranhão - ABRIL/2025 | I43: (Coeficiente na composição principal) x (quantidade da principal no orçamento) | K43: m²
B44: 3103302 | C44: Fôrmas de tábuas de pinho para dispositivos de drenagem - utilização de 3 vezes - confecção, instalação e retirada | I44: =('MOMENTO DE TRANSPORTE PRINC '!$D$36*VLOOKUP(C52,'MODULO MINIMO Prop'!D:T,7,FALSE))*0.8 -> 1609.28
B45: F - MOMENTO DE TRANSPORTE | D45: Quantidade | E45: Unidade | F45: DMT
F46: LN | G46: RP | H46: P | I46: TIPO (P, RP ou LN) | J46: DMT ESTIMADA (km) | K46: QUANTITATIVO TOTAL DE TRANSPORTE DE MATERIAL (tkm)
A47: =IF(I47="P",H47,IF(I47="RP",G47,IF(I47="LN",F47,""))) -> 5914479 | B47: M0560 | C47: Desmoldante para fôrmas de madeira - Caminhão carroceria com capacidade de 15 t - 188 Kw | D47: 2e-05 | E47: tkm | F47: 5914449 | G47: 5914464 | H47: 5914479 | I47: =$B$18 -> P | J47: =$D$18 -> 0 | K47: =IF(ISBLANK(J47),"",J47*(D47*$I$44)) -> 0
A48: =IF(I48="P",H48,IF(I48="RP",G48,IF(I48="LN",F48,""))) -> 5914479 | B48: M1205 | C48: Prego de ferro - Caminhão carroceria com capacidade de 15 t - 188 kW | D48: 3e-05 | E48: tkm | F48: 5914449 | G48: 5914464 | H48: 5914479 | I48: P | J48: 0 | K48: =IF(ISBLANK(J48),"",J48*(D48*$I$44)) -> 0
A49: 5914479 | B49: M0290 | C49: Tábua - E = 2,5 cm e L = 10 cm - Caminhão carroceria com capacidade de 15 t - 188 kW | D49: 0.00304 | E49: tkm | F49: 5914449 | G49: 5914464 | H49: 5914479 | I49: P | J49: 0 | K49: =IF(ISBLANK(J49),"",J49*(D49*$I$44)) -> 0
A50: 5914479 | B50: M1429 | C50: Tábua de pinho de terceira - E = 2,5 cm - Caminhão carroceria com capacidade de 15 t - 188 kW | D50: 0.01011 | E50: tkm | F50: 5914449 | G50: 5914464 | H50: 5914479 | I50: P | J50: 0 | K50: =IF(ISBLANK(J50),"",J50*(D50*$I$44)) -> 0
B52: PRINCIPAL: | C52: 2003377
B54: TIPO (P, RP ou LN) | C54: DMT ATÉ 50 KM NÃO DEVE SER PAGA | D54: DMT ACIMA DE 50 KM
B55: LN | C55: 0 | D55: 0
B57: SISTEMA DE CUSTOS REFERENCIAIS DE OBRAS - SICRO | I57: Quantitivo
B58: Custo Unitário de Referência | E58: =$C$6 -> Maranhão - ABRIL/2025 | I58: (Coeficiente na composição principal) x (quantidade da principal no orçamento) | K58: m³
B59: 1107892 | C59: Concreto fck = 20 MPa - confecção em betoneira e lançamento manual - areia e brita comerciais | I59: =('MOMENTO DE TRANSPORTE PRINC '!$D$33*VLOOKUP(C68,'MODULO MINIMO Prop'!D:T,7,FALSE))*0.1 -> 13.36
B60: F - MOMENTO DE TRANSPORTE | D60: Quantidade | E60: Unidade | F60: DMT
F61: LN | G61: RP | H61: P | I61: TIPO (P, RP ou LN) | J61: DMT ESTIMADA (km) | K61: QUANTITATIVO TOTAL DE TRANSPORTE DE MATERIAL (tkm)
A62: =IF(I62="P",H62,IF(I62="RP",G62,IF(I62="LN",F62,""))) -> 5914449 | B62: M0030 | C62: Aditivo plastificante e retardador de pega para concreto e argamassa - Caminhão carroceria 15 t | D62: 0.00085 | E62: tkm | F62: 5914449 | G62: 5914464 | H62: 5914479 | I62: =$B$55 -> LN | J62: =$D$55 -> 0 | K62: =IF(ISBLANK(J62),"",J62*(D62*$I$59)) -> 0
A63: =IF(I63="P",H63,IF(I63="RP",G63,IF(I63="LN",F63,""))) -> 5914359 | B63: M0082 | C63: Areia média lavada - Caminhão basculante 10 m³ | D63: 0.95001 | E63: tkm | F63: 5914359 | G63: 5914374 | H63: 5914389 | I63: =$B$55 -> LN | J63: =$D$55 -> 0 | K63: =IF(ISBLANK(J63),"",J63*(D63*$I$59)) -> 0
A64: 5914359 | B64: M0191 | C64: Brita 1 - Caminhão basculante 10 m³ | D64: 0.55131 | E64: tkm | F64: 5914359 | G64: 5914374 | H64: 5914389 | I64: LN | J64: =$D$55 -> 0 | K64: =IF(ISBLANK(J64),"",J64*(D64*$I$59)) -> 0
A65: 5914359 | B65: M0192 | C65: Brita 2 - Caminhão basculante 10 m³ | D65: 0.55131 | E65: tkm | F65: 5914359 | G65: 5914374 | H65: 5914389 | I65: LN | J65: =$D$55 -> 0 | K65: =IF(ISBLANK(J65),"",J65*(D65*$I$59)) -> 0
A66: 5914449 | B66: M0424 | C66: Cimento Portland CP II - 32 - saco - Caminhão carroceria 15 t | D66: 0.28215 | E66: tkm | F66: 5914449 | G66: 5914464 | H66: 5914479 | I66: LN | J66: =$D$55 -> 0 | K66: =IF(ISBLANK(J66),"",J66*(D66*$I$59)) -> 0
B68: PRINCIPAL: | C68: 2003377
B70: SISTEMA DE CUSTOS REFERENCIAIS DE OBRAS - SICRO | I70: Quantitivo
B71: Custo Unitário de Referência | E71: =$C$6 -> Maranhão - ABRIL/2025 | H71: m² | I71: (Coeficiente na composição principal) x (quantidade da principal no orçamento) | K71: kg
B72: 2003842 | C72: Enchimento de junta de concreto com argamassa asfáltica de densidade 1.700 kg/m³ - espessura de 1 cm | I72: =('MOMENTO DE TRANSPORTE PRINC '!$D$34*VLOOKUP(C77,'MODULO MINIMO Prop'!D:T,7,FALSE))*0.1 -> 18.92
B73: F - MOMENTO DE TRANSPORTE | D73: Quantidade | E73: Unidade | F73: DMT
F74: LN | G74: RP | H74: P | I74: TIPO (P, RP ou LN) | J74: DMT ESTIMADA (km) | K74: QUANTITATIVO TOTAL DE TRANSPORTE DE MATERIAL (tkm)
A75: =IF(I75="P",H75,IF(I75="RP",G75,IF(I75="LN",F75,""))) -> 5914479 | B75: M2158 | C75: Argamassa asfáltica - Caminhão carroceria com capacidade de 15 t - 188 Kw | D75: 0.001 | E75: tkm | F75: 5914449 | G75: 5914464 | H75: 5914479 | I75: =$B$18 -> P | J75: =$D$18 -> 0 | K75: =IF(ISBLANK(J75),"",J75*(D75*$I$72)) -> 0
B77: PRINCIPAL: | C77: 2003377
B79: SISTEMA DE CUSTOS REFERENCIAIS DE OBRAS - SICRO | I79: Quantitivo
B80: Custo Unitário de Referência | E80: =$C$6 -> Maranhão - ABRIL/2025 | I80: (Coeficiente na composição principal) x (quantidade da principal no orçamento) | K80: m²
B81: 3103302 | C81: Fôrmas de tábuas de pinho para dispositivos de drenagem - utilização de 3 vezes - confecção, instalação e retirada | I81: =('MOMENTO DE TRANSPORTE PRINC '!$D$36*VLOOKUP(C89,'MODULO MINIMO Prop'!D:T,7,FALSE))*0.1 -> 201.16
B82: F - MOMENTO DE TRANSPORTE | D82: Quantidade | E82: Unidade | F82: DMT
F83: LN | G83: RP | H83: P | I83: TIPO (P, RP ou LN) | J83: DMT ESTIMADA (km) | K83: QUANTITATIVO TOTAL DE TRANSPORTE DE MATERIAL (tkm)
A84: =IF(I84="P",H84,IF(I84="RP",G84,IF(I84="LN",F84,""))) -> 5914479 | B84: M0560 | C84: Desmoldante para fôrmas de madeira - Caminhão carroceria com capacidade de 15 t - 188 Kw | D84: 2e-05 | E84: tkm | F84: 5914449 | G84: 5914464 | H84: 5914479 | I84: =$B$18 -> P | J84: =$D$18 -> 0 | K84: =IF(ISBLANK(J84),"",J84*(D84*$I$81)) -> 0
A85: =IF(I85="P",H85,IF(I85="RP",G85,IF(I85="LN",F85,""))) -> 5914479 | B85: M1205 | C85: Prego de ferro - Caminhão carroceria com capacidade de 15 t - 188 kW | D85: 3e-05 | E85: tkm | F85: 5914449 | G85: 5914464 | H85: 5914479 | I85: P | J85: 0 | K85: =IF(ISBLANK(J85),"",J85*(D85*$I$81)) -> 0
A86: 5914479 | B86: M0290 | C86: Tábua - E = 2,5 cm e L = 10 cm - Caminhão carroceria com capacidade de 15 t - 188 kW | D86: 0.00304 | E86: tkm | F86: 5914449 | G86: 5914464 | H86: 5914479 | I86: P | J86: 0 | K86: =IF(ISBLANK(J86),"",J86*(D86*$I$81)) -> 0
A87: 5914479 | B87: M1429 | C87: Tábua de pinho de terceira - E = 2,5 cm - Caminhão carroceria com capacidade de 15 t - 188 kW | D87: 0.01011 | E87: tkm | F87: 5914449 | G87: 5914464 | H87: 5914479 | I87: P | J87: 0 | K87: =IF(ISBLANK(J87),"",J87*(D87*$I$81)) -> 0
B89: PRINCIPAL: | C89: 2003377
B90: TIPO (P, RP ou LN) | C90: DMT ATÉ 50 KM NÃO DEVE SER PAGA | D90: DMT ACIMA DE 50 KM
B91: RP | C91: 0 | D91: 0
B93: SISTEMA DE CUSTOS REFERENCIAIS DE OBRAS - SICRO | I93: Quantitivo
B94: Custo Unitário de Referência | E94: =$C$6 -> Maranhão - ABRIL/2025 | I94: (Coeficiente na composição principal) x (quantidade da principal no orçamento) | K94: m³
B95: 1107892 | C95: Concreto fck = 20 MPa - confecção em betoneira e lançamento manual - areia e brita comerciais | I95: =('MOMENTO DE TRANSPORTE PRINC '!$D$33*VLOOKUP(C104,'MODULO MINIMO Prop'!D:T,7,FALSE))*0.1 -> 13.36
B96: F - MOMENTO DE TRANSPORTE | D96: Quantidade | E96: Unidade | F96: DMT
F97: LN | G97: RP | H97: P | I97: TIPO (P, RP ou LN) | J97: DMT ESTIMADA (km) | K97: QUANTITATIVO TOTAL DE TRANSPORTE DE MATERIAL (tkm)
A98: =IF(I98="P",H98,IF(I98="RP",G98,IF(I98="LN",F98,""))) -> 5914464 | B98: M0030 | C98: Aditivo plastificante e retardador de pega para concreto e argamassa - Caminhão carroceria 15 t | D98: 0.00085 | E98: tkm | F98: 5914449 | G98: 5914464 | H98: 5914479 | I98: =$B$91 -> RP | J98: =$D$91 -> 0 | K98: =IF(ISBLANK(J98),"",J98*(D98*$I$95)) -> 0
A99: =IF(I99="P",H99,IF(I99="RP",G99,IF(I99="LN",F99,""))) -> 5914374 | B99: M0082 | C99: Areia média lavada - Caminhão basculante 10 m³ | D99: 0.95001 | E99: tkm | F99: 5914359 | G99: 5914374 | H99: 5914389 | I99: =$B$91 -> RP | J99: =$D$91 -> 0 | K99: =IF(ISBLANK(J99),"",J99*(D99*$I$95)) -> 0
A100: 5914374 | B100: M0191 | C100: Brita 1 - Caminhão basculante 10 m³ | D100: 0.55131 | E100: tkm | F100: 5914359 | G100: 5914374 | H100: 5914389 | I100: RP | J100: =$D$91 -> 0 | K100: =IF(ISBLANK(J100),"",J100*(D100*$I$95)) -> 0
A101: 5914374 | B101: M0192 | C101: Brita 2 - Caminhão basculante 10 m³ | D101: 0.55131 | E101: tkm | F101: 5914359 | G101: 5914374 | H101: 5914389 | I101: RP | J101: =$D$91 -> 0 | K101: =IF(ISBLANK(J101),"",J101*(D101*$I$95)) -> 0
A102: 5914464 | B102: M0424 | C102: Cimento Portland CP II - 32 - saco - Caminhão carroceria 15 t | D102: 0.28215 | E102: tkm | F102: 5914449 | G102: 5914464 | H102: 5914479 | I102: RP | J102: =$D$91 -> 0 | K102: =IF(ISBLANK(J102),"",J102*(D102*$I$95)) -> 0
B104: PRINCIPAL: | C104: 2003377
B106: SISTEMA DE CUSTOS REFERENCIAIS DE OBRAS - SICRO | I106: Quantitivo
B107: Custo Unitário de Referência | E107: =$C$6 -> Maranhão - ABRIL/2025 | H107: m² | I107: (Coeficiente na composição principal) x (quantidade da principal no orçamento) | K107: kg
B108: 2003842 | C108: Enchimento de junta de concreto com argamassa asfáltica de densidade 1.700 kg/m³ - espessura de 1 cm | I108: =('MOMENTO DE TRANSPORTE PRINC '!$D$34*VLOOKUP(C113,'MODULO MINIMO Prop'!D:T,7,FALSE))*0.1 -> 18.92
B109: F - MOMENTO DE TRANSPORTE | D109: Quantidade | E109: Unidade | F109: DMT
F110: LN | G110: RP | H110: P | I110: TIPO (P, RP ou LN) | J110: DMT ESTIMADA (km) | K110: QUANTITATIVO TOTAL DE TRANSPORTE DE MATERIAL (tkm)
A111: =IF(I111="P",H111,IF(I111="RP",G111,IF(I111="LN",F111,""))) -> 5914464 | B111: M2158 | C111: Argamassa asfáltica - Caminhão carroceria com capacidade de 15 t - 188 Kw | D111: 0.001 | E111: tkm | F111: 5914449 | G111: 5914464 | H111: 5914479 | I111: =$B$91 -> RP | J111: =$D$91 -> 0 | K111: =IF(ISBLANK(J111),"",J111*(D111*$I$108)) -> 0
B113: PRINCIPAL: | C113: 2003377
B115: SISTEMA DE CUSTOS REFERENCIAIS DE OBRAS - SICRO | I115: Quantitivo
B116: Custo Unitário de Referência | E116: =$C$6 -> Maranhão - ABRIL/2025 | I116: (Coeficiente na composição principal) x (quantidade da principal no orçamento) | K116: m²
B117: 3103302 | C117: Fôrmas de tábuas de pinho para dispositivos de drenagem - utilização de 3 vezes - confecção, instalação e retirada | I117: =('MOMENTO DE TRANSPORTE PRINC '!$D$36*VLOOKUP(C125,'MODULO MINIMO Prop'!D:T,7,FALSE))*0.1 -> 201.16
B118: F - MOMENTO DE TRANSPORTE | D118: Quantidade | E118: Unidade | F118: DMT
F119: LN | G119: RP | H119: P | I119: TIPO (P, RP ou LN) | J119: DMT ESTIMADA (km) | K119: QUANTITATIVO TOTAL DE TRANSPORTE DE MATERIAL (tkm)
A120: =IF(I120="P",H120,IF(I120="RP",G120,IF(I120="LN",F120,""))) -> 5914464 | B120: M0560 | C120: Desmoldante para fôrmas de madeira - Caminhão carroceria com capacidade de 15 t - 188 Kw | D120: 2e-05 | E120: tkm | F120: 5914449 | G120: 5914464 | H120: 5914479 | I120: =$B$91 -> RP | J120: =$D$91 -> 0 | K120: =IF(ISBLANK(J120),"",J120*(D120*$I$117)) -> 0
A121: =IF(I121="P",H121,IF(I121="RP",G121,IF(I121="LN",F121,""))) -> 5914464 | B121: M1205 | C121: Prego de ferro - Caminhão carroceria com capacidade de 15 t - 188 kW | D121: 3e-05 | E121: tkm | F121: 5914449 | G121: 5914464 | H121: 5914479 | I121: RP | J121: =$D$91 -> 0 | K121: =IF(ISBLANK(J121),"",J121*(D121*$I$117)) -> 0
A122: 5914464 | B122: M0290 | C122: Tábua - E = 2,5 cm e L = 10 cm - Caminhão carroceria com capacidade de 15 t - 188 kW | D122: 0.00304 | E122: tkm | F122: 5914449 | G122: 5914464 | H122: 5914479 | I122: RP | J122: =$D$91 -> 0 | K122: =IF(ISBLANK(J122),"",J122*(D122*$I$117)) -> 0
A123: 5914464 | B123: M1429 | C123: Tábua de pinho de terceira - E = 2,5 cm - Caminhão carroceria com capacidade de 15 t - 188 kW | D123: 0.01011 | E123: tkm | F123: 5914449 | G123: 5914464 | H123: 5914479 | I123: RP | J123: =$D$91 -> 0 | K123: =IF(ISBLANK(J123),"",J123*(D123*$I$117)) -> 0
B125: PRINCIPAL: | C125: 2003377
A127: =IF(I127="P",H127,IF(I127="RP",G127,IF(I127="LN",F127,""))) -> 

Sheet Adm Local
A4: parcela fixa da administração local (mão de obra)
A5: Código | B5: Discriminação | C5: Unidade | D5: Quantidade | F5: Custo Unitário (R$) | H5: Custo Total (R$)
B6: Mão de Obra
B7: Gerência Técnica
B8: Geral
A9: P9955 | B9: =VLOOKUP(A9,'Pessoal Sicro'!$A$6:$G$118,2,FALSE) -> Engenheiro chefe | D9: 0.25 | F9: =VLOOKUP(A9,'Pessoal Sicro'!$A$6:$G$118,6,FALSE) -> 31577.9207 | H9: =F9*D9 -> 7894.480175
A10: P9840 | B10: =VLOOKUP(A10,'Pessoal Sicro'!$A$6:$G$118,2,FALSE) -> Encarregado geral | D10: 1 | F10: =VLOOKUP(A10,'Pessoal Sicro'!$A$6:$G$118,6,FALSE) -> 11656.0318 | H10: =F10*D10 -> 11656.0318
A11: P9897 | B11: =VLOOKUP(A11,'Pessoal Sicro'!$A$6:$G$118,2,FALSE) -> Técnico de meio ambiente | D11: 0 | F11: =VLOOKUP(A11,'Pessoal Sicro'!$A$6:$G$118,6,FALSE) -> 7881.727 | H11: =F11*D11 -> 0
A12: P9866 | B12: Motorista | C12: mês | D12: 0 | F12: =VLOOKUP(A12,'Pessoal Sicro'!$A$6:$G$118,6,FALSE) -> 29.9105 | H12: =F12*D12 -> 0
A13: ='Pessoal Sicro'!A61 -> P9883 | B13: =VLOOKUP(A13,'Pessoal Sicro'!$A$6:$G$118,2,FALSE) -> Chefe do setor administrativo | D13: 0 | F13: =VLOOKUP(A13,'Pessoal Sicro'!$A$6:$G$118,6,FALSE) -> 7575.8406 | H13: =F13*D13 -> 0
F14: Subtotal do Item 1.1 | H14: =SUM(H9:I13) -> 19550.51198
B15: Auxiliar
A16: P9946 | B16: =VLOOKUP(A16,'Pessoal Sicro'!$A$6:$G$118,2,FALSE) -> Engenheiro auxiliar | D16: 0.25 | F16: =VLOOKUP(A16,'Pessoal Sicro'!$A$6:$G$118,6,FALSE) -> 23592.8645 | H16: =D16*F16 -> 5898.216125
A17: P9903 | B17: =VLOOKUP(A17,'Pessoal Sicro'!$A$6:$G$118,2,FALSE) -> Auxiliar técnico | D17: 0.25 | F17: =VLOOKUP(A17,'Pessoal Sicro'!$A$6:$G$118,6,FALSE) -> 4684.6961 | H17: =D17*F17 -> 1171.174025
F18: Subtotal do Item 1.2 | H18: =SUM(H16:I17) -> 7069.39015
B19: Gerência Administrativa
B20: Geral
A21: P9883 | B21: =VLOOKUP(A21,'Pessoal Sicro'!$A$6:$G$118,2,FALSE) -> Chefe do setor administrativo | D21: 0.25 | F21: =VLOOKUP(A21,'Pessoal Sicro'!$A$6:$G$118,6,FALSE) -> 7575.8406 | H21: =F21*D21 -> 1893.96015
A22: P9809 | B22: =VLOOKUP(A22,'Pessoal Sicro'!$A$6:$G$118,2,FALSE) -> Encarregado administrativo | D22: 0 | F22: =VLOOKUP(A22,'Pessoal Sicro'!$A$6:$G$118,6,FALSE) -> 7575.7263 | H22: =F22*D22 -> 0
A23: P9896 | B23: =VLOOKUP(A23,'Pessoal Sicro'!$A$6:$G$118,2,FALSE) -> Porteiro | D23: 0 | F23: =VLOOKUP(A23,'Pessoal Sicro'!$A$6:$G$118,6,FALSE) -> 4026.1953 | H23: =F23*D23 -> 0
A24: P9827 | B24: =VLOOKUP(A24,'Pessoal Sicro'!$A$6:$G$118,2,FALSE) -> Vigia | D24: 0 | F24: =VLOOKUP(A24,'Pessoal Sicro'!$A$6:$G$118,6,FALSE) -> 4725.5765 | H24: =F24*D24 -> 0
A25: P9866 | B25: =VLOOKUP(A25,'Pessoal Sicro'!$A$6:$G$118,2,FALSE) -> Motorista de caminhão | D25: 0 | F25: =VLOOKUP(A25,'Pessoal Sicro'!$A$6:$G$118,6,0) -> 29.9105 | H25: =F25*D25 -> 0
F26: Subtotal do Item 1.3 | H26: =SUM(H21:I25) -> 1893.96015
B27: Auxiliar | D27: ='SINTÉTICO SICRO'!A4317 -> 3713702
A28: ='Pessoal Sicro'!A11 -> P9806 | B28: =VLOOKUP(A28,'Pessoal Sicro'!$A$6:$G$118,2,FALSE) -> Auxiliar administrativo | D28: 0.5 | F28: =VLOOKUP(A28,'Pessoal Sicro'!$A$6:$G$118,6,FALSE) -> 5069.9099 | H28: =F28*D28 -> 2534.95495
A29: P9842 | B29: =VLOOKUP(A29,'Pessoal Sicro'!$A$6:$G$118,2,FALSE) -> Faxineiro | D29: 0 | F29: =VLOOKUP(A29,'Pessoal Sicro'!$A$6:$G$118,6,FALSE) -> 4033.4643 | H29: =F29*D29 -> 0
F30: Subtotal do Item 1.4 | H30: =SUM(H28:I29) -> 2534.95495
H31: Total da Mão de Obra da Parcela Fixa | I31: =H30+H26+H18+H14 -> 31048.81723
A33: parcela fixa da administração local (veículos)
A34: Código | B34: Discriminação | C34: Unidade | D34: Quantidade | E34: Utilização Produtiva | F34: Utilização Improdutiva | G34: Custo Horário Produtivo (R$) | H34: Custo Horário Improdutivo (R$) | I34: Custo Total (R$)
A35: 2 | B35: Veículos
B36: Gerência Técnica
A37: 2.1 | B37: Geral
A38: E9093 | B38: =VLOOKUP(A38,Equipamentos!$A$4:$K$541,2,FALSE) -> Veículo leve - 53 kW (sem motorista) | C38: mês | D38: 1 | E38: 44 | F38: 176 | G38: =VLOOKUP(A38,Equipamentos!$A$4:$K$541,10,FALSE) -> 36.806 | H38: =VLOOKUP(A38,Equipamentos!$A$4:$K$541,11,FALSE) -> 6.6541 | I38: =((E38*G38)+(F38*H38))*D38 -> 2790.5856
A39: E9560 | B39: =VLOOKUP(A39,Equipamentos!$A$4:$K$541,2,FALSE) -> Ônibus com capacidade para 80 passageiros - 175 kW | C39: mês | D39: 0 | E39: 44 | F39: 176 | G39: =VLOOKUP(A39,Equipamentos!$A$4:$K$541,10,FALSE) -> 351.8554 | H39: =VLOOKUP(A39,Equipamentos!$A$4:$K$541,11,FALSE) -> 101.2075 | I39: =((E39*G39)+(F39*H39))*D39 -> 0
H40: Subtotal do Item 2 | I40: =SUM(I38:I39) -> 2790.5856
A41: 2.2 | B41: Auxiliar
A42: E9093 | B42: =VLOOKUP(A42,Equipamentos!$A$4:$K$541,2,FALSE) -> Veículo leve - 53 kW (sem motorista) | C42: mês | D42: 0 | E42: 44 | F42: 176 | G42: =VLOOKUP(A42,Equipamentos!$A$4:$K$541,10,FALSE) -> 36.806 | H42: =VLOOKUP(A42,Equipamentos!$A$4:$K$541,11,FALSE) -> 6.6541 | I42: =((E42*G42)+(F42*H42))*D42 -> 0
H43: Subtotal do Item 2 | I43: =SUM(I42) -> 0
A44: 2.3 | B44: Gerência Administrativa
A45: E9093 | B45: =VLOOKUP(A45,Equipamentos!$A$4:$K$541,2,FALSE) -> Veículo leve - 53 kW (sem motorista) | C45: mês | D45: 0 | E45: 44 | F45: 176 | G45: =VLOOKUP(A45,Equipamentos!$A$4:$K$541,10,FALSE) -> 36.806 | H45: =VLOOKUP(A45,Equipamentos!$A$4:$K$541,11,FALSE) -> 6.6541 | I45: =((E45*G45)+(F45*H45))*D45 -> 0
H46: Subtotal do Item 2 | I46: =I45 -> 0
H47: Total dos Veículos da Parcela Fixa | I47: =I46+I43+I40 -> 2790.5856
A49: Composição de custo da equipe de produção de terraplenagem
A50: Código | B50: Discriminação | C50: Unidade | D50: Quantidade | F50: Custo Unitário (R$) | H50: Custo Total (R$)
B51: Equipe de Produção de Terraplenagem
A52: 3.1 | B52: Mão de Obra
A53: P9811 | B53: =VLOOKUP(A53,'Pessoal Sicro'!$A$6:$G$118,2,FALSE) -> Encarregado especializado | D53: 1 | F53: =VLOOKUP(A53,'Pessoal Sicro'!$A$6:$G$118,6,FALSE) -> 8270.9705 | H53: =F53*D53 -> 8270.9705
F54: Subtotal do Item 3.1 | H54: =SUM(H53:H53) -> 8270.9705
A55: Código | B55: Discriminação | C55: Unidade | D55: Quantidade | E55: Utilização Produtiva | F55: Utilização Improdutiva | G55: Custo Horário Produtivo (R$) | H55: Custo Horário Improdutivo (R$) | I55: Custo Total (R$)
A56: 3.2 | B56: Veículos
A57: E9093 | B57: =VLOOKUP(A57,Equipamentos!$A$4:$K$541,2,FALSE) -> Veículo leve - 53 kW (sem motorista) | C57: mês | D57: 1 | E57: 44 | F57: 176 | G57: =VLOOKUP(A57,Equipamentos!$A$4:$K$541,10,FALSE) -> 36.806 | H57: =VLOOKUP(A57,Equipamentos!$A$4:$K$541,11,FALSE) -> 6.6541 | I57: =((E57*G57)+(F57*H57))*D57 -> 2790.5856
H58: Subtotal do Item 3.2 | I58: =SUM(I57:I57) -> 2790.5856
H59: Total da Equipe de Produção de Terraplenagem | I59: =I58+H54 -> 11061.5561
A61: Composição de custo da equipe de produção de pavimentação
A62: Código | B62: Discriminação | C62: Unidade | D62: Quantidade | F62: Custo Unitário (R$) | H62: Custo Total (R$)
B63: Equipe de Produção de Pavimentação
A64: 3.1 | B64: Mão de Obra
A65: P9811 | B65: =VLOOKUP(A65,'Pessoal Sicro'!$A$6:$G$118,2,FALSE) -> Encarregado especializado | D65: 1 | F65: =VLOOKUP(A65,'Pessoal Sicro'!$A$6:$G$118,6,FALSE) -> 8270.9705 | H65: =F65*D65 -> 8270.9705
F66: Subtotal do Item 3.1 | H66: =SUM(H65:H65) -> 8270.9705
A67: Código | B67: Discriminação | C67: Unidade | D67: Quantidade | E67: Utilização Produtiva | F67: Utilização Improdutiva | G67: Custo Horário Produtivo (R$) | H67: Custo Horário Improdutivo (R$) | I67: Custo Total (R$)
A68: 3.2 | B68: Veículos
A69: E9093 | B69: =VLOOKUP(A69,Equipamentos!$A$4:$K$541,2,FALSE) -> Veículo leve - 53 kW (sem motorista) | C69: mês | D69: 1 | E69: 44 | F69: 176 | G69: =VLOOKUP(A69,Equipamentos!$A$4:$K$541,10,FALSE) -> 36.806 | H69: =VLOOKUP(A69,Equipamentos!$A$4:$K$541,11,FALSE) -> 6.6541 | I69: =((E69*G69)+(F69*H69))*D69 -> 2790.5856
H70: Subtotal do Item 3.2 | I70: =SUM(I69:I69) -> 2790.5856
H71: Total da Equipe de Produção de Pavimentação | I71: =I70+H66 -> 11061.5561
A73: Composição de custo da equipe de produção de drenagem
A74: Código | B74: Discriminação | C74: Unidade | D74: Quantidade | F74: Custo Unitário (R$) | H74: Custo Total (R$)
B75: Equipe de Produção de Pavimentação
A76: 3.1 | B76: Mão de Obra
A77: P9811 | B77: =VLOOKUP(A77,'Pessoal Sicro'!$A$6:$G$118,2,FALSE) -> Encarregado especializado | D77: 1 | F77: =VLOOKUP(A77,'Pessoal Sicro'!$A$6:$G$118,6,FALSE) -> 8270.9705 | H77: =F77*D77 -> 8270.9705
F78: Subtotal do Item 3.1 | H78: =SUM(H77:H77) -> 8270.9705
A79: Código | B79: Discriminação | C79: Unidade | D79: Quantidade | E79: Utilização Produtiva | F79: Utilização Improdutiva | G79: Custo Horário Produtivo (R$) | H79: Custo Horário Improdutivo (R$) | I79: Custo Total (R$)
A80: 3.2 | B80: Veículos
A81: E9093 | B81: =VLOOKUP(A81,Equipamentos!$A$4:$K$541,2,FALSE) -> Veículo leve - 53 kW (sem motorista) | C81: mês | D81: 1 | E81: 44 | F81: 176 | G81: =VLOOKUP(A81,Equipamentos!$A$4:$K$541,10,FALSE) -> 36.806 | H81: =VLOOKUP(A81,Equipamentos!$A$4:$K$541,11,FALSE) -> 6.6541 | I81: =((E81*G81)+(F81*H81))*D81 -> 2790.5856
H82: Subtotal do Item 3.2 | I82: =SUM(I81:I81) -> 2790.5856
H83: Total da Equipe de Produção de Pavimentação | I83: =I82+H78 -> 11061.5561
A85: Composição de custo da equipe de produção de sinalização
A86: Código | B86: Discriminação | C86: Unidade | D86: Quantidade | F86: Custo Unitário (R$) | H86: Custo Total (R$)
B87: Equipe de Produção de Pavimentação
A88: 3.1 | B88: Mão de Obra
A89: P9811 | B89: =VLOOKUP(A89,'Pessoal Sicro'!$A$6:$G$118,2,FALSE) -> Encarregado especializado | D89: 0.5 | F89: =VLOOKUP(A89,'Pessoal Sicro'!$A$6:$G$118,6,FALSE) -> 8270.9705 | H89: =F89*D89 -> 4135.48525
F90: Subtotal do Item 3.1 | H90: =SUM(H89:H89) -> 4135.48525
A91: Código | B91: Discriminação | C91: Unidade | D91: Quantidade | E91: Utilização Produtiva | F91: Utilização Improdutiva | G91: Custo Horário Produtivo (R$) | H91: Custo Horário Improdutivo (R$) | I91: Custo Total (R$)
A92: 3.2 | B92: Veículos
A93: E9093 | B93: =VLOOKUP(A93,Equipamentos!$A$4:$K$541,2,FALSE) -> Veículo leve - 53 kW (sem motorista) | C93: mês | D93: 0.5 | E93: 44 | F93: 176 | G93: =VLOOKUP(A93,Equipamentos!$A$4:$K$541,10,FALSE) -> 36.806 | H93: =VLOOKUP(A93,Equipamentos!$A$4:$K$541,11,FALSE) -> 6.6541 | I93: =((E93*G93)+(F93*H93))*D93 -> 1395.2928
H94: Subtotal do Item 3.2 | I94: =SUM(I93:I93) -> 1395.2928
H95: Total da Equipe de Produção de Pavimentação | I95: =I94+H90 -> 5530.77805
A97: Composição de custo da equipe topografia
A98: Código | B98: Discriminação | C98: Unidade | D98: Quantidade | F98: Custo Unitário (R$) | H98: Custo Total (R$)
B99: Equipe de Topografia
A100: 3.1 | B100: Mão de Obra
A101: P9949 | B101: =VLOOKUP(A101,'Pessoal Sicro'!$A$6:$G$118,2,FALSE) -> Topógrafo | D101: 1 | F101: =VLOOKUP(A101,'Pessoal Sicro'!$A$6:$G$118,6,FALSE) -> 8757.2734 | H101: =F101*D101 -> 8757.2734
A102: P9950 | B102: =VLOOKUP(A102,'Pessoal Sicro'!$A$6:$G$118,2,FALSE) -> Auxiliar de topografia | D102: 1 | F102: =VLOOKUP(A102,'Pessoal Sicro'!$A$6:$G$118,6,FALSE) -> 5667.1287 | H102: =F102*D102 -> 5667.1287
F103: Subtotal do Item 3.1 | H103: =SUM(H101:I102) -> 14424.4021
A104: Código | B104: Discriminação | C104: Unidade | D104: Quantidade | E104: Utilização Produtiva | F104: Utilização Improdutiva | G104: Custo Horário Produtivo (R$) | H104: Custo Horário Improdutivo (R$) | I104: Custo Total (R$)
A105: 3.2 | B105: Veículos
A106: E9093 | B106: =VLOOKUP(A106,Equipamentos!$A$4:$K$541,2,FALSE) -> Veículo leve - 53 kW (sem motorista) | C106: mês | D106: 1 | E106: 44 | F106: 176 | G106: =VLOOKUP(A106,Equipamentos!$A$4:$K$541,10,FALSE) -> 36.806 | H106: =VLOOKUP(A106,Equipamentos!$A$4:$K$541,11,FALSE) -> 6.6541 | I106: =((E106*G106)+(F106*H106))*D106 -> 2790.5856
H107: Subtotal do Item 3.2 | I107: =SUM(I106:I106) -> 2790.5856
H108: Total da Equipe de Produção de Topografia | I108: =I107+H103 -> 17214.9877
A110: Composição de custo do setor de medicina e segurança do trabalho
A111: Código | B111: Discriminação | C111: Unidade | D111: Quantidade | F111: Custo Unitário (R$) | H111: Custo Total (R$)
A112: 4 | B112: Setor de Medicina e Segurança do Trabalho
A113: P9876 | B113: =VLOOKUP(A113,'Pessoal Sicro'!$A$6:$G$118,2,FALSE) -> Técnico de segurança do trabalho | D113: 1 | F113: =VLOOKUP(A113,'Pessoal Sicro'!$A$6:$G$118,6,FALSE) -> 7298.4723 | H113: =F113*D113 -> 7298.4723
A114: P9864 | B114: =VLOOKUP(A114,'Pessoal Sicro'!$A$6:$G$118,2,FALSE) -> Engenheiro de segurança do trabalho | D114: 0 | F114: =VLOOKUP(A114,'Pessoal Sicro'!$A$6:$G$118,6,FALSE) -> 24420.804 | H114: =F114*D114 -> 0
A115: P9851 | B115: =VLOOKUP(A115,'Pessoal Sicro'!$A$6:$G$118,2,FALSE) -> Médico do trabalho | D115: 0 | F115: =VLOOKUP(A115,'Pessoal Sicro'!$A$6:$G$118,6,FALSE) -> 18575.8219 | H115: =F115*D115 -> 0
A116: P9951 | B116: =VLOOKUP(A116,'Pessoal Sicro'!$A$6:$G$118,2,FALSE) -> Médico de câmara hiperbárica | D116: 0 | F116: =VLOOKUP(A116,'Pessoal Sicro'!$A$6:$G$118,6,FALSE) -> 21148.057 | H116: =F116*D116 -> 0
F117: Subtotal do Item 4 | H117: =SUM(H113:I116) -> 7298.4723
A119: Parcela Variável - Composição de custo da equipe de frente de serviço
A120: Código | B120: Discriminação | C120: Unidade | D120: Quantidade | F120: Custo Unitário (R$) | H120: Custo Total (R$)
A121: 5 | B121: Equipe de Frente de Serviço | C121: equipexmês
A122: P9875 | B122: =VLOOKUP(A122,'Pessoal Sicro'!$A$6:$G$118,2,FALSE) -> Encarregado de turma | D122: 1 | F122: =VLOOKUP(A122,'Pessoal Sicro'!$A$6:$G$118,6,FALSE) -> 5828.315 | H122: =F122*D122 -> 5828.315
A123: P9804 | B123: =VLOOKUP(A123,'Pessoal Sicro'!$A$6:$G$118,2,FALSE) -> Apontador | D123: 0.5 | F123: =VLOOKUP(A123,'Pessoal Sicro'!$A$6:$G$118,6,FALSE) -> 5108.5086 | H123: =F123*D123 -> 2554.2543
F124: Subtotal do Item 5 | H124: =SUM(H122:I123) -> 8382.5693
A126: Parcela Variável - Composição de custo da equipe de frente de serviço (Terraplenagem) - Somente Compactação
A127: Código | B127: Discriminação | C127: Unidade | D127: Quantidade | F127: Produção Horária (und/h) | H127: Efs
A128: 5.1 | B128: Equipe de Frente de Serviço | C128: equipexmês
C129: mês | F129: 1 | H129: =(D129)/(F129*182.49) -> 0
C130: mês | F130: 1 | H130: =(D130)/(F130*182.49) -> 0
C131: mês | F131: 1 | H131: =(D131)/(F131*182.49) -> 0
F132: Total de Equipes para Terraplenagem | H132: =SUM(H131:I131) -> 0
A134: Parcela Variável - Composição de custo da acompanhamento das frentes de serviço de pavimentação
A135: Código | B135: Discriminação | C135: Unidade | D135: Quantidade | F135: Produção Horária (und/h) | H135: Efs
A136: 5.2 | B136: Equipe de Frente de Serviço | C136: equipe x mês
A137: 711 | B137: Bloquete/piso intertravado de concreto - modelo sextavado / hexagonal, *25 x 25* cm, e = 6 cm, resistencia de 35 mpa, cor natural | C137: ='MODULO MINIMO Prop'!I23 -> m² | D137: ='MODULO MINIMO Prop'!J23 -> 14053.2 | F137: 99.6 | H137: =(D137)/(F137*182.49) -> 0.7731732453
A138: CPU - 05 | B138: Execução de pavimento em piso intertravado, com bloco sextavado de 25 x 25 cm, espessura 6 cm. af_10/2022. Areia e pó de pedra comerciais | C138: ='MODULO MINIMO Prop'!I24 -> m² | D138: ='MODULO MINIMO Prop'!J24 -> 14000 | F138: 1125 | H138: =(D138)/(F138*182.49) -> 0.06819247326
A139: 5915014 | B139: =VLOOKUP(A139,'SINTÉTICO SICRO'!A:D,2,0) -> Transporte com caminhão carroceria com capacidade de 11,5 t e com guindauto com capacidade de elevação de 11,9 t - rodovia pavimentada | C139: ='MODULO MINIMO Prop'!I25 -> tkm | D139: ='MODULO MINIMO Prop'!J25 -> 92400 | F139: 1500 | H139: 0.3375527426
A140: 5915321 | B140: =VLOOKUP(A140,'SINTÉTICO SICRO'!A:D,2,0) -> Transporte com caminhão basculante de 14 m³ - rodovia pavimentada | C140: ='MODULO MINIMO Prop'!I26 -> tkm | D140: ='MODULO MINIMO Prop'!J26 -> 0 | F140: 120.7 | H140: 0
A141: 5915321 | B141: =VLOOKUP(A141,'SINTÉTICO SICRO'!A:D,2,0) -> Transporte com caminhão basculante de 14 m³ - rodovia pavimentada | C141: ='MODULO MINIMO Prop'!I27 -> tkm | D141: ='MODULO MINIMO Prop'!J27 -> 0 | F141: 120.7 | H141: 0
A142: ='SINTÉTICO SICRO'!A4317 -> 3713702 | B142: =VLOOKUP(A142,'SINTÉTICO SICRO'!A:D,2,0) -> Fornecimento e implantação de amortecedor retrátil (v <= 100 km/h) tipo TAU II afunilado - fixado em barreira de concreto, com largura de âncora traseira de 2.440 mm | C142: ='MODULO MINIMO Prop'!I28 -> m³ | D142: ='MODULO MINIMO Prop'!J28 -> 2100 | F142: 120.7 | H142: 0.09533951833
A143: 4011209 | B143: =VLOOKUP(A143,'SINTÉTICO SICRO'!A:D,2,0) -> Regularização do subleito - 100% Proctor intermediário | C143: ='MODULO MINIMO Prop'!I29 -> m² | D143: ='MODULO MINIMO Prop'!J29 -> 14000 | F143: 1121.33 | H143: 0.06841566034
F144: Total de Equipes para Pavimentação | H144: =SUM(H137:I143) -> 1.34267364
A146: Parcela Variável - Composição de custo da acompanhamento das frentes de serviço de drenagem
A147: Código | B147: Discriminação | C147: Unidade | D147: Quantidade | F147: Efsdu | H147: Efs
A148: 5.3 | B148: Frentes de Serviço para Drenagem | C148: equipe x mês
A149: 2003377 | B149: =VLOOKUP(A149,'SINTÉTICO SICRO'!$A$4:$D$6373,2,0) -> Meio-fio de concreto - MFC 05 - areia e brita comerciais - fôrma de madeira | C149: m | D149: ='MODULO MINIMO Prop'!J36 -> 4000 | F149: 0.00021 | H149: =D149*F149 -> 0.84
F150: Total de Equipes para Drenagem | H150: =H149 -> 0.84
A152: Parcela Variável - Composição de custo da acompanhamento das frentes de serviço de sinalização
A153: Código | B153: Discriminação | C153: Unidade | D153: Quantidade | F153: Produção Horária (und/h) | H153: Efs
A154: 5.4 | B154: Frentes de Serviço para Sinalização | C154: equipe x mês
A155: 5213440 | B155: =VLOOKUP(A155,'SINTÉTICO SICRO'!$A$4:$D$6373,2,0) -> Placa de regulamentação em aço D = 0,60 m - película retrorrefletiva tipo I + SI - fornecimento e implantação | C155: ='MODULO MINIMO Prop'!I31 -> und | D155: ='MODULO MINIMO Prop'!J31 -> 6 | F155: 3 | H155: =0.2*((D155)/(F155*182.49)) -> 0.002191900926
A156: 5213464 | B156: =VLOOKUP(A156,'SINTÉTICO SICRO'!$A$4:$D$6373,2,0) -> Placa de advertência em aço, lado de 0,60 m - película retrorrefletiva tipo I + SI - fornecimento e implantação | C156: ='MODULO MINIMO Prop'!I32 -> und | D156: ='MODULO MINIMO Prop'!J32 -> 6 | F156: 4.1 | H156: =0.2*((D156)/(F156*182.49)) -> 0.001603829946
A157: 5213863 | B157: =VLOOKUP(A157,'SINTÉTICO SICRO'!$A$4:$D$6373,2,0) -> Suporte metálico galvanizado para placa de advertência ou regulamentação - lado ou diâmetro de 0,60 m - fornecimento e implantação | C157: ='MODULO MINIMO Prop'!I33 -> und | D157: ='MODULO MINIMO Prop'!J33 -> 12 | F157: 4.1 | H157: =0.2*((D157)/(F157*182.49)) -> 0.003207659892
A158: 5213400 | B158: =VLOOKUP(A158,'SINTÉTICO SICRO'!$A$4:$D$6373,2,0) -> Pintura de faixa com tinta acrílica - espessura de 0,4 mm | C158: ='MODULO MINIMO Prop'!I34 -> m² | D158: ='MODULO MINIMO Prop'!J34 -> 600 | F158: 177.07 | H158: =0.2*((D158)/(F158*182.49)) -> 0.003713617653
F159: Total de Equipes para Sinalização | H159: =SUM(H155:I158) -> 0.01071700842
A161: 3. PARCELA VARIÁVEL - EQUIPE DE CONTROLE TECNOLÓGICO
A162: LABORATÓRIO DE SOLOS
A163: Item | B163: Discriminação | F163: Unidade | G163: Quantidade | H163: Custo Unitário (R$) | I163: Custo Total (R$)
B164: Laboratório de Solos (equipe x mês)
B165: Mão de Obra
A166: P9858 | B166: =VLOOKUP(A166,'Pessoal Sicro'!$A$6:$G$118,2,FALSE) -> Laboratorista | F166: func./mês | G166: 1 | H166: =VLOOKUP(A166,'Pessoal Sicro'!$A$6:$G$118,6,FALSE) -> 7399.543 | I166: =TRUNC(G166*H166,2) -> 7399.54
A167: P9833 | B167: =VLOOKUP(A167,'Pessoal Sicro'!$A$6:$G$118,2,FALSE) -> Auxiliar de laboratório | F167: func./mês | G167: 1 | H167: =VLOOKUP(A167,'Pessoal Sicro'!$A$6:$G$118,6,FALSE) -> 5646.9455 | I167: =TRUNC(G167*H167,2) -> 5646.94
H168: Subtotal do Item | I168: =SUM(I166:I167) -> 13046.48
A169: Item | B169: Discriminação | C169: Und | D169: Quant | E169: Utilização Produtiva | F169: Utilização Improdutiva | G169: Horário Produtivo (R$) | H169: Horário Improdutivo (R$) | I169: Total (R$)
B170: Equipe de Controle Tecnológico
B171: Veículos
A172: E9125 | B172: =VLOOKUP(A172,Equipamentos!$A$4:$K$533,2,FALSE) -> Veículo tipo van furgão com capacidade de 1,38 t - 100 kW | C172: veic./mês | D172: 0.5 | E172: 44 | F172: 176 | G172: =VLOOKUP(A172,Equipamentos!$A$4:$K$533,10,0) -> 86.9558 | H172: =VLOOKUP(A172,Equipamentos!$A$4:$K$533,11,FALSE) -> 47.8666 | I172: =D172*((E172*G172)+(F172*H172)) -> 6125.2884
H173: Subtotal do Item | I173: =SUM(I172:I172) -> 6125.2884
H174: Total da Equipe do Laboratório de Solos | I174: =I168+I173 -> 19171.7684
A176: 3. PARCELA VARIÁVEL - EQUIPE DE CONTROLE TECNOLÓGICO
A177: LABORATÓRIO DE CONCRETO
A178: Item | B178: Discriminação | F178: Unidade | G178: Quantidade | H178: Custo Unitário (R$) | I178: Custo Total (R$)
B179: Laboratório de Solos (equipe x mês)
B180: Mão de Obra
A181: P9858 | B181: =VLOOKUP(A181,'Pessoal Sicro'!$A$6:$G$118,2,FALSE) -> Laboratorista | F181: func./mês | G181: 0.5 | H181: =VLOOKUP(A181,'Pessoal Sicro'!$A$6:$G$118,6,FALSE) -> 7399.543 | I181: =TRUNC(G181*H181,2) -> 3699.77
A182: P9833 | B182: =VLOOKUP(A182,'Pessoal Sicro'!$A$6:$G$118,2,FALSE) -> Auxiliar de laboratório | F182: func./mês | G182: 0.5 | H182: =VLOOKUP(A182,'Pessoal Sicro'!$A$6:$G$118,6,FALSE) -> 5646.9455 | I182: =TRUNC(G182*H182,2) -> 2823.47
H183: Subtotal do Item | I183: =SUM(I181:I182) -> 6523.24
A184: Item | B184: Discriminação | C184: Und | D184: Quant | E184: Utilização Produtiva | F184: Utilização Improdutiva | G184: Horário Produtivo (R$) | H184: Horário Improdutivo (R$) | I184: Total (R$)
B185: Equipe de Controle Tecnológico
B186: Veículos
A187: E9125 | B187: =VLOOKUP(A187,Equipamentos!$A$4:$K$533,2,FALSE) -> Veículo tipo van furgão com capacidade de 1,38 t - 100 kW | C187: veic./mês | D187: 0.5 | E187: 44 | F187: 176 | G187: =VLOOKUP(A187,Equipamentos!$A$4:$K$533,10,0) -> 86.9558 | H187: =VLOOKUP(A187,Equipamentos!$A$4:$K$533,11,FALSE) -> 47.8666 | I187: =D187*((E187*G187)+(F187*H187)) -> 6125.2884
H188: Subtotal do Item | I188: =SUM(I187:I187) -> 6125.2884
H189: Total da Equipe do Laboratório de Concreto | I189: =I183+I188 -> 12648.5284
A191: Equipes de laboratório de solos para pavimentação
A192: Item | B192: Discriminação | F192: Und | G192: Quant | H192: QE | I192: Els
A193: 4011219 | B193: =VLOOKUP(A193,'SINTÉTICO SICRO'!$A:$D,2,0) -> Base de solo estabilizado granulometricamente sem mistura com material de jazida - 100% Proctor modificado | C193: =VLOOKUP(#REF!,'SINTÉTICO SICRO'!$A:$D,3,0) ->  | D193: =VLOOKUP(#REF!,'SINTÉTICO SICRO'!$A:$D,3,0) ->  | E193: =VLOOKUP(#REF!,'SINTÉTICO SICRO'!$A:$D,3,0) ->  | F193: =VLOOKUP(A193,'SINTÉTICO SICRO'!$A:$D,3,0) -> m³ | G193: ='MODULO MINIMO Prop'!J28 -> 2100 | H193: 21900 | I193: =G193/H193 -> 0.09589041096
H194: Total de equipes de Laboratório de Solos para Pavimentação | I194: =I193 -> 0.09589041096
A196: Equipes de laboratório de Concreto
A197: Item | B197: Discriminação | F197: Und | G197: Quant | H197: QE | I197: Ela
A198: ='MODULO MINIMO Prop'!D23 -> 711 | B198: Bloquete/piso intertravado de concreto - modelo sextavado / hexagonal, *25 x 25* cm, e = 6 cm, resistencia de 35 mpa, cor natural | F198: ='MODULO MINIMO Prop'!I23 -> m² | G198: ='MODULO MINIMO Prop'!J23 -> 14053.2 | H198: 9000 | I198: =G198/H198 -> 1.561466667
H199: Total de equipes de Laboratório de Concreto | I199: =SUM(I198:I198) -> 1.561466667
A201: manutenção do canteiro de obras e acampamentos
A202: Código | B202: Discriminação | C202: Unidade | D202: Quantidade | F202: Custo Unitário (R$) | H202: Custo Total (R$)
B203: Manutenção do Canteiro de Obras e Acampamentos
A204: 6.1 | B204: Mão de Obra
A205: P9952 | B205: =VLOOKUP(A205,'Pessoal Sicro'!$A$6:$G$118,2,FALSE) -> Pedreiro - mensalista | C205: mês | D205: 0 | F205: =VLOOKUP(A205,'Pessoal Sicro'!$A$6:$G$118,6,FALSE) -> 5108.1604 | H205: =F205*D205 -> 0
A206: P9954 | B206: =VLOOKUP(A206,'Pessoal Sicro'!$A$6:$G$118,2,FALSE) -> Servente - mensalista | C206: mês | D206: 0 | F206: =VLOOKUP(A206,'Pessoal Sicro'!$A$6:$G$118,6,FALSE) -> 3953.259 | H206: =F206*D206 -> 0
A207: P9953 | B207: =VLOOKUP(A207,'Pessoal Sicro'!$A$6:$G$118,2,FALSE) -> Eletricista - mensalista | C207: mês | D207: 0 | F207: =VLOOKUP(A207,'Pessoal Sicro'!$A$6:$G$118,6,FALSE) -> 5593.9461 | H207: =F207*D207 -> 0
F208: Subtotal do Item 6.1 | H208: =SUM(H205:I207) -> 0
A210: Código | B210: Discriminação | C210: Unidade | D210: Quantidade | F210: Custo Produtivo (R$) | H210: Custo Total (R$)
A211: 6.2 | B211: Equipamentos
B212: Caminhão guindauto de 6 toneladas | C212: h/mês | D212: 0 | H212: =F212*D212 -> 0
B213: Caminhão tanque de 8.000 litros | C213: h/mês | D213: 0 | H213: =F213*D213 -> 0
A214: E9524 | B214: =VLOOKUP(A214,Equipamentos!A4:K541,2,FALSE) -> Motoniveladora - 93 kW | C214: h/mês | D214: 0 | F214: =VLOOKUP(A214,Equipamentos!A4:K541,10,FALSE) -> 282.1718 | H214: =F214*D214 -> 0
F215: Subtotal do Item 6.2 | H215: =SUM(H212:I214) -> 0
G216: Total da Manutenção do Canteiro de Obras e Acampamentos | H216: =H215+H208 -> 0
A220: Resumo das parcelas de administração local
A221: Código | B221: Discriminação | C221: Unidade | D221: Quantidade | F221: Custo Unitário (R$) | H221: Custo Total (R$)
B222: Parcela Fixa
B223: Mão de Obra | C223: mês | D223: 5 | F223: =H14+H18+H26+H30 -> 31048.81722 | H223: =F223*D223 -> 155244.0861
B224: Veículos | C224: mês | D224: 5 | F224: =I47 -> 2790.5856 | H224: =F224*D224 -> 13952.928
... 30 more rows

Sheet Projeto Executivo
A4: COMPOSIÇAO PREÇO PROJETO EXECUTIVO
A6: DISCRIMINAÇAO | F6: Pr. Unit. | G6: Pr. Total
A8: A· EOUIPE TECNICA | G8: =G9+G12 -> 22139.3163
B9: A. 1 - Pessoal de Nível Superior | C9: Unidade | D9: Quantitativo | E9: SICRO e Rel.Custos Gerais | G9: =G10+G11 -> 16963.4039
B10: Engenheiro | C10: mês | D10: 0.5 | E10: P9812 | F10: =VLOOKUP(E10,'Pessoal Sicro'!$A:$G,6,FALSE) -> 25169.5344 | G10: =F10*D10 -> 12584.7672
B11: Topógrafo | C11: mês | D11: 0.5 | E11: P9949 | F11: =VLOOKUP(E11,'Pessoal Sicro'!$A:$G,6,FALSE) -> 8757.2734 | G11: =F11*D11 -> 4378.6367
B12: A.2 - Pessoal de Nível Técnico e Aux. | G12: =G13+G14 -> 5175.9124
B13: Auxiliar de topógrafo | C13: mês | D13: 0.5 | E13: P9950 | F13: =VLOOKUP(E13,'Pessoal Sicro'!$A:$G,6,FALSE) -> 5667.1287 | G13: =F13*D13 -> 2833.56435
B14: Auxiliar Técnico/Assistente de Engenharia | C14: mês | D14: 0.5 | E14: P9903 | F14: =VLOOKUP(E14,'Pessoal Sicro'!$A:$G,6,FALSE) -> 4684.6961 | G14: =F14*D14 -> 2342.34805
A15: B - ENCARGOS SOCIAIS | G15: =G16 -> 0
B16: =CONCATENATE("Taxas ",'ENC. SOCIAIS'!E51,"%") -> Taxas 112,73% | C16: JÁ INCLUSAS EM "A"
A17: C - DESPESAS GERAIS | G17: =G18+G20+G19 -> 13210.55399
B18: C.1 - MATERIAIS DE CONSUMO | C18: Estimativa % como referência de equipe técnica com encargos sociais | D18: 0.03 | F18: =G8+G16 -> 22139.3163 | G18: =F18*D18 -> 664.179489
B19: C.2 - VEÍCULOS (Veículo leve picape 4 x 4 com capacidade de 1,10 t - 147 kW) | C19: h | D19: 110 | E19: E9684 | F19: =VLOOKUP(E19,Equipamentos!A:K,10,0) -> 110.1583 | G19: =F19*D19 -> 12117.413
B20: C.3 - Estação total eletrônica com alcance máximo de 3.000 m | C20: h | D20: 55 | E20: E9553 | F20: =VLOOKUP(E20,Equipamentos!A:K,10,0) -> 7.7993 | G20: =F20*D20 -> 428.9615
A21: D - ENSAIOS | G21: =SUM(G22:G24) -> 8252.67425
B22: Laboratorista | C22: mês | D22: 0.5 | E22: P9858 | F22: =VLOOKUP(E22,'Pessoal Sicro'!A:G,6,0) -> 7399.543 | G22: =F22*D22 -> 3699.7715
B23: Auxiliar de Laboratório | C23: mês | D23: 0.5 | E23: P9833 | F23: =VLOOKUP(E23,'Pessoal Sicro'!A:G,6,0) -> 5646.9455 | G23: =F23*D23 -> 2823.47275
B24: Laboratório de solos | C24: mês | D24: 0.5 | E24: B8957 | F24: =VLOOKUP(E24,'Tabelas 1 e 2'!C14:G23,5,0) -> 3458.86 | G24: =F24*D24 -> 1729.43
A25: I - SOMA (A+B+C+D) | G25: =G8+G15+G17+G21 -> 43602.54454
A26: II - CUSTOS ADMINISTRATIVOS | D26: =BDI!C17 -> 0.2339 | G26: =D26*G25 -> 10198.63517
A27: TOTAL | G27: =G25+G26 -> 53801.17971
F28: Por m²: | G28: =G27/('MC MODULO'!C1*'MC MODULO'!C2) -> 3.842941408
E30: Desconto aplicado: | G30: =G28*CAPA!D13 -> 0
E31: Valor total com BDI após o desconto: | G31: =TRUNC(G28-G30,2) -> 3.84

Sheet CPU CODEVASF
A4: ='MODULO MINIMO Prop'!B1 -> EXECUÇÃO DE SERVIÇOS DE IMPLANTAÇÃO DE PAVIMENTAÇÃO EM BLOCO DE CONCRETO INTERTRAVADO, EM VIAS DE MUNICÍPIOS DIVERSOS INSERIDOS NA ÁREA DE ATUAÇÃO DA CODEVASF, NO ESTADO MARANHÃO
F5: BDI %: | G5: =BDI!$C$17 -> 0.2339
E6: Encargos Sociais: | G6: Horista | H6: Mensalista
G7: 1.1273 | H7: 0.7019
A8: COMPOSIÇÕES DE CUSTO UNITARIO
A9: CPU-02 | B9: CODEVASF | D9: Correção de vazamentos no ramal na rua sem pavimento com fornecimento do material hidráulico | E9: m | F9: COEF. | G9: PRECO UNITÁRIO (R$) | H9: TOTAL (R$)
A11: SICRO | B11: SICRO | C11: P9824 | D11: =VLOOKUP(C11,'Pessoal Sicro'!$A$6:$F$106,2,FALSE) -> Servente | E11: H | F11: 0.2 | G11: =VLOOKUP(C11,'Pessoal Sicro'!$A$6:$F$106,6,FALSE) -> 21.3406 | H11: =F11*G11 -> 4.26812 | I11: ok
A12: SICRO | B12: SICRO | C12: P9807 | D12: =VLOOKUP(C12,'Pessoal Sicro'!$A$6:$F$106,2,FALSE) -> Bombeiro hidráulico | E12: H | F12: 0.1 | G12: =VLOOKUP(C12,'Pessoal Sicro'!$A$6:$F$106,6,FALSE) -> 31.3343 | H12: 3.13343 | I12: ok
A13: INS. SINAPI | B13: SINAPI | C13: 9867 | D13: =VLOOKUP(C13,'INSUMOS SINAPI'!$A$8:$E$4879,2,FALSE) -> TUBO PVC, SOLDAVEL, DE 20 MM, AGUA FRIA (NBR-5648) | E13: m | F13: 1 | G13: =VLOOKUP(C13,'INSUMOS SINAPI'!$A$8:$E$4879,5,FALSE) -> 3.61 | H13: 3.61
A14: INSUMO | B14: SINAPI | C14: 45245 | D14: =VLOOKUP(C14,'INSUMOS SINAPI'!$A$8:$E$4879,2,FALSE) -> ARCO DE SERRA REGULAVEL PARA LAMINAS DE 8" A 12" | E14: un | F14: 0.1 | G14: =VLOOKUP(C14,'INSUMOS SINAPI'!$A$8:$E$4879,5,FALSE) -> 45.22 | H14: 4.522
A15: INS. SINAPI | B15: SINAPI | C15: 3859 | D15: =VLOOKUP(C15,'INSUMOS SINAPI'!$A$8:$E$4879,2,FALSE) -> LUVA SOLDAVEL COM ROSCA, PVC, 20 MM X 1/2", PARA AGUA FRIA PREDIAL | E15: un | F15: 2 | G15: =VLOOKUP(C15,'INSUMOS SINAPI'!$A$8:$E$4879,5,FALSE) -> 1.3 | H15: 2.6
E16: Sub total: | H16: =SUM(H11:H15) -> 18.13355
F17: BDI | G17: =BDI!$C$17 -> 0.2339 | H17: =H16*G17 -> 4.241437345
G18: Total Serviços: | H18: =H16+H17 -> 22.37498735
E19: =A9 -> CPU-02 | F19: PREÇO UNITÁRIO TOTAL: | H19: =H18 -> 22.37498735 | I19: =H16 -> 18.13355
F20: DESCONTO APLICADO: | H20: =H19*CAPA!$D$13 -> 0
D21: PREÇO UNITÁRIO COM BDI APÓS O DESCONTO: | H21: =(H19-H20) -> 22.37498735
A23: CPU-04 | B23: CODEVASF | D23: CONTROLE TECNOLÓGICO - PROJETO | E23: m² | F23: COEF. | G23: PRECO UNITÁRIO (R$) | H23: TOTAL (R$)
A25: Insumo | B25: SICRO | C25: P9858 | D25: =VLOOKUP(C25,'Pessoal Sicro'!$A$6:$F$106,2,FALSE) -> Laboratorista | E25: mês | F25: =0.15/14000 -> 1.071428571e-05 | G25: =VLOOKUP(C25,'Pessoal Sicro'!$A$6:$F$106,6,FALSE) -> 7399.543 | H25: =F25*G25 -> 0.07928081786
A26: Composição | B26: SICRO | C26: P9833 | D26: =VLOOKUP(C26,'Pessoal Sicro'!$A$6:$F$106,2,FALSE) -> Auxiliar de laboratório | E26: mês | F26: =0.15/14000 -> 1.071428571e-05 | G26: =VLOOKUP(C26,'Pessoal Sicro'!$A$6:$F$106,6,FALSE) -> 5646.9455 | H26: 0.0605029875
A27: Composição | B27: SICRO | C27: B8957 | D27: =VLOOKUP(C27,'Tabelas 1 e 2'!$C$16:$G$26,2,FALSE) -> Laboratório de solos | E27: mês | F27: 1.071428571e-05 | G27: =VLOOKUP(C27,'Tabelas 1 e 2'!$C$16:$G$26,5,FALSE) -> 3458.86 | H27: 0.03705921429
A28: Composição | B28: SICRO | C28: B8956 | D28: =VLOOKUP(C28,'Tabelas 1 e 2'!$C$16:$G$26,2,FALSE) -> Laboratório de concreto | E28: mês | F28: 1.071428571e-05 | G28: =VLOOKUP(C28,'Tabelas 1 e 2'!$C$16:$G$26,5,FALSE) -> 4533.32 | H28: 0.04857128571
B29: *Relatório de Custos Gerais do DNIT, página 1 | D29: ='SINTÉTICO SICRO'!A4317 -> 3713702 | E29: Sub total: | H29: =SUM(H25:H28) -> 0.2254143054
F30: BDI | G30: =BDI!$C$17 -> 0.2339 | H30: =H29*G30 -> 0.05272440602
E31: CPU-20 | F31: PREÇO UNITÁRIO TOTAL: | H31: =H29+H30 -> 0.2781387114 | I31: =H29 -> 0.2254143054
F32: DESCONTO APLICADO: | H32: =H31*CAPA!$D$13 -> 0
D33: PREÇO UNITÁRIO COM BDI APÓS O DESCONTO: | H33: =(H31-H32) -> 0.2781387114
A35: CPU-05 | B35: CODEVASF | D35: EXECUÇÃO DE PAVIMENTO EM PISO INTERTRAVADO, COM BLOCO SEXTAVADO DE 25 X 25 CM, ESPESSURA 6 CM. AF_10/2022 | E35: m² | F35: COEF. | G35: PRECO UNITÁRIO (R$) | H35: TOTAL (R$)
A37: Insumo | B37: SICRO | C37: M0028 | D37: =VLOOKUP(C37,'Material Sicro '!$A$4:$D$1677,2,FALSE) -> Areia média | E37: m³ | F37: 0.0568 | G37: =VLOOKUP(C37,'Material Sicro '!$A$4:$D$1677,4,FALSE) -> 97.3514 | H37: =ROUND(ROUND(F37,5)*ROUND(G37,2),2) -> 5.53
A38: Insumo | B38: SICRO | C38: M1135 | D38: =VLOOKUP(C38,'Material Sicro '!$A$4:$D$1677,2,FALSE) -> Pó de pedra | E38: m³ | F38: 0.0066 | G38: =VLOOKUP(C38,'Material Sicro '!$A$4:$D$1677,4,FALSE) -> 150.4541 | H38: =ROUND(ROUND(F38,5)*ROUND(G38,2),2) -> 0.99
A39: Insumo | B39: SINAPI | C39: 711 | D39: =VLOOKUP(C39,'INSUMOS SINAPI'!$A$8:$E$4879,2,FALSE) -> BLOQUETE/PISO INTERTRAVADO DE CONCRETO - MODELO SEXTAVADO / HEXAGONAL, *25 X 25* CM, E = 6 CM, RESISTENCIA DE 35 MPA, COR NATURAL | E39: m² | F39: 1.0038 | G39: 0 | H39: 0 | I39: Insumo retirado da composição e inserido a parte na planilha
A40: Composição | B40: SINAPI | C40: 88260 | D40: =VLOOKUP(C40,'COMP Sint. Sinapi'!$B$11:$E$9733,2,FALSE) -> CALCETEIRO COM ENCARGOS COMPLEMENTARES | E40: H | F40: 0.1239 | G40: =VLOOKUP(C40,'COMP Sint. Sinapi'!$B$11:$E$9733,4,FALSE) -> 28.69 | H40: 3.55
A41: Composição | B41: SINAPI | C41: 88316 | D41: =VLOOKUP(C41,'COMP Sint. Sinapi'!$B$11:$E$9733,2,FALSE) -> SERVENTE COM ENCARGOS COMPLEMENTARES | E41: H | F41: 0.1239 | G41: =VLOOKUP(C41,'COMP Sint. Sinapi'!$B$11:$E$9733,4,FALSE) -> 23.32 | H41: 2.89
A42: Composição | B42: SINAPI | C42: 91277 | D42: =VLOOKUP(C42,'COMP Sint. Sinapi'!$B$11:$E$9733,2,FALSE) -> PLACA VIBRATÓRIA REVERSÍVEL COM MOTOR 4 TEMPOS A GASOLINA, FORÇA CENTRÍFUGA DE 25 KN (2500 KGF), POTÊNCIA 5,5 CV - CHP DIURNO. AF_08/2015 | E42: CHP | F42: 0.0041 | G42: =VLOOKUP(C42,'COMP Sint. Sinapi'!$B$11:$E$9733,4,FALSE) -> 9.94 | H42: 0.04
A43: Composição | B43: SINAPI | C43: 91278 | D43: =VLOOKUP(C43,'COMP Sint. Sinapi'!$B$11:$E$9733,2,FALSE) -> PLACA VIBRATÓRIA REVERSÍVEL COM MOTOR 4 TEMPOS A GASOLINA, FORÇA CENTRÍFUGA DE 25 KN (2500 KGF), POTÊNCIA 5,5 CV - CHI DIURNO. AF_08/2015 | E43: CHI | F43: 0.0578 | G43: =VLOOKUP(C43,'COMP Sint. Sinapi'!$B$11:$E$9733,4,FALSE) -> 0.72 | H43: 0.04
A44: Composição | B44: SINAPI | C44: 91283 | D44: =VLOOKUP(C44,'COMP Sint. Sinapi'!$B$11:$E$9733,2,FALSE) -> CORTADORA DE PISO COM MOTOR 4 TEMPOS A GASOLINA, POTÊNCIA DE 13 HP, COM DISCO DE CORTE DIAMANTADO SEGMENTADO PARA CONCRETO, DIÂMETRO DE 350 MM, FURO DE 1" (14 X 1") - CHP DIURNO. AF_08/2015 | E44: CHP | F44: 0.0038 | G44: =VLOOKUP(C44,'COMP Sint. Sinapi'!$B$11:$E$9733,4,FALSE) -> 10.64 | H44: 0.04
A45: Composição | B45: SINAPI | C45: 91285 | D45: =VLOOKUP(C45,'COMP Sint. Sinapi'!$B$11:$E$9733,2,FALSE) -> CORTADORA DE PISO COM MOTOR 4 TEMPOS A GASOLINA, POTÊNCIA DE 13 HP, COM DISCO DE CORTE DIAMANTADO SEGMENTADO PARA CONCRETO, DIÂMETRO DE 350 MM, FURO DE 1" (14 X 1") - CHI DIURNO. AF_08/2015 | E45: CHI | F45: 0.0582 | G45: =VLOOKUP(C45,'COMP Sint. Sinapi'!$B$11:$E$9733,4,FALSE) -> 1.03 | H45: 0.06
G46: Sub total: | H46: =SUM(H37:H45) -> 13.14
F47: BDI | G47: 0.2339 | H47: =H46*G47 -> 3.073446
F48: PREÇO UNITÁRIO TOTAL: | H48: =ROUND(ROUND(H46,2)*ROUND(1+G47,4),2) -> 16.21
F49: DESCONTO APLICADO: | H49: =H48*CAPA!$D$13 -> 0
D50: PREÇO UNITÁRIO COM BDI APÓS O DESCONTO: | H50: =(H48-H49) -> 16.21
A51: Areia e Pó de pedra comercial. Transporte até 50km não deve ser pago.

Sheet DEMAIS COMPOSIÇÕES DE CUSTO
E1: Composições Analíticas com Preço Unitário | G1: Bancos | I1: B.D.I. | K1: Encargos Sociais
E2: Pavimentação 2025 - CBUQ | G2: SINAPI - 05/2025 - Maranhão SICRO3 - 04/2025 - Maranhão | I2: =CAPA!D14 -> 0.2339 | K2: Não Desonerado: embutido nos preços unitário dos insumos de mão de obra, de acordo com as bases.
C3: Composições Analíticas com Preço Unitário
C4: Composições Principais
C5: 1 | D5: Código | E5: Banco | F5: Descrição | G5: Tipo | I5: Und | J5: Quant. | K5: Valor Unit | L5: Total
A6: ok | C6: Composição | D6: 103689 | E6: SINAPI | F6: FORNECIMENTO E INSTALAÇÃO DE PLACA DE OBRA COM CHAPA GALVANIZADA E ESTRUTURA DE MADEIRA. AF_03/2022_PS | G6: PAVI - PAVIMENTAÇÃO | I6: m² | J6: 1 | K6: 468.31 | L6: 468.31
C7: Composição Auxiliar | D7: 88262 | E7: SINAPI | F7: CARPINTEIRO DE FORMAS COM ENCARGOS COMPLEMENTARES | G7: SEDI - SERVIÇOS DIVERSOS | I7: H | J7: 0.3729 | K7: 28.47 | L7: 10.61
C8: Composição Auxiliar | D8: 88316 | E8: SINAPI | F8: SERVENTE COM ENCARGOS COMPLEMENTARES | G8: SEDI - SERVIÇOS DIVERSOS | I8: H | J8: 1.1186 | K8: 23.32 | L8: 26.08
C9: Composição Auxiliar | D9: 102234 | E9: SINAPI | F9: PINTURA IMUNIZANTE PARA MADEIRA, 2 DEMÃOS. AF_01/2021 | G9: PINT - PINTURAS | I9: m² | J9: 0.5 | K9: 24.61 | L9: 12.3
C10: Insumo | D10: 00004509 | E10: SINAPI | F10: SARRAFO *2,5 X 10* CM EM PINUS, MISTA OU EQUIVALENTE DA REGIAO - BRUTA | G10: Material | I10: M | J10: 3.2083 | K10: 5.81 | L10: 18.64
C11: Insumo | D11: 00005065 | E11: SINAPI | F11: PREGO DE ACO POLIDO COM CABECA 10 X 10 (7/8 X 17) | G11: Material | I11: KG | J11: 0.0113 | K11: 37.44 | L11: 0.42
C12: Insumo | D12: 00004813 | E12: SINAPI | F12: PLACA DE OBRA (PARA CONSTRUCAO CIVIL) EM CHAPA GALVANIZADA *N. 22*, ADESIVADA, DE *2,4 X 1,2* M (SEM POSTES PARA FIXACAO) | G12: Material | I12: M² | J12: 1 | K12: 400 | L12: 400
C13: Insumo | D13: 00005069 | E13: SINAPI | F13: PREGO DE ACO POLIDO COM CABECA 17 X 27 (2 1/2 X 11) | G13: Material | I13: KG | J13: 0.0132 | K13: 20.06 | L13: 0.26
G14: MO sem LS => | H14: 29.31 | I14: LS => | J14: 0 | K14: MO com LS => | L14: 29.31
G15: Valor do BDI => | H15: 109.53 | J15: Valor com BDI => | L15: 577.84
I16: Desconto aplicado: | L16: =L15*CAPA!$D$13 -> 0
I17: Valor unitário com BDI após o desconto: | L17: =(L15-L16) -> 577.84
C21: 2 | D21: Código | E21: Banco | F21: Descrição | G21: Tipo | I21: Und | J21: Quant. | K21: Valor Unit | L21: Total
A22: ok | C22: Composição | D22: 5502114 | E22: SICRO3 | F22: Escavação, carga e transporte de material de 1ª categoria - DMT de 1.000 a 1.200 m - caminho de serviço em leito natural - com escavadeira e caminhão basculante de 14 m³ | I22: m³ | J22: 1 | K22: 8.22 | L22: 8.22
C23: A | D23: Código | E23: Banco | F23: Equipamentos | G23: Quantidade | H23: Utilização | J23: Custo Horário | L23: Custo Horário Total
H24: Operativa | I24: Improdutiva | J24: Operativa | K24: Improdutiva
C25: Insumo | D25: E9667 | E25: SICRO3 | F25: Caminhão basculante com capacidade de 14 m³ - 210 kW | G25: 5 | H25: 0.96 | I25: 0.04 | J25: 311.681 | K25: 91.6646 | L25: 1514.4017
C26: Insumo | D26: E9515 | E26: SICRO3 | F26: Escavadeira hidráulica sobre esteiras com caçamba com capacidade de 1,56 m³ - 118 kW | G26: 1 | H26: 1 | I26: 0 | J26: 307.8856 | K26: 139.5115 | L26: 307.8856
H27: Custo horário total de equipamentos | L27: 1822.2873
C28: B | D28: Código | E28: Banco | F28: Mão de Obra | G28: Quantidade | H28: Custo Horário | L28: Custo Horário Total
C29: Insumo | D29: P9824 | E29: SICRO3 | F29: Servente | G29: 1 | K29: 21,3406 | L29: 21,3406
H30: Adicional de Mão de obra (%) | L30: 0
H31: Custo horário total de mão de obra | L31: 21.3406
H32: Custo horário total de execução | L32: 1843.6279
H33: Produção de equipe | L33: 230.19
H34: Custo unitário de execução | L34: 8.0092
H35: Custo do FIC | L35: 0.2133
H36: Custo do FIT | L36: 0
G37: MO sem LS => | H37: 0 | I37: LS => | J37: 0.09 | K37: MO com LS => | L37: 0.092708632
G38: Valor do BDI => | H38: 1.92 | J38: Valor com BDI => | L38: 10.14
I39: Desconto aplicado: | L39: =L38*CAPA!$D$13 -> 0
I40: Valor unitário com BDI após o desconto: | L40: =(L38-L39) -> 10.14
C43: 1 | D43: Código | E43: Banco | F43: Descrição | G43: Tipo | I43: Und | J43: Quant. | K43: Valor Unit | L43: Total
C44: Composição | D44: 5915014 | E44: SICRO3 | F44: Transporte com caminhão carroceria com capacidade de 11,5 t e com guindauto com capacidade de elevação de 11,9 t - rodovia pavimentada | I44: tkm | J44: 1 | K44: 1.25 | L44: 1.25
C45: A | D45: Código | E45: Banco | F45: Equipamentos | G45: Quantidade | H45: Utilização | J45: Custo Horário | L45: Custo Horário Total
H46: Operativa | I46: Improdutiva | J46: Operativa | K46: Improdutiva
C47: Insumo | D47: E9041 | E47: SICRO3 | F47: Caminhão guindauto com capacidade de elevação de 11,9 t e carroceria de 11,5 t - 188 kW | G47: 1 | H47: 1 | I47: 0 | J47: 369.415 | K47: 108.0291 | L47: 369.415
H48: Custo horário total de equipamentos | L48: 369.415
H49: Custo horário total de execução | L49: 369.415
H50: Produção de equipe | L50: 296.56
H51: Custo unitário de execução | L51: 1.2457
H52: Custo do FIC | L52: 0
H53: Custo do FIT | L53: 0
G54: MO sem LS => | H54: 0 | I54: LS => | J54: 0 | K54: MO com LS => | L54: 0
G55: Valor do BDI => | H55: 0 | J55: Valor com BDI => | L55: 1.25
I56: Desconto aplicado: | L56: =L55*CAPA!$D$13 -> 0
I57: Valor unitário com BDI após o desconto: | L57: =(L55-L56) -> 1.25
C59: 3 | D59: Código | E59: Banco | F59: Descrição | G59: Tipo | I59: Und | J59: Quant. | K59: Valor Unit | L59: Total
C60: Composição | D60: 4413942 | E60: SICRO3 | F60: Espalhamento de material em bota-fora | I60: m³ | J60: 1 | K60: 2.01 | L60: 2.01
C61: A | D61: Código | E61: Banco | F61: Equipamentos | G61: Quantidade | H61: Utilização | J61: Custo Horário | L61: Custo Horário Total
H62: Operativa | I62: Improdutiva | J62: Operativa | K62: Improdutiva
C63: Insumo | D63: E9540 | E63: SICRO3 | F63: Trator sobre esteiras com lâmina - 127 kW | G63: 1 | H63: 1 | I63: 0 | J63: 324.5285 | K63: 130.4257 | L63: 324.5285
H64: Custo horário total de equipamentos | L64: 324.5285
C65: B | D65: Código | E65: Banco | F65: Mão de Obra | G65: Quantidade | H65: Custo Horário | L65: Custo Horário Total
C66: Insumo | D66: P9824 | E66: SICRO3 | F66: Servente | G66: 1 | K66: 21,3406 | L66: 21,3406
H67: Adicional de Mão de obra (%) | L67: 0
H68: Custo horário total de mão de obra | L68: 21.3406
H69: Custo horário total de execução | L69: 345.8691
H70: Produção de equipe | L70: 176.81
H71: Custo unitário de execução | L71: 1.9562
H72: Custo do FIC | L72: 0.0521
H73: Custo do FIT | L73: 0
G74: MO sem LS => | H74: 0 | I74: LS => | J74: 0.12 | K74: MO com LS => | L74: 0.1206979243
G75: Valor do BDI => | H75: 0.47 | J75: Valor com BDI => | L75: 2.48
I76: Desconto aplicado: | L76: =L75*CAPA!$D$13 -> 0
I77: Valor unitário com BDI após o desconto: | L77: =(L75-L76) -> 2.48
C82: 7 | D82: Código | E82: Banco | F82: Descrição | G82: Tipo | I82: Und | J82: Quant. | K82: Valor Unit | L82: Total
C83: Composição | D83: 4011219 | E83: SICRO3 | F83: Base de solo estabilizado granulometricamente sem mistura com material de jazida - 100% Proctor modificado | I83: m³ | J83: 1 | K83: 14.79 | L83: 14.79
C84: A | D84: Código | E84: Banco | F84: Equipamentos | G84: Quantidade | H84: Utilização | J84: Custo Horário | L84: Custo Horário Total
H85: Operativa | I85: Improdutiva | J85: Operativa | K85: Improdutiva
C86: Insumo | D86: E9685 | E86: SICRO3 | F86: Rolo compactador pé de carneiro vibratório autopropelido por pneus de 11,6 t - 82 kW | G86: 1 | H86: 1 | I86: 0 | J86: 225.3601 | K86: 100.3767 | L86: 225.3601
C87: Insumo | D87: E9762 | E87: SICRO3 | F87: Rolo compactador de pneus autopropelido de 27 t - 85 kW | G87: 1 | H87: 0.96 | I87: 0.04 | J87: 257.8857 | K87: 124.9429 | L87: 252.568
C88: Insumo | D88: E9518 | E88: SICRO3 | F88: Grade de 24 discos rebocável de D = 60 cm (24") | G88: 1 | H88: 0.34 | I88: 0.66 | J88: 5.0871 | K88: 3.5426 | L88: 4.0677
C89: Insumo | D89: E9524 | E89: SICRO3 | F89: Motoniveladora - 93 kW | G89: 1 | H89: 0.5 | I89: 0.5 | J89: 282.1718 | K89: 121.5518 | L89: 201.8618
C90: Insumo | D90: E9571 | E90: SICRO3 | F90: Caminhão tanque com capacidade de 10.000 l - 188 kW | G90: 1 | H90: 0.62 | I90: 0.38 | J90: 330.4524 | K90: 84.0285 | L90: 236.8113
C91: Insumo | D91: E9577 | E91: SICRO3 | F91: Trator agrícola sobre pneus - 77 kW | G91: 1 | H91: 0.34 | I91: 0.66 | J91: 155.6701 | K91: 58.2583 | L91: 91.3783
H92: Custo horário total de equipamentos | L92: 1012.0472
C93: B | D93: Código | E93: Banco | F93: Mão de Obra | G93: Quantidade | H93: Custo Horário | L93: Custo Horário Total
C94: Insumo | D94: P9824 | E94: SICRO3 | F94: Servente | G94: 1 | K94: 21,3406 | L94: 21,3406
H95: Adicional de Mão de obra (%) | L95: 0
H96: Custo horário total de mão de obra | L96: 21.3406
H97: Custo horário total de execução | L97: 1033.3878
H98: Produção de equipe | L98: 112.13
H99: Custo unitário de execução | L99: 9.216
H100: Custo do FIC | L100: 0.2454
H101: Custo do FIT | L101: 0
C102: D | D102: Código | E102: Banco | F102: ATIVIDADES AUXILIARES | G102: Quantidade | H102: Unidade | I102: Preço Unitário | L102: Custo Horário
C103: Composição | D103: 4016096 | E103: SICRO3 | F103: Escavação e carga de material de jazida com escavadeira hidráulica de 1,56 m³ | G103: 1.10027 | H103: m³ | I103: 1,4700 | L103: 1,6174
H104: Custo total de atividades auxiliares | L104: 1.6174
C105: E | D105: Tempo Fixo | E105: Banco | F105: Descrição | G105: Carga | H105: Quantidade | I105: Unidade | J105: Preço Unitário | L105: Custo Horário
C106: Composição | D106: 5914354 | E106: SICRO3 | F106: Carga, manobra e descarga de agregados ou solos em caminhão basculante de 10 m³ - carga com escavadeira de 1,56 m³ (exclusa) e descarga livre | G106: 4016096 | H106: 2.06301 | I106: t | J106: 1.8 | L106: 3.7134
H107: Custo Total dos Tempos Fixos | L107: 3.7134
C108: F | D108: Momento de Transporte | E108: Banco | F108: Descrição | G108: Quantidade | H108: Distância Média de Transporte (DMT) | L108: Custo Horário
H109: LN | I109: RP | J109: P | K109: FE
C110: Composição | D110: 4016096 | E110: SICRO3 | F110: Escavação e carga de material de jazida com escavadeira hidráulica de 1,56 m³ | G110: 2.06301 | H110: 5914359 0,00 1,21 0,0000 | I110: 5914374 0,00 0,96 0,0000 | J110: 5914389 0,00 0,78 0,0000 | K110: -- | L110: 0
H111: Custo total de transporte | L111: 0
G112: MO sem LS => | H112: 0 | I112: LS => | J112: 0.29 | K112: MO com LS => | L112: 0.2923246906
G113: Valor do BDI => | H113: 3.45 | J113: Valor com BDI => | L113: 18.24
I114: Desconto aplicado: | L114: =L113*CAPA!$D$13 -> 0
I115: Valor unitário com BDI após o desconto: | L115: =(L113-L114) -> 18.24
C120: 9 | D120: Código | E120: Banco | F120: Descrição | G120: Tipo | I120: Und | J120: Quant. | K120: Valor Unit | L120: Total
C121: Composição | D121: 4011209 | E121: SICRO3 | F121: Regularização do subleito - 100% Proctor intermediário | I121: m² | J121: 1 | K121: 1.57 | L121: 1.57
C122: A | D122: Código | E122: Banco | F122: Equipamentos | G122: Quantidade | H122: Utilização | J122: Custo Horário | L122: Custo Horário Total
H123: Operativa | I123: Improdutiva | J123: Operativa | K123: Improdutiva
C124: Insumo | D124: E9577 | E124: SICRO3 | F124: Trator agrícola sobre pneus - 77 kW | G124: 1 | H124: 0.41 | I124: 0.59 | J124: 155.6701 | K124: 58.2583 | L124: 98.1971
C125: Insumo | D125: E9524 | E125: SICRO3 | F125: Motoniveladora - 93 kW | G125: 1 | H125: 0.43 | I125: 0.57 | J125: 282.1718 | K125: 121.5518 | L125: 190.6184
C126: Insumo | D126: E9571 | E126: SICRO3 | F126: Caminhão tanque com capacidade de 10.000 l - 188 kW | G126: 1 | H126: 0.61 | I126: 0.39 | J126: 330.4524 | K126: 84.0285 | L126: 234.3471
C127: Insumo | D127: E9685 | E127: SICRO3 | F127: Rolo compactador pé de carneiro vibratório autopropelido por pneus de 11,6 t - 82 kW | G127: 1 | H127: 1 | I127: 0 | J127: 225.3601 | K127: 100.3767 | L127: 225.3601
C128: Insumo | D128: E9762 | E128: SICRO3 | F128: Rolo compactador de pneus autopropelido de 27 t - 85 kW | G128: 1 | H128: 0.96 | I128: 0.04 | J128: 257.8857 | K128: 124.9429 | L128: 252.568
C129: Insumo | D129: E9518 | E129: SICRO3 | F129: Grade de 24 discos rebocável de D = 60 cm (24") | G129: 1 | H129: 0.41 | I129: 0.59 | J129: 5.0871 | K129: 3.5426 | L129: 4.1758
H130: Custo horário total de equipamentos | L130: 1005.2665
C131: B | D131: Código | E131: Banco | F131: Mão de Obra | G131: Quantidade | H131: Custo Horário | L131: Custo Horário Total
C132: Insumo | D132: P9824 | E132: SICRO3 | F132: Servente | G132: 1 | K132: 21,3406 | L132: 21,3406
H133: Adicional de Mão de obra (%) | L133: 0
H134: Custo horário total de mão de obra | L134: 21.3406
H135: Custo horário total de execução | L135: 1026.6071
H136: Produção de equipe | L136: 672.8
H137: Custo unitário de execução | L137: 1.5259
H138: Custo do FIC | L138: 0.0406
H139: Custo do FIT | L139: 0
G140: MO sem LS => | H140: 0 | I140: LS => | J140: 0.03 | K140: MO com LS => | L140: 0.03171908442
G141: Valor do BDI => | H141: 0.36 | J141: Valor com BDI => | L141: 1.93
I142: Desconto aplicado: | L142: =L141*CAPA!$D$13 -> 0
I143: Valor unitário com BDI após o desconto: | L143: =(L141-L142) -> 1.93
C147: 10 | D147: Código | E147: Banco | F147: Descrição | G147: Tipo | I147: Und | J147: Quant. | K147: Valor Unit | L147: Total
C148: Composição | D148: 5213440 | E148: SICRO3 | F148: Placa de regulamentação em aço D = 0,60 m - película retrorrefletiva tipo I + SI - fornecimento e implantação | I148: un | J148: 1 | K148: 282.19 | L148: 282.19
C149: A | D149: Código | E149: Banco | F149: Equipamentos | G149: Quantidade | H149: Utilização | J149: Custo Horário | L149: Custo Horário Total
H150: Operativa | I150: Improdutiva | J150: Operativa | K150: Improdutiva
C151: Insumo | D151: E9687 | E151: SICRO3 | F151: Caminhão carroceria com capacidade de 5 t - 120 kW | G151: 1 | H151: 0.3 | I151: 0.7 | J151: 154.4616 | K151: 60.137 | L151: 88.4344
H152: Custo horário total de equipamentos | L152: 88.4344
C153: B | D153: Código | E153: Banco | F153: Mão de Obra | G153: Quantidade | H153: Custo Horário | L153: Custo Horário Total
C154: Insumo | D154: P9824 | E154: SICRO3 | F154: Servente | G154: 2 | K154: 21,3406 | L154: 42,6812
C155: Insumo | D155: P9830 | E155: SICRO3 | F155: Montador | G155: 1 | K155: 31,6184 | L155: 31,6184
H156: Adicional de Mão de obra (%) | L156: 0
H157: Custo horário total de mão de obra | L157: 74.2996
H158: Custo horário total de execução | L158: 162.734
H159: Produção de equipe | L159: 3
H160: Custo unitário de execução | L160: 54.2447
H161: Custo do FIC | L161: 0
H162: Custo do FIT | L162: 0
C163: D | D163: Código | E163: Banco | F163: ATIVIDADES AUXILIARES | G163: Quantidade | H163: Unidade | I163: Preço Unitário | L163: Custo Horário
C164: Composição | D164: 5213414 | E164: SICRO3 | F164: Placa em aço nº 16 galvanizado com película retrorrefletiva tipo I + SI - confecção | G164: 0.35994 | H164: m² | I164: 633,2800 | L164: 227,9428
H165: Custo total de atividades auxiliares | L165: 227.9428
G166: MO sem LS => | H166: 0 | I166: LS => | J166: 39.52 | K166: MO com LS => | L166: 39.52187667
G167: Valor do BDI => | H167: 66 | J167: Valor com BDI => | L167: 348.19
I168: Desconto aplicado: | L168: =L167*CAPA!$D$13 -> 0
I169: Valor unitário com BDI após o desconto: | L169: =(L167-L168) -> 348.19
C173: 11 | D173: Código | E173: Banco | F173: Descrição | G173: Tipo | I173: Und | J173: Quant. | K173: Valor Unit | L173: Total
C174: Composição | D174: 5213464 | E174: SICRO3 | F174: Placa de advertência em aço, lado de 0,60 m - película retrorrefletiva tipo I + SI - fornecimento e implantação | I174: un | J174: 1 | K174: 282.23 | L174: 282.23
C175: A | D175: Código | E175: Banco | F175: Equipamentos | G175: Quantidade | H175: Utilização | J175: Custo Horário | L175: Custo Horário Total
H176: Operativa | I176: Improdutiva | J176: Operativa | K176: Improdutiva
C177: Insumo | D177: E9687 | E177: SICRO3 | F177: Caminhão carroceria com capacidade de 5 t - 120 kW | G177: 1 | H177: 0.3 | I177: 0.7 | J177: 154.4616 | K177: 60.137 | L177: 88.4344
H178: Custo horário total de equipamentos | L178: 88.4344
C179: B | D179: Código | E179: Banco | F179: Mão de Obra | G179: Quantidade | H179: Custo Horário | L179: Custo Horário Total
C180: Insumo | D180: P9824 | E180: SICRO3 | F180: Servente | G180: 2 | K180: 21,3406 | L180: 42,6812
C181: Insumo | D181: P9830 | E181: SICRO3 | F181: Montador | G181: 1 | K181: 31,6184 | L181: 31,6184
H182: Adicional de Mão de obra (%) | L182: 0
H183: Custo horário total de mão de obra | L183: 74.2996
H184: Custo horário total de execução | L184: 162.734
H185: Produção de equipe | L185: 3
H186: Custo unitário de execução | L186: 54.2447
H187: Custo do FIC | L187: 0
H188: Custo do FIT | L188: 0
C189: D | D189: Código | E189: Banco | F189: ATIVIDADES AUXILIARES | G189: Quantidade | H189: Unidade | I189: Preço Unitário | L189: Custo Horário
C190: Composição | D190: 5213414 | E190: SICRO3 | F190: Placa em aço nº 16 galvanizado com película retrorrefletiva tipo I + SI - confecção | G190: 0.36 | H190: m² | I190: 633,2800 | L190: 227,9808
H191: Custo total de atividades auxiliares | L191: 227.9808
G192: MO sem LS => | H192: 0 | I192: LS => | J192: 39.52 | K192: MO com LS => | L192: 39.52433631
G193: Valor do BDI => | H193: 66.01 | J193: Valor com BDI => | L193: 348.24
I194: Desconto aplicado: | L194: =L193*CAPA!$D$13 -> 0
I195: Valor unitário com BDI após o desconto: | L195: =(L193-L194) -> 348.24
C199: 12 | D199: Código | E199: Banco | F199: Descrição | G199: Tipo | I199: Und | J199: Quant. | K199: Valor Unit | L199: Total
C200: Composição | D200: 5213863 | E200: SICRO3 | F200: Suporte metálico galvanizado para placa de advertência ou regulamentação - lado ou diâmetro de 0,60 m - fornecimento e implantação | I200: un | J200: 1 | K200: 460.16 | L200: 460.16
C201: A | D201: Código | E201: Banco | F201: Equipamentos | G201: Quantidade | H201: Utilização | J201: Custo Horário | L201: Custo Horário Total
H202: Operativa | I202: Improdutiva | J202: Operativa | K202: Improdutiva
C203: Insumo | D203: E9687 | E203: SICRO3 | F203: Caminhão carroceria com capacidade de 5 t - 120 kW | G203: 1 | H203: 0.3 | I203: 0.7 | J203: 154.4616 | K203: 60.137 | L203: 88.4344
H204: Custo horário total de equipamentos | L204: 88.4344
C205: B | D205: Código | E205: Banco | F205: Mão de Obra | G205: Quantidade | H205: Custo Horário | L205: Custo Horário Total
C206: Insumo | D206: P9830 | E206: SICRO3 | F206: Montador | G206: 1 | K206: 31,6184 | L206: 31,6184
C207: Insumo | D207: P9824 | E207: SICRO3 | F207: Servente | G207: 1 | K207: 21,3406 | L207: 21,3406
H208: Adicional de Mão de obra (%) | L208: 0
H209: Custo horário total de mão de obra | L209: 52.959
H210: Custo horário total de execução | L210: 141.3934
H211: Produção de equipe | L211: 4.1
H212: Custo unitário de execução | L212: 34.4862
H213: Custo do FIC | L213: 0
H214: Custo do FIT | L214: 0
C215: C | D215: Código | E215: Banco | F215: MATERIAL | G215: Quantidade | H215: Unidade | I215: Preço Unitário | L215: Custo Horário
C216: Insumo | D216: M0789 | E216: SICRO3 | F216: Conjunto para fixação de placas em aço galvanizado composto por barra chata, abraçadeira, parafusos, porcas e arruelas | G216: 0.697 | H216: kg | I216: 30,9024 | L216: 21,5390
C217: Insumo | D217: M0787 | E217: SICRO3 | F217: Suporte em aço-carbono galvanizado tipo perfil C para placa de sinalização | G217: 12.717 | H217: kg | I217: 29,6470 | L217: 377,0209
H218: Custo unitário total de material | L218: 398.5599
C219: D | D219: Código | E219: Banco | F219: ATIVIDADES AUXILIARES | G219: Quantidade | H219: Unidade | I219: Preço Unitário | L219: Custo Horário
C220: Composição | D220: 1107892 | E220: SICRO3 | F220: Concreto fck = 20 MPa - confecção em betoneira e lançamento manual - areia e brita comerciais | G220: 0.05027 | H220: m³ | I220: 486,8600 | L220: 24,4745
C221: Composição | D221: 4805750 | E221: SICRO3 | F221: Escavação manual em material de 1ª categoria na profundidade de até 1 m | G221: 0.05027 | H221: m³ | I221: 43,8200 | L221: 2,2028
H222: Custo total de atividades auxiliares | L222: 26.6773
C223: E | D223: Tempo Fixo | E223: Banco | F223: Descrição | G223: Carga | H223: Quantidade | I223: Unidade | J223: Preço Unitário | L223: Custo Horário
... 629 more rows

Sheet CPU SINAPI (hidden)
A1: SINAPI - SISTEMA NACIONAL DE PESQUISA DE CUSTOS E ÍNDICES DA CONSTRUÇÃO CIVIL | F1: XXXX
A2: PCI.818.01 - COMPOSIÇÕES ATIVAS ANALÍTICAS COM CUSTO | C2: ABRANGENCIA: NACIONAL DATA DE PREÇO : 10/2023 DATA REFERENCIA TECNICA: 16/11/2023
A3: * Composições constantes nos Relatórios publicados de Composições Analíticas para as 27 Unidades da Federação
A4: MACROCLASSE.CLASSE.GRUPO | B4: CÓDIGOS | C4: DESCRIÇÃO | D4: UNIDADE | E4: COEFICIENTE | F4: PREÇO UNITÁRIO | G4: PREÇO TOTAL
A5: 03.PAVI.INTE.004/001 | B5: 92404 ADAPTADA | C5: EXECUÇÃO DE PAVIMENTO EM PISO INTERTRAVADO, COM BLOCO 16 FACES DE 22 X 11 CM, ESPESSURA 8 CM. AF_10/2022 - EXCLUSIVE FORNECIMENTO DE BLOQUETE | D5: M2 | F5: Pavimento Intertravado | G5: =G17 -> 
A6: INSUMO | B6: 370 | C6: AREIA MEDIA - POSTO JAZIDA/FORNECEDOR (RETIRADO NA JAZIDA, SEM TRANSPORTE) | D6: M3 | E6: 0.0568 | F6: =VLOOKUP($B6,'INSUMOS SINAPI'!A8:E5204,5,0) -> 150 | G6: =ROUND(ROUND(E6,5)*ROUND(F6,2),2) -> 8.52
A7: INSUMO | B7: 4741 | C7: PO DE PEDRA (POSTO PEDREIRA/FORNECEDOR, SEM FRETE) | D7: M3 | E7: 0.0098 | F7: =VLOOKUP($B7,'INSUMOS SINAPI'!A10:E5206,5,0) -> 87.72 | G7: =ROUND(ROUND(E7,5)*ROUND(F7,2),2) -> 0.86
A8: INSUMO | B8: 36170 | C8: BLOQUETE/PISO INTERTRAVADO DE CONCRETO - MODELO ONDA/16 FACES/RETANGULAR/T IJOLINHO/PAVER/HOLANDES/PARALELEPIPEDO, *22 CM X 11* CM, E = 8 CM, RESISTENCIA DE 35 MPA (NBR 9781), COR NATURAL | D8: M2 | E8: 1.004 | F8: 0 | G8: 0
A9: COMPOSICAO | B9: 88260 | C9: CALCETEIRO COM ENCARGOS COMPLEMENTARES | D9: H | E9: 0.2129 | F9: =VLOOKUP(B9,'COMP Sint. Sinapi'!G7:K7322,5,0) -> 
A10: COMPOSICAO | B10: 88316 | C10: SERVENTE COM ENCARGOS COMPLEMENTARES | D10: H | E10: 0.2129 | F10: =VLOOKUP(B10,'COMP Sint. Sinapi'!G8:K7323,5,0) -> 
A11: COMPOSICAO | B11: 91277 | C11: PLACA VIBRATÓRIA REVERSÍVEL COM MOTOR 4 TEMPOS A GASOLINA, FORÇA CENTRÍFUG A DE 25 KN (2500 KGF), POTÊNCIA 5,5 CV - CHP DIURNO. AF_08/2015 | D11: CHP | E11: 0.0055 | F11: =VLOOKUP(B11,'COMP Sint. Sinapi'!G9:K7324,5,0) -> 
A12: COMPOSICAO | B12: 91278 | C12: =VLOOKUP(B12,'COMP Sint. Sinapi'!G11:K7326,2,0) ->  | D12: CHP | E12: 0.101 | F12: =VLOOKUP(B12,'COMP Sint. Sinapi'!G11:K7326,5,0) -> 
A13: COMPOSICAO | B13: 91283 | C13: =VLOOKUP(B13,'COMP Sint. Sinapi'!G12:K7327,2,0) ->  | D13: CHI | E13: 0.0038 | F13: =VLOOKUP(B13,'COMP Sint. Sinapi'!G11:K7326,5,0) ->  | G13: =ROUND(ROUND(E13,5)*ROUND(F13,2),2) -> 
A14: COMPOSICAO | B14: 91285 | C14: =VLOOKUP(B14,'COMP Sint. Sinapi'!G13:K7328,2,0) ->  | D14: CHI | E14: 0.1027 | F14: =VLOOKUP(B14,'COMP Sint. Sinapi'!G12:K7327,5,0) -> 
D15: Sub total: | G15: =SUM(G6:G14) -> 
F16: BDI | G16: =BDI!C17 -> 0.2339
D17: Total Serviços: | G17: =ROUND(ROUND(G15,2)*ROUND(1+G16,4),2) -> 

Sheet BDI
A2: OBRA:
A3: LOCAL:
A4: DATA BASE:
A5: DETALHAMENTO DO BDI - SEM DESONERAÇÃO
A6: ='MODULO MINIMO Prop'!B1 -> EXECUÇÃO DE SERVIÇOS DE IMPLANTAÇÃO DE PAVIMENTAÇÃO EM BLOCO DE CONCRETO INTERTRAVADO, EM VIAS DE MUNICÍPIOS DIVERSOS INSERIDOS NA ÁREA DE ATUAÇÃO DA CODEVASF, NO ESTADO MARANHÃO
A7: DESCRIÇÃO DOS SERVIÇOS | B7: PREÇO DE VENDA (%) | C7: CUSTO DIRETO (%)
A8: ADMINISTRAÇÃO CENTRAL | C8: 0.06
A9: DESPESAS FINANCEIRAS | B9: 0.0102
A10: SEGUROS E GARANTIAS CONTRATUAIS | B10: 0.0025
A11: RISCOS | B11: 0.005
A12: LUCRO OPERACIONAL | C12: 0.07
A13: PIS | B13: 0.0065
A14: COFINS | B14: 0.03
A15: ISSQN | B15: 0.03
A16: Contribuição Previdenciaria | B16: 0
B17: BDI | C17: =ROUND((1+(C8+C12))/(1-(B9+B10+B11+B13+B14+B15+B16))-1,4) -> 0.2339
A18: Observação: O percentual de ISSQN aqui utilizado consiste apenas em um referencial médio.
B19: O valor real do ISSQN a ser adotado deve ser aquele proveniente das alíquotas dos municípios situados na área de
B20: influência das obras.
D27: ='SINTÉTICO SICRO'!A4317 -> 3713702
E28: =VLOOKUP(D28,'SINTÉTICO SICRO'!$A$4:$D$1048576,2,0) -> 
A59: DETALHAMENTO DO BDI DIFERENCIADO - SEM DESONERAÇÃO
A60: ='MODULO MINIMO Prop'!B5 -> EXECUÇÃO DE SERVIÇOS DE IMPLANTAÇÃO DE PAVIMENTAÇÃO EM BLOCO DE CONCRETO INTERTRAVADO, EM VIAS DE MUNICÍPIOS DIVERSOS INSERIDOS NA ÁREA DE ATUAÇÃO DA CODEVASF, NO ESTADO MARANHÃO
A62: DESCRIÇÃO DOS SERVIÇOS | B62: PREÇO DE VENDA (%) | C62: CUSTO DIRETO (%)
A63: ADMINISTRAÇÃO CENTRAL | C63: 0.0377
A64: DESPESA FINANCEIRAS | B64: 0.0102
A65: SEGUROS E GARANTIAS CONTRATUAIS | B65: 0.0025
A66: RISCOS | B66: 0.005
A67: LUCRO OPERACIONAL | C67: 0.05
A68: PIS | B68: 0.0065
A69: COFINS | B69: 0.03
A70: ISSQN | B70: 0
A71: Contribuição Previdenciaria | B71: 0
B72: BDI | C72: =ROUND((1+(C63+C67))/(1-(B64+B65+B66+B68+B69+B70+B71))-1,4) -> 0.15
A73: Fonte da composição, valores de referência e fórmula do BDI: Instrução Normativa N° 62/DNIT SEDE

Sheet ENC. SOCIAIS
A6: NOME DA CONCORRENTE:
A7: EDITAL:
A8: FOLHA:
A9: ='MODULO MINIMO Prop'!B1 -> EXECUÇÃO DE SERVIÇOS DE IMPLANTAÇÃO DE PAVIMENTAÇÃO EM BLOCO DE CONCRETO INTERTRAVADO, EM VIAS DE MUNICÍPIOS DIVERSOS INSERIDOS NA ÁREA DE ATUAÇÃO DA CODEVASF, NO ESTADO MARANHÃO
A11: DETALHAMENTO DOS ENCARGOS SOCIAIS (%)
A12: VIGÊNCIA A PARTIR DE 01/2025 | C12: COM DESONERAÇÃO | E12: SEM DESONERAÇÃO
C14: HORISTA | D14: MENSALISTA | E14: HORISTA | F14: MENSALISTA
A16: GRUPO A
A17: A1 | B17: INSS | C17: 5 | D17: 5 | E17: 20 | F17: 20
A18: A2 | B18: SESI | C18: 1.5 | D18: 1.5 | E18: 1.5 | F18: 1.5
A19: A3 | B19: SENAI | C19: 1 | D19: 1 | E19: 1 | F19: 1
A20: A4 | B20: INCRA | C20: 0.2 | D20: 0.2 | E20: 0.2 | F20: 0.2
A21: A5 | B21: SEBRAE | C21: 0.6 | D21: 0.6 | E21: 0.6 | F21: 0.6
A22: A6 | B22: Salário Educação | C22: 2.5 | D22: 2.5 | E22: 2.5 | F22: 2.5
A23: A7 | B23: Seguro Contra Acidentes de Trabalho | C23: 3 | D23: 3 | E23: 3 | F23: 3
A24: A8 | B24: FGTS | C24: 8 | D24: 8 | E24: 8 | F24: 8
A25: A9 | B25: SECONCI | C25: 1 | D25: 1 | E25: 0
A26: A | B26: Total | C26: =SUM(C17:C25) -> 22.8 | D26: =SUM(D17:D25) -> 22.8 | E26: =SUM(E17:E25) -> 36.8 | F26: =SUM(F17:F25) -> 36.8
A27: GRUPO B
A28: B1 | B28: Repouso Semanal Remunerado | C28: 17.88 | D28: - | E28: 17.88 | F28: -
A29: B2 | B29: Feriados | C29: 3.94 | D29: - | E29: 3.95 | F29: -
A30: B3 | B30: Auxílio-enfermidade | C30: 0.91 | D30: 0.69 | E30: 0.86 | F30: 0.65
A31: B4 | B31: 13° salário | C31: 10.98 | D31: 8.33 | E31: 10.97 | F31: 8.33
A32: B5 | B32: Licença-paternidade | C32: 0.07 | D32: 0.06 | E32: 0.07 | F32: 0.05
A33: B6 | B33: Faltas Justificadas | C33: 0.73 | D33: 0.56 | E33: 0.73 | F33: 0.56
A34: B7 | B34: Dias de chuva | C34: 1.45 | D34: - | E34: 1.56 | F34: -
A35: B8 | B35: Auxílio Acidente de Trabalho | C35: 0.11 | D35: 0.09 | E35: 0.1 | F35: 0.07
A36: B9 | B36: Férias Gozadas | C36: 11.35 | D36: 8.62 | E36: 11.16 | F36: 8.48
A37: B10 | B37: Salário Maternidade | C37: 0.03 | D37: 0.03 | E37: 0.03 | F37: 0.03
A38: B | B38: Total | C38: =SUM(C28:C37) -> 47.45 | D38: =SUM(D28:D37) -> 18.38 | E38: =SUM(E28:E37) -> 47.31 | F38: =SUM(F28:F37) -> 18.17
A39: GRUPO C
A40: C1 | B40: Aviso Prévio Indenizado | C40: 6.76 | D40: 5.14 | E40: 4.55 | F40: 3.46 | H40: Fonte: Sinapi Cálculos e Parâmetros 5ª Edição - Atualizada em janeiro de 2025
A41: C2 | B41: Aviso Prévio Trabalhado | C41: 0.16 | D41: 0.12 | E41: 0.11 | F41: 0.08
A42: C3 | B42: Férias Indenizadas | C42: 2.28 | D42: 1.73 | E42: 3.17 | F42: 2.41
A43: C4 | B43: Depósito Rescisão Sem Justa Causa | C43: 3.81 | D43: 2.89 | E43: 2.6 | F43: 1.98
A44: C5 | B44: Indenização Adicional | C44: 0.57 | D44: 0.43 | E44: 0.38 | F44: 0.29
A45: C | B45: Total | C45: =SUM(C40:C44) -> 13.58 | D45: =SUM(D40:D44) -> 10.31 | E45: =SUM(E40:E44) -> 10.81 | F45: =SUM(F40:F44) -> 8.22
A46: GRUPO D
A47: D1 | B47: Reincidência de A sobre B | C47: 8.45 | D47: 3.27 | E47: 17.41 | F47: 6.69
A48: D2 | B48: Reincidência de Grupo A sobre Aviso Prévio Trabalhado e Reincidência do FGTS sobre Aviso Prévio Indenizado | C48: 0.57 | D48: 0.43 | E48: 0.4 | F48: 0.31
A49: D | B49: Total | C49: =SUM(C47:C48) -> 9.02 | D49: =SUM(D47:D48) -> 3.7 | E49: =SUM(E47:E48) -> 17.81 | F49: =SUM(F47:F48) -> 7
A51: T O T A L (%) | C51: =C26+C38+C45+C49 -> 92.85 | D51: =D26+D38+D45+D49 -> 55.19 | E51: =E26+E38+E45+E49 -> 112.73 | F51: =F26+F38+F45+F49 -> 70.19

Sheet MC MODULO
A1: Extensão | B1: = | C1: 2000 | D1: m | F1: QUANTIDADE DE MODULOS | G1: 1
A2: Largura | B2: = | C2: 7 | D2: m
A4: Extensão | B4: = | C4: 2 | D4: km
B6: MOBUILIZAÇÃO
A7: 1 | B7: Implantação da obra
B9: Módulos(un) | D9: Módulos(un)
B10: =G1 -> 1 | C10: = | D10: =B10 -> 1
A12: 2 | B12: Administração da obra
B14: Módulos(un) | D14: Módulos(un)
B15: =G1 -> 1 | C15: = | D15: =B15 -> 1
A17: 3 | B17: Canteiro de Obras e Almoxarifado
B19: Módulos(un) | D19: Módulos(un)
B20: =G1 -> 1 | C20: = | D20: =B20 -> 1
A22: 4 | B22: Placa de Obra em Chapa de Aço Galvanizado
B24: Módulos(un) | C24: Comprimento(m) | D24: Largura (m) | H24: Total de Area de placa (m²)
B25: =G1 -> 1 | C25: 2 | D25: 4 | H25: =TRUNC(C25*D25*B25,2) -> 8
B27: TERRAPLENAGEM | D27: ='SINTÉTICO SICRO'!A4317 -> 3713702 | E27: =VLOOKUP(D27,'SINTÉTICO SICRO'!$A$4:$D$1048576,2,0) -> Fornecimento e implantação de amortecedor retrátil (v <= 100 km/h) tipo TAU II afunilado - fixado em barreira de concreto, com largura de âncora traseira de 2.440 mm
A29: 5 | B29: serviços topográficos para pavimentação, inclusive notas de serviços, acompanhamento e greide
B31: Extensão (m) | D31: Largura (m) | H31: area (m2)
B32: =C1*$G$1 -> 2000 | C32: x | D32: =$C$2 -> 7 | G32: = | H32: =TRUNC(B32*D32,2) -> 14000
A34: 6 | B34: Escavação, carga e transporte de material de 1ª categoria - DMT de 1.000 a 1.200 m - caminho de serviço em leito natural - com escavadeira e caminhão basculante de 14 m³
B36: Extensão (m) | D36: Largura (m) | F36: Espessura (m) | H36: Volume (m3)
B37: =C1*$G$1 -> 2000 | C37: x | D37: =$C$2 -> 7 | E37: x | F37: =0.15+0.06+0.04 -> 0.25 | G37: = | H37: =TRUNC(B37*D37*F37,2) -> 3500
A41: 7 | B41: Espalhamento de material em bota-fora
B43: Extensão (m) | D43: Largura (m) | F43: Espessura (m) | H43: Volume (m3)
B44: =C1*$G$1 -> 2000 | C44: x | D44: =$C$2 -> 7 | E44: x | F44: 0.1 | G44: = | H44: =TRUNC(B44*D44*F44,2) -> 1400
B46: PAVIMENTAÇÃO
A48: 8 | B48: Execução de Pavimento em Piso Intertravado, com Bloco Sextavado de 25 X 25 cm, espessura 6 cm. AF_12/2015
B50: Extensão (m) | C50: Largura (m) | H50: area (m2)
B51: =$C$1*G1 -> 2000 | C51: =$C$2 -> 7 | G51: = | H51: =TRUNC(C51*B51,2) -> 14000
A53: 8 | B53: TRANSPORTE COM CAMINHÃO CARROCERIA COM GUINDAUTO (MUNCK), MOMENTO MÁXIMO DE CARGA 11,7 TM, EM VIA URBANA PAVIMENTADA, DMT ATÉ 50KM AF_07/2020 (bloquete)
B55: Dimensoes (m³) | C55: Densidade bloco Intertravado (t/m³) | D55: Peso total (t) | E55: Distancia (km) | H55: TKM
B56: =H51*0.06 -> 840 | C56: 2.2 | D56: =C56*B56 -> 1848 | E56: 50 | G56: = | H56: =D56*E56 -> 92400
A59: 8 | B59: TRANSPORTE COM CAMINHÃO BASCULANTE DE 10 M³, EM VIA URBANA PAVIMENTADA , DMT ATÉ 50 KM (UNIDADE: TXKM). AF_07/2020 (areia) | U59: =7*20 -> 140
U60: =26*5 -> 130
B61: Area | C61: Densidade areia (t/m³) | D61: Peso total (t) | E61: Distancia (km) | H61: TKM | I61: DMT ATÉ 50 KM NÃO DEVE SER PAGA | U61: =23*5 -> 115
B62: =H51 -> 14000 | C62: 1.5 | D62: =B62*C62*0.04 -> 840 | E62: 0 | G62: = | H62: =D62*E62 -> 0 | I62: INSERIR DMT ACIMA DE 50 KM | U62: =U59+U60+U61 -> 385
A64: 8 | B64: TRANSPORTE COM CAMINHÃO BASCULANTE DE 10 M³, EM VIA URBANA PAVIMENTADA , DMT ATÉ 50 KM (UNIDADE: TXKM). AF_07/2020 (PO DE PEDRA) | U64: =7*20 -> 140
D65: 0.009 | U65: =26*5 -> 130
B66: Area | C66: Densidade pó de pedra (t/m³) | D66: Quantidade total de pó de pedra (m³) | E66: Peso total (t) | F66: Distancia (km) | H66: TKM | I66: DMT ATÉ 50 KM NÃO DEVE SER PAGA | U66: =23*5 -> 115
B67: =H51 -> 14000 | C67: 1.5 | D67: =B67*D65 -> 126 | E67: =D67*C67 -> 189 | F67: 0 | G67: = | H67: =E67*F67 -> 0 | I67: INSERIR DMT ACIMA DE 50 KM | U67: =U64+U65+U66 -> 385
A69: 9 | B69: Base de solo estabilizado granulometricamente sem mistura com material de jazida
B71: Extensão (m) | D71: Largura (m) | F71: Espessura (m) | H71: Volume (m3)
B72: =C1*$G$1 -> 2000 | C72: x | D72: =$C$2 -> 7 | E72: x | F72: 0.15 | G72: = | H72: =B72*D72*F72 -> 2100
A74: 10 | B74: Regularização do subleito
B76: Extensão (m) | D76: Largura (m) | H76: area (m2)
B77: =C1*$G$1 -> 2000 | C77: x | D77: =$C$2 -> 7 | G77: = | H77: =B77*D77 -> 14000
B79: SINALIZAÇÃO
A81: 11 | B81: Fornecimento e implantação de placa de regulamentação em aço D = 0,60 m - película retrorrefletiva tipo I + SI
B83: Extensão (km) | D83: Quant. (un) | H83: Quant. (un)
B84: =$C$4*$G$1 -> 2 | C84: x | D84: 3 | G84: = | H84: =B84*D84 -> 6
A86: 11 | B86: Fornecimento e implantação de placa de advertencia
B88: Extensão (km) | D88: Quant. (un) | H88: Quant. (un)
B89: =$C$4*$G$1 -> 2 | C89: x | D89: 3 | G89: = | H89: =B89*D89 -> 6
A92: 12 | B92: Fornecimento e implantação de suporte metálico galvanizado para placa de regulamentação - D = 0,60 m
B94: Extensão (km) | D94: Quant. (un) | H94: Quant. (un)
B95: =$C$4*$G$1 -> 2 | C95: x | D95: 0.5 | G95: = | H95: =H89+H84 -> 12
A97: 13 | B97: Pintura de faixa com tinta acrílica - espessura de 0,4 mm (bordos)
B99: Extensão (m) | D99: Espessura (m) | H99: Quant. (m²)
B100: =C1*G1 -> 2000 | C100: x | D100: 0.1 | G100: = | H100: =B100*D100*2 -> 400
B102: Pintura de faixa com tinta acrílica - espessura de 0,4 mm (faixa central)
H104: Quant. (m²)
H105: =B100*D100 -> 200
B108: DRENAGEM
A109: 14 | B109: Meio-fio de concreto - MFC 05 - areia e brita comerciais - fôrma de madeira
B111: Extensão (m) | D111: Quant. (un) | H111: Extensão(m)
B112: =$C$1*$G$1 -> 2000 | C112: x | D112: 2 | G112: = | H112: =B112*D112 -> 4000
A114: 19 | B114: Caiação mecanizada com fixador de cal
B116: Extensão (m) | D116: Perimetro (m) | H116: Area (m²)
B117: =$C$1*$G$1 -> 2000 | C117: x | D117: =0.24 -> 0.24 | G117: = | H117: =B117*D117 -> 480
B120: SERVIÇOS COMPLEMENTARES
A121: 15
B123: Extensão (m) | D123: Largura (m) | G123: 0.1 | H123: extensão (m)
B124: =$C$1*G1 -> 2000 | C124: x | D124: 1 | E124: x | G124: = | H124: =G123*B124 -> 200
B127: PROJETO EXECUTIVO
A128: 16 | B128: Projeto Executivo
B130: Extensão (m) | D130: Largura (m) | F130: Quant. (un) | H130: Área (m²)
B131: =$C$1*G1 -> 2000 | C131: x | D131: =C2 -> 7 | E131: x | F131: 1 | G131: = | H131: =B131*D131 -> 14000
B133: CONTROLE TECNOLOGICO - OBRA
A134: 17 | B134: Projeto Executivo
B136: Extensão (m) | D136: Largura (m) | F136: Quant. (un) | H136: meses
G137: = | H137: 10 | I137: Conforme Cronograma da obra

Sheet Material Sicro
A1: CGCIT | B1: SISTEMA DE CUSTOS REFERENCIAIS DE OBRAS - SICRO | D1: DNIT
B2: Maranhão - ABRIL/2025
A3: Código | B3: Descrição | C3: Unidade | D3: Preço Unitário (R$)
A4: M0003 | B4: Aço CA 25 | C4: kg | D4: 6.7928
A5: M0004 | B5: Aço CA 50 | C5: kg | D5: 6.6064
A6: M0005 | B6: Brita 0 | C6: m³ | D6: 180.3717
A7: M0006 | B7: Fibra de poliamida para concreto | C7: kg | D7: 28.0024
A8: M0007 | B8: Fibra de aço para concreto | C8: kg | D8: 17.6272
A9: M0008 | B9: Detergente líquido neutro | C9: l | D9: 4.4151
A10: M0009 | B10: Aço CP 175 RB | C10: kg | D10: 9.5788
A11: M0010 | B11: Aditivo superplastificante para concreto e argamassa | C11: kg | D11: 16.2442
A12: M0011 | B12: Aditivo modificador de viscosidade para concreto e argamassa | C12: kg | D12: 11.0883
A13: M0012 | B13: Silicato de alumínio | C13: kg | D13: 2.3678
A14: M0013 | B14: Grampo de ancoragem em aço CA 50 - D = 12,5 mm | C14: kg | D14: 6.6064
A15: M0014 | B15: Aço CA 60 | C15: kg | D15: 8.2457
A16: M0015 | B16: Espoleta elétrica Nº 8 - D = 6,0 mm | C16: un | D16: 19.9299
A17: M0016 | B17: Grampo sargento em ferro fundido tipo C com abertura útil de 105 mm (4") | C17: un | D17: 44.4863
A18: M0017 | B18: Saco de aniagem ou de ráfia de 50 kg - C = 95 cm e L = 65 cm | C18: un | D18: 2.665
A19: M0018 | B19: Grampo pesado em aço-carbono para cabo de aço - D = 13 mm (1/2") | C19: un | D19: 17.9775
A20: M0019 | B20: Esticador em aço tipo olhal x olhal para cabo de aço - D = 13 mm | C20: un | D20: 140.0201
A21: M0020 | B21: Grampo de ancoragem em aço CA 50 - D = 6,3 mm | C21: kg | D21: 7.4954
A22: M0021 | B22: Herbicida glifosato para áreas contínuas | C22: l | D22: 26.2578
A23: M0025 | B23: Adesivo plástico para tubos de PVC | C23: kg | D23: 51.8405
A24: M0026 | B24: Aditivo aglutinante para argamassa | C24: l | D24: 9.3384
A25: M0028 | B25: Areia média | C25: m³ | D25: 97.3514
A26: M0029 | B26: Sílica ativa para concreto e argamassa (microssílica) | C26: kg | D26: 2.3283
A27: M0030 | B27: Aditivo plastificante e retardador de pega para concreto e argamassa | C27: kg | D27: 7.4078
A28: M0032 | B28: Adesivo de contato para laminado elastoplástico | C28: kg | D28: 47.073
A29: M0035 | B29: Diluente tipo aguarrás para tintas e vernizes | C29: l | D29: 15.2
A30: M0039 | B30: Gasolina comum | C30: l | D30: 5.348
A31: M0041 | B31: Contêiner com 2 banheiros - L = 2,44 m e C = 6,09 m (1 TEU) | C31: un | D31: 105764.3572
A32: M0042 | B32: Contêiner com janela - L = 2,44 m e C = 6,09 m (1 TEU) | C32: un | D32: 46446.2706
A33: M0043 | B33: Óleo diesel | C33: l | D33: 5.5
A34: M0044 | B34: Abrasivo de vidro com granulometria de 210 a 420 micra | C34: kg | D34: 10.5726
A35: M0045 | B35: Barreira plástica monobloco para canalização de trânsito - C = 100 cm, L = 50 cm e H = 55 cm | C35: un | D35: 471.1159
A36: M0046 | B36: Barreira plástica para canalização de trânsito - C = 60 cm, L = 45 cm e H = 60 cm | C36: un | D36: 330.424
A37: M0047 | B37: Cone de sinalização em polietileno - H = 75 cm e base quadrada de 40 x 40 cm | C37: un | D37: 95.6633
A38: M0048 | B38: Balizador cônico refletivo em polietileno semiflexível - H = 114 cm e base octogonal de D = 40 cm | C38: un | D38: 159.8968
A39: M0049 | B39: Delimitador de tráfego flexível com chumbador e duas faixas refletivas - H = 77 cm e D = 21 cm | C39: un | D39: 168.7393
A40: M0050 | B40: Aditivo natural tipo goma xantana para hidrossemeadura | C40: kg | D40: 94.8196
A41: M0051 | B41: Cilindro canalizador de tráfego em polietileno - H = 117 cm e base quadrada de 60 x 60 cm | C41: un | D41: 192.0102
A42: M0052 | B42: Fita adesiva de PVC - L = 50 mm e C = 50 m | C42: m | D42: 0.1119
A43: M0053 | B43: Tela plástica em polipropileno na cor laranja para tapume - L = 1,2 m | C43: m | D43: 1.7515
A44: M0054 | B44: Fita zebrada de cor laranja e branca - L = 7 a 8 cm | C44: m | D44: 0.0728
A45: M0055 | B45: Barreira plástica articulável modular - C = 240 cm e H = 100 cm | C45: un | D45: 1297.609
A46: M0056 | B46: Ferramenta de corte para removedora de faixa de sinalização (Smith Cutter) | C46: un | D46: 7570.7751
A47: M0057 | B47: Contêiner com janela - L = 4,88 m e C = 6,09 m (1 TEU duplo) | C47: un | D47: 155360.7144
A48: M0058 | B48: Contêiner com janela e 2 banheiros - L = 4,88 m e C = 6,09 m (1 TEU duplo) | C48: un | D48: 160375.7144
A49: M0059 | B49: Contêiner com revestimento térmico, janela e banheiro - L = 2,44 m e C = 6,09 m (1 TEU) | C49: un | D49: 63697.8706
A50: M0060 | B50: Contêiner com janela - L = 2,44 m e C = 4,58 m (3/4 TEU) | C50: un | D50: 67148.8572
A51: M0065 | B51: Contêiner com janela e banheiro - L = 2,44 m e 4,58 m (3/4 TEU) | C51: un | D51: 81606.4806
A52: M0066 | B52: Contêiner com revestimento térmico, janela e banheiro - L = 2,44 m e C = 12,90 m (2 TEU) | C52: un | D52: 140963.4271
A53: M0067 | B53: Tubo PEAD PE 100 PN 10 com flanges - D = 160 mm | C53: m | D53: 176.2248
A54: M0068 | B54: Caibro de pinho - L = 7,5 cm e E = 10,0 cm | C54: m | D54: 25.5797
A55: M0069 | B55: Arame farpado em aço galvanizado - D = 1,60 mm | C55: m | D55: 0.7806
A56: M0071 | B56: Contêiner com 3 janelas para guarita - L = 2,44 m e C = 3,05 m (1/2 TEU) | C56: un | D56: 54079.2971
A57: M0072 | B57: Arame liso em aço galvanizado - D = 2,10 mm (14 BWG) | C57: kg | D57: 17.078
A58: M0073 | B58: Muda de árvore com altura de 0,30 a 0,80 m | C58: un | D58: 18.9803
A59: M0074 | B59: Muda de arbusto com altura até 0,50 m | C59: un | D59: 22.6084
A60: M0075 | B60: Arame liso recozido em aço-carbono - D = 1,24 mm (18 BWG) | C60: kg | D60: 9.9423
A61: M0076 | B61: Disco de corte abrasivo para policorte - D = 300 mm | C61: un | D61: 19.2019
A62: M0080 | B62: Areia fina | C62: m³ | D62: 104.9187
A63: M0081 | B63: Areia grossa | C63: m³ | D63: 86.1906
A64: M0082 | B64: Areia média lavada | C64: m³ | D64: 105.8377
A65: M0083 | B65: Argamassa pré-dosada para grauteamento | C65: kg | D65: 1.9646
A66: M0084 | B66: Argamassa pré-dosada autoadensável para grauteamento | C66: kg | D66: 2.0391
A67: M0085 | B67: Ancoragem ativa para 4 cordoalhas - D = 12,7 mm | C67: un | D67: 362.6259
A68: M0086 | B68: Ancoragem ativa para 6 cordoalhas - D = 12,7 mm | C68: un | D68: 490.219
A69: M0087 | B69: Ancoragem ativa para 7 cordoalhas - D = 12,7 mm | C69: un | D69: 550.7951
A70: M0088 | B70: Ancoragem ativa para 8 cordoalhas - D = 12,7 mm | C70: un | D70: 714.1447
A71: M0089 | B71: Ancoragem ativa para 9 cordoalhas - D = 12,7 mm | C71: un | D71: 746.5105
A72: M0091 | B72: Ancoragem ativa para 10 cordoalhas - D = 12,7 mm | C72: un | D72: 823.7978
A73: M0092 | B73: Ancoragem ativa para 12 cordoalhas - D = 12,7 mm | C73: un | D73: 955.4616
A74: M0093 | B74: Ancoragem ativa para 15 cordoalhas - D = 12,7 mm | C74: un | D74: 1471.5451
A75: M0094 | B75: Ancoragem ativa para 19 cordoalhas - D = 12,7 mm | C75: un | D75: 1831.6101
A76: M0098 | B76: Bambu com diâmetro médio de 10 cm | C76: m | D76: 25.3998
A77: M0099 | B77: Equipamentos para a fábrica de dormentes de concreto protendido | C77: ISF | D77: 581.797
A78: M0100 | B78: Ancoragem ativa para 22 cordoalhas - D = 12,7 mm | C78: un | D78: 2405.0035
A79: M0101 | B79: Ancoragem ativa para 27 cordoalhas - D = 12,7 mm | C79: un | D79: 2964.6465
A80: M0102 | B80: Ancoragem ativa para 31 cordoalhas - D = 12,7 mm | C80: un | D80: 3013.9741
A81: M0103 | B81: Aditivo acelerador de pega para concreto e argamassa projetados | C81: kg | D81: 8.1526
A82: M0104 | B82: Asfalto diluído de petróleo - CM-30 | C82: t | D82: -
A83: M0105 | B83: Ancoragem ativa para 4 cordoalhas - D = 15,2 mm | C83: un | D83: 531.7207
A84: M0106 | B84: Ancoragem ativa para 6 cordoalhas - D = 15,2 mm | C84: un | D84: 626.339
A85: M0107 | B85: Geocomposto para drenagem | C85: m² | D85: 49.6056
A86: M0108 | B86: Ancoragem ativa para 7 cordoalhas - D = 15,2 mm | C86: un | D86: 683.3646
A87: M0109 | B87: Geodreno vertical - L = 10 cm e E = 5 mm | C87: m | D87: 5.18
A88: M0110 | B88: Ancoragem ativa para 10 cordoalhas - D = 15,2 mm | C88: un | D88: 1138.158
A89: M0111 | B89: Ancoragem ativa para 9 cordoalhas - D = 15,2 mm | C89: un | D89: 1010.8221
A90: M0112 | B90: Disco diamantado segmentado para corte de pavimento - D = 1.000 mm | C90: un | D90: 5881.0637
A91: M0113 | B91: Ancoragem ativa para 12 cordoalhas - D = 15,2 mm | C91: un | D91: 1290.2228
A92: M0114 | B92: Disco diamantado segmentado para corte de pavimento - D = 1.500 mm | C92: un | D92: 26165.6823
A93: M0115 | B93: Biomanta vegetal de fibras de coco entrelaçadas com fios de polipropileno biodegradáveis - densidade 0,4 kg/m² | C93: m² | D93: 6.5
A94: M0116 | B94: Mangote flangeado de borracha reforçada com lonas sintéticas - C = 1,80 m e D = 0,30 m | C94: un | D94: 16832.3719
A95: M0117 | B95: Mangote flangeado de borracha reforçada com lonas sintéticas - C = 1,80 m e D = 0,40 m | C95: un | D95: 23400.3654
A96: M0118 | B96: Mangote flangeado de borracha reforçada com lonas sintéticas - C = 1,80 m e D = 0,45 m | C96: un | D96: 25845.6799
A97: M0119 | B97: Mangote flangeado de borracha reforçada com lonas sintéticas - C = 1,80 m e D = 0,50 m | C97: un | D97: 29710.8589
A98: M0120 | B98: Tubo PEAD PE 100 PN 8 com flanges - D = 250 mm | C98: m | D98: 328.0193
A99: M0121 | B99: Tubo PEAD PE 100 PN 8 com flanges - D = 400 mm | C99: m | D99: 2103.6187
A100: M0122 | B100: Tubo PEAD PE 100 PN 8 com flanges - D = 450 mm | C100: m | D100: 2642.4912
A101: M0123 | B101: Tubo PEAD PE 100 PN 8 com flanges - D = 500 mm | C101: m | D101: 2959.1477
A102: M0124 | B102: Flutuador bipartido em polietileno com núcleo de espuma em poliuretano para tubos - D = 0,30 m | C102: un | D102: 4805.8205
A103: M0125 | B103: Flutuador bipartido em polietileno com núcleo de espuma em poliuretano para tubos - D = 0,40 m | C103: un | D103: 6623.0086
A104: M0126 | B104: Flutuador bipartido em polietileno com núcleo de espuma em poliuretano para tubos - D = 0,45 m | C104: un | D104: 7626.5984
A105: M0127 | B105: Flutuador bipartido em polietileno com núcleo de espuma em poliuretano para tubos - D = 0,50 m | C105: un | D105: 8209.954
A106: M0128 | B106: Biomanta vegetal de fibras de palha entrelaçadas com fios de polipropileno biodegradáveis - densidade 0,6 kg/m² | C106: m² | D106: 5.9
A107: M0129 | B107: Retentor de sedimento em fibras vegetais - D = 20 cm | C107: m | D107: 69.7402
A108: M0130 | B108: Ancoragem ativa para 15 cordoalhas - D = 15,2 mm | C108: un | D108: 1730.4007
A109: M0131 | B109: Tubo PEAD corrugado com paredes estruturadas para drenagem - D = 400 mm | C109: m | D109: 253.0103
A110: M0132 | B110: Tubo PEAD corrugado com paredes estruturadas para drenagem - D = 450 mm | C110: m | D110: 288.9422
A111: M0133 | B111: Tubo PEAD corrugado com paredes estruturadas para drenagem - D = 500 mm | C111: m | D111: 416.7826
A112: M0134 | B112: Tubo PEAD corrugado com paredes estruturadas para drenagem - D = 600 mm | C112: m | D112: 607.281
A113: M0135 | B113: Tubo PEAD corrugado com paredes estruturadas para drenagem - D = 750 mm | C113: m | D113: 857.0009
A114: M0136 | B114: Tubo PEAD corrugado com paredes estruturadas para drenagem - D = 800 mm | C114: m | D114: 908.9445
A115: M0137 | B115: Tubo PEAD corrugado com paredes estruturadas para drenagem - D = 900 mm | C115: m | D115: 1182.2033
A116: M0138 | B116: Ancoragem ativa para 19 cordoalhas - D = 15,2 mm | C116: un | D116: 2269.3692
A117: M0139 | B117: Tubo PEAD corrugado com paredes estruturadas para drenagem - D = 1.000 mm | C117: m | D117: 1592.6879
A118: M0140 | B118: Bentonita | C118: kg | D118: 3.4136
A119: M0141 | B119: Tubo PEAD corrugado com paredes estruturadas para drenagem - D = 1.050 mm | C119: m | D119: 1647.4425
A120: M0142 | B120: Tubo PEAD corrugado com paredes estruturadas para drenagem - D = 1.200 mm | C120: m | D120: 2253.3875
A121: M0143 | B121: Tubo PEAD corrugado com paredes estruturadas para drenagem - D = 1.500 mm | C121: m | D121: 2550.852
A122: M0145 | B122: Ancoragem ativa para 22 cordoalhas - D = 15,2 mm | C122: un | D122: 2911.4725
A123: M0146 | B123: Ancoragem ativa para 27 cordoalhas - D = 15,2 mm | C123: un | D123: 3829.6687
A124: M0148 | B124: Ancoragem ativa para lajes para 1 cordoalha - D = 12,7 mm | C124: un | D124: 81.817
A125: M0151 | B125: Ancoragem ativa para lajes para 2 cordoalhas - D = 12,7 mm | C125: un | D125: 159.4429
A126: M0152 | B126: Ancoragem ativa para lajes para 3 cordoalhas - D = 12,7 mm | C126: un | D126: 219.3608
A127: M0153 | B127: Ancoragem ativa para lajes para 4 cordoalhas - D = 12,7 mm | C127: un | D127: 292.0255
A128: M0156 | B128: Bloco de concreto - L = 19 cm, A = 19 cm e C = 39 cm | C128: un | D128: 5.7017
A129: M0158 | B129: Tela metálica galvanizada dobrada em L - C = 2,0 m, L = 0,4 m e H = 0,4 m | C129: un | D129: 452.5312
A130: M0160 | B130: Extintor de incêndio tipo espuma mecânica - V = 10 l | C130: un | D130: 609.8484
A131: M0161 | B131: Barra de fibra de vidro (vergalhão) - D = 25,0 mm | C131: m | D131: 58.5803
A132: M0162 | B132: Corrente de elo soldado em aço galvanizado com acabamento polido - D = 3,18 mm (1/8") | C132: m | D132: 6.8829
A133: M0163 | B133: Gonzo com aba em aço galvanizado - D = 12,7 mm (1/2") | C133: un | D133: 2.5602
A134: M0164 | B134: Tubo em aço galvanizado - E = 1,50 mm e seção de 20 x 20 mm | C134: m | D134: 11.3117
A135: M0166 | B135: Tubo em aço galvanizado - E = 2,25 mm e D = 20 mm (3/4") | C135: m | D135: 28.5881
A136: M0167 | B136: Tela de poliamida industrial - E = 0,40 mm e malha de 1,6 mm | C136: m² | D136: 14.0624
A137: M0168 | B137: Abraçadeira de poliamida - E = 3,6 mm e C = 200 mm | C137: un | D137: 0.1968
A138: M0169 | B138: Roda em aço e pneu com câmara de ar 83/203 mm (3,25"/8") para carrinho de mão | C138: un | D138: 75.155
A139: M0173 | B139: Ancoragem ativa para lajes para 1 cordoalha - D = 15,2 mm | C139: un | D139: 91.1391
A140: M0178 | B140: Ancoragem ativa para lajes para 2 cordoalhas - D = 15,2 mm | C140: un | D140: 203.472
A141: M0181 | B141: Ancoragem ativa para lajes para 3 cordoalhas - D = 15,2 mm | C141: un | D141: 278.8653
A142: M0184 | B142: Ancoragem ativa para lajes para 4 cordoalhas - D = 15,2 mm | C142: un | D142: 349.3092
A143: M0191 | B143: Brita 1 | C143: m³ | D143: 164.0601
A144: M0192 | B144: Brita 2 | C144: m³ | D144: 160.4255
A145: M0193 | B145: Brita 3 | C145: m³ | D145: 156.8145
A146: M0194 | B146: Escória de aciaria | C146: m³ | D146: 14.5631
A147: M0198 | B147: Parafuso de cabeça chata em aço - D = 4,5 mm e bucha plástica - D = 8 mm (S8) | C147: un | D147: 0.3591
A148: M0199 | B148: Coroa de botões cruzados linha R32 - D = 43 mm (1 11/16’’) | C148: un | D148: 329.6411
A149: M0201 | B149: Coroa de botões esféricos linha T38 - D = 89 mm (3 1/2") | C149: un | D149: 869.7293
A150: M0202 | B150: Coroa de botões esféricos linha T45 - D = 76 mm (3") | C150: un | D150: 756.9608
A151: M0204 | B151: Instalações físicas para a central de pré-moldagem de dormentes de concreto protendido | C151: CMCC | D151: 1850.42
A152: M0217 | B152: Enxofre | C152: kg | D152: 3.806
A153: M0220 | B153: Adubo à base de nitrogênio, fósforo e potássio (NPK) | C153: kg | D153: 3.0945
A154: M0222 | B154: Filer calcário | C154: kg | D154: 0.1915
A155: M0223 | B155: Sementes para hidrossemeadura | C155: kg | D155: 30.1554
A156: M0224 | B156: Guia-chapéu pré-moldada - C = 120 cm | C156: un | D156: 65.2363
A157: M0225 | B157: Adubo orgânico composto | C157: kg | D157: 0.2829
A158: M0229 | B158: Gabião tipo colchão em liga de zinco e alumínio revestido com polímero de malha hexagonal - E = 0,17 m | C158: m² | D158: 172.9209
A159: M0230 | B159: Gabião tipo caixa em liga de zinco e alumínio de malha hexagonal - C = 2,00 m, L = 1,00 m e H = 0,50 m | C159: un | D159: 548.0361
A160: M0231 | B160: Gabião tipo caixa em liga de zinco e alumínio de malha hexagonal - C = 2,00 m, L = 1,00 m e H = 1,00 m | C160: un | D160: 816.9113
A161: M0232 | B161: Gabião tipo caixa em liga de zinco e alumínio revestido com polímero de malha hexagonal - C = 2,00 m, L = 1,00 m e H = 0,50 m | C161: un | D161: 682.4682
A162: M0233 | B162: Gabião tipo caixa em liga de zinco e alumínio revestido com polímero de malha hexagonal - C = 2,00 m, L = 1,00 m e H = 1,00 m | C162: un | D162: 953.0681
A163: M0234 | B163: Gabião tipo saco em liga de zinco e alumínio revestido com polímero de malha hexagonal - D = 0,65 m | C163: m³ | D163: 493.1827
A164: M0235 | B164: Gabião tipo colchão em liga de zinco e alumínio revestido com polímero de malha hexagonal - E = 0,23 m | C164: m² | D164: 179.9332
A165: M0236 | B165: Gabião tipo colchão em liga de zinco e alumínio revestido com polímero de malha hexagonal - E = 0,30 m | C165: m² | D165: 206.2005
A166: M0237 | B166: Energia elétrica | C166: kWh | D166: 0.9789
A167: M0253 | B167: Cabo de cobre flexível antichama isolado em PVC - tensão de 450/750 V e seção de 16 mm² | C167: m | D167: 13.9196
A168: M0254 | B168: Mistura gasosa de argônio e dióxido de carbono para solda MIG/MAG | C168: m³ | D168: 55.3204
A169: M0256 | B169: Tinta à base de etil silicato de zinco bicomponente para fundo preparador de pintura | C169: l | D169: 251.546
A170: M0257 | B170: Diluente para tinta à base de etil silicato de zinco | C170: l | D170: 36.5919
A171: M0260 | B171: Cabo de cobre PP flexível isolado em PVC - tensão de 300/500 V e seção de 3 x 1,5 mm² | C171: m | D171: 4.7244
A172: M0264 | B172: Bomba de combustível industrial eletrônica simples | C172: un | D172: 28945.8556
A173: M0265 | B173: Tanque de combustível aéreo horizontal com escada para visita - capacidade de 5.000 l | C173: un | D173: 20971.0671
A174: M0266 | B174: Cabo de cobre flexível antichama isolado em PVC - tensão de 0,6/1,0 kV e seção de 240 mm² | C174: m | D174: 170.8889
A175: M0267 | B175: Módulo de torre de elevador de cremalheira | C175: un | D175: 3921.3668
A176: M0268 | B176: Módulo de ancoragem de torre de elevador de cremalheira | C176: un | D176: 2947.2548
A177: M0269 | B177: Cabo de cobre flexível antichama isolado em PVC - tensão de 0,6/1,0 kV e seção de 50 mm² | C177: m | D177: 36.9763
A178: M0284 | B178: Caibro de pinho - L = 7,5 cm e E = 7,5 cm | C178: m | D178: 18.2264
A179: M0285 | B179: Pontalete para escoramento - D = 15 cm | C179: m | D179: 7.9993
A180: M0286 | B180: Tábua - E = 2,5 cm e L = 30 cm | C180: m | D180: 20.6686
A181: M0289 | B181: Tábua - E = 2,5 cm e L = 15 cm | C181: m | D181: 9.9017
A182: M0290 | B182: Tábua - E = 2,5 cm e L = 10 cm | C182: m | D182: 6.3309
A183: M0291 | B183: Estrutura modular com 2 banheiros - L = 2,44 m e C = 6,06 m (1 TEU) | C183: un | D183: 83731.3151
A184: M0292 | B184: Estrutura modular com janela - L = 2,44 m e C = 6,06 m (1 TEU) | C184: un | D184: 68714.4344
A185: M0293 | B185: Estrutura modular com janela - L = 4,88 m e C = 6,06 m (1 TEU duplo) | C185: un | D185: 139201.6023
A186: M0294 | B186: Estrutura modular com janela e 2 banheiros - L = 4,88 m e C = 6,06 m (1 TEU duplo) | C186: un | D186: 139750.6353
A187: M0295 | B187: Estrutura modular com revestimento térmico, janela e banheiro - L = 2,44 m e C = 6,06 m (1 TEU) | C187: un | D187: 76923.9894
A188: M0296 | B188: Estrutura modular com revestimento térmico, janela e banheiro - L = 2,44 m e C = 12,19 m (2 TEU) | C188: un | D188: 146941.3208
A189: M0297 | B189: Estrutura modular com 3 janelas para guarita - L = 2,44 m e C = 3,05 m (1/2 TEU) | C189: un | D189: 42416.3222
A190: M0301 | B190: Pontalete para escoramento - D = 10 cm | C190: m | D190: 3.4419
A191: M0310 | B191: Peça de madeira - L = 7,5 cm e E = 2,5 cm | C191: m | D191: 6.103
A192: M0311 | B192: Filtro de aspiração de ar externo com capacidade 3,58 l/s para compressor de ar respirável | C192: un | D192: 307.7515
A193: M0312 | B193: Filtro de purificação de ar comprimido com capacidade de 35 MPa para compressor de ar respirável | C193: un | D193: 317.0207
A194: M0344 | B194: Cal hidratada - a granel | C194: kg | D194: 0.5126
A195: M0345 | B195: Cal hidratada - saco | C195: kg | D195: 0.783
A196: M0346 | B196: Disco de aço para bomba de projeção via seca | C196: un | D196: 378.772
A197: M0347 | B197: Disco de aço para bomba de projeção via úmida | C197: un | D197: 1486.2944
A198: M0348 | B198: Disco de borracha para bomba de projeção via seca | C198: un | D198: 304.731
A199: M0349 | B199: Disco de borracha para bomba de projeção via úmida | C199: un | D199: 679.7799
A200: M0350 | B200: Bico para bomba de projeção | C200: un | D200: 300.4914
... 1477 more rows

Sheet Pessoal Sicro
A1: CGCIT | B1: SISTEMA DE CUSTOS REFERENCIAIS DE OBRAS - SICRO | G1: DNIT
A3: Maranhão - ABRIL/2025
A4: Sem desoneração
A5: Código | B5: Descrição | C5: Unidade | D5: Salário (R$) | E5: Encargos Totais | F5: Custo (R$) | G5: Periculosidade/ Insalubridade
A6: P9801 | B6: Ajudante | C6: h | F6: 21.7228
A7: P9802 | B7: Ajudante especializado | C7: h | F7: 25.3245
A8: P9803 | B8: Almoxarife | C8: mês | F8: 6228.5397
A9: P9804 | B9: Apontador | C9: mês | F9: 5108.5086
A10: P9805 | B10: Armador | C10: h | F10: 30.785
A11: P9806 | B11: Auxiliar administrativo | C11: mês | F11: 5069.9099
A12: P9807 | B12: Bombeiro hidráulico | C12: h | F12: 31.3343
A13: P9808 | B13: Carpinteiro | C13: h | F13: 27.9922
A14: P9809 | B14: Encarregado administrativo | C14: mês | F14: 7575.7263
A15: P9810 | B15: Eletricista | C15: h | F15: 30.3606
A16: P9811 | B16: Encarregado especializado | C16: mês | F16: 8270.9705
A17: P9812 | B17: Engenheiro | C17: mês | F17: 25169.5344
A18: P9814 | B18: Operacional | C18: mês | F18: 4222.9112
A19: P9815 | B19: Jardineiro | C19: h | F19: 28.795
A20: P9819 | B20: Engenheiro supervisor | C20: mês | F20: 25169.5344
A21: P9821 | B21: Pedreiro | C21: h | F21: 27.6343
A22: P9822 | B22: Pintor | C22: h | F22: 30.7634
A23: P9823 | B23: Serralheiro | C23: h | F23: 28.7245
A24: P9824 | B24: Servente | C24: h | F24: 21.3406
A25: P9825 | B25: Soldador | C25: h | F25: 35.2942
A26: P9826 | B26: Chefe setor de finanças | C26: mês | F26: 26212.9097
A27: P9827 | B27: Vigia | C27: mês | F27: 4725.5765
A28: P9830 | B28: Montador | C28: h | F28: 31.6184
A29: P9833 | B29: Auxiliar de laboratório | C29: mês | F29: 5646.9455
A30: P9837 | B30: Oceanógrafo | C30: mês | F30: 12409.2716
A31: P9840 | B31: Encarregado geral | C31: mês | F31: 11656.0318
A32: P9842 | B32: Faxineiro | C32: mês | F32: 4033.4643
A33: P9843 | B33: Operador de equipamento leve | C33: h | F33: 27.5159
A34: P9845 | B34: Operador de equipamento pesado | C34: h | F34: 33.2943
A35: P9846 | B35: Operador de equipamento especial | C35: h | F35: 43.1549
A36: P9847 | B36: Perfurador de tubulão | C36: h | F36: 21.7025
A37: P9848 | B37: Desenhista | C37: mês | F37: 7930.9573
A38: P9849 | B38: Condutor maquinista fluvial | C38: mês | F38: 5793.809
A39: P9850 | B39: Copeiro | C39: mês | F39: 4284.9434
A40: P9851 | B40: Médico do trabalho | C40: mês | F40: 18575.8219
A41: P9852 | B41: Blaster | C41: h | F41: 40.9803
A42: P9853 | B42: Pré-marcador | C42: h | F42: 21.5855
A43: P9854 | B43: Recepcionista | C43: mês | F43: 4153.6593
A44: P9855 | B44: Marinheiro de máquinas | C44: mês | F44: 5392.5519
A45: P9856 | B45: Marinheiro de convés | C45: h | F45: 29.1508
A46: P9857 | B46: Marinheiro de convés - mensalista | C46: mês | F46: 5362.8194
A47: P9858 | B47: Laboratorista | C47: mês | F47: 7399.543
A48: P9859 | B48: Trabalhador de via | C48: h | F48: 21.3643
A49: P9861 | B49: Selecionador de material pétreo | C49: h | F49: 21.6317
A50: P9864 | B50: Engenheiro de segurança do trabalho | C50: mês | F50: 24420.804
A51: P9866 | B51: Motorista de caminhão | C51: h | F51: 29.9105
A52: P9867 | B52: Técnico especializado - mensalista | C52: mês | F52: 7095.1766
A53: P9869 | B53: Encarregado de obras de artes especiais | C53: mês | F53: 8270.9705
A54: P9870 | B54: Motorista de veículo leve | C54: h | F54: 30.4162
A55: P9871 | B55: Motorista de veículo especial | C55: h | F55: 35.0256
A56: P9875 | B56: Encarregado de turma | C56: mês | F56: 5828.315
A57: P9876 | B57: Técnico de segurança do trabalho | C57: mês | F57: 7298.4723
A58: P9878 | B58: Secretária | C58: mês | F58: 6718.4541
A59: P9880 | B59: Piloto fluvial | C59: mês | F59: 7681.1978
A60: P9882 | B60: Técnico especializado | C60: h | F60: 38.3928
A61: P9883 | B61: Chefe do setor administrativo | C61: mês | F61: 7575.8406
A62: P9884 | B62: Encarregado de terraplenagem | C62: mês | F62: 8270.9705
A63: P9885 | B63: Frentista de túnel | C63: h | F63: 22.0907
A64: P9889 | B64: Técnico da qualidade | C64: mês | F64: 7897.1986
A65: P9892 | B65: Auxiliar de blaster | C65: h | F65: 35.9167
A66: P9893 | B66: Encarregado de pavimentação | C66: mês | F66: 8270.9705
A67: P9896 | B67: Porteiro | C67: mês | F67: 4026.1953
A68: P9897 | B68: Técnico de meio ambiente | C68: mês | F68: 7881.727
A69: P9900 | B69: Comprador | C69: mês | F69: 7397.8048
A70: P9901 | B70: Encarregado de superestrutura ferroviária | C70: mês | F70: 8270.9705
A71: P9903 | B71: Auxiliar técnico | C71: mês | F71: 4684.6961
A72: P9907 | B72: Comandante de longo curso | C72: mês | F72: 20406.5748
A73: P9908 | B73: Imediato | C73: mês | F73: 16496.0338
A74: P9909 | B74: Oficial de náutica | C74: mês | F74: 6710.0394
A75: P9910 | B75: Oficial de máquinas | C75: mês | F75: 6537.6874
A76: P9913 | B76: Draguista | C76: mês | F76: 6517.2139
A77: P9915 | B77: Maquinista | C77: h | F77: 34.2553
A78: P9916 | B78: Encarregado de conservação rodoviária | C78: mês | F78: 8270.9705
A79: P9920 | B79: Mestre fluvial | C79: mês | F79: 8583.8884
A80: P9921 | B80: Mergulhador raso autônomo de emergência | C80: h | F80: 38.9431
A81: P9922 | B81: Mergulhador raso dependente de emergência | C81: h | F81: 40.5121
A82: P9924 | B82: Mergulhador raso dependente | C82: h | F82: 52.6832
A83: P9925 | B83: Mergulhador raso autônomo | C83: h | F83: 48.9012
A84: P9926 | B84: Mergulhador raso auxiliar de superfície | C84: h | F84: 36.8397
A85: P9927 | B85: Frentista de túnel com periculosidade | C85: h | F85: 26.5408
A86: P9930 | B86: Eletricista com periculosidade | C86: h | F86: 37.2762
A87: P9931 | B87: Operador de equipamento de mergulho | C87: h | F87: 58.7273
A88: P9932 | B88: Operador de equipamento pesado com periculosidade | C88: h | F88: 41.2443
A89: P9933 | B89: Supervisor de mergulho raso | C89: mês | F89: 10832.5565
A90: P9934 | B90: Motorista de veículo especial com periculosidade | C90: h | F90: 43.5266
A91: P9938 | B91: Operador de equipamento leve com periculosidade | C91: h | F91: 33.7279
A92: P9939 | B92: Operador de equipamento leve com insalubridade | C92: h | F92: 35.339
A93: P9942 | B93: Marinheiro de convés com periculosidade | C93: h | F93: 35.9468
A94: P9944 | B94: Operador de equipamento especial com periculosidade | C94: h | F94: 54.0892
A95: P9946 | B95: Engenheiro auxiliar | C95: mês | F95: 23592.8645
A96: P9947 | B96: Técnico florestal | C96: mês | F96: 7881.727
A97: P9948 | B97: Motorista de veículo leve - mensalista | C97: mês | F97: 5614.879
A98: P9949 | B98: Topógrafo | C98: mês | F98: 8757.2734
A99: P9950 | B99: Auxiliar de topografia | C99: mês | F99: 5667.1287
A100: P9951 | B100: Médico de câmara hiperbárica | C100: mês | F100: 21148.057
A101: P9952 | B101: Pedreiro - mensalista | C101: mês | F101: 5108.1604
A102: P9953 | B102: Eletricista - mensalista | C102: mês | F102: 5593.9461
A103: P9954 | B103: Servente - mensalista | C103: mês | F103: 3953.259
A104: P9955 | B104: Engenheiro chefe | C104: mês | F104: 31577.9207
A105: P9956 | B105: Motorista de caminhão com periculosidade | C105: h | F105: 36.8769
A106: P9972 | B106: Técnico de batimetria | C106: mês | F106: 6696.4841

Sheet Equipamentos
A1: CGCIT | B1: SISTEMA DE CUSTOS REFERENCIAIS DE OBRAS - SICRO | K1: DNIT
B2: Maranhão - ABRIL/2025
A3: Código | B3: Descrição | C3: Valor de Aquisição (R$) | D3: Depreciação (R$/h) | E3: Oportunidade de Capital (R$/h) | F3: Seguros e Impostos (R$/h) | G3: Manutenção (R$/h) | H3: Operação (R$/h) | I3: Mão de Obra de Operação (R$/h) | J3: Custo Produtivo (R$/h) | K3: Custo Improdutivo (R$/h)
A4: E9001 | B4: Conjunto vibratório para tubos de concreto com encaixe PB e 3 jogos de fôrmas - D = 0,60 m - 2,20 kW | C4: 73241.9182 | D4: 9.7656 | E4: 2.2595 | F4: 0 | G4: 7.3242 | H4: 0 | I4: 0 | J4: 19.3493 | K4: 12.0251
A5: E9002 | B5: Conjunto vibratório para tubos de concreto com encaixe PB e 3 jogos de fôrmas - D = 0,80 m - 2,20 kW | C5: 95724.1436 | D5: 12.7632 | E5: 2.9531 | F5: 0 | G5: 9.5724 | H5: 0 | I5: 0 | J5: 25.2887 | K5: 15.7163
A6: E9003 | B6: Conjunto vibratório para tubos de concreto com encaixe PB e 3 jogos de fôrmas - D = 1,00 m - 2,20 kW | C6: 100218.7161 | D6: 13.3625 | E6: 3.0917 | F6: 0 | G6: 10.0219 | H6: 0 | I6: 0 | J6: 26.4761 | K6: 16.4542
A7: E9004 | B7: Conjunto vibratório para tubos de concreto com encaixe PB e 3 jogos de fôrmas - D = 1,20 m - 2,20 kW | C7: 125800.3779 | D7: 16.7734 | E7: 3.8809 | F7: 0 | G7: 12.58 | H7: 0 | I7: 0 | J7: 33.2343 | K7: 20.6543
A8: E9005 | B8: Conjunto vibratório para tubos de concreto com encaixe PB e 3 jogos de fôrmas - D = 1,50 m - 2,20 kW | C8: 148657.0644 | D8: 19.8209 | E8: 4.5861 | F8: 0 | G8: 14.8657 | H8: 0 | I8: 0 | J8: 39.2727 | K8: 24.407
A9: E9006 | B9: Equipamento para sondagem manual | C9: 4864.8255 | D9: 0.827 | E9: 0.1801 | F9: 0 | G9: 0.4865 | H9: 0 | I9: 0 | J9: 1.4936 | K9: 1.0071
A10: E9007 | B10: Bomba de pistão triplex com capacidade de 7,80 m³/h (130 l/min) - 8,20 kW | C10: 162304.6321 | D10: 12.9844 | E10: 3.0043 | F10: 0 | G10: 11.3613 | H10: 8.569 | I10: 0 | J10: 35.919 | K10: 15.9887
A11: E9008 | B11: Transportador manual de tubos de concreto com capacidade de 1 t | C11: 1723.7232 | D11: 1.5514 | E11: 0.1064 | F11: 0 | G11: 0.8619 | H11: 0 | I11: 0 | J11: 2.5197 | K11: 1.6578
A12: E9009 | B12: Embarcação rebocadora - 268 kW | C12: 684777.3168 | D12: 8.9164 | E12: 3.9732 | F12: 0 | G12: 19.8142 | H12: 280.06 | I12: 137.4867 | J12: 450.2505 | K12: 150.3763
A13: E9010 | B13: Balança plataforma digital à bateria, com mesa de 75 x 75 cm e capacidade de 500 kg | C13: 4955.5485 | D13: 0.7433 | E13: 0.1019 | F13: 0 | G13: 0.413 | H13: 0 | I13: 0 | J13: 1.2582 | K13: 0.8452
A14: E9011 | B14: Carro manual modelo plataforma de 200 x 80 cm com capacidade de 800 kg | C14: 1890.9761 | D14: 0.3404 | E14: 0.07 | F14: 0 | G14: 0.1891 | H14: 0 | I14: 0 | J14: 0.5995 | K14: 0.4104
A15: E9014 | B15: Deflectômetro de impacto (FWD) instalado em picape com reboque e faixa de carga de 7 a 120 kN - 147 kW | C15: 2261753.223 | D15: 180.9403 | E15: 41.8651 | F15: 0 | G15: 113.0877 | H15: 0 | I15: 35.0256 | J15: 370.9187 | K15: 257.831
A16: E9015 | B16: Elevador de obra com capacidade de 1.000 kg - 9 kW | C16: 67946.8469 | D16: 5.4357 | E16: 1.2577 | F16: 0 | G16: 4.7563 | H16: 0 | I16: 27.5159 | J16: 38.9656 | K16: 34.2093
A17: E9016 | B17: Usina misturadora móvel de reciclagem a frio com sistema de espuma de asfalto - 129,40 kW | C17: 9880264.174 | D17: 576.3487 | E17: 177.8036 | F17: 0 | G17: 741.0198 | H17: 99.638 | I17: 43.1549 | J17: 1637.965 | K17: 797.3072
A18: E9017 | B18: Escavadeira hidráulica sobre esteira com capacidade de 0,4 m³ - 64 kW | C18: 723686.7595 | D18: 50.6581 | E18: 13.3954 | F18: 0 | G18: 50.6581 | H18: 45.76 | I18: 33.2943 | J18: 193.7659 | K18: 97.3478
A19: E9020 | B19: Recicladora a frio - 455 kW | C19: 5332517.581 | D19: 311.0635 | E19: 95.9631 | F19: 0 | G19: 444.3765 | H19: 500.5 | I19: 43.1549 | J19: 1395.058 | K19: 450.1815
A20: E9021 | B20: Grupo gerador - 456 kVA | C20: 357352.3896 | D20: 17.8676 | E20: 6.2996 | F20: 0 | G20: 12.7626 | H20: 381.425 | I20: 0 | J20: 418.3548 | K20: 24.1672
A21: E9022 | B21: Pórtico metálico rolante com capacidade de 25 t - 30 kW | C21: 816017.2838 | D21: 36.7208 | E21: 13.8458 | F21: 0 | G21: 28.5606 | H21: 0 | I21: 27.5159 | J21: 106.6431 | K21: 78.0825
A22: E9023 | B22: Guindaste móvel sobre esteiras com dragline com capacidade de 1,9 a 2,3 m³ - 270 kW | C22: 4049207.351 | D22: 141.7223 | E22: 68.7049 | F22: 0 | G22: 202.4604 | H22: 74.25 | I22: 43.1549 | J22: 530.2925 | K22: 253.5821
A23: E9024 | B23: Misturador de nata cimento - 1,50 kW | C23: 9573.3865 | D23: 0.7659 | E23: 0.1772 | F23: 0 | G23: 0.6701 | H23: 0 | I23: 27.5159 | J23: 29.1291 | K23: 28.459
A24: E9025 | B24: Conjunto bomba e macaco hidráulico para protensão com capacidade de 7.000 kN - 15 kW | C24: 105267.3732 | D24: 6.0153 | E24: 1.8557 | F24: 0 | G24: 6.0153 | H24: 0 | I24: 43.1549 | J24: 57.0412 | K24: 51.0259
A25: E9026 | B25: Bomba para injeção de nata de cimento com capacidade de 2 MPa - 2,20 kW | C25: 33292.9626 | D25: 2.6634 | E25: 0.6163 | F25: 0 | G25: 2.3305 | H25: 0 | I25: 0 | J25: 5.6102 | K25: 3.2797
A26: E9028 | B26: Bomba de alta pressão para hidrojateamento com capacidade de 18 MPa - 5,20 kW | C26: 5669.167 | D26: 0.4535 | E26: 0.1049 | F26: 0 | G26: 0.5102 | H26: 9.7334 | I26: 27.5159 | J26: 38.3179 | K26: 28.0743
A27: E9029 | B27: Conjunto bomba e macaco hidráulico para protensão com capacidade de 8.000 kN - 20 kW | C27: 133859.3485 | D27: 7.6491 | E27: 2.3597 | F27: 0 | G27: 7.6491 | H27: 0 | I27: 43.1549 | J27: 60.8128 | K27: 53.1637
A28: E9030 | B28: Bomba de protensão com leitura digital para tensionamento de estais - 3 kW | C28: 14701.7777 | D28: 0.8401 | E28: 0.2592 | F28: 0 | G28: 0.8401 | H28: 0 | I28: 0 | J28: 1.9394 | K28: 1.0993
A29: E9031 | B29: Elevador de cremalheira com cabine simples, com capacidade de 1.500 kg e altura de até 100 m - 15 kW | C29: 339987.7974 | D29: 27.199 | E29: 6.2932 | F29: 0 | G29: 23.7991 | H29: 0 | I29: 27.5159 | J29: 84.8072 | K29: 61.0081
A30: E9032 | B30: Equipamento para regulagem final de estais com até 37 cordoalhas - D = 15,7 mm - 20 kW | C30: 78733.8867 | D30: 4.4991 | E30: 1.388 | F30: 0 | G30: 4.4991 | H30: 0 | I30: 43.1549 | J30: 53.5411 | K30: 49.042
A31: E9033 | B31: Equipamento para regulagem final de estais de 38 a 55 cordoalhas - D = 15,7 mm - 30 kW | C31: 112458.8671 | D31: 6.4262 | E31: 1.9825 | F31: 0 | G31: 6.4262 | H31: 0 | I31: 43.1549 | J31: 57.9898 | K31: 51.5636
A32: E9034 | B32: Equipamento para regulagem final de estais de 56 a 73 cordoalhas - D = 15,7 mm - 40 kW | C32: 168634.4204 | D32: 9.6363 | E32: 2.9728 | F32: 0 | G32: 9.6363 | H32: 0 | I32: 43.1549 | J32: 65.4003 | K32: 55.764
A33: E9035 | B33: Equipamento para regulagem final de estais de 74 a 91 cordoalhas - D = 15,7 mm - 50 kW | C33: 224810.9085 | D33: 12.8463 | E33: 3.9631 | F33: 0 | G33: 12.8463 | H33: 0 | I33: 43.1549 | J33: 72.8106 | K33: 59.9643
A34: E9036 | B34: Grua fixa para alturas de 60 a 102 m, com alcance de 60 m com capacidade de 1.500 kg na ponta da lança - 37 kW | C34: 3747436.996 | D34: 187.3718 | E34: 66.062 | F34: 0 | G34: 214.1393 | H34: 0 | I34: 43.1549 | J34: 510.728 | K34: 296.5887
A35: E9038 | B35: Macaco hidráulico monocordoalha para tensionamento de estais - 3 kW | C35: 18390.0254 | D35: 1.0509 | E35: 0.3242 | F35: 0 | G35: 1.0509 | H35: 0 | I35: 43.1549 | J35: 45.5809 | K35: 44.53
A36: E9039 | B36: Máquina de solda por termofusão para tubos PEAD com gerador de 4 kW | C36: 115678.2517 | D36: 6.6102 | E36: 2.0392 | F36: 0 | G36: 6.6102 | H36: 4.18 | I36: 43.1549 | J36: 62.5945 | K36: 51.8043
A37: E9040 | B37: Serra mármore - 1,45 kW | C37: 489.8771 | D37: 0.0441 | E37: 0.0091 | F37: 0 | G37: 0.0245 | H37: 0 | I37: 0 | J37: 0.0777 | K37: 0.0532
A38: E9042 | B38: Trator sobre esteiras com lâmina - 97 kW | C38: 1335996.541 | D38: 51.9554 | E38: 22.8975 | F38: 0 | G38: 74.222 | H38: 74.69 | I38: 33.2943 | J38: 257.0592 | K38: 108.1472
A39: E9043 | B39: Embarcação de alumínio com comprimento de 6 m e motor de popa - 18,60 kW | C39: 32917.687 | D39: 0.5143 | E39: 0.1939 | F39: 0 | G39: 0.5715 | H39: 39.7891 | I39: 42.091 | J39: 83.1598 | K39: 42.7992
A40: E9044 | B40: Central de concreto com capacidade de 150 m³/h - dosadora e misturadora | C40: 1887015.918 | D40: 107.8295 | E40: 33.2654 | F40: 0 | G40: 94.3508 | H40: 0 | I40: 43.1549 | J40: 278.6006 | K40: 184.2498
A41: E9045 | B41: Conjunto bomba e macaco hidráulico para elevação com capacidade de 496 kN | C41: 68447.054 | D41: 5.4758 | E41: 1.267 | F41: 0 | G41: 5.4758 | H41: 6.1609 | I41: 43.1549 | J41: 61.5344 | K41: 49.8977
A42: E9046 | B42: Conjunto bomba e macaco hidráulico para elevação com capacidade de 929 kN | C42: 86547.1472 | D42: 6.9238 | E42: 1.602 | F42: 0 | G42: 6.9238 | H42: 6.1609 | I42: 43.1549 | J42: 64.7654 | K42: 51.6807
A43: E9047 | B43: Conjunto bomba e macaco hidráulico para elevação com capacidade de 1.390 kN | C43: 118001.6362 | D43: 9.4401 | E43: 2.1842 | F43: 0 | G43: 9.4401 | H43: 6.1609 | I43: 43.1549 | J43: 70.3802 | K43: 54.7792
A44: E9048 | B44: Conjunto bomba e macaco hidráulico para elevação com capacidade de 1.859 kN | C44: 136605.3847 | D44: 10.9284 | E44: 2.5286 | F44: 0 | G44: 10.9284 | H44: 6.1609 | I44: 43.1549 | J44: 73.7012 | K44: 56.6119
A45: E9049 | B45: Bomba de alta pressão para hidrojateamento com capacidade de 250 MPa - 72 kW | C45: 713973.1252 | D45: 57.1179 | E45: 13.2156 | F45: 0 | G45: 64.2576 | H45: 59.4 | I45: 27.5159 | J45: 221.507 | K45: 97.8494
A46: E9050 | B46: Guindaste móvel sobre pneus com 2 eixos com capacidade de 18 t - 97 kW | C46: 3352403.669 | D46: 167.6202 | E46: 59.0981 | F46: 0 | G46: 215.5117 | H46: 26.675 | I46: 35.0256 | J46: 503.9306 | K46: 261.7439
A47: E9051 | B47: Máquina levantadora e posicionadora de via - 7,40 kW | C47: 1050651.232 | D47: 84.0521 | E47: 19.4476 | F47: 0 | G47: 73.5456 | H47: 11.0811 | I47: 27.5159 | J47: 215.6423 | K47: 131.0156
A48: E9052 | B48: Empilhadeira a diesel com capacidade de 10 t - 82 kW | C48: 789319.5823 | D48: 63.1456 | E48: 14.6103 | F48: 0 | G48: 55.2524 | H48: 67.65 | I48: 27.5159 | J48: 228.1742 | K48: 105.2718
A49: E9053 | B49: Perfuratriz hidráulica montada em flutuante - 32 kW | C49: 539491.6344 | D49: 16.8591 | E49: 3.4674 | F49: 0 | G49: 14.9859 | H49: 17.6 | I49: 33.7279 | J49: 86.6403 | K49: 54.0544
A50: E9054 | B50: Equipamento sobre forma-trilho para execução e acabamento de pavimento de concreto - 13,40 kW | C50: 1741630.692 | D50: 139.3305 | E50: 32.2376 | F50: 0 | G50: 87.0815 | H50: 20.0657 | I50: 27.5159 | J50: 306.2312 | K50: 199.084
A51: E9055 | B51: Guincho pneumático com capacidade de 2,5 t | C51: 535508.8587 | D51: 48.1958 | E51: 9.9123 | F51: 0 | G51: 26.7754 | H51: 0 | I51: 0 | J51: 84.8835 | K51: 58.1081
A52: E9056 | B52: Plataforma autoelevatória de 12 x 24 m com capacidade de 150 t | C52: 827894.1217 | D52: 6.4679 | E52: 4.6558 | F52: 0 | G52: 14.3732 | H52: 0 | I52: 112.8739 | J52: 138.3708 | K52: 123.9976
A53: E9057 | B53: Batelão sem propulsão com capacidade de 66 m³ | C53: 221391.4263 | D53: 1.7296 | E53: 1.245 | F53: 0 | G53: 2.8827 | H53: 0 | I53: 29.1508 | J53: 35.0081 | K53: 32.1254
A54: E9058 | B54: Plataforma flutuante de 12 x 24 x 1,8 m com capacidade de 150 t | C54: 662144.0908 | D54: 5.173 | E54: 3.7237 | F54: 0 | G54: 8.6217 | H54: 0 | I54: 29.1508 | J54: 46.6692 | K54: 38.0475
A55: E9059 | B55: Plataforma autoelevatória de 12 x 24 m montada na obra com capacidade de 150 t | C55: 827894.1217 | D55: 6.4679 | E55: 4.6558 | F55: 0 | G55: 14.3732 | H55: 0 | I55: 112.8739 | J55: 138.3708 | K55: 123.9976
A56: E9060 | B56: Perfuratriz pneumática rotopercussiva montada em flutuante com pressão de 0,70 MPa e capacidade de 2.500 gpm | C56: 39226.8808 | D56: 1.2258 | E56: 0.2521 | F56: 0 | G56: 1.0896 | H56: 0 | I56: 67.4558 | J56: 70.0233 | K56: 68.9337
A57: E9061 | B57: Lixadeira elétrica manual angular - 2 kW | C57: 1521.425 | D57: 0.1217 | E57: 0.0282 | F57: 0 | G57: 0.0761 | H57: 0 | I57: 0 | J57: 0.226 | K57: 0.1499
A58: E9062 | B58: Soprador de ar quente manual - 1,60 kW | C58: 5492.3157 | D58: 0.7323 | E58: 0.113 | F58: 0 | G58: 0.4577 | H58: 0 | I58: 0 | J58: 1.303 | K58: 0.8453
A59: E9063 | B59: Equipamento de estabilização dinâmica da via - 300 kW | C59: 28426484.36 | D59: 1137.0594 | E59: 482.3264 | F59: 0 | G59: 1137.0594 | H59: 198 | I59: 43.1549 | J59: 2997.6001 | K59: 1662.5407
A60: E9064 | B60: Transportador manual gerica com capacidade de 180 l | C60: 1113.6224 | D60: 1.1136 | E60: 0.0687 | F60: 0 | G60: 0.5568 | H60: 0 | I60: 0 | J60: 1.7391 | K60: 1.1823
A61: E9065 | B61: Carro controle ferroviário - 186 kW | C61: 30510795.45 | D61: 1220.4318 | E61: 517.6919 | F61: 0 | G61: 1067.8778 | H61: 122.76 | I61: 43.1549 | J61: 2971.9164 | K61: 1781.2786
A62: E9066 | B62: Grupo gerador - 14 kVA | C62: 70594.1446 | D62: 3.5297 | E62: 1.2445 | F62: 0 | G62: 2.5212 | H62: 11.495 | I62: 0 | J62: 18.7904 | K62: 4.7742
A63: E9067 | B63: Veículo ferroviário para capina química com capacidade de 12.000 l - 115 kW | C63: 1708310.782 | D63: 68.3324 | E63: 28.9858 | F63: 0 | G63: 42.7078 | H63: 75.9 | I63: 27.5159 | J63: 243.4419 | K63: 124.8341
A64: E9068 | B64: Perfuratriz hidráulica rotopercussiva para CCPH - 123 kW | C64: 5434475.845 | D64: 362.2984 | E64: 97.7979 | F64: 0 | G64: 362.2984 | H64: 101.475 | I64: 33.2943 | J64: 957.164 | K64: 493.3906
A65: E9069 | B65: Vibrador de imersão para concreto - 4,10 kW | C65: 4146.4209 | D65: 0.6634 | E65: 0.1535 | F65: 0 | G65: 0.4146 | H65: 7.6744 | I65: 0 | J65: 8.9059 | K65: 0.8169
A66: E9070 | B66: Ponte rolante com capacidade de 5 t e vão de até 15 m - 10 kW | C66: 419337.7896 | D66: 16.7735 | E66: 7.1151 | F66: 0 | G66: 10.4834 | H66: 0 | I66: 27.5159 | J66: 61.8879 | K66: 51.4045
A67: E9071 | B67: Transportador manual carrinho de mão com capacidade de 80 l | C67: 482.0056 | D67: 0.482 | E67: 0.0297 | F67: 0 | G67: 0.241 | H67: 0 | I67: 0 | J67: 0.7527 | K67: 0.5117
A68: E9072 | B68: Martelo hidráulico vibratório com unidade hidráulica - 486 kW | C68: 3281018.204 | D68: 218.7345 | E68: 59.0447 | F68: 0 | G68: 191.3927 | H68: 400.95 | I68: 43.1549 | J68: 913.2768 | K68: 320.9341
A69: E9073 | B69: Bomba de concreto rebocável com capacidade de 30 m³/h - 74 kW | C69: 487341.1896 | D69: 38.9873 | E69: 9.0207 | F69: 0 | G69: 38.9873 | H69: 77.33 | I69: 27.5159 | J69: 191.8412 | K69: 75.5239
A70: E9074 | B70: Tanque de estocagem de asfalto com agitadores de 60.000 l | C70: 929104.8191 | D70: 38.7127 | E70: 13.4357 | F70: 0 | G70: 24.1954 | H70: 0 | I70: 0 | J70: 76.3438 | K70: 52.1484
A71: E9075 | B71: Trado cavadeira de 12" | C71: 162.5822 | D71: 0.0813 | E71: 0.0075 | F71: 0 | G71: 0.0406 | H71: 0 | I71: 0 | J71: 0.1294 | K71: 0.0888
A72: E9076 | B72: Equipamento para pintura eletrostática com cabine dupla de 7,00 kW e estufa de 80.000 kCal | C72: 162168.6807 | D72: 10.4251 | E72: 2.8588 | F72: 0 | G72: 5.7917 | H72: 0 | I72: 27.5159 | J72: 46.5915 | K72: 40.7998
A73: E9077 | B73: Perfuratriz de circulação reversa tipo Wirth ou similar com unidade hidráulica (Power Pack) - 273 kW | C73: 4706926.211 | D73: 313.7951 | E73: 84.7051 | F73: 0 | G73: 313.7951 | H73: 150.15 | I73: 33.2943 | J73: 895.7396 | K73: 431.7945
A74: E9078 | B74: Treliça lançadeira com capacidade de carga de 100 a 120 t e vão máximo de 45 m - 110 kW | C74: 3558438.962 | D74: 94.8917 | E74: 58.5482 | F74: 0 | G74: 59.3073 | H74: 0 | I74: 43.1549 | J74: 255.9021 | K74: 196.5948
A75: E9079 | B75: Bomba submersível com capacidade de 360 m³/h - 23 kW | C75: 179476.3037 | D75: 14.3581 | E75: 3.3221 | F75: 0 | G75: 12.5633 | H75: 0 | I75: 0 | J75: 30.2435 | K75: 17.6802
A76: E9080 | B76: Carrelone com capacidade máxima de 70 t | C76: 1840783.921 | D76: 82.8353 | E76: 31.2335 | F76: 0 | G76: 46.0196 | H76: 0 | I76: 27.5159 | J76: 187.6043 | K76: 141.5847
A77: E9081 | B77: Fischietti simples com capacidade de 70 t | C77: 111264.6541 | D77: 5.0069 | E77: 1.8879 | F77: 0 | G77: 2.7816 | H77: 0 | I77: 27.5159 | J77: 37.1923 | K77: 34.4107
A78: E9083 | B78: Vagão fechado FLT com capacidade de 99 t | C78: 845000 | D78: 13.3792 | E78: 13.4686 | F78: 0 | G78: 7.0417 | H78: 0 | I78: 0 | J78: 33.8895 | K78: 26.8478
A79: E9084 | B79: Vagão tanque convencional TCT com capacidade de 97 t e 103.000 l | C79: 1230000 | D79: 19.475 | E79: 19.6052 | F79: 0 | G79: 10.25 | H79: 0 | I79: 0 | J79: 49.3302 | K79: 39.0802
A80: E9085 | B80: Vagão gôndola GDE com capacidade de 93,5 t / 29 m³ | C80: 620000 | D80: 9.8167 | E80: 9.8823 | F80: 0 | G80: 5.1667 | H80: 0 | I80: 0 | J80: 24.8657 | K80: 19.699
A81: E9086 | B81: Bomba de concreto rebocável com capacidade de 41 m³/h - 74 kW | C81: 547130.712 | D81: 43.7705 | E81: 10.1274 | F81: 0 | G81: 43.7705 | H81: 77.33 | I81: 27.5159 | J81: 202.5143 | K81: 81.4138
A82: E9089 | B82: Roçadeira costal - 1,40 kW | C82: 3257.6964 | D82: 0.4887 | E82: 0.067 | F82: 0 | G82: 0.3801 | H82: 8.2359 | I82: 0 | J82: 9.1717 | K82: 0.5557
A83: E9093 | B83: Veículo leve - 53 kW (sem motorista) | C83: 77364.668 | D83: 4.6419 | E83: 1.432 | F83: 0.5802 | G83: 4.6419 | H83: 25.51 | I83: 0 | J83: 36.806 | K83: 6.6541
A84: E9094 | B84: Guindaste móvel sobre pneus com 6 eixos com capacidade máxima de 350 t - 450 kW | C84: 20441213.3 | D84: 1022.0607 | E84: 360.3494 | F84: 146.0087 | G84: 1314.078 | H84: 123.75 | I84: 35.0256 | J84: 3001.2724 | K84: 1563.4444
A85: E9095 | B85: Guindaste móvel sobre pneus com 8 eixos com capacidade máxima de 500 t - 500 kW | C85: 34403098.05 | D85: 1720.1549 | E85: 606.4775 | F85: 245.7364 | G85: 2211.6277 | H85: 137.5 | I85: 35.0256 | J85: 4956.5221 | K85: 2607.3944
A86: E9096 | B86: Minicarregadeira de pneus - 45,50 kW | C86: 409258.3072 | D86: 28.6481 | E86: 7.5754 | F86: 0 | G86: 28.6481 | H86: 62.5625 | I86: 33.2943 | J86: 160.7284 | K86: 69.5178
A87: E9101 | B87: Removedora de faixas de sinalização viária - 9,69 kW | C87: 51140.3733 | D87: 4.0912 | E87: 0.9466 | F87: 0 | G87: 3.5798 | H87: 18.1377 | I87: 0 | J87: 26.7553 | K87: 5.0378
A88: E9102 | B88: Extrusora para sarjeta de concreto - 10,44 kW | C88: 82269.9634 | D88: 6.5816 | E88: 1.5228 | F88: 0 | G88: 5.7589 | H88: 8.613 | I88: 27.5159 | J88: 49.9922 | K88: 35.6203
A89: E9103 | B89: Extrusora para meio-fio de concreto - 10,44 kW | C89: 67826.7634 | D89: 5.4261 | E89: 1.2555 | F89: 0 | G89: 4.7479 | H89: 8.613 | I89: 27.5159 | J89: 47.5584 | K89: 34.1975
A90: E9105 | B90: Embarcação empurradora multipropósito - 2 x 186 kW | C90: 5497137.858 | D90: 71.5773 | E90: 31.8956 | F90: 0 | G90: 159.0607 | H90: 388.74 | I90: 137.4867 | J90: 788.7603 | K90: 240.9596
A91: E9106 | B91: Balsa de convés com capacidade de 200 t | C91: 1895513.741 | D91: 14.8087 | E91: 10.6598 | F91: 0 | G91: 24.6812 | H91: 0 | I91: 29.1508 | J91: 79.3005 | K91: 54.6193
A92: E9107 | B92: Compactador manual com soquete vibratório - 2,24 kW | C92: 11317.0932 | D92: 0.7545 | E92: 0.2037 | F92: 0 | G92: 0.7545 | H92: 4.1928 | I92: 0 | J92: 5.9055 | K92: 0.9582
A93: E9108 | B93: Soldadora de trilho por caldeamento na via - 400 kW | C93: 10000000 | D93: 160 | E93: 160.42 | F93: 0 | G93: 200 | H93: 264 | I93: 86.3098 | J93: 870.7298 | K93: 406.7298
A94: E9110 | B94: Escavadeira hidráulica sobre esteiras para rocha com caçamba com capacidade de 1,56 m³ - 118 kW | C94: 1200058.948 | D94: 120.0059 | E94: 23.7997 | F94: 0 | G94: 120.0059 | H94: 123.31 | I94: 33.2943 | J94: 420.4158 | K94: 177.0999
A95: E9111 | B95: Jateador abrasivo úmido com capacidade de 350 kg de abrasivo | C95: 325522.5605 | D95: 29.297 | E95: 6.0254 | F95: 0 | G95: 29.297 | H95: 0 | I95: 27.5159 | J95: 92.1353 | K95: 62.8383
A96: E9112 | B96: Sinalizador direcional móvel com sistema fotovoltaico de energia e montado em chassi sobre pneus | C96: 23062.5105 | D96: 2.0756 | E96: 0.4269 | F96: 0 | G96: 1.1531 | H96: 0 | I96: 0 | J96: 3.6556 | K96: 2.5025
A97: E9113 | B97: Painel de Mensagem Variável - PMV móvel, com sistema fotovoltaico de energia e montado em chassi sobre pneus | C97: 176411.1896 | D97: 15.877 | E97: 3.2654 | F97: 0 | G97: 8.8206 | H97: 0 | I97: 0 | J97: 27.963 | K97: 19.1424
A98: E9116 | B98: Semáforo móvel com 3 lentes e bateria - D = 200 mm | C98: 8134.1127 | D98: 0.7321 | E98: 0.1506 | F98: 0 | G98: 0.4067 | H98: 0 | I98: 0 | J98: 1.2894 | K98: 0.8827
A99: E9117 | B99: Carregadeira de pneus para rocha com capacidade de 2,50 m³ - 105 kW | C99: 1006214.153 | D99: 100.6214 | E99: 19.9554 | F99: 0 | G99: 100.6214 | H99: 109.725 | I99: 33.2943 | J99: 364.2175 | K99: 153.8711
A100: E9118 | B100: Cortadora de pavimento com disco diamantado de 450 a 1.500 mm - 55,40 kW | C100: 488602.9034 | D100: 39.0882 | E100: 9.044 | F100: 0 | G100: 39.0882 | H100: 45.705 | I100: 27.5159 | J100: 160.4413 | K100: 75.6481
A101: E9119 | B101: Minicarregadeira sobre pneus com valetadeira - 55,40 kW | C101: 801739.4135 | D101: 56.1218 | E101: 14.8402 | F101: 0 | G101: 56.1218 | H101: 76.175 | I101: 33.2943 | J101: 236.5531 | K101: 104.2563
A102: E9120 | B102: Equipamento de cravação sobre esteira para geodreno com haste para profundidade de até 20 m - 258 kW | C102: 2587024.796 | D102: 181.0917 | E102: 47.8858 | F102: 0 | G102: 181.0917 | H102: 184.47 | I102: 27.5159 | J102: 622.0551 | K102: 256.4934
A103: E9122 | B103: Perfuratriz tipo Bottom Feed para coluna de brita - 194 kW | C103: 7005375.292 | D103: 467.025 | E103: 126.0676 | F103: 0 | G103: 467.025 | H103: 106.7 | I103: 33.2943 | J103: 1200.1119 | K103: 626.3869
A104: E9125 | B104: Veículo tipo van furgão com capacidade de 1,38 t - 100 kW | C104: 231784.0903 | D104: 11.5892 | E104: 4.1711 | F104: 1.6901 | G104: 11.5892 | H104: 27.5 | I104: 30.4162 | J104: 86.9558 | K104: 47.8666
A105: E9126 | B105: Draga backhoe com capacidade de 7 m³ - 1.000 kW | C105: 187404795.6 | D105: 2108.304 | E105: 1517.6275 | F105: 0 | G105: 4685.1199 | H105: 1045 | I105: 64.8635 | J105: 9420.9149 | K105: 3690.795
A106: E9127 | B106: Escavadeira hidráulica com martelo hidráulico de 520 kg - 75 kW | C106: 902857.5923 | D106: 103.1837 | E106: 17.9056 | F106: 0 | G106: 128.9797 | H106: 53.625 | I106: 33.2943 | J106: 336.9883 | K106: 154.3836
A107: E9134 | B107: Miniônibus com capacidade para 30 passageiros - 111 kW | C107: 682146.1047 | D107: 29.2348 | E107: 12.0253 | F107: 4.8725 | G107: 43.8522 | H107: 115.995 | I107: 29.9105 | J107: 235.8903 | K107: 76.0431
A108: E9141 | B108: Rebarbador hidráulico com bomba manual com capacidade de força de 9.000 kgf | C108: 96041.2565 | D108: 7.6833 | E108: 1.7777 | F108: 0 | G108: 4.8021 | H108: 0 | I108: 0 | J108: 14.2631 | K108: 9.461
A109: E9144 | B109: Pórtico metálico rolante com talha com capacidade de 5 t - 10 kW | C109: 312234.036 | D109: 12.4894 | E109: 5.2978 | F109: 0 | G109: 7.8059 | H109: 0 | I109: 27.5159 | J109: 53.109 | K109: 45.3031
A110: E9148 | B110: Macaco de protensão de fios com bomba - 3,72 kW | C110: 100949.4669 | D110: 5.7685 | E110: 1.7796 | F110: 0 | G110: 5.7685 | H110: 0 | I110: 43.1549 | J110: 56.4715 | K110: 50.703
A111: E9149 | B111: Máquina de aplicação e extração de grampo elástico tipo Pandrol - 6,70 kW | C111: 265762.3083 | D111: 21.261 | E111: 4.9193 | F111: 0 | G111: 21.261 | H111: 10.0328 | I111: 0 | J111: 57.4741 | K111: 26.1803
A112: E9151 | B112: Britador de mandíbulas móvel sobre esteiras, sem peneira, com capacidade de 140 m³/h - 170 kW | C112: 2983517.36 | D112: 170.4867 | E112: 52.5951 | F112: 0 | G112: 170.4867 | H112: 168.3 | I112: 43.1549 | J112: 605.0234 | K112: 266.2367
A113: E9152 | B113: Ferramenta de fixação à pólvora de ação direta | C113: 1058.5419 | D113: 0.09 | E113: 0.0196 | F113: 0 | G113: 0.0847 | H113: 0 | I113: 0 | J113: 0.1943 | K113: 0.1096
A114: E9153 | B114: Ferramenta de fixação à pólvora e sistema à pistão | C114: 1002.7404 | D114: 0.0852 | E114: 0.0186 | F114: 0 | G114: 0.0802 | H114: 0 | I114: 0 | J114: 0.184 | K114: 0.1038
A115: E9154 | B115: Equipamento para selagem com material asfáltico rebocável com capacidade de 370 l - 35 kW | C115: 454575.6905 | D115: 29.2227 | E115: 8.0135 | F115: 0 | G115: 9.7409 | H115: 28.875 | I115: 27.5159 | J115: 103.368 | K115: 64.7521
A116: E9155 | B116: Caldeira de asfalto rebocável com capacidade de 600 l - 5,20 kW | C116: 147663.0984 | D116: 9.4926 | E116: 2.6031 | F116: 0 | G116: 3.1642 | H116: 4.004 | I116: 0 | J116: 19.2639 | K116: 12.0957
A117: E9156 | B117: Soprador de ar costal - 2,6 kW | C117: 2695.2376 | D117: 0.4312 | E117: 0.0998 | F117: 0 | G117: 0.3773 | H117: 4.8667 | I117: 0 | J117: 5.775 | K117: 0.531
A118: E9157 | B118: Locomotiva diesel-elétrica CC - bitola métrica - 2.237 kW | C118: 8737202.288 | D118: 139.7952 | E118: 140.1622 | F118: 0 | G118: 174.744 | H118: 1476.42 | I118: 34.2553 | J118: 1965.3767 | K118: 314.2127
A119: E9158 | B119: Locomotiva diesel-elétrica CC - bitola larga - 2.237 kW | C119: 9123489.3 | D119: 145.9758 | E119: 146.359 | F119: 0 | G119: 182.4698 | H119: 1476.42 | I119: 34.2553 | J119: 1985.4799 | K119: 326.5901
A120: E9159 | B120: Vagão plataforma PNE com capacidade de 82 t - bitola métrica | C120: 736000 | D120: 11.6533 | E120: 11.7312 | F120: 0 | G120: 6.1333 | H120: 0 | I120: 0 | J120: 29.5178 | K120: 23.3845
A121: E9160 | B121: Vagão plataforma PNT com capacidade de 98 t - bitola larga | C121: 960000 | D121: 15.2 | E121: 15.3016 | F121: 0 | G121: 8 | H121: 0 | I121: 0 | J121: 38.5016 | K121: 30.5016
A122: E9161 | B122: Vagão fechado com porta para carga e descarga de paletes FLD com capacidade de 64 t - bitola métrica | C122: 730000 | D122: 11.5583 | E122: 11.6356 | F122: 0 | G122: 6.0833 | H122: 0 | I122: 0 | J122: 29.2772 | K122: 23.1939
A123: E9162 | B123: Vagão fechado com porta para carga e descarga de paletes FLT com capacidade de 99 t - bitola larga | C123: 845000 | D123: 13.3792 | E123: 13.4686 | F123: 0 | G123: 7.0417 | H123: 0 | I123: 0 | J123: 33.8895 | K123: 26.8478
A124: E9163 | B124: Vagão hopper aberto com descarga automática HNE com capacidade de 45 m³ - bitola métrica | C124: 880000 | D124: 13.9333 | E124: 14.0265 | F124: 0 | G124: 7.3333 | H124: 0 | I124: 0 | J124: 35.2931 | K124: 27.9598
A125: E9164 | B125: Vagão hopper aberto com descarga automática HNT com capacidade de 63 m³ - bitola larga | C125: 1065641.667 | D125: 16.8727 | E125: 16.9854 | F125: 0 | G125: 8.8803 | H125: 0 | I125: 0 | J125: 42.7384 | K125: 33.8581
A126: E9167 | B126: Equipamento para carga e descarga de TLS de até 250 m - 90 kW | C126: 2829677.101 | D126: 45.2748 | E126: 45.3937 | F126: 0 | G126: 56.5935 | H126: 59.4 | I126: 43.1549 | J126: 249.8169 | K126: 133.8234
A127: E9168 | B127: Carregadeira de pneus com implemento de garfo - 195 kW | C127: 1550237.292 | D127: 108.5166 | E127: 28.6949 | F127: 0 | G127: 108.5166 | H127: 85.8 | I127: 33.2943 | J127: 364.8224 | K127: 170.5058
A128: E9200 | B128: Carregadeira de pneus para rocha com capacidade de 2,50 m³ - 105 kW com periculosidade | C128: 1006214.153 | D128: 100.6214 | E128: 19.9554 | F128: 0 | G128: 100.6214 | H128: 109.725 | I128: 41.2443 | J128: 372.1675 | K128: 161.8211
A129: E9203 | B129: Escavadeira hidráulica com martelo hidráulico de 1.700 kg - 103 kW com periculosidade | C129: 2089138.395 | D129: 238.7587 | E129: 41.4321 | F129: 0 | G129: 298.4483 | H129: 73.645 | I129: 41.2443 | J129: 693.5284 | K129: 321.4351
A130: E9204 | B130: Perfuratriz sobre esteiras - 145 kW com periculosidade | C130: 2044642.803 | D130: 136.3095 | E130: 36.7951 | F130: 0 | G130: 136.3095 | H130: 119.625 | I130: 41.2443 | J130: 470.2834 | K130: 214.3489
A131: E9205 | B131: Equipamento de corte a plasma CNC - 12.000 x 5.500 mm - 19,5 kW | C131: 1090896.48 | D131: 87.2717 | E131: 20.1925 | F131: 0 | G131: 65.4538 | H131: 0 | I131: 0 | J131: 172.918 | K131: 107.4642
A132: E9206 | B132: Equipamento de solda MIG automática com acessórios - 14,6 kVA | C132: 86462.6408 | D132: 6.917 | E132: 1.6004 | F132: 0 | G132: 6.917 | H132: 0 | I132: 0 | J132: 15.4344 | K132: 8.5174
A133: E9207 | B133: Máquina de solda elétrica retificadora 425 A - 18,70 kW | C133: 7292.1156 | D133: 0.5834 | E133: 0.135 | F133: 0 | G133: 0.5834 | H133: 0 | I133: 0 | J133: 1.3018 | K133: 0.7184
A134: E9209 | B134: Martelete perfurador/rompedor a ar comprimido de 25 kg para rocha, com insalubridade, com capacidade de 2.040 gpm | C134: 30520.4584 | D134: 2.4416 | E134: 0.5649 | F134: 0 | G134: 2.4416 | H134: 0 | I134: 35.339 | J134: 40.7871 | K134: 38.3455
A135: E9213 | B135: Jumbo eletro-hidráulico com 3 braços - 155 kW/237 kW com periculosidade | C135: 13592056.74 | D135: 906.1371 | E135: 244.6004 | F135: 0 | G135: 1132.6714 | H135: 179.025 | I135: 54.0892 | J135: 2516.5231 | K135: 1204.8267
A136: E9231 | B136: Maçarico lança-chamas a gás liquefeito de petróleo (GLP) | C136: 89.9149 | D136: 0.0072 | E136: 0.0017 | F136: 0 | G136: 0.0072 | H136: 0 | I136: 0 | J136: 0.0161 | K136: 0.0089
A137: E9242 | B137: Estação transmissora de superfície para televisionamento | C137: 14953.9466 | D137: 0.9613 | E137: 0.2636 | F137: 0 | G137: 0.5341 | H137: 0 | I137: 0 | J137: 1.759 | K137: 1.2249
A138: E9243 | B138: Câmara hiperbárica com filtro, serpentina e reservatório de ar para mergulho raso - D = 1,80 m e H = 2,22 m | C138: 602307.8514 | D138: 10.5404 | E138: 9.7551 | F138: 0 | G138: 15.0577 | H138: 0 | I138: 58.7273 | J138: 94.0805 | K138: 79.0228
A139: E9244 | B139: Estação transmissora de superfície para comunicação sem fio | C139: 40168.574 | D139: 2.5823 | E139: 0.7081 | F139: 0 | G139: 1.4346 | H139: 0 | I139: 0 | J139: 4.725 | K139: 3.2904
A140: E9245 | B140: Estação transmissora de superfície para comunicação com fio | C140: 6732.4443 | D140: 0.4328 | E140: 0.1187 | F140: 0 | G140: 0.2404 | H140: 0 | I140: 0 | J140: 0.7919 | K140: 0.5515
A141: E9246 | B141: Painel de controle de ar com manômetros e pneufatômetros | C141: 12919.6854 | D141: 0.8306 | E141: 0.2278 | F141: 0 | G141: 0.4614 | H141: 0 | I141: 0 | J141: 1.5198 | K141: 1.0584
A142: E9247 | B142: Sistema de Sino aberto (sinete) para mergulho até 50 m - 33,50 kW | C142: 438386.2668 | D142: 11.6903 | E142: 7.2129 | F142: 0 | G142: 11.6903 | H142: 0 | I142: 58.7273 | J142: 89.3208 | K142: 77.6305
A143: E9248 | B143: Sistema de ar comprimido para mergulho até 30 m com pressão de trabalho de 1,4 MPa - 7,46 kW | C143: 52264.6711 | D143: 3.4843 | E143: 0.9405 | F143: 0 | G143: 3.4843 | H143: 6.9751 | I143: 0 | J143: 14.8842 | K143: 4.4248
A144: E9249 | B144: Sistema de ar comprimido para mergulho até 50 m com pressão de trabalho de 1,7 MPa - 16,18 kW | C144: 81964.3503 | D144: 5.4643 | E144: 1.475 | F144: 0 | G144: 5.4643 | H144: 15.1283 | I144: 0 | J144: 27.5319 | K144: 6.9393
A145: E9251 | B145: Fonte de plasma para corte manual - 65A - 15 kW | C145: 32643.6425 | D145: 2.6115 | E145: 0.6042 | F145: 0 | G145: 2.6115 | H145: 0 | I145: 0 | J145: 5.8272 | K145: 3.2157
A146: E9252 | B146: Serra de esquadria com braço telescópico - D = 250 mm (10") - 1,80 kW | C146: 4340.0247 | D146: 0.3906 | E146: 0.0803 | F146: 0 | G146: 0.217 | H146: 0 | I146: 0 | J146: 0.6879 | K146: 0.4709
A147: E9253 | B147: Rebordeadeira diâmetro máximo 3,00 m - 4,85 kW | C147: 66934.6461 | D147: 2.6774 | E147: 1.1357 | F147: 0 | G147: 2.3427 | H147: 0 | I147: 0 | J147: 6.1558 | K147: 3.8131
A148: E9254 | B148: Dobradeira viradeira manual comprimento máximo de dobra de até 2.000 mm | C148: 19561.9527 | D148: 0.7825 | E148: 0.3319 | F148: 0 | G148: 0.6847 | H148: 0 | I148: 0 | J148: 1.7991 | K148: 1.1144
A149: E9255 | B149: Fonte de plasma para corte manual - 45A - 10 kW | C149: 21610.6425 | D149: 1.7289 | E149: 0.4 | F149: 0 | G149: 1.7289 | H149: 0 | I149: 0 | J149: 3.8578 | K149: 2.1289
A150: E9256 | B150: Equipamento para pintura com cal rebocável com dois bicos aplicadores e capacidade de 2.200 l | C150: 66989.239 | D150: 3.828 | E150: 1.1809 | F150: 0 | G150: 3.828 | H150: 0 | I150: 27.5159 | J150: 36.3528 | K150: 32.5248
A151: E9259 | B151: Ventilador centrífugo média pressão com capacidade de 38 m³/min - 2,21 kW | C151: 17079.2399 | D151: 1.5371 | E151: 0.3161 | F151: 0 | G151: 1.0248 | H151: 0 | I151: 0 | J151: 2.878 | K151: 1.8532
A152: E9260 | B152: Detector de gases com bomba elétrica para espaço confinado | C152: 4279.4165 | D152: 0.3424 | E152: 0.0792 | F152: 0 | G152: 0.214 | H152: 0 | I152: 0 | J152: 0.6356 | K152: 0.4216
A153: E9261 | B153: Equipamento de pintura com pistola airless - 0,90 kW | C153: 2354.8401 | D153: 0.2119 | E153: 0.0436 | F153: 0 | G153: 0.1177 | H153: 0 | I153: 0 | J153: 0.3732 | K153: 0.2555
A154: E9262 | B154: Escova rotativa com cerdas de aço para tratamento de superfície - 0,91 kW | C154: 20558.9567 | D154: 1.6447 | E154: 0.3805 | F154: 0 | G154: 1.0279 | H154: 0 | I154: 27.5159 | J154: 30.569 | K154: 29.5411
A155: E9263 | B155: Tripé com guincho para espaço confinado | C155: 10050.4331 | D155: 0.804 | E155: 0.186 | F155: 0 | G155: 0.603 | H155: 0 | I155: 0 | J155: 1.593 | K155: 0.99
A156: E9264 | B156: Respirador purificador de ar motorizado | C156: 8868.3915 | D156: 0.7095 | E156: 0.1642 | F156: 0 | G156: 0.4434 | H156: 0 | I156: 0 | J156: 1.3171 | K156: 0.8737
A157: E9265 | B157: Respirador de adução de ar tipo linha de ar comprimido para jateamento | C157: 18103.3549 | D157: 1.4483 | E157: 0.3351 | F157: 0 | G157: 0.9052 | H157: 0 | I157: 0 | J157: 2.6886 | K157: 1.7834
A158: E9267 | B158: Exaustor centrífugo alta pressão com capacidade de 35 m³/min - 1,47 kW | C158: 5975.4245 | D158: 0.5378 | E158: 0.1106 | F158: 0 | G158: 0.3585 | H158: 0 | I158: 0 | J158: 1.0069 | K158: 0.6484
A159: E9501 | B159: Ventilador axial para ventilação forçada com velocidade de saída de 32,8 m/s - D = 1.000 mm - 30 kW | C159: 458698.6106 | D159: 41.2829 | E159: 8.4905 | F159: 0 | G159: 27.5219 | H159: 0 | I159: 0 | J159: 77.2953 | K159: 49.7734
A160: E9502 | B160: Bate-estaca de gravidade para 6 t - 119 kW | C160: 984189.9467 | D160: 56.2394 | E160: 17.3499 | F160: 0 | G160: 42.1796 | H160: 85.085 | I160: 33.2943 | J160: 234.1482 | K160: 106.8836
A161: E9503 | B161: Guilhotina hidráulica 16 x 6.100 mm - 30 kW | C161: 1333786.18 | D161: 53.3514 | E161: 22.631 | F161: 0 | G161: 46.6825 | H161: 0 | I161: 27.5159 | J161: 150.1808 | K161: 103.4983
A162: E9505 | B162: Prensa dobradeira capacidade 320 t - comprimento até 3.100 mm - 30 kW | C162: 911131.4115 | D162: 36.4453 | E162: 15.4596 | F162: 0 | G162: 31.8896 | H162: 0 | I162: 27.5159 | J162: 111.3104 | K162: 79.4208
A163: E9507 | B163: Plotadora de recorte com computador e programa computacional | C163: 95532.7101 | D163: 14.3299 | E163: 1.9648 | F163: 0 | G163: 9.5533 | H163: 0 | I163: 0 | J163: 25.848 | K163: 16.2947
A164: E9510 | B164: Ventilador centrífugo baixa pressão com capacidade de 58 m³/min - 3,68 kW | C164: 13994.9229 | D164: 1.2595 | E164: 0.259 | F164: 0 | G164: 0.8397 | H164: 0 | I164: 0 | J164: 2.3582 | K164: 1.5185
A165: E9511 | B165: Carregadeira de pneus com capacidade de 3,40 m³ - 195 kW | C165: 2168765.542 | D165: 151.8136 | E165: 40.1439 | F165: 0 | G165: 151.8136 | H165: 85.8 | I165: 33.2943 | J165: 462.8654 | K165: 225.2518
A166: E9512 | B166: Veículo leve - 53 kW | C166: 77364.668 | D166: 4.6419 | E166: 1.432 | F166: 0.5802 | G166: 4.6419 | H166: 25.51 | I166: 30.4162 | J166: 67.2222 | K166: 37.0703
A167: E9513 | B167: Compressor de ar portátil de 160,46 l/s (340 PCM) - 81 kW | C167: 320116.2458 | D167: 21.3411 | E167: 5.7608 | F167: 0 | G167: 21.3411 | H167: 75.735 | I167: 0 | J167: 124.178 | K167: 27.1019
A168: E9514 | B168: Distribuidor de agregados sobre pneus autopropelido - 130 kW | C168: 979888.4271 | D168: 55.9936 | E168: 17.274 | F168: 0 | G168: 48.9944 | H168: 135.85 | I168: 33.2943 | J168: 291.4063 | K168: 106.5619
A169: E9515 | B169: Escavadeira hidráulica sobre esteiras com caçamba com capacidade de 1,56 m³ - 118 kW | C169: 1200058.948 | D169: 84.0041 | E169: 22.2131 | F169: 0 | G169: 84.0041 | H169: 84.37 | I169: 33.2943 | J169: 307.8856 | K169: 139.5115
A170: E9516 | B170: Perfuratriz hidráulica sobre esteiras - 283 kW | C170: 7729935.453 | D170: 515.329 | E170: 139.1066 | F170: 0 | G170: 515.329 | H170: 155.65 | I170: 33.2943 | J170: 1358.7089 | K170: 687.7299
A171: E9518 | B171: Grade de 24 discos rebocável de D = 60 cm (24") | C171: 43247.2511 | D171: 2.7802 | E171: 0.7624 | F171: 0 | G171: 1.5445 | H171: 0 | I171: 0 | J171: 5.0871 | K171: 3.5426
A172: E9519 | B172: Betoneira com motor a gasolina com capacidade de 600 l - 10 kW | C172: 40107.7112 | D172: 3.2086 | E172: 0.7424 | F172: 0 | G172: 2.4065 | H172: 18.718 | I172: 27.5159 | J172: 52.5914 | K172: 31.4669
A173: E9521 | B173: Grupo gerador - 3,2 kVA | C173: 3582.4529 | D173: 0.1791 | E173: 0.0632 | F173: 0 | G173: 0.1279 | H173: 4.4495 | I173: 0 | J173: 4.8197 | K173: 0.2423
A174: E9522 | B174: Caldeira de asfalto rebocável com capacidade de 1.500 l - 6,5 kW | C174: 212706.6261 | D174: 13.674 | E174: 3.7497 | F174: 0 | G174: 4.558 | H174: 5.005 | I174: 0 | J174: 26.9867 | K174: 17.4237
A175: E9523 | B175: Motoscraper - 304 kW | C175: 6164125.355 | D175: 290.0765 | E175: 106.2677 | F175: 0 | G175: 326.336 | H175: 267.52 | I175: 33.2943 | J175: 1023.4945 | K175: 429.6385
A176: E9524 | B176: Motoniveladora - 93 kW | C176: 1305032.879 | D176: 65.2516 | E176: 23.0059 | F176: 0 | G176: 83.895 | H176: 76.725 | I176: 33.2943 | J176: 282.1718 | K176: 121.5518
A177: E9525 | B177: Ponte rolante com capacidade de 15 t e vão de até 15 m - 20 kW | C177: 3547725.296 | D177: 141.909 | E177: 60.196 | F177: 0 | G177: 88.6931 | H177: 0 | I177: 55.0318 | J177: 345.8299 | K177: 257.1368
A178: E9526 | B178: Retroescavadeira de pneus - capacidade da caçamba da pá-carregadeira de 0,76 m³ e da retroescavadeira de 0,29 m³ - 58 kW | C178: 487031.9185 | D178: 34.0922 | E178: 9.015 | F178: 0 | G178: 34.0922 | H178: 41.47 | I178: 33.2943 | J178: 151.9637 | K178: 76.4015
A179: E9527 | B179: Martelete perfurador/rompedor a ar comprimido de 25 kg para rocha com capacidade de 2.040 gpm | C179: 30520.4584 | D179: 2.4416 | E179: 0.5649 | F179: 0 | G179: 2.4416 | H179: 0 | I179: 27.5159 | J179: 32.964 | K179: 30.5224
A180: E9528 | B180: Empilhadeira a diesel com capacidade de 4 t - 60 kW | C180: 590352.9895 | D180: 47.2282 | E180: 10.9274 | F180: 0 | G180: 41.3247 | H180: 49.5 | I180: 27.5159 | J180: 176.4962 | K180: 85.6715
A181: E9529 | B181: Jateador para estruturas metálicas com transportador a roletes - 22 kW | C181: 4653700.48 | D181: 310.2467 | E181: 83.7472 | F181: 0 | G181: 232.685 | H181: 0 | I181: 27.5159 | J181: 654.1948 | K181: 421.5098
A182: E9530 | B182: Rolo compactador liso vibratório autopropelido por pneus de 11 t - 97 kW | C182: 965605.6916 | D182: 64.3737 | E182: 17.3769 | F182: 0 | G182: 64.3737 | H182: 85.36 | I182: 33.2943 | J182: 264.7786 | K182: 115.0449
A183: E9532 | B183: Equipamento de solda MIG com acessórios - 14,6 kVA | C183: 82982.2805 | D183: 6.6386 | E183: 1.536 | F183: 0 | G183: 6.6386 | H183: 0 | I183: 0 | J183: 14.8132 | K183: 8.1746
A184: E9535 | B184: Serra circular com bancada - D = 30 cm - 4 kW | C184: 7256.2862 | D184: 0.6531 | E184: 0.1343 | F184: 0 | G184: 0.3628 | H184: 0 | I184: 27.5159 | J184: 28.6661 | K184: 28.3033
A185: E9536 | B185: Embarcação de transporte de pessoal e apoio logístico - 30 kW | C185: 154253.2877 | D185: 2.4102 | E185: 0.9088 | F185: 0 | G185: 2.678 | H185: 64.176 | I185: 42.091 | J185: 112.264 | K185: 45.41
A186: E9538 | B186: Conjunto vibratório para meio tubo de concreto com encaixe PB e 3 jogos de fôrmas - D = 0,30 m - 2,20 kW | C186: 16164.5577 | D186: 2.1553 | E186: 0.4987 | F186: 0 | G186: 1.6165 | H186: 0 | I186: 0 | J186: 4.2705 | K186: 2.654
A187: E9539 | B187: Equipamento de batimetria monofeixe | C187: 108621.6552 | D187: 6.9828 | E187: 1.9148 | F187: 0 | G187: 3.8793 | H187: 0 | I187: 36.695 | J187: 49.4719 | K187: 45.5926
A188: E9540 | B188: Trator sobre esteiras com lâmina - 127 kW | C188: 1733629.873 | D188: 67.4189 | E188: 29.7125 | F188: 0 | G188: 96.3128 | H188: 97.79 | I188: 33.2943 | J188: 324.5285 | K188: 130.4257
A189: E9541 | B189: Trator sobre esteiras com lâmina - 259 kW | C189: 4845660.039 | D189: 188.4423 | E189: 83.0492 | F189: 0 | G189: 269.2033 | H189: 199.43 | I189: 33.2943 | J189: 773.4191 | K189: 304.7858
A190: E9543 | B190: Compressor de ar respirável com capacidade de até 35 MPa e 3,58 l/s - 5,52 kW | C190: 73361.7116 | D190: 4.8908 | E190: 1.3202 | F190: 0 | G190: 4.8908 | H190: 0 | I190: 0 | J190: 11.1018 | K190: 6.211
A191: E9544 | B191: Vassoura mecânica rebocável com largura de 2,44 m | C191: 86052.6962 | D191: 7.7447 | E191: 1.5928 | F191: 0 | G191: 5.1632 | H191: 0 | I191: 0 | J191: 14.5007 | K191: 9.3375
A192: E9545 | B192: Vibroacabadora de asfalto sobre esteiras - 97 kW | C192: 1608134.121 | D192: 80.4067 | E192: 28.3491 | F192: 0 | G192: 103.3801 | H192: 101.365 | I192: 43.1549 | J192: 356.6558 | K192: 151.9107
A193: E9547 | B193: Máquina de solda elétrica transformadora 250 A - 9,20 kW | C193: 1221.5559 | D193: 0.0977 | E193: 0.0226 | F193: 0 | G193: 0.0977 | H193: 0 | I193: 0 | J193: 0.218 | K193: 0.1203
A194: E9548 | B194: Bomba centrífuga com capacidade de 7,1 a 22 m³/h - 1,50 kW | C194: 2378.4594 | D194: 0.1903 | E194: 0.044 | F194: 0 | G194: 0.1665 | H194: 0 | I194: 0 | J194: 0.4008 | K194: 0.2343
A195: E9551 | B195: Obturador mecânico simples com extensão de 12 m | C195: 4917.371 | D195: 0.4426 | E195: 0.091 | F195: 0 | G195: 0.2459 | H195: 0 | I195: 0 | J195: 0.7795 | K195: 0.5336
A196: E9552 | B196: Nível ótico com capacidade de aumento de 32x | C196: 14153.7479 | D196: 1.1323 | E196: 0.262 | F196: 0 | G196: 0.7077 | H196: 0 | I196: 0 | J196: 2.102 | K196: 1.3943
A197: E9553 | B197: Estação total eletrônica com alcance máximo de 3.000 m | C197: 49203.2419 | D197: 4.4283 | E197: 0.9108 | F197: 0 | G197: 2.4602 | H197: 0 | I197: 0 | J197: 7.7993 | K197: 5.3391
A198: E9556 | B198: Compactador manual de placa vibratória - 3,00 kW | C198: 10609.8417 | D198: 0.7073 | E198: 0.1909 | F198: 0 | G198: 0.7073 | H198: 5.6154 | I198: 0 | J198: 7.2209 | K198: 0.8982
A199: E9558 | B199: Tanque de estocagem de asfalto com capacidade de 30.000 l | C199: 748143.2432 | D199: 31.1726 | E199: 10.8189 | F199: 0 | G199: 19.4829 | H199: 0 | I199: 0 | J199: 61.4744 | K199: 41.9915
A200: E9559 | B200: Aquecedor de fluido térmico - 12 kW | C200: 756828.5794 | D200: 34.0573 | E200: 10.5067 | F200: 0 | G200: 22.7049 | H200: 9.9 | I200: 0 | J200: 77.1689 | K200: 44.564
... 341 more rows

Sheet SINTÉTICO SICRO
A1: CGCIT | B1: SISTEMA DE CUSTOS REFERENCIAIS DE OBRAS - SICRO | D1: DNIT
B2: Maranhão - ABRIL/2025
A3: Código | B3: Descrição do Serviço | C3: Unidade | D3: Custo Unitário (R$)
A4: 307731 | B4: Aparelho de apoio de neoprene fretado para estruturas moldadas no local - fornecimento e instalação | C4: dm³ | D4: 144.67
A5: 307732 | B5: Aparelho de apoio de neoprene fretado para estruturas pré-moldadas - fornecimento e instalação | C5: dm³ | D5: 119.32
A6: 308308 | B6: Aparelho de apoio metálico elastomérico fixo com capacidade de 1.500 kN - fornecimento e instalação | C6: un | D6: 5439.44
A7: 308313 | B7: Aparelho de apoio metálico elastomérico fixo com capacidade de 10.000 kN - fornecimento e instalação | C7: un | D7: 33653.53
A8: 308309 | B8: Aparelho de apoio metálico elastomérico fixo com capacidade de 2.500 kN - fornecimento e instalação | C8: un | D8: 8981.91
A9: 308310 | B9: Aparelho de apoio metálico elastomérico fixo com capacidade de 4.000 kN - fornecimento e instalação | C9: un | D9: 12215.66
A10: 308311 | B10: Aparelho de apoio metálico elastomérico fixo com capacidade de 5.500 kN - fornecimento e instalação | C10: un | D10: 17236.75
A11: 308312 | B11: Aparelho de apoio metálico elastomérico fixo com capacidade de 7.500 kN - fornecimento e instalação | C11: un | D11: 24032.69
A12: 308307 | B12: Aparelho de apoio metálico elastomérico fixo com capacidade de 700 kN - fornecimento e instalação | C12: un | D12: 3302.89
A13: 308322 | B13: Aparelho de apoio metálico elastomérico multidirecional com capacidade de 1.500 kN - fornecimento e instalação | C13: un | D13: 4960
A14: 308327 | B14: Aparelho de apoio metálico elastomérico multidirecional com capacidade de 10.000 kN - fornecimento e instalação | C14: un | D14: 29987.78
A15: 308323 | B15: Aparelho de apoio metálico elastomérico multidirecional com capacidade de 2.500 kN - fornecimento e instalação | C15: un | D15: 7693.57
A16: 308324 | B16: Aparelho de apoio metálico elastomérico multidirecional com capacidade de 4.000 kN - fornecimento e instalação | C16: un | D16: 11378.13
A17: 308325 | B17: Aparelho de apoio metálico elastomérico multidirecional com capacidade de 5.500 kN - fornecimento e instalação | C17: un | D17: 16043.05
A18: 308326 | B18: Aparelho de apoio metálico elastomérico multidirecional com capacidade de 7.500 kN - fornecimento e instalação | C18: un | D18: 22241.75
A19: 308321 | B19: Aparelho de apoio metálico elastomérico multidirecional com capacidade de 700 kN - fornecimento e instalação | C19: un | D19: 4674.85
A20: 308315 | B20: Aparelho de apoio metálico elastomérico unidirecional com capacidade de 1.500 kN - fornecimento e instalação | C20: un | D20: 6400.69
A21: 308320 | B21: Aparelho de apoio metálico elastomérico unidirecional com capacidade de 10.000 kN - fornecimento e instalação | C21: un | D21: 45421.25
A22: 308316 | B22: Aparelho de apoio metálico elastomérico unidirecional com capacidade de 2.500 kN - fornecimento e instalação | C22: un | D22: 9189.56
A23: 308317 | B23: Aparelho de apoio metálico elastomérico unidirecional com capacidade de 4.000 kN - fornecimento e instalação | C23: un | D23: 17730.75
A24: 308318 | B24: Aparelho de apoio metálico elastomérico unidirecional com capacidade de 5.500 kN - fornecimento e instalação | C24: un | D24: 23328.73
A25: 308319 | B25: Aparelho de apoio metálico elastomérico unidirecional com capacidade de 7.500 kN - fornecimento e instalação | C25: un | D25: 25784.43
A26: 308314 | B26: Aparelho de apoio metálico elastomérico unidirecional com capacidade de 700 kN - fornecimento e instalação | C26: un | D26: 4699.34
A27: 308250 | B27: Aparelho de apoio metálico esférico fixo com capacidade de 1.000 kN - fornecimento e instalação | C27: un | D27: 7404.4
A28: 308251 | B28: Aparelho de apoio metálico esférico fixo com capacidade de 1.500 kN - fornecimento e instalação | C28: un | D28: 11522.12
A29: 308268 | B29: Aparelho de apoio metálico esférico fixo com capacidade de 10.000 kN - fornecimento e instalação | C29: un | D29: 75527.52
A30: 308252 | B30: Aparelho de apoio metálico esférico fixo com capacidade de 2.000 kN - fornecimento e instalação | C30: un | D30: 13371.22
A31: 308253 | B31: Aparelho de apoio metálico esférico fixo com capacidade de 2.500 kN - fornecimento e instalação | C31: un | D31: 16196.23
A32: 308254 | B32: Aparelho de apoio metálico esférico fixo com capacidade de 3.000 kN - fornecimento e instalação | C32: un | D32: 19063.91
A33: 308255 | B33: Aparelho de apoio metálico esférico fixo com capacidade de 3.500 kN - fornecimento e instalação | C33: un | D33: 22328.15
A34: 308256 | B34: Aparelho de apoio metálico esférico fixo com capacidade de 4.000 kN - fornecimento e instalação | C34: un | D34: 29978.21
A35: 308257 | B35: Aparelho de apoio metálico esférico fixo com capacidade de 4.500 kN - fornecimento e instalação | C35: un | D35: 32350.6
A36: 308258 | B36: Aparelho de apoio metálico esférico fixo com capacidade de 5.000 kN - fornecimento e instalação | C36: un | D36: 36124.74
A37: 308259 | B37: Aparelho de apoio metálico esférico fixo com capacidade de 5.500 kN - fornecimento e instalação | C37: un | D37: 38184.64
A38: 308260 | B38: Aparelho de apoio metálico esférico fixo com capacidade de 6.000 kN - fornecimento e instalação | C38: un | D38: 42973.94
A39: 308261 | B39: Aparelho de apoio metálico esférico fixo com capacidade de 6.500 kN - fornecimento e instalação | C39: un | D39: 46400.88
A40: 308262 | B40: Aparelho de apoio metálico esférico fixo com capacidade de 7.000 kN - fornecimento e instalação | C40: un | D40: 54990.04
A41: 308263 | B41: Aparelho de apoio metálico esférico fixo com capacidade de 7.500 kN - fornecimento e instalação | C41: un | D41: 55045.13
A42: 308264 | B42: Aparelho de apoio metálico esférico fixo com capacidade de 8.000 kN - fornecimento e instalação | C42: un | D42: 57441.7
A43: 308265 | B43: Aparelho de apoio metálico esférico fixo com capacidade de 8.500 kN - fornecimento e instalação | C43: un | D43: 58998.32
A44: 308266 | B44: Aparelho de apoio metálico esférico fixo com capacidade de 9.000 kN - fornecimento e instalação | C44: un | D44: 67797.01
A45: 308267 | B45: Aparelho de apoio metálico esférico fixo com capacidade de 9.500 kN - fornecimento e instalação | C45: un | D45: 71921.32
A46: 308288 | B46: Aparelho de apoio metálico esférico multidirecional com capacidade de 1.000 kN - fornecimento e instalação | C46: un | D46: 8316.6
A47: 308289 | B47: Aparelho de apoio metálico esférico multidirecional com capacidade de 1.500 kN - fornecimento e instalação | C47: un | D47: 11521.46
A48: 308306 | B48: Aparelho de apoio metálico esférico multidirecional com capacidade de 10.000 kN - fornecimento e instalação | C48: un | D48: 74486.44
A49: 308290 | B49: Aparelho de apoio metálico esférico multidirecional com capacidade de 2.000 kN - fornecimento e instalação | C49: un | D49: 15094.65
A50: 308291 | B50: Aparelho de apoio metálico esférico multidirecional com capacidade de 2.500 kN - fornecimento e instalação | C50: un | D50: 18052.14
A51: 308292 | B51: Aparelho de apoio metálico esférico multidirecional com capacidade de 3.000 kN - fornecimento e instalação | C51: un | D51: 20843.08
A52: 308293 | B52: Aparelho de apoio metálico esférico multidirecional com capacidade de 3.500 kN - fornecimento e instalação | C52: un | D52: 23566.01
A53: 308294 | B53: Aparelho de apoio metálico esférico multidirecional com capacidade de 4.000 kN - fornecimento e instalação | C53: un | D53: 26714.16
A54: 308295 | B54: Aparelho de apoio metálico esférico multidirecional com capacidade de 4.500 kN - fornecimento e instalação | C54: un | D54: 30827.5
A55: 308296 | B55: Aparelho de apoio metálico esférico multidirecional com capacidade de 5.000 kN - fornecimento e instalação | C55: un | D55: 34324.97
A56: 308297 | B56: Aparelho de apoio metálico esférico multidirecional com capacidade de 5.500 kN - fornecimento e instalação | C56: un | D56: 37162.67
A57: 308298 | B57: Aparelho de apoio metálico esférico multidirecional com capacidade de 6.000 kN - fornecimento e instalação | C57: un | D57: 43054.53
A58: 308299 | B58: Aparelho de apoio metálico esférico multidirecional com capacidade de 6.500 kN - fornecimento e instalação | C58: un | D58: 46497.98
A59: 308300 | B59: Aparelho de apoio metálico esférico multidirecional com capacidade de 7.000 kN - fornecimento e instalação | C59: un | D59: 50030.47
A60: 308301 | B60: Aparelho de apoio metálico esférico multidirecional com capacidade de 7.500 kN - fornecimento e instalação | C60: un | D60: 53959.06
A61: 308302 | B61: Aparelho de apoio metálico esférico multidirecional com capacidade de 8.000 kN - fornecimento e instalação | C61: un | D61: 58051.93
A62: 308303 | B62: Aparelho de apoio metálico esférico multidirecional com capacidade de 8.500 kN - fornecimento e instalação | C62: un | D62: 63299.66
A63: 308304 | B63: Aparelho de apoio metálico esférico multidirecional com capacidade de 9.000 kN - fornecimento e instalação | C63: un | D63: 66877.65
A64: 308305 | B64: Aparelho de apoio metálico esférico multidirecional com capacidade de 9.500 kN - fornecimento e instalação | C64: un | D64: 70948.44
A65: 308269 | B65: Aparelho de apoio metálico esférico unidirecional com capacidade de 1.000 kN - fornecimento e instalação | C65: un | D65: 11068.65
A66: 308270 | B66: Aparelho de apoio metálico esférico unidirecional com capacidade de 1.500 kN - fornecimento e instalação | C66: un | D66: 14983.79
A67: 308287 | B67: Aparelho de apoio metálico esférico unidirecional com capacidade de 10.000 kN - fornecimento e instalação | C67: un | D67: 82204.69
A68: 308271 | B68: Aparelho de apoio metálico esférico unidirecional com capacidade de 2.000 kN - fornecimento e instalação | C68: un | D68: 18262.42
A69: 308272 | B69: Aparelho de apoio metálico esférico unidirecional com capacidade de 2.500 kN - fornecimento e instalação | C69: un | D69: 21677.79
A70: 308273 | B70: Aparelho de apoio metálico esférico unidirecional com capacidade de 3.000 kN - fornecimento e instalação | C70: un | D70: 24786.51
A71: 308274 | B71: Aparelho de apoio metálico esférico unidirecional com capacidade de 3.500 kN - fornecimento e instalação | C71: un | D71: 28732.63
A72: 308275 | B72: Aparelho de apoio metálico esférico unidirecional com capacidade de 4.000 kN - fornecimento e instalação | C72: un | D72: 32131.67
A73: 308276 | B73: Aparelho de apoio metálico esférico unidirecional com capacidade de 4.500 kN - fornecimento e instalação | C73: un | D73: 36857.74
A74: 308277 | B74: Aparelho de apoio metálico esférico unidirecional com capacidade de 5.000 kN - fornecimento e instalação | C74: un | D74: 41619.11
A75: 308278 | B75: Aparelho de apoio metálico esférico unidirecional com capacidade de 5.500 kN - fornecimento e instalação | C75: un | D75: 44111.35
A76: 308279 | B76: Aparelho de apoio metálico esférico unidirecional com capacidade de 6.000 kN - fornecimento e instalação | C76: un | D76: 49326.86
A77: 308280 | B77: Aparelho de apoio metálico esférico unidirecional com capacidade de 6.500 kN - fornecimento e instalação | C77: un | D77: 52820.66
A78: 308281 | B78: Aparelho de apoio metálico esférico unidirecional com capacidade de 7.000 kN - fornecimento e instalação | C78: un | D78: 56740.81
A79: 308282 | B79: Aparelho de apoio metálico esférico unidirecional com capacidade de 7.500 kN - fornecimento e instalação | C79: un | D79: 60879.54
A80: 308283 | B80: Aparelho de apoio metálico esférico unidirecional com capacidade de 8.000 kN - fornecimento e instalação | C80: un | D80: 64721.27
A81: 308284 | B81: Aparelho de apoio metálico esférico unidirecional com capacidade de 8.500 kN - fornecimento e instalação | C81: un | D81: 69722.1
A82: 308285 | B82: Aparelho de apoio metálico esférico unidirecional com capacidade de 9.000 kN - fornecimento e instalação | C82: un | D82: 73815.39
A83: 308286 | B83: Aparelho de apoio metálico esférico unidirecional com capacidade de 9.500 kN - fornecimento e instalação | C83: un | D83: 78059.56
A84: 307733 | B84: Junta de dilatação em elastômero e perfil VV - L = 20 mm e H = 40 mm - fornecimento e instalação | C84: m | D84: 271.1
A85: 307734 | B85: Junta de dilatação em elastômero e perfil VV - L = 25 mm e H = 50 mm - fornecimento e instalação | C85: m | D85: 319.83
A86: 307735 | B86: Junta de dilatação em elastômero e perfil VV - L = 35 mm e H = 60 mm - fornecimento e instalação | C86: m | D86: 419.5
A87: 307736 | B87: Junta de dilatação em elastômero e perfil VV - L = 40 mm e H = 70 mm - fornecimento e instalação | C87: m | D87: 559.46
A88: 307737 | B88: Junta de dilatação em elastômero e perfil VV - L = 50 mm e H = 80 mm - fornecimento e instalação | C88: m | D88: 589.68
A89: 307730 | B89: Junta de dilatação em perfil extrudado de borracha vulcanizada | C89: m | D89: 0
A90: 307084 | B90: Lábios poliméricos em junta de pavimento de concreto - L = 20 mm e H = 30 mm - confecção e assentamento | C90: m | D90: 35.32
A91: 407818 | B91: Armação em aço CA-25 - fornecimento, preparo e colocação | C91: kg | D91: 11.86
A92: 407819 | B92: Armação em aço CA-50 - fornecimento, preparo e colocação | C92: kg | D92: 12.18
A93: 407820 | B93: Armação em aço CA-60 - fornecimento, preparo e colocação | C93: kg | D93: 13.46
A94: 407740 | B94: Chumbador tipo espera em aço CA-25 para fixação de estrutura metálica em concreto - fornecimento e instalação | C94: kg | D94: 14.86
A95: 408037 | B95: Luva de emenda com rosca cônica para aço CA-50 - D = 12,5 mm - fornecimento e instalação | C95: un | D95: 19.93
A96: 408038 | B96: Luva de emenda com rosca cônica para aço CA-50 - D = 16 mm - fornecimento e instalação | C96: un | D96: 30.74
A97: 408039 | B97: Luva de emenda com rosca cônica para aço CA-50 - D = 20 mm - fornecimento e instalação | C97: un | D97: 42.4
A98: 408041 | B98: Luva de emenda com rosca cônica para aço CA-50 - D = 25 mm - fornecimento e instalação | C98: un | D98: 54.37
A99: 408042 | B99: Luva de emenda com rosca cônica para aço CA-50 - D = 32 mm - fornecimento e instalação | C99: un | D99: 78.64
A100: 408031 | B100: Luva de emenda prensada para aço CA-50 - D = 12,5 mm - fornecimento e instalação | C100: un | D100: 21.85
A101: 408032 | B101: Luva de emenda prensada para aço CA-50 - D = 16 mm - fornecimento e instalação | C101: un | D101: 29.76
A102: 408033 | B102: Luva de emenda prensada para aço CA-50 - D = 20 mm - fornecimento e instalação | C102: un | D102: 40.69
A103: 408035 | B103: Luva de emenda prensada para aço CA-50 - D = 25 mm - fornecimento e instalação | C103: un | D103: 69.28
A104: 408036 | B104: Luva de emenda prensada para aço CA-50 - D = 32 mm - fornecimento e instalação | C104: un | D104: 154.12
A105: 408067 | B105: Tela de aço eletrossoldada - fornecimento, preparo e colocação | C105: kg | D105: 10.9
A106: 407743 | B106: Treliça nervurada três barras longitudinais interligadas por duas diagonais sinusoidal - fornecimento e instalação | C106: kg | D106: 11.54
A107: 607137 | B107: Arco metálico galvanizado tipo MP 152S - arco alto - vão = 10,08 m e altura = 6,12 m - aterro rodoviário mínimo = 0,90 m e máximo = 5,00 m - areia e brita comerciais | C107: m | D107: 55592.11
A108: 606785 | B108: Arco metálico galvanizado tipo MP 152S - arco alto - vão = 10,08 m e altura = 6,12 m - aterro rodoviário mínimo = 0,90 m e máximo = 5,00 m - areia extraída e brita produzida | C108: m | D108: 54952.82
A109: 607139 | B109: Arco metálico galvanizado tipo MP 152S - arco alto - vão = 10,31 m e altura = 6,17 m - aterro rodoviário mínimo = 0,90 m e máximo = 4,90 m - areia e brita comerciais | C109: m | D109: 56354.82
A110: 606787 | B110: Arco metálico galvanizado tipo MP 152S - arco alto - vão = 10,31 m e altura = 6,17 m - aterro rodoviário mínimo = 0,90 m e máximo = 4,90 m - areia extraída e brita produzida | C110: m | D110: 55393.39
A111: 607140 | B111: Arco metálico galvanizado tipo MP 152S - arco alto - vão = 10,36 m e altura = 5,38 m - aterro rodoviário mínimo = 1,20 m e máximo = 3,60 m - areia e brita comerciais | C111: m | D111: 51403.85
A112: 606788 | B112: Arco metálico galvanizado tipo MP 152S - arco alto - vão = 10,36 m e altura = 5,38 m - aterro rodoviário mínimo = 1,20 m e máximo = 3,60 m - areia extraída e brita produzida | C112: m | D112: 51149.42
A113: 607141 | B113: Arco metálico galvanizado tipo MP 152S - arco alto - vão = 10,54 m e altura = 6,05 m - aterro rodoviário mínimo = 1,20 m e máximo = 4,20 m - areia e brita comerciais | C113: m | D113: 57383.24
A114: 606789 | B114: Arco metálico galvanizado tipo MP 152S - arco alto - vão = 10,54 m e altura = 6,05 m - aterro rodoviário mínimo = 1,20 m e máximo = 4,20 m - areia extraída e brita produzida | C114: m | D114: 56718.84
A115: 607144 | B115: Arco metálico galvanizado tipo MP 152S - arco alto - vão = 10,57 m e altura = 5,41 m - aterro rodoviário mínimo = 1,20 m e máximo = 4,10 m - areia e brita comerciais | C115: m | D115: 66444.88
A116: 606792 | B116: Arco metálico galvanizado tipo MP 152S - arco alto - vão = 10,57 m e altura = 5,41 m - aterro rodoviário mínimo = 1,20 m e máximo = 4,10 m - areia extraída e brita produzida | C116: m | D116: 65838.03
A117: 607142 | B117: Arco metálico galvanizado tipo MP 152S - arco alto - vão = 10,74 m e altura = 6,48 m - aterro rodoviário mínimo = 1,20 m e máximo = 4,70 m - areia e brita comerciais | C117: m | D117: 60229.31
A118: 606790 | B118: Arco metálico galvanizado tipo MP 152S - arco alto - vão = 10,74 m e altura = 6,48 m - aterro rodoviário mínimo = 1,20 m e máximo = 4,70 m - areia extraída e brita produzida | C118: m | D118: 59514.68
A119: 607145 | B119: Arco metálico galvanizado tipo MP 152S - arco alto - vão = 10,77 m e altura = 6,10 m - aterro rodoviário mínimo = 1,20 m e máximo = 4,70 m - areia e brita comerciais | C119: m | D119: 73453.45
A120: 606793 | B120: Arco metálico galvanizado tipo MP 152S - arco alto - vão = 10,77 m e altura = 6,10 m - aterro rodoviário mínimo = 1,20 m e máximo = 4,70 m - areia extraída e brita produzida | C120: m | D120: 72774.74
A121: 607146 | B121: Arco metálico galvanizado tipo MP 152S - arco alto - vão = 10,97 m e altura = 6,53 m - aterro rodoviário mínimo = 1,20 m e máximo = 4,70 m - areia e brita comerciais | C121: m | D121: 76653.45
A122: 606794 | B122: Arco metálico galvanizado tipo MP 152S - arco alto - vão = 10,97 m e altura = 6,53 m - aterro rodoviário mínimo = 1,20 m e máximo = 4,70 m - areia extraída e brita produzida | C122: m | D122: 75916.8
A123: 607143 | B123: Arco metálico galvanizado tipo MP 152S - arco alto - vão = 11,35 m e altura = 7,12 m - aterro rodoviário mínimo = 1,20 m e máximo = 4,70 m - areia e brita comerciais | C123: m | D123: 65088.45
A124: 606791 | B124: Arco metálico galvanizado tipo MP 152S - arco alto - vão = 11,35 m e altura = 7,12 m - aterro rodoviário mínimo = 1,20 m e máximo = 4,70 m - areia extraída e brita produzida | C124: m | D124: 64265.71
A125: 607147 | B125: Arco metálico galvanizado tipo MP 152S - arco alto - vão = 11,58 m e altura = 7,16 m - aterro rodoviário mínimo = 1,20 m e máximo = 6,40 m - areia e brita comerciais | C125: m | D125: 82739.22
A126: 606795 | B126: Arco metálico galvanizado tipo MP 152S - arco alto - vão = 11,58 m e altura = 7,16 m - aterro rodoviário mínimo = 1,20 m e máximo = 6,40 m - areia extraída e brita produzida | C126: m | D126: 81890.38
A127: 607112 | B127: Arco metálico galvanizado tipo MP 152S - arco alto - vão = 6,12 m e altura = 2,77 m - aterro rodoviário mínimo = 0,75 m e máximo = 5,40 m - areia e brita comerciais | C127: m | D127: 27032.9
A128: 606760 | B128: Arco metálico galvanizado tipo MP 152S - arco alto - vão = 6,12 m e altura = 2,77 m - aterro rodoviário mínimo = 0,75 m e máximo = 5,40 m - areia extraída e brita produzida | C128: m | D128: 26810.39
A129: 607113 | B129: Arco metálico galvanizado tipo MP 152S - arco alto - vão = 6,30 m e altura = 3,68 m - aterro rodoviário mínimo = 0,75 m e máximo = 7,50 m - areia e brita comerciais | C129: m | D129: 31793.91
A130: 606761 | B130: Arco metálico galvanizado tipo MP 152S - arco alto - vão = 6,30 m e altura = 3,68 m - aterro rodoviário mínimo = 0,75 m e máximo = 7,50 m - areia extraída e brita produzida | C130: m | D130: 31538.14
A131: 606762 | B131: Arco metálico galvanizado tipo MP 152S - arco alto - vão = 6,55 m e altura = 3,56 m - aterro rodoviário mínimo = 0,75 m e máximo = 4,9 m - areia extraída e brita produzida | C131: m | D131: 31893.14
A132: 607114 | B132: Arco metálico galvanizado tipo MP 152S - arco alto - vão = 6,55 m e altura = 3,56 m - aterro rodoviário mínimo = 0,75 m e máximo = 4,90 m - areia e brita comerciais | C132: m | D132: 32153.74
A133: 607116 | B133: Arco metálico galvanizado tipo MP 152S - arco alto - vão = 6,78 m e altura = 3,61 m - aterro rodoviário mínimo = 0,75 m e máximo = 4,80 m - areia e brita comerciais | C133: m | D133: 33305.1
A134: 606764 | B134: Arco metálico galvanizado tipo MP 152S - arco alto - vão = 6,78 m e altura = 3,61 m - aterro rodoviário mínimo = 0,75 m e máximo = 4,80 m - areia extraída e brita produzida | C134: m | D134: 33033.52
A135: 607115 | B135: Arco metálico galvanizado tipo MP 152S - arco alto - vão = 6,96 m e altura = 4,42 m - aterro rodoviário mínimo = 0,75 m e máximo = 8,10 m - areia e brita comerciais | C135: m | D135: 37830.76
A136: 606763 | B136: Arco metálico galvanizado tipo MP 152S - arco alto - vão = 6,96 m e altura = 4,42 m - aterro rodoviário mínimo = 0,75 m e máximo = 8,10 m - areia extraída e brita produzida | C136: m | D136: 37504.04
A137: 607117 | B137: Arco metálico galvanizado tipo MP 152S - arco alto - vão = 6,99 m e altura = 4,27 m - aterro rodoviário mínimo = 0,75 m e máximo = 5,70 m - areia e brita comerciais | C137: m | D137: 37825.27
A138: 606765 | B138: Arco metálico galvanizado tipo MP 152S - arco alto - vão = 6,99 m e altura = 4,27 m - aterro rodoviário mínimo = 0,75 m e máximo = 5,70 m - areia extraída e brita produzida | C138: m | D138: 37507.52
A139: 607118 | B139: Arco metálico galvanizado tipo MP 152S - arco alto - vão = 7,01 m e altura = 3,63 m - aterro rodoviário mínimo = 0,75 m e máximo = 4,60 m - areia e brita comerciais | C139: m | D139: 33892.05
A140: 606766 | B140: Arco metálico galvanizado tipo MP 152S - arco alto - vão = 7,01 m e altura = 3,63 m - aterro rodoviário mínimo = 0,75 m e máximo = 4,60 m - areia extraída e brita produzida | C140: m | D140: 33611.68
A141: 607120 | B141: Arco metálico galvanizado tipo MP 152S - arco alto - vão = 7,24 m e altura = 3,68 m - aterro rodoviário mínimo = 0,90 m e máximo = 4,4 m - areia e brita comerciais | C141: m | D141: 34521.15
A142: 606768 | B142: Arco metálico galvanizado tipo MP 152S - arco alto - vão = 7,24 m e altura = 3,68 m - aterro rodoviário mínimo = 0,90 m e máximo = 4,40 m - areia extraída e brita produzida | C142: m | D142: 34225.91
A143: 607119 | B143: Arco metálico galvanizado tipo MP 152S - arco alto - vão = 7,42 m e altura = 4,52 m - aterro rodoviário mínimo = 0,90 m e máximo = 6,40 m - areia e brita comerciais | C143: m | D143: 39707.24
A144: 606767 | B144: Arco metálico galvanizado tipo MP 152S - arco alto - vão = 7,42 m e altura = 4,52 m - aterro rodoviário mínimo = 0,90 m e máximo = 6,40 m - areia extraída e brita produzida | C144: m | D144: 39347.19
A145: 607121 | B145: Arco metálico galvanizado tipo MP 152S - arco alto - vão = 7,47 m e altura = 4,19 m - aterro rodoviário mínimo = 0,90 m e máximo = 4,30 m - areia e brita comerciais | C145: m | D145: 37389.95
A146: 606769 | B146: Arco metálico galvanizado tipo MP 152S - arco alto - vão = 7,47 m e altura = 4,19 m - aterro rodoviário mínimo = 0,90 m e máximo = 4,30 m - areia extraída e brita produzida | C146: m | D146: 37053.35
A147: 607123 | B147: Arco metálico galvanizado tipo MP 152S - arco alto - vão = 7,67 m e altura = 3,99 m - aterro rodoviário mínimo = 0,90 m e máximo = 4,10 m - areia e brita comerciais | C147: m | D147: 36899.76
A148: 606771 | B148: Arco metálico galvanizado tipo MP 152S - arco alto - vão = 7,67 m e altura = 3,99 m - aterro rodoviário mínimo = 0,90 m e máximo = 4,10 m - areia extraída e brita produzida | C148: m | D148: 36564.41
A149: 607122 | B149: Arco metálico galvanizado tipo MP 152S - arco alto - vão = 7,85 m e altura = 4,60 m - aterro rodoviário mínimo = 0,90 m e máximo = 6,00 m - areia e brita comerciais | C149: m | D149: 40957.62
A150: 606770 | B150: Arco metálico galvanizado tipo MP 152S - arco alto - vão = 7,85 m e altura = 4,60 m - aterro rodoviário mínimo = 0,90 m e máximo = 6,00 m - areia extraída e brita produzida | C150: m | D150: 40570.87
A151: 607125 | B151: Arco metálico galvanizado tipo MP 152S - arco alto - vão = 7,90 m e altura = 4,04 m - aterro rodoviário mínimo = 0,90 m e máximo = 4,00 m - areia e brita comerciais | C151: m | D151: 38161.74
A152: 606773 | B152: Arco metálico galvanizado tipo MP 152S - arco alto - vão = 7,90 m e altura = 4,04 m - aterro rodoviário mínimo = 0,90 m e máximo = 4,00 m - areia extraída e brita produzida | C152: m | D152: 37808.9
A153: 607124 | B153: Arco metálico galvanizado tipo MP 152S - arco alto - vão = 8,08 m e altura = 4,65 m - aterro rodoviário mínimo = 0,90 m e máximo = 5,80 m - areia e brita comerciais | C153: m | D153: 41579.33
A154: 606772 | B154: Arco metálico galvanizado tipo MP 152S - arco alto - vão = 8,08 m e altura = 4,65 m - aterro rodoviário mínimo = 0,90 m e máximo = 5,80 m - areia extraída e brita produzida | C154: m | D154: 41180.2
A155: 607126 | B155: Arco metálico galvanizado tipo MP 152S - arco alto - vão = 8,31 m e altura = 4,70 m - aterro rodoviário mínimo = 0,90 m e máximo = 5,60 m - areia e brita comerciais | C155: m | D155: 42745.16
A156: 606774 | B156: Arco metálico galvanizado tipo MP 152S - arco alto - vão = 8,31 m e altura = 4,70 m - aterro rodoviário mínimo = 0,90 m e máximo = 5,60 m - areia extraída e brita produzida | C156: m | D156: 42326.8
A157: 607127 | B157: Arco metálico galvanizado tipo MP 152S - arco alto - vão = 8,36 m e altura = 4,11 m - aterro rodoviário mínimo = 0,90 m e máximo = 3,70 m - areia e brita comerciais | C157: m | D157: 39346.6
A158: 606775 | B158: Arco metálico galvanizado tipo MP 152S - arco alto - vão = 8,36 m e altura = 4,11 m - aterro rodoviário mínimo = 0,90 m e máximo = 3,70 m - areia extraída e brita produzida | C158: m | D158: 38972.55
A159: 607129 | B159: Arco metálico galvanizado tipo MP 152S - arco alto - vão = 8,59 m e altura = 4,39 m - aterro rodoviário mínimo = 0,90 m e máximo = 3,60 m - areia e brita comerciais | C159: m | D159: 41189.03
A160: 606777 | B160: Arco metálico galvanizado tipo MP 152S - arco alto - vão = 8,59 m e altura = 4,39 m - aterro rodoviário mínimo = 0,90 m e máximo = 3,60 m - areia extraída e brita produzida | C160: m | D160: 40779.39
A161: 607128 | B161: Arco metálico galvanizado tipo MP 152S - arco alto - vão = 8,97 m e altura = 5,00 m - aterro rodoviário mínimo = 0,90 m e máximo = 5,80 m - areia e brita comerciais | C161: m | D161: 45334.09
A162: 606776 | B162: Arco metálico galvanizado tipo MP 152S - arco alto - vão = 8,97 m e altura = 5,00 m - aterro rodoviário mínimo = 0,90 m e máximo = 5,80 m - areia extraída e brita produzida | C162: m | D162: 44855.46
A163: 607130 | B163: Arco metálico galvanizado tipo MP 152S - arco alto - vão = 9,17 m e altura = 5,49 m - aterro rodoviário mínimo = 0,90 m e máximo = 5,60 m - areia e brita comerciais | C163: m | D163: 48332.35
A164: 606778 | B164: Arco metálico galvanizado tipo MP 152S - arco alto - vão = 9,17 m e altura = 5,49 m - aterro rodoviário mínimo = 0,90 m e máximo = 5,60 m - areia extraída e brita produzida | C164: m | D164: 47806.26
A165: 607131 | B165: Arco metálico galvanizado tipo MP 152S - arco alto - vão = 9,22 m e altura = 4,70 m - aterro rodoviário mínimo = 0,90 m e máximo = 4,10 m - areia e brita comerciais | C165: m | D165: 45344.39
A166: 606779 | B166: Arco metálico galvanizado tipo MP 152S - arco alto - vão = 9,22 m e altura = 4,70 m - aterro rodoviário mínimo = 0,90 m e máximo = 4,10 m - areia extraída e brita produzida | C166: m | D166: 44878.96
A167: 607133 | B167: Arco metálico galvanizado tipo MP 152S - arco alto - vão = 9,45 m e altura = 4,75 m - aterro rodoviário mínimo = 0,90 m e máximo = 4,00 m - areia e brita comerciais | C167: m | D167: 46036.5
A168: 606781 | B168: Arco metálico galvanizado tipo MP 152S - arco alto - vão = 9,45 m e altura = 4,75 m - aterro rodoviário mínimo = 0,90 m e máximo = 4,00 m - areia extraída e brita produzida | C168: m | D168: 45557.09
A169: 607132 | B169: Arco metálico galvanizado tipo MP 152S - arco alto - vão = 9,63 m e altura = 5,59 m - aterro rodoviário mínimo = 0,90 m e máximo = 5,30 m - areia e brita comerciais | C169: m | D169: 50222.3
A170: 606780 | B170: Arco metálico galvanizado tipo MP 152S - arco alto - vão = 9,63 m e altura = 5,59 m - aterro rodoviário mínimo = 0,90 m e máximo = 5,30 m - areia extraída e brita produzida | C170: m | D170: 49659.32
A171: 607134 | B171: Arco metálico galvanizado tipo MP 152S - arco alto - vão = 9,65 m e altura = 5,41 m - aterro rodoviário mínimo = 0,90 m e máximo = 4,70 m - areia e brita comerciais | C171: m | D171: 49732.32
A172: 606782 | B172: Arco metálico galvanizado tipo MP 152S - arco alto - vão = 9,65 m e altura = 5,41 m - aterro rodoviário mínimo = 0,90 m e máximo = 4,70 m - areia extraída e brita produzida | C172: m | D172: 49182.21
A173: 607136 | B173: Arco metálico galvanizado tipo MP 152S - arco alto - vão = 9,68 m e altura = 5,23 m - aterro rodoviário mínimo = 0,90 m e máximo = 3,90 m - areia e brita comerciais | C173: m | D173: 49055.59
A174: 606784 | B174: Arco metálico galvanizado tipo MP 152S - arco alto - vão = 9,68 m e altura = 5,23 m - aterro rodoviário mínimo = 0,90 m e máximo = 3,90 m - areia extraída e brita produzida | C174: m | D174: 48523.06
A175: 607135 | B175: Arco metálico galvanizado tipo MP 152S - arco alto - vão = 9,86 m e altura = 6,07 m - aterro rodoviário mínimo = 0,90 m e máximo = 5,20 m - areia e brita comerciais | C175: m | D175: 54783.15
A176: 606783 | B176: Arco metálico galvanizado tipo MP 152S - arco alto - vão = 9,86 m e altura = 6,07 m - aterro rodoviário mínimo = 0,90 m e máximo = 5,20 m - areia extraída e brita produzida | C176: m | D176: 54165.81
A177: 607138 | B177: Arco metálico galvanizado tipo MP 152S - arco alto - vão = 9,91 m e altura = 5,28 m - aterro rodoviário mínimo = 0,90 m e máximo = 3,80 m - areia e brita comerciais | C177: m | D177: 49930.1
A178: 606786 | B178: Arco metálico galvanizado tipo MP 152S - arco alto - vão = 9,91 m e altura = 5,28 m - aterro rodoviário mínimo = 0,90 m e máximo = 3,80 m - areia extraída e brita produzida | C178: m | D178: 49362.8
A179: 606842 | B179: Arco metálico galvanizado tipo MP 152S - ovoide - vão = 7,21 m e altura = 7,82 m - aterro rodoviário mínimo = 0,75 m e máximo = 6,70 m - areia e brita comerciais | C179: m | D179: 61579.16
A180: 606832 | B180: Arco metálico galvanizado tipo MP 152S - ovoide - vão = 7,21 m e altura = 7,82 m - aterro rodoviário mínimo = 0,75 m e máximo = 6,70 m - areia extraída e brita produzida | C180: m | D180: 61176.9
A181: 606843 | B181: Arco metálico galvanizado tipo MP 152S - ovoide - vão = 7,31 m e altura = 7,87 m - aterro rodoviário mínimo = 0,90 m e máximo = 6,80 m - areia e brita comerciais | C181: m | D181: 63991.07
A182: 606833 | B182: Arco metálico galvanizado tipo MP 152S - ovoide - vão = 7,31 m e altura = 7,87 m - aterro rodoviário mínimo = 0,90 m e máximo = 6,80 m - areia extraída e brita produzida | C182: m | D182: 63571.59
A183: 606845 | B183: Arco metálico galvanizado tipo MP 152S - ovoide - vão = 7,57 m e altura = 8,44 m - aterro rodoviário mínimo = 0,90 m e máximo = 5,60 m - areia e brita comerciais | C183: m | D183: 66342.47
A184: 606835 | B184: Arco metálico galvanizado tipo MP 152S - ovoide - vão = 7,57 m e altura = 8,44 m - aterro rodoviário mínimo = 0,90 m e máximo = 5,60 m - areia extraída e brita produzida | C184: m | D184: 65921.68
A185: 606844 | B185: Arco metálico galvanizado tipo MP 152S - ovoide - vão = 7,77 m e altura = 7,90 m - aterro rodoviário mínimo = 0,90 m e máximo = 6,80 m - areia e brita comerciais | C185: m | D185: 64973.18
A186: 606834 | B186: Arco metálico galvanizado tipo MP 152S - ovoide - vão = 7,77 m e altura = 7,90 m - aterro rodoviário mínimo = 0,90 m e máximo = 6,80 m - areia extraída e brita produzida | C186: m | D186: 64540.66
A187: 606847 | B187: Arco metálico galvanizado tipo MP 152S - ovoide - vão = 8,13 m e altura = 8,01 m - aterro rodoviário mínimo = 0,90 m e máximo = 3,50 m - areia e brita comerciais | C187: m | D187: 69381.87
A188: 606837 | B188: Arco metálico galvanizado tipo MP 152S - ovoide - vão = 8,13 m e altura = 8,01 m - aterro rodoviário mínimo = 0,90 m e máximo = 3,50 m - areia extraída e brita produzida | C188: m | D188: 68913.78
A189: 606846 | B189: Arco metálico galvanizado tipo MP 152S - ovoide - vão = 8,36 m e altura = 8,23 m - aterro rodoviário mínimo = 0,90 m e máximo = 4,30 m - areia e brita comerciais | C189: m | D189: 71087.94
A190: 606836 | B190: Arco metálico galvanizado tipo MP 152S - ovoide - vão = 8,36 m e altura = 8,23 m - aterro rodoviário mínimo = 0,90 m e máximo = 4,30 m - areia extraída e brita produzida | C190: m | D190: 70613.56
A191: 606848 | B191: Arco metálico galvanizado tipo MP 152S - ovoide - vão = 8,56 m e altura = 8,48 m - aterro rodoviário mínimo = 0,90 m e máximo = 5,30 m - areia e brita comerciais | C191: m | D191: 74052.37
A192: 606838 | B192: Arco metálico galvanizado tipo MP 152S - ovoide - vão = 8,56 m e altura = 8,48 m - aterro rodoviário mínimo = 0,90 m e máximo = 5,30 m - areia extraída e brita produzida | C192: m | D192: 73560.79
A193: 606849 | B193: Arco metálico galvanizado tipo MP 152S - ovoide - vão = 8,71 m e altura = 9,32 m - aterro rodoviário mínimo = 0,90 m e máximo = 6,00 m - areia e brita comerciais | C193: m | D193: 75777.98
A194: 606839 | B194: Arco metálico galvanizado tipo MP 152S - ovoide - vão = 8,71 m e altura = 9,32 m - aterro rodoviário mínimo = 0,90 m e máximo = 6,00 m - areia extraída e brita produzida | C194: m | D194: 75294.79
A195: 606850 | B195: Arco metálico galvanizado tipo MP 152S - ovoide - vão = 9,15 m e altura = 9,04 m - aterro rodoviário mínimo = 0,90 m e máximo = 4,70 m - areia e brita comerciais | C195: m | D195: 76427.95
A196: 606840 | B196: Arco metálico galvanizado tipo MP 152S - ovoide - vão = 9,15 m e altura = 9,04 m - aterro rodoviário mínimo = 0,90 m e máximo = 4,70 m - areia extraída e brita produzida | C196: m | D196: 75904.35
A197: 606851 | B197: Arco metálico galvanizado tipo MP 152S - ovoide - vão = 9,15 m e altura = 9,50 m - aterro rodoviário mínimo = 0,90 m e máximo = 5,70 m - areia e brita comerciais | C197: m | D197: 78642.62
A198: 606841 | B198: Arco metálico galvanizado tipo MP 152S - ovoide - vão = 9,15 m e altura = 9,50 m - aterro rodoviário mínimo = 0,90 m e máximo = 5,70 m - areia extraída e brita produzida | C198: m | D198: 78137.14
A199: 605604 | B199: Argamassa de solo-cimento com 10% de cimento e material de jazida - preparo e injeção em tunnel liner | C199: m³ | D199: 326
A200: 605695 | B200: Bueiro metálico com chapas múltiplas MP 100 com revestimento em epóxi - D = 0,60 m - brita comercial | C200: m | D200: 1473.27
... 6292 more rows

Sheet INSUMOS SINAPI
A1: PRECOS DE INSUMOS - BANCO NACIONAL
A3: MES DE COLETA: 05/2025
A4: LOCALIDADE: 0500 - SAO LUIS
A5: ENCARGOS SOCIAIS (%) HORISTA112,73 MENSALISTA 70,19
A7: CODIGO | B7: DESCRICAO DO INSUMO | C7: UNIDADE DE MEDIDA | D7: ORIGEM DO PRECO | E7: PRECO MEDIANO R$
A8: 45333 | B8: ABERTURA PARA ENCAIXE DE CUBA OU LAVATORIO EM BANCADA DE MARMORE/ GRANITO OU OUTRO TIPO DE PEDRA NATURAL | C8: UN | D8: CR | E8: 236.93
A9: 11270 | B9: ABRACADEIRA DE LATAO PARA FIXACAO DE CABO PARA-RAIO, DIMENSOES 32 X 24 X 24 MM | C9: UN | D9: CR
A10: 412 | B10: ABRACADEIRA DE NYLON PARA AMARRACAO DE CABOS, COMPRIMENTO DE *230* X *7,6* MM | C10: UN | D10: CR | E10: 0.97
A11: 414 | B11: ABRACADEIRA DE NYLON PARA AMARRACAO DE CABOS, COMPRIMENTO DE 100 X 2,5 MM | C11: UN | D11: CR | E11: 0.06
A12: 410 | B12: ABRACADEIRA DE NYLON PARA AMARRACAO DE CABOS, COMPRIMENTO DE 150 X *3,6* MM | C12: UN | D12: CR | E12: 0.15
A13: 411 | B13: ABRACADEIRA DE NYLON PARA AMARRACAO DE CABOS, COMPRIMENTO DE 200 X *4,6* MM | C13: UN | D13: C | E13: 0.19
A14: 408 | B14: ABRACADEIRA DE NYLON PARA AMARRACAO DE CABOS, COMPRIMENTO DE 390 X *4,6* MM | C14: UN | D14: CR | E14: 0.94
A15: 39131 | B15: ABRACADEIRA EM ACO PARA AMARRACAO DE ELETRODUTOS, TIPO D, COM 1 1/2" E CUNHA DE FIXACAO | C15: UN | D15: CR | E15: 5.68
A16: 394 | B16: ABRACADEIRA EM ACO PARA AMARRACAO DE ELETRODUTOS, TIPO D, COM 1 1/2" E PARAFUSO DE FIXACAO | C16: UN | D16: CR | E16: 5.75
A17: 39130 | B17: ABRACADEIRA EM ACO PARA AMARRACAO DE ELETRODUTOS, TIPO D, COM 1 1/4" E CUNHA DE FIXACAO | C17: UN | D17: CR | E17: 5.18
A18: 395 | B18: ABRACADEIRA EM ACO PARA AMARRACAO DE ELETRODUTOS, TIPO D, COM 1 1/4" E PARAFUSO DE FIXACAO | C18: UN | D18: CR | E18: 5.54
A19: 39129 | B19: ABRACADEIRA EM ACO PARA AMARRACAO DE ELETRODUTOS, TIPO D, COM 1" E CUNHA DE FIXACAO | C19: UN | D19: CR | E19: 3.19
A20: 393 | B20: ABRACADEIRA EM ACO PARA AMARRACAO DE ELETRODUTOS, TIPO D, COM 1" E PARAFUSO DE FIXACAO | C20: UN | D20: C | E20: 3.34
A21: 39127 | B21: ABRACADEIRA EM ACO PARA AMARRACAO DE ELETRODUTOS, TIPO D, COM 1/2" E CUNHA DE FIXACAO | C21: UN | D21: CR | E21: 2.73
A22: 392 | B22: ABRACADEIRA EM ACO PARA AMARRACAO DE ELETRODUTOS, TIPO D, COM 1/2" E PARAFUSO DE FIXACAO | C22: UN | D22: CR | E22: 2.8
A23: 39133 | B23: ABRACADEIRA EM ACO PARA AMARRACAO DE ELETRODUTOS, TIPO D, COM 2 1/2" E CUNHA DE FIXACAO | C23: UN | D23: CR | E23: 7.46
A24: 397 | B24: ABRACADEIRA EM ACO PARA AMARRACAO DE ELETRODUTOS, TIPO D, COM 2 1/2" E PARAFUSO DE FIXACAO | C24: UN | D24: CR | E24: 8.24
A25: 39132 | B25: ABRACADEIRA EM ACO PARA AMARRACAO DE ELETRODUTOS, TIPO D, COM 2" E CUNHA DE FIXACAO | C25: UN | D25: CR | E25: 5.96
A26: 396 | B26: ABRACADEIRA EM ACO PARA AMARRACAO DE ELETRODUTOS, TIPO D, COM 2" E PARAFUSO DE FIXACAO | C26: UN | D26: CR | E26: 6.39
A27: 39135 | B27: ABRACADEIRA EM ACO PARA AMARRACAO DE ELETRODUTOS, TIPO D, COM 3 1/2" E CUNHA DE FIXACAO | C27: UN | D27: CR | E27: 11.93
A28: 39134 | B28: ABRACADEIRA EM ACO PARA AMARRACAO DE ELETRODUTOS, TIPO D, COM 3" E CUNHA DE FIXACAO | C28: UN | D28: CR | E28: 9.94
A29: 398 | B29: ABRACADEIRA EM ACO PARA AMARRACAO DE ELETRODUTOS, TIPO D, COM 3" E PARAFUSO DE FIXACAO | C29: UN | D29: CR | E29: 9.16
A30: 39128 | B30: ABRACADEIRA EM ACO PARA AMARRACAO DE ELETRODUTOS, TIPO D, COM 3/4" E CUNHA DE FIXACAO | C30: UN | D30: CR | E30: 2.98
A31: 400 | B31: ABRACADEIRA EM ACO PARA AMARRACAO DE ELETRODUTOS, TIPO D, COM 3/4" E PARAFUSO DE FIXACAO | C31: UN | D31: CR | E31: 2.91
A32: 39125 | B32: ABRACADEIRA EM ACO PARA AMARRACAO DE ELETRODUTOS, TIPO D, COM 3/8" E PARAFUSO DE FIXACAO | C32: UN | D32: CR | E32: 2.98
A33: 39126 | B33: ABRACADEIRA EM ACO PARA AMARRACAO DE ELETRODUTOS, TIPO D, COM 4" E CUNHA DE FIXACAO | C33: UN | D33: CR | E33: 13.43
A34: 399 | B34: ABRACADEIRA EM ACO PARA AMARRACAO DE ELETRODUTOS, TIPO D, COM 4" E PARAFUSO DE FIXACAO | C34: UN | D34: CR | E34: 11.83
A35: 39158 | B35: ABRACADEIRA EM ACO PARA AMARRACAO DE ELETRODUTOS, TIPO ECONOMICA (GOTA), COM 8" | C35: UN | D35: CR | E35: 31.76
A36: 39141 | B36: ABRACADEIRA EM ACO PARA AMARRACAO DE ELETRODUTOS, TIPO U SIMPLES, COM 1 1/2" | C36: UN | D36: CR | E36: 2.3
A37: 39140 | B37: ABRACADEIRA EM ACO PARA AMARRACAO DE ELETRODUTOS, TIPO U SIMPLES, COM 1 1/4" | C37: UN | D37: CR | E37: 2.09
A38: 39139 | B38: ABRACADEIRA EM ACO PARA AMARRACAO DE ELETRODUTOS, TIPO U SIMPLES, COM 1" | C38: UN | D38: CR | E38: 1.74
A39: 39137 | B39: ABRACADEIRA EM ACO PARA AMARRACAO DE ELETRODUTOS, TIPO U SIMPLES, COM 1/2" | C39: UN | D39: CR | E39: 1.2
A40: 39143 | B40: ABRACADEIRA EM ACO PARA AMARRACAO DE ELETRODUTOS, TIPO U SIMPLES, COM 2 1/2" | C40: UN | D40: CR | E40: 4.76
A41: 39142 | B41: ABRACADEIRA EM ACO PARA AMARRACAO DE ELETRODUTOS, TIPO U SIMPLES, COM 2" | C41: UN | D41: CR | E41: 3.41
A42: 39144 | B42: ABRACADEIRA EM ACO PARA AMARRACAO DE ELETRODUTOS, TIPO U SIMPLES, COM 3" | C42: UN | D42: CR | E42: 5.54
A43: 39138 | B43: ABRACADEIRA EM ACO PARA AMARRACAO DE ELETRODUTOS, TIPO U SIMPLES, COM 3/4" | C43: UN | D43: CR | E43: 1.27
A44: 39136 | B44: ABRACADEIRA EM ACO PARA AMARRACAO DE ELETRODUTOS, TIPO U SIMPLES, COM 3/8" | C44: UN | D44: CR | E44: 0.85
A45: 39145 | B45: ABRACADEIRA EM ACO PARA AMARRACAO DE ELETRODUTOS, TIPO U SIMPLES, COM 4" | C45: UN | D45: CR | E45: 9.13
A46: 12615 | B46: ABRACADEIRA PVC, PARA CALHA PLUVIAL, DIAMETRO ENTRE *80 E 100* MM, PARA DRENAGEM PLUVIAL PREDIAL | C46: UN | D46: CR | E46: 11.26
A47: 11927 | B47: ABRACADEIRA, GALVANIZADA/ZINCADA, ROSCA SEM FIM, PARAFUSO INOX, LARGURA FITA *12,6 A *14 MM, D = 2" A 2 1/2" | C47: UN | D47: CR
A48: 11928 | B48: ABRACADEIRA, GALVANIZADA/ZINCADA, ROSCA SEM FIM, PARAFUSO INOX, LARGURA FITA *12,6 A *14 MM, D = 3" A 3 3/4" | C48: UN | D48: CR
A49: 11929 | B49: ABRACADEIRA, GALVANIZADA/ZINCADA, ROSCA SEM FIM, PARAFUSO INOX, LARGURA FITA *12,6 A *14 MM, D = 4" A 4 3/4" | C49: UN | D49: CR
A50: 36801 | B50: ACABAMENTO DE METAL CROMADO PARA REGISTRO PEQUENO, DE PAREDE, 1/2" OU 3/4" | C50: UN | D50: CR | E50: 51.92
A51: 36246 | B51: ACABAMENTO SIMPLES/CONVENCIONAL PARA FORRO PVC, TIPO "U" OU "C", COR BRANCA, COMPRIMENTO 6 M | C51: M | D51: CR | E51: 4
A52: 37600 | B52: ACESSORIO DE LIGACAO NAO ELETRICO PARA CARGAS EXPLOSIVAS, TUBO DE 6 M | C52: UN | D52: CR
A53: 37599 | B53: ACESSORIO INICIADOR NAO ELETRICO, TUBO DE 6 M, TEMPO DE RETARDO DE *160* MS | C53: UN | D53: CR
A54: 1 | B54: ACETILENO - RECARGA DE GAS PARA CILINDRO (NAO INCLUI TROCA/MANUTENCAO DO CILINDRO) | C54: KG | D54: C
A55: 3 | B55: ACIDO CLORIDRICO / ACIDO MURIATICO, DILUICAO 10% A 12% PARA USO EM LIMPEZA | C55: L | D55: CR | E55: 16.7
A56: 43054 | B56: ACO CA-25, 10,0 MM, OU 12,5 MM, OU 16,0 MM, OU 20,0 MM, OU 25,0 MM, VERGALHAO | C56: KG | D56: CR | E56: 9.55
A57: 42402 | B57: ACO CA-25, 16,0 MM, BARRA DE TRANSFERENCIA | C57: KG | D57: CR | E57: 9.13
A58: 42403 | B58: ACO CA-25, 20,0 MM, BARRA DE TRANSFERENCIA | C58: KG | D58: CR | E58: 11.71
A59: 42404 | B59: ACO CA-25, 25,0 MM, BARRA DE TRANSFERENCIA | C59: KG | D59: CR | E59: 11.64
A60: 42405 | B60: ACO CA-25, 32,0 MM, BARRA DE TRANSFERENCIA | C60: KG | D60: CR | E60: 12.4
A61: 34341 | B61: ACO CA-25, 32,0 MM, VERGALHAO | C61: KG | D61: CR | E61: 10.76
A62: 43053 | B62: ACO CA-25, 6,3 MM OU 8,0 MM, VERGALHAO | C62: KG | D62: CR | E62: 8.53
A63: 43058 | B63: ACO CA-50, 10,0 MM, OU 12,5 MM, OU 16,0 MM, OU 20,0 MM, DOBRADO E CORTADO | C63: KG | D63: CR | E63: 8.84
A64: 34 | B64: ACO CA-50, 10,0 MM, VERGALHAO | C64: KG | D64: CR | E64: 8.89
A65: 43055 | B65: ACO CA-50, 12,5 MM OU 16,0 MM, VERGALHAO | C65: KG | D65: C | E65: 7.7
A66: 43056 | B66: ACO CA-50, 20,0 MM OU 25,0 MM, VERGALHAO | C66: KG | D66: CR | E66: 8.88
A67: 43057 | B67: ACO CA-50, 32,0 MM, VERGALHAO | C67: KG | D67: CR | E67: 9.76
A68: 34449 | B68: ACO CA-50, 6,3 MM, DOBRADO E CORTADO | C68: KG | D68: CR | E68: 10.43
A69: 32 | B69: ACO CA-50, 6,3 MM, VERGALHAO | C69: KG | D69: CR | E69: 9.38
A70: 33 | B70: ACO CA-50, 8,0 MM, VERGALHAO | C70: KG | D70: CR | E70: 9.43
A71: 43061 | B71: ACO CA-60, 4,2 MM OU 5,0 MM, DOBRADO E CORTADO | C71: KG | D71: CR | E71: 8.81
A72: 43059 | B72: ACO CA-60, 4,2 MM, OU 5,0 MM, OU 6,0 MM, OU 7,0 MM, VERGALHAO | C72: KG | D72: CR | E72: 8.41
A73: 43062 | B73: ACO CA-60, 6,0 MM OU 7,0 MM, DOBRADO E CORTADO | C73: KG | D73: CR | E73: 9.32
A74: 43060 | B74: ACO CA-60, 8,0 MM OU 9,5 MM, VERGALHAO | C74: KG | D74: CR | E74: 7.33
A75: 40410 | B75: ACOPLAMENTO RIGIDO EM FERRO FUNDIDO PARA SISTEMA DE TUBULACAO RANHURADA, DN 50 MM (2") | C75: UN | D75: C
A76: 40411 | B76: ACOPLAMENTO RIGIDO EM FERRO FUNDIDO PARA SISTEMA DE TUBULACAO RANHURADA, DN 65 MM (2 1/2") | C76: UN | D76: CR
A77: 40412 | B77: ACOPLAMENTO RIGIDO EM FERRO FUNDIDO PARA SISTEMA DE TUBULACAO RANHURADA, DN 80 MM (3") | C77: UN | D77: CR
A78: 44254 | B78: ADAPTADOR CPVC, ROSCAVEL, COM FLANGES E ANEL DE VEDACAO, 15 MM, CAIXA D'AGUA PARA AGUA QUENTE | C78: UN | D78: CR
A79: 44255 | B79: ADAPTADOR CPVC, ROSCAVEL, COM FLANGES E ANEL DE VEDACAO, 22 MM, CAIXA D'AGUA PARA AGUA QUENTE | C79: UN | D79: CR
A80: 44256 | B80: ADAPTADOR CPVC, ROSCAVEL, COM FLANGES E ANEL DE VEDACAO, 28 MM, CAIXA D'AGUA PARA AGUA QUENTE | C80: UN | D80: CR
A81: 44257 | B81: ADAPTADOR CPVC, ROSCAVEL, COM FLANGES E ANEL DE VEDACAO, 35 MM, CAIXA D'AGUA PARA AGUA QUENTE | C81: UN | D81: CR
A82: 44258 | B82: ADAPTADOR CPVC, ROSCAVEL, COM FLANGES E ANEL DE VEDACAO, 42 MM, CAIXA D'AGUA PARA AGUA QUENTE | C82: UN | D82: CR
A83: 44259 | B83: ADAPTADOR CPVC, ROSCAVEL, COM FLANGES E ANEL DE VEDACAO, 54 MM, CAIXA D'AGUA PARA AGUA QUENTE | C83: UN | D83: CR
A84: 37997 | B84: ADAPTADOR CPVC, SOLDAVEL, 15 MM, PARA AGUA QUENTE | C84: UN | D84: CR
A85: 37998 | B85: ADAPTADOR CPVC, SOLDAVEL, 22 MM, PARA AGUA QUENTE | C85: UN | D85: CR
A86: 55 | B86: ADAPTADOR DE COMPRESSAO EM POLIPROPILENO (PP), PARA TUBO EM PEAD, 20 MM X 1/2", PARA LIGACAO PREDIAL DE AGUA (NTS 179) | C86: UN | D86: C
A87: 61 | B87: ADAPTADOR DE COMPRESSAO EM POLIPROPILENO (PP), PARA TUBO EM PEAD, 20 MM X 3/4", PARA LIGACAO PREDIAL DE AGUA (NTS 179) | C87: UN | D87: CR
A88: 62 | B88: ADAPTADOR DE COMPRESSAO EM POLIPROPILENO (PP), PARA TUBO EM PEAD, 32 MM X 1", PARA LIGACAO PREDIAL DE AGUA (NTS 179) | C88: UN | D88: CR
A89: 10899 | B89: ADAPTADOR EM LATAO, ENGATE RAPIDO 2 1/2" X ROSCA INTERNA 5 FIOS 2 1/2", PARA INSTALACAO PREDIAL DE COMBATE A INCENDIO | C89: UN | D89: CR | E89: 125.29
A90: 10900 | B90: ADAPTADOR EM LATAO, ENGATE RAPIDO1 1/2" X ROSCA INTERNA 5 FIOS 2 1/2", PARA INSTALACAO PREDIAL DE COMBATE A INCENDIO | C90: UN | D90: CR | E90: 98.05
A91: 47 | B91: ADAPTADOR PVC PBA, BOLSA/ROSCA, JE, DN 100 / DE 110 MM | C91: UN | D91: CR
A92: 48 | B92: ADAPTADOR PVC PBA, BOLSA/ROSCA, JE, DN 50 / DE 60 MM | C92: UN | D92: CR
A93: 46 | B93: ADAPTADOR PVC PBA, BOLSA/ROSCA, JE, DN 75 / DE 85 MM | C93: UN | D93: CR
A94: 52 | B94: ADAPTADOR PVC PBA, PONTA/ROSCA, JE, DN 50 / DE 60 MM | C94: UN | D94: CR
A95: 43 | B95: ADAPTADOR PVC PBA, PONTA/ROSCA, JE, DN 75 / DE 85 MM | C95: UN | D95: CR
A96: 103 | B96: ADAPTADOR PVC SOLDAVEL CURTO COM BOLSA E ROSCA, 110 MM X 4", PARA AGUA FRIA | C96: UN | D96: CR | E96: 42.49
A97: 107 | B97: ADAPTADOR PVC SOLDAVEL CURTO COM BOLSA E ROSCA, 20 MM X 1/2", PARA AGUA FRIA | C97: UN | D97: CR | E97: 0.8
A98: 65 | B98: ADAPTADOR PVC SOLDAVEL CURTO COM BOLSA E ROSCA, 25 MM X 3/4", PARA AGUA FRIA | C98: UN | D98: CR | E98: 0.87
A99: 108 | B99: ADAPTADOR PVC SOLDAVEL CURTO COM BOLSA E ROSCA, 32 MM X 1", PARA AGUA FRIA | C99: UN | D99: CR | E99: 1.76
A100: 110 | B100: ADAPTADOR PVC SOLDAVEL CURTO COM BOLSA E ROSCA, 40 MM X 1 1/2", PARA AGUA FRIA | C100: UN | D100: CR | E100: 6.11
A101: 109 | B101: ADAPTADOR PVC SOLDAVEL CURTO COM BOLSA E ROSCA, 40 MM X 1 1/4", PARA AGUA FRIA | C101: UN | D101: CR | E101: 3.64
A102: 111 | B102: ADAPTADOR PVC SOLDAVEL CURTO COM BOLSA E ROSCA, 50 MM X 1 1/4", PARA AGUA FRIA | C102: UN | D102: CR | E102: 8.27
A103: 112 | B103: ADAPTADOR PVC SOLDAVEL CURTO COM BOLSA E ROSCA, 50 MM X1 1/2", PARA AGUA FRIA | C103: UN | D103: CR | E103: 4.38
A104: 113 | B104: ADAPTADOR PVC SOLDAVEL CURTO COM BOLSA E ROSCA, 60 MM X 2", PARA AGUA FRIA | C104: UN | D104: CR | E104: 10.97
A105: 104 | B105: ADAPTADOR PVC SOLDAVEL CURTO COM BOLSA E ROSCA, 75 MM X 2 1/2", PARA AGUA FRIA | C105: UN | D105: CR | E105: 19.1
A106: 102 | B106: ADAPTADOR PVC SOLDAVEL CURTO COM BOLSA E ROSCA, 85 MM X 3", PARA AGUA FRIA | C106: UN | D106: CR | E106: 26.33
A107: 95 | B107: ADAPTADOR PVC SOLDAVEL, COM FLANGE E ANEL DE VEDACAO, 20 MM X 1/2", PARA CAIXA D'AGUA | C107: UN | D107: CR | E107: 11.13
A108: 96 | B108: ADAPTADOR PVC SOLDAVEL, COM FLANGE E ANEL DE VEDACAO, 25 MM X 3/4", PARA CAIXA D'AGUA | C108: UN | D108: CR | E108: 12.1
A109: 97 | B109: ADAPTADOR PVC SOLDAVEL, COM FLANGE E ANEL DE VEDACAO, 32 MM X 1", PARA CAIXA D'AGUA | C109: UN | D109: CR | E109: 18.21
A110: 98 | B110: ADAPTADOR PVC SOLDAVEL, COM FLANGE E ANEL DE VEDACAO, 40 MM X 1 1/4", PARA CAIXA D'AGUA | C110: UN | D110: CR | E110: 27.26
A111: 99 | B111: ADAPTADOR PVC SOLDAVEL, COM FLANGE E ANEL DE VEDACAO, 50 MM X 1 1/2", PARA CAIXA D'AGUA | C111: UN | D111: CR | E111: 25.76
A112: 60 | B112: ADAPTADOR PVC, COM REGISTRO, PARA PEAD, 20 MM X 3/4", PARA LIGACAO PREDIAL DE AGUA | C112: UN | D112: CR
A113: 72 | B113: ADAPTADOR PVC, ROSCAVEL, COM FLANGES E ANEL DE VEDACAO, 1 1/2", PARA CAIXA D'AGUA | C113: UN | D113: CR | E113: 49.41
A114: 71 | B114: ADAPTADOR PVC, ROSCAVEL, COM FLANGES E ANEL DE VEDACAO, 1", PARA CAIXA D'AGUA | C114: UN | D114: CR | E114: 30.51
A115: 67 | B115: ADAPTADOR PVC, ROSCAVEL, COM FLANGES E ANEL DE VEDACAO, 1/2", PARA CAIXA D'AGUA | C115: UN | D115: CR | E115: 15.97
A116: 73 | B116: ADAPTADOR PVC, ROSCAVEL, COM FLANGES E ANEL DE VEDACAO, 3/4", PARA CAIXA D'AGUA | C116: UN | D116: CR | E116: 15.29
A117: 100 | B117: ADAPTADOR PVC, SOLDAVEL, COM FLANGES E ANEL DE VEDACAO, 60 MM X 2", PARA CAIXA D'AGUA | C117: UN | D117: CR | E117: 45.01
A118: 75 | B118: ADAPTADOR PVC, SOLDAVEL, COM FLANGES LIVRES, 110 MM X 4", PARA CAIXA D'AGUA | C118: UN | D118: CR | E118: 262.43
A119: 83 | B119: ADAPTADOR PVC, SOLDAVEL, COM FLANGES LIVRES, 75 MM X 2 1/2", PARA CAIXA D'AGUA | C119: UN | D119: CR | E119: 209.8
A120: 74 | B120: ADAPTADOR PVC, SOLDAVEL, COM FLANGES LIVRES, 85 MM X 3", PARA CAIXA D'AGUA | C120: UN | D120: CR | E120: 299.96
A121: 106 | B121: ADAPTADOR PVC, SOLDAVEL, LONGO, COM FLANGE LIVRE, 110 MM X 4", PARA CAIXA D'AGUA | C121: UN | D121: CR | E121: 379.31
A122: 88 | B122: ADAPTADOR PVC, SOLDAVEL, LONGO, COM FLANGE LIVRE, 32 MM X 1", PARA CAIXA D'AGUA | C122: UN | D122: CR | E122: 10.66
A123: 82 | B123: ADAPTADOR PVC, SOLDAVEL, LONGO, COM FLANGE LIVRE, 75 MM X 2 1/2", PARA CAIXA D'AGUA | C123: UN | D123: CR | E123: 199.61
A124: 105 | B124: ADAPTADOR PVC, SOLDAVEL, LONGO, COM FLANGE LIVRE, 85 MM X 3", PARA CAIXA D'AGUA | C124: UN | D124: CR | E124: 282.84
A125: 39719 | B125: ADESIVO / COLA DE CONTATO LIQUIDO, A BASE DE RESINAS, PARA COLAGEM DE ESPUMA PARA ISOLAMENTO TERMICO FLEXIVEL | C125: L | D125: CR | E125: 160.12
A126: 3410 | B126: ADESIVO / COLA PARA EPS (ISOPOR) E OUTROS MATERIAIS | C126: KG | D126: CR | E126: 36.02
A127: 4791 | B127: ADESIVO ACRILICO DE BASE AQUOSA / COLA DE CONTATO | C127: KG | D127: CR | E127: 29.68
A128: 157 | B128: ADESIVO ESTRUTURAL A BASE DE RESINA EPOXI PARA INJECAO EM TRINCAS, BICOMPONENTE, BAIXA VISCOSIDADE | C128: KG | D128: CR | E128: 169.02
A129: 156 | B129: ADESIVO ESTRUTURAL A BASE DE RESINA EPOXI, BICOMPONENTE, FLUIDO | C129: KG | D129: CR | E129: 60.18
A130: 131 | B130: ADESIVO ESTRUTURAL A BASE DE RESINA EPOXI, BICOMPONENTE, PASTOSO (TIXOTROPICO) | C130: KG | D130: CR | E130: 51.46
A131: 21114 | B131: ADESIVO PARA TUBOS CPVC, *75* G | C131: UN | D131: CR | E131: 31.56
A132: 119 | B132: ADESIVO PLASTICO PARA PVC, BISNAGA COM 75 GR | C132: UN | D132: C | E132: 8
A133: 122 | B133: ADESIVO PLASTICO PARA PVC, FRASCO COM *850* GR | C133: UN | D133: CR | E133: 61.55
A134: 20080 | B134: ADESIVO PLASTICO PARA PVC, FRASCO COM 175 GR | C134: UN | D134: CR | E134: 20.09
A135: 124 | B135: ADITIVO ACELERADOR DE PEGA E ENDURECIMENTO PARA ARGAMASSAS E CONCRETOS, LIQUIDO E ISENTO DE CLORETOS | C135: L | D135: CR | E135: 19.85
A136: 7334 | B136: ADITIVO ADESIVO LIQUIDO PARA ARGAMASSAS DE REVESTIMENTOS CIMENTICIOS | C136: L | D136: CR | E136: 16.36
A137: 45146 | B137: ADITIVO IMPERMEABILIZANTE CRISTALIZANTE PARA CONCRETO | C137: KG | D137: CR | E137: 38.06
A138: 123 | B138: ADITIVO IMPERMEABILIZANTE DE PEGA NORMAL PARA ARGAMASSAS E CONCRETOS SEM ARMACAO, LIQUIDO E ISENTO DE CLORETOS | C138: L | D138: C | E138: 8.12
A139: 127 | B139: ADITIVO IMPERMEABILIZANTE DE PEGA ULTRARRAPIDA, LIQUIDO E ISENTO DE CLORETOS | C139: L | D139: CR | E139: 19.38
A140: 133 | B140: ADITIVO LIQUIDO INCORPORADOR DE AR PARA CONCRETO E ARGAMASSA, LIQUIDO E ISENTO DE CLORETOS | C140: L | D140: CR | E140: 8.05
A141: 43617 | B141: ADITIVO PLASTIFICANTE E ESTABILIZADOR PARA ARGAMASSAS DE ASSENTAMENTO E REBOCO, LIQUIDO E ISENTO DE CLORETOS | C141: L | D141: CR | E141: 8.99
A142: 132 | B142: ADITIVO PLASTIFICANTE RETARDADOR DE PEGA E REDUTOR DE AGUA PARA CONCRETO, LIQUIDO E ISENTO DE CLORETOS | C142: L | D142: CR | E142: 8.35
A143: 43618 | B143: ADITIVO SUPERPLASTIFICANTE DE PEGA NORMAL PARA CONCRETO, LIQUIDO E ISENTO DE CLORETOS | C143: KG | D143: CR | E143: 21.01
A144: 37476 | B144: ADUELA/ GALERIA PRE-MOLDADA DE CONCRETO ARMADO, SECAO QUADRADA INTERNA DE 1,50 X 1,50 M (L X A), MISULA DE 20 X 20 CM, C = 1,00 M, ESPESSURA MIN = 15 CM, TB-45 E FCK DO CONCRETO = 30 MPA | C144: UN | D144: CR | E144: 4459.15
A145: 37478 | B145: ADUELA/ GALERIA PRE-MOLDADA DE CONCRETO ARMADO, SECAO RETANGULAR INTERNA DE 2,00 X 2,00 M (L X A), MISULA DE 20 X 20 CM, C = 1,00 M, ESPESSURA MIN = 15 CM, TB-45 E FCK DO CONCRETO = 30 MPA | C145: UN | D145: CR | E145: 5585.21
A146: 37477 | B146: ADUELA/ GALERIA PRE-MOLDADA DE CONCRETO ARMADO, SECAO RETANGULAR INTERNA DE 2,50 X 2,50 M (L X A), MISULA DE 20 X 20 CM, C = 1,00 M, ESPESSURA MIN = 15 CM, TB-45 E FCK DO CONCRETO = 30 MPA | C146: UN | D146: CR | E146: 7567.05
A147: 37479 | B147: ADUELA/ GALERIA PRE-MOLDADA DE CONCRETO ARMADO, SECAO RETANGULAR INTERNA DE 3,00 X 3,00 M (L X A), MISULA DE 20 X 20 CM, C = 1.00 M, ESPESSURA MIN = 20 CM, TB-45 E FCK DO CONCRETO = 30 MPA | C147: UN | D147: CR | E147: 8974.62
A148: 4319 | B148: AFASTADOR PARA TELHA DE FIBROCIMENTO CANALETE 90 OU KALHETAO | C148: UN | D148: CR | E148: 2.44
A149: 42409 | B149: AGENTE DE CURA, PROTETOR DA EVAPORACAO DA AGUA DE HIDRATACAO DO CONCRETO | C149: KG | D149: CR | E149: 13.23
A150: 40553 | B150: AGREGADO RECICLADO, TIPO RACHAO RECICLADO CINZA, CLASSE A | C150: M3 | D150: C
A151: 6114 | B151: AJUDANTE DE ARMADOR (HORISTA) | C151: H | D151: CR | E151: 15.48
A152: 40912 | B152: AJUDANTE DE ARMADOR (MENSALISTA) | C152: MES | D152: CR | E152: 2728.14
A153: 247 | B153: AJUDANTE DE ELETRICISTA (HORISTA) | C153: H | D153: CR | E153: 15.48
A154: 40919 | B154: AJUDANTE DE ELETRICISTA (MENSALISTA) | C154: MES | D154: CR | E154: 2728.14
A155: 44499 | B155: AJUDANTE DE ESTRUTURAS METALICAS (HORISTA) | C155: H | D155: CR | E155: 15.48
A156: 40984 | B156: AJUDANTE DE ESTRUTURAS METALICAS (MENSALISTA) | C156: MES | D156: CR | E156: 2728.14
A157: 248 | B157: AJUDANTE DE OPERACAO EM GERAL (HORISTA) | C157: H | D157: CR | E157: 15.69
A158: 41086 | B158: AJUDANTE DE OPERACAO EM GERAL (MENSALISTA) | C158: MES | D158: CR | E158: 2766.13
A159: 34466 | B159: AJUDANTE DE PINTOR (HORISTA) | C159: H | D159: CR | E159: 15.48
A160: 41083 | B160: AJUDANTE DE PINTOR (MENSALISTA) | C160: MES | D160: CR | E160: 2728.14
A161: 252 | B161: AJUDANTE DE SERRALHEIRO (HORISTA) | C161: H | D161: CR | E161: 15.48
A162: 40909 | B162: AJUDANTE DE SERRALHEIRO (MENSALISTA) | C162: MES | D162: CR | E162: 2728.14
A163: 242 | B163: AJUDANTE ESPECIALIZADO (HORISTA) | C163: H | D163: CR | E163: 15.69
A164: 41085 | B164: AJUDANTE ESPECIALIZADO (MENSALISTA) | C164: MES | D164: CR | E164: 2766.13
A165: 427 | B165: ALCA PREFORMADA DE CONTRA POSTE, EM ACO GALVANIZADO, PARA CABO 3/16", COMPRIMENTO *860* MM | C165: UN | D165: CR | E165: 10.65
A166: 417 | B166: ALCA PREFORMADA DE DISTRIBUICAO, EM ACO GALVANIZADO, PARA CABO DE ALUMINIO DIAMETRO 16 A 25 MM | C166: UN | D166: CR | E166: 5.02
A167: 11273 | B167: ALCA PREFORMADA DE DISTRIBUICAO, EM ACO GALVANIZADO, PARA CONDUTORES DE ALUMINIO AWG 1/0 (CAA 6/1 OU CA 7 FIOS) | C167: UN | D167: CR | E167: 15.58
A168: 11272 | B168: ALCA PREFORMADA DE DISTRIBUICAO, EM ACO GALVANIZADO, PARA CONDUTORES DE ALUMINIO AWG 2 (CAA 6/1 OU CA 7 FIOS) | C168: UN | D168: CR | E168: 9.4
A169: 11275 | B169: ALCA PREFORMADA DE SERVICO, EM ACO GALVANIZADO, PARA CONDUTORES DE ALUMINIO AWG 4 (CAA 6/1) | C169: UN | D169: CR | E169: 3.77
A170: 11274 | B170: ALCA PREFORMADA DE SERVICO, EM ACO GALVANIZADO, PARA CONDUTORES DE ALUMINIO AWG 6 (CAA 6/1) | C170: UN | D170: CR | E170: 2.87
A171: 45250 | B171: ALICATE BICO LONGO (MEIA CANA) 6", COM ISOLAMENTO ATE 1000 V | C171: UN | D171: CR | E171: 41.13
A172: 38470 | B172: ALICATE DE CORTE DIAGONAL 6" COM ISOLAMENTO | C172: UN | D172: C | E172: 50.7
A173: 38547 | B173: ALICATE DE CRIMPAR RJ11, RJ12 E RJ45, COM CATRACA | C173: UN | D173: CR | E173: 279.53
A174: 38467 | B174: ALICATE DE PRESSAO 11" PARA SOLDA, TIPO C | C174: UN | D174: CR | E174: 83.7
A175: 38468 | B175: ALICATE DE PRESSAO 11" PARA SOLDA, TIPO U | C175: UN | D175: CR | E175: 92.11
A176: 38469 | B176: ALICATE DE PRESSAO PARA SOLDA DE CHAPA 18" | C176: UN | D176: CR | E176: 266.9
A177: 45197 | B177: ALICATE DESENCAPADOR AUTOMATICO 8" | C177: UN | D177: CR | E177: 212.86
A178: 38471 | B178: ALICATE PARA ANEIS DE PISTAO, CAPACIDADE *50* A 100 MM | C178: UN | D178: CR | E178: 285.46
A179: 45206 | B179: ALICATE PROFISSIONAL 8", UNIVERSAL, COM ISOLAMENTO ATE 1000 V | C179: UN | D179: CR | E179: 56.4
A180: 37370 | B180: ALIMENTACAO - HORISTA (COLETADO CAIXA - ENCARGOS COMPLEMENTARES) | C180: H | D180: C | E180: 4.23
A181: 40862 | B181: ALIMENTACAO - MENSALISTA (COLETADO CAIXA - ENCARGOS COMPLEMENTARES) | C181: MES | D181: C | E181: 797.5
A182: 10658 | B182: ALISADORA DE CONCRETO COM MOTOR A GASOLINA DE 5,5 HP, PESO COM MOTOR DE 78 KG, 4 PAS | C182: UN | D182: C
A183: 253 | B183: ALMOXARIFE (HORISTA) | C183: H | D183: C | E183: 32.42
A184: 40809 | B184: ALMOXARIFE (MENSALISTA) | C184: MES | D184: CR | E184: 5706.13
A185: 42428 | B185: ALONGADOR COM TRES ALTURAS, EM TUBO DE ACO CARBONO, PINTURA NO PROCESSO ELETROSTATICO - EQUIPAMENTO DE GINASTICA PARA ACADEMIA AO AR LIVRE / ACADEMIA DA TERCEIRA IDADE - ATI | C185: UN | D185: C
A186: 301 | B186: ANEL BORRACHA PARA TUBO ESGOTO PREDIAL, DN 100 MM (NBR 5688) | C186: UN | D186: C | E186: 3.8
A187: 296 | B187: ANEL BORRACHA PARA TUBO ESGOTO PREDIAL, DN 50 MM (NBR 5688) | C187: UN | D187: CR | E187: 2.14
A188: 297 | B188: ANEL BORRACHA PARA TUBO ESGOTO PREDIAL, DN 75 MM (NBR 5688) | C188: UN | D188: CR | E188: 3.15
A189: 299 | B189: ANEL BORRACHA, DN 100 MM, PARA TUBO SERIE REFORCADA ESGOTO PREDIAL | C189: UN | D189: CR | E189: 4.46
A190: 300 | B190: ANEL BORRACHA, DN 150 MM, PARA TUBO SERIE REFORCADA ESGOTO PREDIAL | C190: UN | D190: CR | E190: 15.42
A191: 20085 | B191: ANEL BORRACHA, DN 50 MM, PARA TUBO SERIE REFORCADA ESGOTO PREDIAL | C191: UN | D191: CR | E191: 2.82
A192: 298 | B192: ANEL BORRACHA, DN 75 MM, PARA TUBO SERIE REFORCADA ESGOTO PREDIAL | C192: UN | D192: CR | E192: 3.43
A193: 311 | B193: ANEL BORRACHA, PARA TUBO PVC DEFOFO, DN 100 MM (NBR 7665) | C193: UN | D193: CR | E193: 12.72
A194: 318 | B194: ANEL BORRACHA, PARA TUBO PVC DEFOFO, DN 150 MM (NBR 7665) | C194: UN | D194: CR | E194: 25.62
A195: 319 | B195: ANEL BORRACHA, PARA TUBO PVC DEFOFO, DN 200 MM (NBR 7665) | C195: UN | D195: CR | E195: 40.17
A196: 303 | B196: ANEL BORRACHA, PARA TUBO PVC, REDE COLETOR ESGOTO, DN 100 MM (NBR 7362) | C196: UN | D196: CR | E196: 4.21
A197: 305 | B197: ANEL BORRACHA, PARA TUBO PVC, REDE COLETOR ESGOTO, DN 150 MM (NBR 7362) | C197: UN | D197: CR | E197: 13.24
A198: 306 | B198: ANEL BORRACHA, PARA TUBO PVC, REDE COLETOR ESGOTO, DN 200 MM (NBR 7362) | C198: UN | D198: CR | E198: 20.08
A199: 307 | B199: ANEL BORRACHA, PARA TUBO PVC, REDE COLETOR ESGOTO, DN 250 MM (NBR 7362) | C199: UN | D199: CR | E199: 50.74
A200: 309 | B200: ANEL BORRACHA, PARA TUBO PVC, REDE COLETOR ESGOTO, DN 350 MM (NBR 7362) | C200: UN | D200: CR | E200: 83.12
A201: 310 | B201: ANEL BORRACHA, PARA TUBO PVC, REDE COLETOR ESGOTO, DN 400 MM (NBR 7362) | C201: UN | D201: CR | E201: 115.2
A202: 308 | B202: ANEL BORRACHA, PARA TUBO, PVC REDE COLETOR ESGOTO, DN 300 MM (NBR 7362) | C202: UN | D202: CR | E202: 113.25
... 4678 more rows

Sheet COMP Sint. Sinapi
A1: SINAPI - Sistema Nacional de Pesquisa de Custos e Índices da Construção Civil
A2: RELATÓRIO DE CUSTOS DE COMPOSIÇÕES - ENCARGOS SOCIAIS SEM DESONERAÇÃO
A3: Mês de Referência: | B3: 05/2025 | D3: Encargos sociais sobre a mão de obra:
A4: Data de emissão: | B4: 10/06/2025 | D4: (SEM DESONERAÇÃO) | E4: MA
D5: Localidade | E5: SAO LUIS
A6: Observação: | B6: %AS (porcentagem Atribuído São Paulo) corresponde a porcentagem do custo total da | D6: Horista | E6: 1.1273
B7: composição que foi obtida utilizando preços de insumos de São Paulo por indisponibilidade | D7: Mensalista | E7: 0.7019
B8: dos preços de insumos necessários à composição no estado em questão. Custo zerado (hífen)
B9: indica que pelo menos um dos itens da composição não tem custo/preço. | E9: MA
A10: Grupo | B10: Código da Composição | C10: Descrição | D10: Unidade | E10: Custo (R$) | F10: %AS
A11: Luminárias Externas | B11: 101663 | C11: ABRAÇADEIRA DE FIXAÇÃO DE BRAÇOS DE LUMINÁRIAS DE 2" - FORNECIMENTO E INSTALAÇÃO. AF_02/2025 | D11: UN | E11: 25.74 | F11: 0.3337
A12: Luminárias Externas | B12: 101664 | C12: ABRAÇADEIRA DE FIXAÇÃO DE BRAÇOS DE LUMINÁRIAS DE 3" - FORNECIMENTO E INSTALAÇÃO. AF_02/2025 | D12: UN | E12: 27 | F12: 0.3648
A13: Luminárias Externas | B13: 101665 | C13: ABRAÇADEIRA DE FIXAÇÃO DE BRAÇOS DE LUMINÁRIAS DE 4" - FORNECIMENTO E INSTALAÇÃO. AF_02/2025 | D13: UN | E13: 32.38 | F13: 0.4704
A14: Instalações de Gás e Incêndio em Aço e Ferro Galvanizado | B14: 101912 | C14: ABRIGO PARA HIDRANTE, 75X45X17CM, COM REGISTRO GLOBO ANGULAR 45 GRAUS 2 1/2", ADAPTADOR STORZ 2 1/2", MANGUEIRA DE INCÊNDIO 15M 2 1/2" E ESGUICHO EM LATÃO 2 1/2" - FORNECIMENTO E INSTALAÇÃO. AF_10/2020 | D14: UN | E14: 2233.99 | F14: 0
A15: Instalações de Gás e Incêndio em Aço e Ferro Galvanizado | B15: 96765 | C15: ABRIGO PARA HIDRANTE, 90X60X17CM, COM REGISTRO GLOBO ANGULAR 45 GRAUS 2 1/2", ADAPTADOR STORZ 2 1/2", MANGUEIRA DE INCÊNDIO 20M, REDUÇÃO 2 1/2" X 1 1/2" E ESGUICHO EM LATÃO 1 1/2" - FORNECIMENTO E INSTALAÇÃO. AF_10/2020 | D15: UN | E15: 1783.98 | F15: 0.0016
A16: Louças e Metais | B16: 100857 | C16: ACABAMENTO MONOCOMANDO PARA CHUVEIRO - FORNECIMENTO E INSTALAÇÃO. AF_01/2020 | D16: UN | E16: 777.69 | F16: 0
A17: Pisos | B17: 101730 | C17: ACABAMENTO PARA PISO EM TACO DE MADEIRA. AF_09/2020 | D17: M2 | E17: 0
A18: Radier, Piso de Concreto e Laje sobre Solo | B18: 97097 | C18: ACABAMENTO POLIDO PARA PISO DE CONCRETO ARMADO OU LAJE SOBRE SOLO DE ALTA RESISTÊNCIA. AF_09/2021 | D18: M2 | E18: 42.56 | F18: 0.0002
A19: Forros | B19: 96120 | C19: ACABAMENTOS PARA FORRO (MOLDURA DE GESSO). AF_08/2023 | D19: M | E19: 3.37 | F19: 0.0119
A20: Forros | B20: 96123 | C20: ACABAMENTOS PARA FORRO (MOLDURA EM DRYWALL, COM LARGURA DE 15 CM). AF_08/2023_PS | D20: M | E20: 35.23 | F20: 0.0599
A21: Forros | B21: 96122 | C21: ACABAMENTOS PARA FORRO (RODA-FORRO EM MADEIRA PINUS). AF_08/2023 | D21: M | E21: 43.76 | F21: 0.1099
A22: Forros | B22: 96121 | C22: ACABAMENTOS PARA FORRO (RODA-FORRO EM PERFIL METÁLICO E PLÁSTICO). AF_08/2023 | D22: M | E22: 11.43 | F22: 0.1601
A23: Forros | B23: 99054 | C23: ACABAMENTOS PARA FORRO (SANCA DE GESSO, MONTADA NA OBRA). AF_08/2023_PS | D23: M2 | E23: 64.12 | F23: 0.0167
A24: Instalações de Gás e Incêndio em Aço e Ferro Galvanizado | B24: 97430 | C24: ACOPLAMENTO RÍGIDO EM AÇO, CONEXÃO RANHURADA, DN 50 (2"), INSTALADO EM PRUMADAS - FORNECIMENTO E INSTALAÇÃO. AF_10/2020 | D24: UN | E24: 39.16 | F24: 0.5232
A25: Instalações de Gás e Incêndio em Aço e Ferro Galvanizado | B25: 97431 | C25: ACOPLAMENTO RÍGIDO EM AÇO, CONEXÃO RANHURADA, DN 65 (2 1/2"), INSTALADO EM PRUMADAS - FORNECIMENTO E INSTALAÇÃO. AF_10/2020 | D25: UN | E25: 43.79 | F25: 0.5077
A26: Instalações de Gás e Incêndio em Aço e Ferro Galvanizado | B26: 97432 | C26: ACOPLAMENTO RÍGIDO EM AÇO, CONEXÃO RANHURADA, DN 80 (3"), INSTALADO EM PRUMADAS - FORNECIMENTO E INSTALAÇÃO. AF_10/2020 | D26: UN | E26: 49.42 | F26: 0.5049
A27: Poços de Visita e Caixas para Bocas de Lobo | B27: 99283 | C27: ACRÉSCIMO PARA POÇO DE VISITA CIRCULAR PARA DRENAGEM, EM ALVENARIA COM TIJOLOS CERÂMICOS MACIÇOS, DIÂMETRO INTERNO = 0,8 M. AF_12/2020 | D27: M | E27: 1194.36 | F27: 0
A28: Poços de Visita e Caixas para Bocas de Lobo | B28: 99293 | C28: ACRÉSCIMO PARA POÇO DE VISITA CIRCULAR PARA DRENAGEM, EM ALVENARIA COM TIJOLOS CERÂMICOS MACIÇOS, DIÂMETRO INTERNO = 1 M. AF_12/2020 | D28: M | E28: 1440.64 | F28: 0
A29: Poços de Visita e Caixas para Bocas de Lobo | B29: 99243 | C29: ACRÉSCIMO PARA POÇO DE VISITA CIRCULAR PARA DRENAGEM, EM ALVENARIA COM TIJOLOS CERÂMICOS MACIÇOS, DIÂMETRO INTERNO = 1,2 M. AF_12/2020 | D29: M | E29: 1686.91 | F29: 0
A30: Poços de Visita e Caixas para Bocas de Lobo | B30: 99249 | C30: ACRÉSCIMO PARA POÇO DE VISITA CIRCULAR PARA DRENAGEM, EM ALVENARIA COM TIJOLOS CERÂMICOS MACIÇOS, DIÂMETRO INTERNO = 1,5 M. AF_12/2020 | D30: M | E30: 2056.41 | F30: 0
A31: Poços de Visita e Caixas para Bocas de Lobo | B31: 99278 | C31: ACRÉSCIMO PARA POÇO DE VISITA CIRCULAR PARA DRENAGEM, EM CONCRETO PRÉ-MOLDADO, DIÂMETRO INTERNO = 0,8 M. AF_12/2020 | D31: M | E31: 448.82 | F31: 0.0387
A32: Poços de Visita e Caixas para Bocas de Lobo | B32: 99288 | C32: ACRÉSCIMO PARA POÇO DE VISITA CIRCULAR PARA DRENAGEM, EM CONCRETO PRÉ-MOLDADO, DIÂMETRO INTERNO = 1 M. AF_12/2020 | D32: M | E32: 593.88 | F32: 0.0341
A33: Poços de Visita e Caixas para Bocas de Lobo | B33: 99240 | C33: ACRÉSCIMO PARA POÇO DE VISITA CIRCULAR PARA DRENAGEM, EM CONCRETO PRÉ-MOLDADO, DIÂMETRO INTERNO = 1,2 M. AF_12/2020 | D33: M | E33: 792.27 | F33: 0.0297
A34: Poços de Visita e Caixas para Bocas de Lobo | B34: 99246 | C34: ACRÉSCIMO PARA POÇO DE VISITA CIRCULAR PARA DRENAGEM, EM CONCRETO PRÉ-MOLDADO, DIÂMETRO INTERNO = 1,5 M. AF_12/2020 | D34: M | E34: 1087.13 | F34: 0.0277
A35: Poços de Visita e Caixas para Bocas de Lobo | B35: 97981 | C35: ACRÉSCIMO PARA POÇO DE VISITA CIRCULAR PARA ESGOTO, EM ALVENARIA COM TIJOLOS CERÂMICOS MACIÇOS, DIÂMETRO INTERNO = 0,8 M. AF_12/2020 | D35: M | E35: 1276.7 | F35: 0
A36: Poços de Visita e Caixas para Bocas de Lobo | B36: 97985 | C36: ACRÉSCIMO PARA POÇO DE VISITA CIRCULAR PARA ESGOTO, EM ALVENARIA COM TIJOLOS CERÂMICOS MACIÇOS, DIÂMETRO INTERNO = 1 M. AF_12/2020 | D36: M | E36: 1533.75 | F36: 0
A37: Poços de Visita e Caixas para Bocas de Lobo | B37: 97989 | C37: ACRÉSCIMO PARA POÇO DE VISITA CIRCULAR PARA ESGOTO, EM ALVENARIA COM TIJOLOS CERÂMICOS MACIÇOS, DIÂMETRO INTERNO = 1,2 M. AF_12/2020 | D37: M | E37: 1790.79 | F37: 0
A38: Poços de Visita e Caixas para Bocas de Lobo | B38: 97993 | C38: ACRÉSCIMO PARA POÇO DE VISITA CIRCULAR PARA ESGOTO, EM ALVENARIA COM TIJOLOS CERÂMICOS MACIÇOS, DIÂMETRO INTERNO = 1,5 M. AF_12/2020 | D38: M | E38: 2176.46 | F38: 0
A39: Poços de Visita e Caixas para Bocas de Lobo | B39: 98409 | C39: ACRÉSCIMO PARA POÇO DE VISITA CIRCULAR PARA ESGOTO, EM CONCRETO PRÉ-MOLDADO, DIÂMETRO INTERNO = 0,8 M. AF_12/2020 | D39: M | E39: 451.16 | F39: 0.0385
A40: Poços de Visita e Caixas para Bocas de Lobo | B40: 97983 | C40: ACRÉSCIMO PARA POÇO DE VISITA CIRCULAR PARA ESGOTO, EM CONCRETO PRÉ-MOLDADO, DIÂMETRO INTERNO = 1 M. AF_12/2020 | D40: M | E40: 596.95 | F40: 0.0339
A41: Poços de Visita e Caixas para Bocas de Lobo | B41: 97987 | C41: ACRÉSCIMO PARA POÇO DE VISITA CIRCULAR PARA ESGOTO, EM CONCRETO PRÉ-MOLDADO, DIÂMETRO INTERNO = 1,2 M. AF_12/2020 | D41: M | E41: 796.11 | F41: 0.0295
A42: Poços de Visita e Caixas para Bocas de Lobo | B42: 97991 | C42: ACRÉSCIMO PARA POÇO DE VISITA CIRCULAR PARA ESGOTO, EM CONCRETO PRÉ-MOLDADO, DIÂMETRO INTERNO = 1,5 M. AF_12/2020 | D42: M | E42: 1092.38 | F42: 0.0276
A43: Poços de Visita e Caixas para Bocas de Lobo | B43: 99241 | C43: ACRÉSCIMO PARA POÇO DE VISITA RETANGULAR PARA DRENAGEM, EM ALVENARIA COM BLOCOS DE CONCRETO, DIMENSÕES INTERNAS = 1,5X1,5 M. AF_12/2020 | D43: M | E43: 1976.63 | F43: 0
A44: Poços de Visita e Caixas para Bocas de Lobo | B44: 99247 | C44: ACRÉSCIMO PARA POÇO DE VISITA RETANGULAR PARA DRENAGEM, EM ALVENARIA COM BLOCOS DE CONCRETO, DIMENSÕES INTERNAS = 1,5X2 M. AF_12/2020 | D44: M | E44: 2253.83 | F44: 0
A45: Poços de Visita e Caixas para Bocas de Lobo | B45: 99263 | C45: ACRÉSCIMO PARA POÇO DE VISITA RETANGULAR PARA DRENAGEM, EM ALVENARIA COM BLOCOS DE CONCRETO, DIMENSÕES INTERNAS = 1,5X2,5 M. AF_12/2020 | D45: M | E45: 2531.08 | F45: 0
